Workbook

Sheet 入力ガイド
F1: （福井労働局参考資料） | K1: 運転者名 | M1: 集計期間 | N1: ↓長距離運行全くなし0 | O1: 2024-08-26 | P1: ～ | Q1: 2024-09-25 | BA1: 歴日数 | BI1: =IF(O1<>"",Q1-O1+1,"") -> 31 | BK1: 日間
F2: 運行解析ツール | K2: 福井 太郎 | M2: 車両番号 | N2: =SUM($N$4:$N$7) -> 0 | O2: ①0000・②1111 | BI2: =BI1/7*(40*60) -> 10628.57143 | BK2: (分)
F3: ①入力シート（入力ガイド） | K3: 宿泊を伴う長距離貨物運送（※） | L3: 週 | M3: 該当 | N3: あり:1,なし:0 | O3: （※）宿泊を伴う長距離貨物運送 ・・・１週における運行が全て長距離貨物運送（一の運行の走行距離が450km以上）であり、かつ、一の運行における休息期間が住所地以外の場所におけるもの | BI3: =BI2/1440 -> 7.380952381 | BK3: 計算期間１か月間の総歴日数／ 7 × 40
I4: 1週目 | K4: =IF(O1<>"",TEXT(O1, "MM/DD")&"～"&TEXT(O1+6, "MM/DD"),"") -> 08/26～09/01 | L4: 1 | M4: なし | N4: =IF(M4="あり",1,0) -> 0
G5: 入力セル | I5: 2週目 | K5: =IF(O1<>"",TEXT(O1+7, "MM/DD")&"～"&TEXT(O1+13, "MM/DD"),"") -> 09/02～09/08 | L5: 2 | M5: なし | N5: =IF(M5="あり",1,0) -> 0
G6: 計算セル | I6: 3週目 | K6: =IF(O1<>"",TEXT(O1+14, "MM/DD")&"～"&TEXT(O1+20, "MM/DD"),"") -> 09/09～09/15 | L6: 3 | M6: なし | N6: =IF(M6="あり",1,0) -> 0
I7: 4週目 | K7: =IF(O1<>"",TEXT(O1+21, "MM/DD")&"～"&TEXT(O1+27, "MM/DD"),"") -> 09/16～09/22 | L7: 4 | M7: なし | N7: =IF(M7="あり",1,0) -> 0
F8: ① | G8: ② | I8: ③ | M8: ④ | O8: ⑤ | AB8: a | AD8: b | AF8: c | BA8: d | BI8: e | BJ8: 1⑤ | BK8: f | BO8: 4① | CA8: g | CH8: h | CN8: i | CP8: j | CV8: 1⑥ | CW8: k | DF8: l | DJ8: m | DN8: n
F9: 運転 日報 | G9: 運行 番号 | I9: 種別 | J9: 休息3時間未満チェック | K9: 1：労働時間（運転） 2：労働時間（運転以外） 3：休憩 4：休息（自宅） 5：休息（出先） | L9: 年月 | M9: 開始 | N9: 開始時刻 分表示 | O9: 終了 | R9: 終了時刻 分表示 | S9: 経過時間 （終了時間―開始時間） | T9: 経過時間 （終了時間―開始時間） | U9: 月日 | V9: 運行番号を日付に | W9: 次の運行番号が変わった開始時間 | X9: 1週間の表示の行 | Y9: 2週間の表示の行 | Z9: 長距離運行のありなし | AA9: 労働時間 （運転時間） | AB9: 労働時間 （運転時間） | AC9: 労働時間 （運転以外） | AD9: 労働時間 （運転以外） | AE9: 休憩時間 | AF9: 休憩時間 | AG9: 種別が「運転」以外(連続運転時間で使用) | AH9: 24時間終了 | AI9: 分に変換 | AJ9: 24時間後の行の開始時間 | AK9: 分に変換 | AL9: 24時間後の行の種別 | AM9: 24時間後がまたいでいる時の足りない時間計算 | AN9: 開始～24時間後までの拘束時間 (時間またいでいるものは除く) | AO9: 48時間終了 | AP9: 分に変換 | AQ9: 48時間後の行の開始時間 | AR9: 分 | AS9: 48時間後の行の種別 | AT9: 48時間後がまたいでいる時の足りない時間計算 | AU9: 2週間の終了 | AV9: 分変換 | AW9: 2週間後の行の開始時間 | AX9: 分変換 | AY9: 2週間後の種別 | AZ9: 拘束時間(勤務開始から24時間) （1か月・1日） | BA9: 拘束時間 （始業から24時間） | BB9: 拘束時間(勤務ごと) （1か月・1日） | BC9: 拘束時間(勤務ごと) （1か月・1日） | BD9: 拘束時間が14時間超え回数 | BE9: 拘束時間が15時間超え回数※ | BF9: 拘束時間、15時間超え16時間以下回数 | BG9: (一週での)拘束時間が15時間越え、16時間以下の回数 | BH9: 休息期間 （自宅） | BI9: 休息期間 （自宅） | BJ9: 休息期間 （出先） | BK9: 休息期間 （出先） | BL9: 休息期間 （自宅）・（出先） | BM9: 休息期間 （自宅）・（出先） | BN9: 分割休息無しの時の 休息時間 | BO9: 分割休息時の 休息時間 | BP9: 何分割休息か | BQ9: 何分割か(9時間以上の場合、分割回数1) | BR9: 何分割か(長距離運行のありの場合、8時間以上の場合、分割回数1) | BS9: (分割回数まとめ)長距離運行ありなしで判断 | BT9: 分割休息が何回目か | BU9: 分割休息無し(9時間以上の分割休息含む) | BV9: 分割休息有り（合計)(4分割目以降無効) | BW9: 分割休息時間の合計(4分割目以降無効)時刻形式 ・分割休息による勤務回数 | BX9: 2分割合計休息時間 | BY9: 3分割合計休息時間 | BZ9: 休息期間 （一勤務ごと） | CA9: 休息期間 （一勤務ごと） | CB9: 休日の判定 | CC9: 8時間以上9時間未満 | CD9: (一週での)休息時間が８時間以上、９時間未満の回数 | CE9: 開始～24時間後までの運転時間 | CF9: 24時間後がまたいでいる時の計算 | CG9: 運転時間 （始業から24時間） | CH9: 運転時間 （始業から24時間） | CI9: 運転時間（1日） ※一勤務 | CJ9: 運転時間（1日） ※一勤務 | CK9: 開始～48時間後までの運転時間 | CL9: 48時間後がまたいでいる時の計算 | CM9: 運転時間 （始業から48時間） | CN9: 運転時間 （始業から48時間） | CO9: 運転時間 （2日平均） | CP9: 運転時間 （2日平均） | CQ9: 次の運行番号の2日平均表示(9時間超え2日連続チェック) | CR9: 運転時間2日平均、9時間超え2日連続かチェック | CS9: 開始～2週間後までの運転時間 | CT9: 2週間後がまたいでいる時の計算 | CU9: 起算日(0:00)から2週間(0:00)の運転時間 | CV9: 運転時間 （2週平均） | CW9: 運転時間 （2週平均） | CX9: 中断が10分未満の時1,10分以上の時0 | CY9: 上の行で運転時間以外の一番大きい開始時間 | CZ9: 10分未満のとき、何回目の10分未満か(10分未満の時、カウントリセット) | DA9: 休憩と休息が10分未満の時1,10分以上の時0 | DB9: 10分未満のとき、何回目の10分未満か(10分未満の時、カウントリセット) | DC9: 休憩時間表示(30分たった時リセット(10分未満3連続以上 、8分以下含まない)) | DD9: 休憩時間合計 | DE9: 連続運転時間(休憩時間が30分以上続いたらリセット) | DF9: 連続運転時間 ※休憩30分以上でリセット | DG9: 運転以外の拘束時間表示(30分たった時リセット(10分未満3連続以上 、8分以下含まない)) | DH9: 中断時間合計 | DI9: 連続運転時間(運転時間以外が30分以上続いたらリセット) | DJ9: 連続運転時間 ※中断30分以上でリセット | DK9: 連続運転時間（最長）(30分経ったらリセットの方) | DL9: 時刻形式 | DM9: 労働時間 （1か月・一勤務） | DN9: 労働時間 （1か月・一勤務）
F10: =COUNTA(F12:F512) -> 4 | O10: 年月日 | P10: 時刻 | AZ10: =SUMIFS(AZ12:AZ503,$U$12:$U$503,">="&$O$1,$U$12:$U$503,"<="&$Q$1) -> 2258 | BA10: =IF(BB10<>"",BB10/1440,"") -> 1.277777778 | BB10: =SUMIFS(BB12:BB503,$U$12:$U$503,">="&$O$1,$U$12:$U$503,"<="&$Q$1) -> 1840 | BW10: =COUNTIFS($BS$12:$BS$509,">=2") -> 0 | CG10: =SUMIFS(CG12:CG503,$U$12:$U$503,">="&$O$1,$U$12:$U$503,"<="&$Q$1) -> 1622 | CH10: =CG10/1440 -> 1.126388889 | DM10: =SUMIFS(DM12:DM503,$U$12:$U$503,">="&$O$1,$U$12:$U$503,"<="&$Q$1) -> 1803 | DN10: =IF(DM10<>"",DM10/1440,"") -> 1.252083333 | DO10: ←月の合計
BZ11: (1.3.2)休息時間が9時間を下回るときに黄色背景 | CC11: (1.3.2)宿泊で休息時間8時間未満が1週間に2回を超えたときに黄色背景 | CD11: (1.3.2)宿泊で休息時間8時間未満が1週間に2回を超えたときに黄色背景 | CV11: (2.2)２週平均１週の運転時間が、44時間を超えたときに黄色背景
B12: 10 | C12: 種別条件 | F12: 1 | G12: 0826 | H12: =IF(G12<>"",VALUE(G12),"") -> 826 | I12: 1 | J12: =IF(OR(I12=$B$17, I12=$B$18),IF(S12<$B$52,1,""),"") ->  | K12: =IFERROR(VLOOKUP(I12,$B$14:$C$18,2,FALSE),"") -> 労働時間（運転） | L12: =IF(O12<>"",O12,L10) -> 2024-08-26 | M12: 2024-08-26T06:48:00 | N12: =HOUR(M12)*60+MINUTE(M12) -> 408 | O12: 2024-08-26 | P12: 08:15:00 | Q12: =L12+P12 -> 2024-08-26T08:15:00 | R12: =_xlfn.DAYS(Q12,M12)*1440+HOUR(Q12)*60+MINUTE(Q12) -> 495 | S12: =IF(G12<>"",R12-N12,"") -> 87 | T12: =IF(S12<>"",S12/1440,"") -> 0.06041666667 | U12: =IF(M12<>"",DATE(YEAR(M12),MONTH(M12),DAY(M12)),"") -> 2024-08-26 | V12: =IF(G12<>G11,IF(G12<>"",IF(AND(YEAR($O$1)<>YEAR($Q$1),LEFT(G12, 2)="01"),DATE(YEAR($Q$1),LEFT(G12, 2), RIGHT(G12, 2)),DATE(YEAR($O$1),LEFT(G12, 2), RIGHT(G12, 2))),""),"") -> 2024-08-26 | W12: =IF(G11<>G12,_xlfn.MINIFS($M$12:$M$500,$M$12:$M$500,">"&M12,$H$12:$H$500,"<>"&H12),"") -> 2024-08-27T03:47:00 | X12: =IF(M12=MIN(IF($M$12:$M$501>=$O$1,$M$12:$M$501)),$B$40,IF(M12=MIN(IF($M$12:$M$501>=$O$1+7,$M$12:$M$501)),$B$41,IF(M12=MIN(IF($M$12:$M$501>=$O$1+14,$M$12:$M$501)),$B$42,IF(M12=MIN(IF($M$12:$M$501>=$O$1+21,$M$12:$M$501)),$B$43,IF(M12=MIN(IF($M$12:$M$501>=$O$1+28,$M$12:$M$501)),$B$44,""))))) -> 1 | Y12: =IF(M12=MIN(IF($M$12:$M$501>=$O$1,$M$12:$M$501)),$B$40,IF(M12=MIN(IF($M$12:$M$501>=$O$1+14,$M$12:$M$501)),$B$41,IF(M12=MIN(IF($M$12:$M$501>=$O$1+28,$M$12:$M$501)),$B$42,""))) -> 1 | Z12: =IF(G12<>"",IF(X12<>"",IFERROR(INDEX(N$4:N$7, MATCH(X12, L$4:L$7, 0)),0), Z11), "") -> 0 | AA12: =IF(G12<>"",IF(I12=$B$14,S12,""),"") -> 87 | AB12: =IF(AA12<>"",IF(AA12<>0,AA12/1440,""),"") -> 0.06041666667 | AC12: =IF(I12=$B$15,S12,"") ->  | AD12: =IF(AC12<>"",AC12/1440,"") ->  | AF12: =IF(AE12<>"",IF(AE12<>0,AE12/1440,""),"") ->  | AG12: =IF(I12<>$B$14,S12,0) -> 0 | AH12: =IF(G11<>G12,M12+1,"") -> 2024-08-27T06:48:00 | AI12: =IF(G12<>G11,IF(AJ12<>0,_xlfn.DAYS(AH12,AJ12)*1440+HOUR(AH12)*60+MINUTE(AH12),0),"") -> 408 | AJ12: =IF(G12<>G11,SUMIFS($M$12:$M$511,$M$12:$M$511,"<="&AH12,$Q$12:$Q$511,">"&AH12),"") -> 2024-08-27T06:42:00 | AK12: =IF(G12<>G11,HOUR(AJ12)*60+MINUTE(AJ12),"") -> 402 | AL12: =IF(G12<>G11,SUMIFS($I$12:$I$511,$M$12:$M$511,"<"&AH12,$Q$12:$Q$511,">="&AH12),"") -> 2 | AM12: =IF(G12<>G11,IF(AND(AL12<>0,AL12<=$B$16),IF(AI12-AK12>=0,AI12-AK12,0),0),"") -> 6 | AN12: =IF(G12<>G11,SUMIFS($S$12:$S$510,$M$12:$M$510,">="&M12,$Q$12:$Q$510,"<="&AH12,$I$12:$I$510,"<="&$B$16),"") -> 724 | AO12: =IF(G11<>G12,M12+2,"") -> 2024-08-28T06:48:00 | AP12: =IF(G12<>G11,IF(AQ12<>0,_xlfn.DAYS(AO12,AQ12)*1440+HOUR(AO12)*60+MINUTE(AO12),0),"") -> 408 | AQ12: =IF(G12<>G11,SUMIFS($M$12:$M$511,$M$12:$M$511,"<="&AO12,$Q$12:$Q$511,">"&AO12),"") -> 2024-08-28T03:50:00 | AR12: =IF(G12<>G11,HOUR(AQ12)*60+MINUTE(AQ12),"") -> 230 | AS12: =IF(G12<>G11,SUMIFS($I$12:$I$511,$M$12:$M$511,"<"&AO12,$Q$12:$Q$511,">="&AO12),"") -> 1 | AT12: =IF(G12<>G11,IF(AND(AL12<>0,AL12<=$B$16),IF(AP12-AR12>=0,AP12-AR12,0),0),"") -> 178 | AU12: =IF(Y12=$B$40,$O$1+14,IF(Y12=$B$41,$O$1+28,"")) -> 2024-09-09 | AV12: =IF(Y12<>"",_xlfn.DAYS(AU12,AW12)*1440+HOUR(AU12)*60+MINUTE(AU12),"") -> 65583360 | AW12: =IF(Y12<>"",SUMIFS($M$12:$M$511,$M$12:$M$511,"<="&AU12,$Q$12:$Q$511,">"&AU12),"") -> 00:00:00 | AX12: =IF(Y12<>"",HOUR(AW12)*60+MINUTE(AW12),"") -> 0 | AY12: =IF(Y12<>"",SUMIFS($I$12:$I$511,$M$12:$M$511,"<"&AU12,$Q$12:$Q$511,">="&AU12),"") -> 0 | AZ12: =IF(G12<>G11,AN12+AM12,"") -> 730 | BA12: =IF(AZ12<>"",AZ12/1440,"") -> 0.5069444444 | BB12: =IF(G11<>G12,SUMIFS($S$12:$S$512,$I$12:$I$512,"<="&$B$16,$G$12:$G$512,G12),"") -> 549 | BC12: =IF(BB12<>"",BB12/1440,"") -> 0.38125 | BD12: =IF(X12<>"",COUNTIFS($BB$12:$BB$512,">"&$B$26,$U$12:$U$512,">="&U12,$U$12:$U$512,"<"&U12+$B$69),"") -> 0 | BE12: =IF(X12<>"",COUNTIFS($BB$12:$BB$512,">"&$B$27,$U$12:$U$512,">="&U12,$U$12:$U$512,"<"&U12+$B$69),"") -> 0 | BF12: =IF(G11<>G12,IF(AND(AZ12>$B$27,AZ12<=$B$28),1,0),"") -> 0 | BG12: =IF(X12<>"",IF(Z12=1,COUNTIFS($BF$12:$BF$500,">=1",$U$12:$U$500,">="&U12,$U$12:$U$500,"<"&U12+$B$69),""),"") ->  | BH12: =IF(I12=$B$17,S12,"") ->  | BI12: =IF(BH12<>"",BH12/1440,"") ->  | BJ12: =IF(I12=$B$18,S12,"") ->  | BK12: =IF(BJ12<>"",BJ12/1440,"") ->  | BL12: =IF(OR(I12=$B$18,I12=$B$17),S12,"") ->  | BM12: =IF(BL12<>"",BL12/1440,"") ->  | BN12: =IF(SUM(COUNTIFS($I$12:$I$509,$B$18,$G$12:$G$509,G12), COUNTIFS($I$12:$I$509,$B$17,$G$12:$G$509,G12))>$B$55,"",IF(OR(I12=$B$18, I12=$B$17), S12, "")) ->  | BO12: =IF(SUM(COUNTIFS($I$12:$I$509,$B$18,$G$12:$G$509,G12), COUNTIFS($I$12:$I$509,$B$17,$G$12:$G$509,G12))>$B$55,IF(OR(I12=$B$18, I12=$B$17), S12, ""),"") ->  | BP12: =IF(G12<>G11,IF(SUMIFS($BN$12:$BN$503,$G$12:$G$503,G12)>$B$56,1,COUNTIFS($BO$12:$BO$503,">"&$B$56,$G$12:$G$503,G12)),"") -> 1 | BQ12: =IF(G12<>G11,IF(BP12>=2,IF(MAX(IF($G$12:$G$503=G12,$BO$12:$BO$503))<$B$30,BP12,1),BP12),"") -> 1 | BR12: =IF(G12<>G11,IF(BP12>=2,IF(MAX(IF($G$12:$G$503=G12,$BO$12:$BO$503))<$B$31,BP12,1),BP12),"") -> 1 | BS12: =IF(Z12=1,BR12,IF(Z12=0,BQ12,"")) -> 1 | BT12: =IF(MAX(IF($G$12:G12=G12,$BO$12:BO12))<$B$30,COUNTIFS($BO$12:BO12,">"&$B$56,$G$12:G12,G12),0) -> 0 | BU12: =IF(G11<>G12,IF(BS12=$B$55,SUMIFS($S$12:$S$503,$G$12:$G$503,G12,$I$12:$I$503,$B$17)+SUMIFS($S$12:$S$503,$G$12:$G$503,G12,$I$12:$I$503,$B$18),""),"") -> 710 | BV12: =IF(G11<>G12,IF(SUMIFS($BS$12:$BS$503,$G$12:$G$503,G12)>=$B$58,SUMIFS($BO$12:$BO$503,$G$12:$G$503,G12,$BT$12:$BT$503,">=1",$BT$12:$BT$503,"<=3"),""),"") ->  | BW12: =IF(BV12<>"",BV12/1440,"") ->  | BX12: =IF(G11<>G12,IF(BS12=2,BW12,0),"") -> 0 | BY12: =IF(G11<>G12,IF(BS12=3,BW12,0),"") -> 0 | BZ12: =IF(G11<>G12,IF(BS12=1,BU12,IF(BS12=0,0,BV12)),"") -> 710 | CA12: =IF(BZ12<>"",BZ12/1440,"") -> 0.4930555556 | CB12: =IF(G12<>G11,IF(G12<>"",IF(BZ12>=1980,1,0),""),"") -> 0 | CC12: =IF(G11<>G12,IF(AND(BZ12>=$B$31,BZ12<$B$30),1,0),"") -> 0 | CD12: =IF(X12<>"",COUNTIFS($CC$12:$CC$499,">=1",$U$12:$U$499,">="&U12,$U$12:$U$499,"<"&U12+$B$69),"") -> 1 | CE12: =IF(G12<>G11,SUMIFS($AA$12:$AA$510,$M$12:$M$510,">="&M12,$Q$12:$Q$510,"<="&AH12),"") -> 529 | CF12: =IF(G12<>G11,IF(AL12=$B$14,IF(AI12-AK12>=0,AI12-AK12,0),0),"") -> 0 | CG12: =IF(G12<>G11,CE12+CF12,"") -> 529 | CH12: =IF(CG12<>"",CG12/1440,"") -> 0.3673611111 | CI12: =IF(G12<>G11,SUMIFS($AA$12:$AA$503,$G$12:$G$503,G12),"") -> 378 | CJ12: =IF(CI12<>"",CI12/1440,"") -> 0.2625 | CK12: =IF(G12<>G11,SUMIFS($AA$12:$AA$510,$M$12:$M$510,">="&M12,$Q$12:$Q$510,"<="&AO12),"") -> 1012 | CL12: =IF(G12<>G11,IF(AS12=$B$14,IF(AP12-AR12>=0,AP12-AR12,0),0),"") -> 178 | CM12: =IF(G12<>G11,CK12+CL12,"") -> 1190 | CN12: =IF(CM12<>"",CM12/1440,"") -> 0.8263888889 | CO12: =IF(G12<>G11,CM12/2,"") -> 595 | CP12: =IF(CO12<>"",CO12/1440,"") -> 0.4131944444 | CQ12: =IF(G11<>G12,SUMIFS($CO$12:$CO$500,$M$12:$M$500,W12),"") -> 495.5 | CR12: =IF(G11<>G12,IF(AND(CO12>$B$30,CQ12>$B$30),1,0),"") -> 0 | CS12: =IF(Y12=$B$40,SUMIFS($AA$12:$AA$501,$M$12:$M$501,">="&$O$1,$Q$12:$Q$501,"<="&AU12),IF(Y12=$B$41,SUMIFS($AA$12:$AA$501,$M$12:$M$501,">="&$O$1+14,$Q$12:$Q$501,"<="&AU12),"")) -> 1369 | CT12: =IF(Y12<>"",IF(AY12=$B$14,IF(AV12-AX12>=0,AV12-AX12,0),0),"") -> 0 | CU12: =IF(Y12<>"",CS12+CT12,"") -> 1369 | CV12: =IF(Y12<>"",CU12/2,"") -> 684.5 | CW12: =IF(CV12<>"",CV12/1440,"") -> 0.4753472222 | CX12: =IF(G12<>"",IF(I12<>$B$14,IF(S12<$B$50,1,0),""),"") ->  | CY12: =IF(G12<>"",MAX(IF($I$11:I11<>$B$14,$M$11:M11)),"") -> 00:00:00 | CZ12: =IF(CX12<>"",IF(CX12=0,0,IF(G12<>G11,0,IFERROR(INDEX($CZ$11:CZ11, MATCH(MAX($CY$11:CY11), $M$11:M11, 0))+1,1))),"") ->  | DA12: =IF(G12<>"",IF(I12>=$B$16,IF(S12<$B$50,1,0),""),"") ->  | DB12: =IF(DA12<>"",IF(DA12=0,0,IF(G12<>G11,0,IFERROR(INDEX($DB$11:DB11, MATCH(MAX($CY$11:CY11), $M$11:M11, 0))+1,1))),"") ->  | DC12: =IF(G12<>"",IF(I12>=$B$16,IF(S12>=9,IF(DB12>=3,0,S12),0),0),"") -> 0 | DD12: =IF(G12<>"",IF(G12=G11,IF(DD11>=$B$49,DC12,DD11+DC12),DC12),"") -> 0 | DE12: =IF(G12<>"",IF(G12=G11,IF(DD11>=$B$49,AA12,DE11+AA12),AA12),"") -> 87 | DF12: =IF(DE12=0,"",IF(DE12<>"",DE12/1440,"")) -> 0.06041666667 | DG12: =IF(G12<>"",IF(I12<>$B$14,IF(S12>=9,IF(CZ12>=3,0,S12),0),0),"") -> 0 | DH12: =IF(G12<>"",IF(G12=G11,IF(DH11>=$B$49,DG12,DH11+DG12),DG12),"") -> 0 | DI12: =IF(G12<>"",IF(G12=G11,IF(DH11>=$B$49,AA12,DI11+AA12),AA12),"") -> 87 | DJ12: =IF(DI12<>"",DI12/1440,"") -> 0.06041666667 | DK12: =IF(G11<>G12,MAX(IF($G$12:$G$503=G12,$DI$12:$DI$503)),"") -> 182 | DL12: =IF(DK12<>"",DK12/1440,"") -> 0.1263888889 | DM12: =IF(G12<>G11,SUMIFS($S$12:$S$503,$G$12:$G$503,G12,$I$12:$I$503,$B$14) + SUMIFS($S$12:$S$503,$G$12:$G$503,G12,$I$12:$I$503,$B$15),"") -> 549 | DN12: =IF(DM12<>"",DM12/1440,"") -> 0.38125 | DO12: （色表示について）
G13: 0826 | H13: 826 | I13: 2 | K13: 労働時間（運転以外） | L13: =IF(O13<>"",O13,L12) -> 2024-08-26 | M13: =IF(I13>=1,Q12,"") -> 2024-08-26T08:15:00 | N13: 495 | P13: 08:33:00 | Q13: =L13+P13 -> 2024-08-26T08:33:00 | R13: 513 | S13: 18 | T13: =IF(S13<>"",S13/1440,"") -> 0.0125 | U13: 2024-08-26 | W13: =IF(G12<>G13,_xlfn.MINIFS($M$12:$M$500,$M$12:$M$500,">"&M13,$H$12:$H$500,"<>"&H13),"") ->  | X13: =IF(M13=MIN(IF($M$12:$M$501>=$O$1,$M$12:$M$501)),$B$40,IF(M13=MIN(IF($M$12:$M$501>=$O$1+7,$M$12:$M$501)),$B$41,IF(M13=MIN(IF($M$12:$M$501>=$O$1+14,$M$12:$M$501)),$B$42,IF(M13=MIN(IF($M$12:$M$501>=$O$1+21,$M$12:$M$501)),$B$43,IF(M13=MIN(IF($M$12:$M$501>=$O$1+28,$M$12:$M$501)),$B$44,""))))) ->  | Y13: =IF(M13=MIN(IF($M$12:$M$501>=$O$1,$M$12:$M$501)),$B$40,IF(M13=MIN(IF($M$12:$M$501>=$O$1+14,$M$12:$M$501)),$B$41,IF(M13=MIN(IF($M$12:$M$501>=$O$1+28,$M$12:$M$501)),$B$42,""))) ->  | Z13: 0 | AA13: =IF(G13<>"",IF(I13=$B$14,S13,0),"") -> 0 | AB13: =IF(AA13<>"",IF(AA13<>0,AA13/1440,""),"") ->  | AC13: 18 | AD13: 0.0125 | AE13: =IF(G13<>"",IF(I13=$B$16,S13,0),"") -> 0 | AF13: =IF(AE13<>"",IF(AE13<>0,AE13/1440,""),"") ->  | AG13: 18 | BA13: =IF(AZ13<>"",AZ13/1440,"") ->  | BB13: =IF(G12<>G13,SUMIFS($S$12:$S$512,$I$12:$I$512,"<="&$B$16,$G$12:$G$512,G13),"") ->  | BC13: =IF(BB13<>"",BB13/1440,"") ->  | BI13: =IF(BH13<>"",BH13/1440,"") ->  | BK13: =IF(BJ13<>"",BJ13/1440,"") ->  | BM13: =IF(BL13<>"",BL13/1440,"") ->  | BP13: =IF(G13<>G12,IF(SUMIFS($BN$12:$BN$503,$G$12:$G$503,G13)>0,1,COUNTIFS($BO$12:$BO$503,">"&$B$56,$G$12:$G$503,G13)),"") ->  | BQ13: =IF(G13<>G12,IF(BP13>=2,IF(MAX(IF($G$12:$G$503=G13,$BO$12:$BO$503))<$B$30,BP13,1),BP13),"") ->  | BR13: =IF(G13<>G12,IF(BP13>=2,IF(MAX(IF($G$12:$G$503=G13,$BO$12:$BO$503))<$B$31,BP13,1),BP13),"") ->  | BT13: =IF(MAX(IF($G$12:G13=G13,$BO$12:BO13))<$B$30,COUNTIFS($BO$12:BO13,">"&$B$56,$G$12:G13,G13),0) -> 0 | BU13: =IF(G12<>G13,IF(BQ13=$B$55,SUMIFS($S$12:$S$503,$G$12:$G$503,G13,$I$12:$I$503,$B$17)+SUMIFS($S$12:$S$503,$G$12:$G$503,G13,$I$12:$I$503,$B$18),""),"") ->  | BW13: =IF(BV13<>"",BV13/1440,"") ->  | CH13: =IF(CG13<>"",CG13/1440,"") ->  | CJ13: =IF(CI13<>"",CI13/1440,"") ->  | CN13: =IF(CM13<>"",CM13/1440,"") ->  | CP13: =IF(CO13<>"",CO13/1440,"") ->  | CQ13: =IF(G12<>G13,SUMIFS($CO$12:$CO$500,$M$12:$M$500,W13),"") ->  | CX13: 0 | CY13: =IF(G13<>"",MAX(IF($I$11:I12<>$B$14,$M$11:M12)),"") -> 00:00:00 | CZ13: =IF(CX13<>"",IF(CX13=0,0,IF(G13<>G12,0,IFERROR(INDEX($CZ$11:CZ12, MATCH(MAX($CY$11:CY12), $M$11:M12, 0))+1,1))),"") -> 0 | DB13: =IF(DA13<>"",IF(DA13=0,0,IF(G13<>G12,0,IFERROR(INDEX($DB$11:DB12, MATCH(MAX($CY$11:CY12), $M$11:M12, 0))+1,1))),"") ->  | DC13: 0 | DD13: 0 | DE13: 87 | DF13: =IF(DE13=0,"",IF(DE13<>"",DE13/1440,"")) -> 0.06041666667 | DG13: 18 | DH13: 18 | DI13: 87 | DJ13: 0.06041666667 | DK13: =IF(G12<>G13,MAX(IF($G$12:$G$503=G13,$DI$12:$DI$503)),"") ->  | DL13: =IF(DK13<>"",DK13/1440,"") ->  | DN13: =IF(DM13<>"",DM13/1440,"") ->  | DO13: ③種別 | DP13: ・「4：休息（自宅）」「5：休息（出先）」が、３時間未満のとき赤表示
B14: 1 | C14: 労働時間（運転） | G14: 0826 | H14: 826 | I14: 1 | K14: 労働時間（運転） | L14: =IF(O14<>"",O14,L13) -> 2024-08-26 | M14: 2024-08-26T08:33:00 | N14: 513 | P14: 10:08:00 | Q14: 2024-08-26T10:08:00 | R14: 608 | S14: 95 | T14: 0.06597222222 | U14: 2024-08-26 | X14: =IF(M14=MIN(IF($M$12:$M$501>=$O$1,$M$12:$M$501)),$B$40,IF(M14=MIN(IF($M$12:$M$501>=$O$1+7,$M$12:$M$501)),$B$41,IF(M14=MIN(IF($M$12:$M$501>=$O$1+14,$M$12:$M$501)),$B$42,IF(M14=MIN(IF($M$12:$M$501>=$O$1+21,$M$12:$M$501)),$B$43,IF(M14=MIN(IF($M$12:$M$501>=$O$1+28,$M$12:$M$501)),$B$44,""))))) ->  | Y14: =IF(M14=MIN(IF($M$12:$M$501>=$O$1,$M$12:$M$501)),$B$40,IF(M14=MIN(IF($M$12:$M$501>=$O$1+14,$M$12:$M$501)),$B$41,IF(M14=MIN(IF($M$12:$M$501>=$O$1+28,$M$12:$M$501)),$B$42,""))) ->  | Z14: 0 | AA14: 95 | AB14: =IF(AA14<>"",IF(AA14<>0,AA14/1440,""),"") -> 0.06597222222 | AE14: 0 | AG14: 0 | BK14: =IF(BJ14<>"",BJ14/1440,"") ->  | BQ14: =IF(G14<>G13,IF(BP14>=2,IF(MAX(IF($G$12:$G$503=G14,$BO$12:$BO$503))<$B$30,BP14,1),BP14),"") ->  | BR14: =IF(G14<>G13,IF(BP14>=2,IF(MAX(IF($G$12:$G$503=G14,$BO$12:$BO$503))<$B$31,BP14,1),BP14),"") ->  | BT14: =IF(MAX(IF($G$12:G14=G14,$BO$12:BO14))<$B$30,COUNTIFS($BO$12:BO14,">"&$B$56,$G$12:G14,G14),0) -> 0 | CY14: =IF(G14<>"",MAX(IF($I$11:I13<>$B$14,$M$11:M13)),"") -> 2024-08-26T08:15:00 | CZ14: =IF(CX14<>"",IF(CX14=0,0,IF(G14<>G13,0,IFERROR(INDEX($CZ$11:CZ13, MATCH(MAX($CY$11:CY13), $M$11:M13, 0))+1,1))),"") ->  | DB14: =IF(DA14<>"",IF(DA14=0,0,IF(G14<>G13,0,IFERROR(INDEX($DB$11:DB13, MATCH(MAX($CY$11:CY13), $M$11:M13, 0))+1,1))),"") ->  | DC14: 0 | DD14: 0 | DE14: 182 | DF14: =IF(DE14=0,"",IF(DE14<>"",DE14/1440,"")) -> 0.1263888889 | DG14: 0 | DH14: 18 | DI14: 182 | DJ14: 0.1263888889 | DK14: =IF(G13<>G14,MAX(IF($G$12:$G$503=G14,$DI$12:$DI$503)),"") ->  | DP14: （※）休息は、１回当たり継続３時間以上の取得が必要です。
B15: 2 | C15: 労働時間（運転以外） | G15: 0826 | H15: 826 | I15: 2 | K15: 労働時間（運転以外） | L15: =IF(O15<>"",O15,L14) -> 2024-08-26 | M15: 2024-08-26T10:08:00 | N15: 608 | P15: 10:56:00 | Q15: 2024-08-26T10:56:00 | R15: 656 | S15: 48 | T15: 0.03333333333 | U15: 2024-08-26 | X15: =IF(M15=MIN(IF($M$12:$M$501>=$O$1,$M$12:$M$501)),$B$40,IF(M15=MIN(IF($M$12:$M$501>=$O$1+7,$M$12:$M$501)),$B$41,IF(M15=MIN(IF($M$12:$M$501>=$O$1+14,$M$12:$M$501)),$B$42,IF(M15=MIN(IF($M$12:$M$501>=$O$1+21,$M$12:$M$501)),$B$43,IF(M15=MIN(IF($M$12:$M$501>=$O$1+28,$M$12:$M$501)),$B$44,""))))) ->  | Y15: =IF(M15=MIN(IF($M$12:$M$501>=$O$1,$M$12:$M$501)),$B$40,IF(M15=MIN(IF($M$12:$M$501>=$O$1+14,$M$12:$M$501)),$B$41,IF(M15=MIN(IF($M$12:$M$501>=$O$1+28,$M$12:$M$501)),$B$42,""))) ->  | Z15: 0 | AA15: 0 | AB15: =IF(AA15<>"",IF(AA15<>0,AA15/1440,""),"") ->  | AC15: 48 | AD15: 0.03333333333 | AE15: 0 | AG15: 48 | BK15: =IF(BJ15<>"",BJ15/1440,"") ->  | BQ15: =IF(G15<>G14,IF(BP15>=2,IF(MAX(IF($G$12:$G$503=G15,$BO$12:$BO$503))<$B$30,BP15,1),BP15),"") ->  | BR15: =IF(G15<>G14,IF(BP15>=2,IF(MAX(IF($G$12:$G$503=G15,$BO$12:$BO$503))<$B$31,BP15,1),BP15),"") ->  | BT15: =IF(MAX(IF($G$12:G15=G15,$BO$12:BO15))<$B$30,COUNTIFS($BO$12:BO15,">"&$B$56,$G$12:G15,G15),0) -> 0 | CX15: 0 | CY15: =IF(G15<>"",MAX(IF($I$11:I14<>$B$14,$M$11:M14)),"") -> 2024-08-26T08:15:00 | CZ15: =IF(CX15<>"",IF(CX15=0,0,IF(G15<>G14,0,IFERROR(INDEX($CZ$11:CZ14, MATCH(MAX($CY$11:CY14), $M$11:M14, 0))+1,1))),"") -> 0 | DB15: =IF(DA15<>"",IF(DA15=0,0,IF(G15<>G14,0,IFERROR(INDEX($DB$11:DB14, MATCH(MAX($CY$11:CY14), $M$11:M14, 0))+1,1))),"") ->  | DC15: 0 | DD15: 0 | DE15: 182 | DF15: =IF(DE15=0,"",IF(DE15<>"",DE15/1440,"")) -> 0.1263888889 | DG15: 48 | DH15: 66 | DI15: 182 | DJ15: 0.1263888889 | DK15: =IF(G14<>G15,MAX(IF($G$12:$G$503=G15,$DI$12:$DI$503)),"") ->  | DO15: ｄ拘束時間（始業から24時間） | DP15: ・１日の拘束時間が14時間を超えたときに黄表示
B16: 3 | C16: 休憩 | G16: 0826 | H16: 826 | I16: 1 | K16: 労働時間（運転） | L16: =IF(O16<>"",O16,L15) -> 2024-08-26 | M16: 2024-08-26T10:56:00 | N16: 656 | P16: 12:26:00 | Q16: 2024-08-26T12:26:00 | R16: 746 | S16: 90 | T16: 0.0625 | U16: 2024-08-26 | X16: =IF(M16=MIN(IF($M$12:$M$501>=$O$1,$M$12:$M$501)),$B$40,IF(M16=MIN(IF($M$12:$M$501>=$O$1+7,$M$12:$M$501)),$B$41,IF(M16=MIN(IF($M$12:$M$501>=$O$1+14,$M$12:$M$501)),$B$42,IF(M16=MIN(IF($M$12:$M$501>=$O$1+21,$M$12:$M$501)),$B$43,IF(M16=MIN(IF($M$12:$M$501>=$O$1+28,$M$12:$M$501)),$B$44,""))))) ->  | Y16: =IF(M16=MIN(IF($M$12:$M$501>=$O$1,$M$12:$M$501)),$B$40,IF(M16=MIN(IF($M$12:$M$501>=$O$1+14,$M$12:$M$501)),$B$41,IF(M16=MIN(IF($M$12:$M$501>=$O$1+28,$M$12:$M$501)),$B$42,""))) ->  | Z16: 0 | AA16: 90 | AB16: 0.0625 | AE16: 0 | AG16: 0 | BQ16: =IF(G16<>G15,IF(BP16>=2,IF(MAX(IF($G$12:$G$503=G16,$BO$12:$BO$503))<$B$30,BP16,1),BP16),"") ->  | BR16: =IF(G16<>G15,IF(BP16>=2,IF(MAX(IF($G$12:$G$503=G16,$BO$12:$BO$503))<$B$31,BP16,1),BP16),"") ->  | BT16: =IF(MAX(IF($G$12:G16=G16,$BO$12:BO16))<$B$30,COUNTIFS($BO$12:BO16,">"&$B$56,$G$12:G16,G16),0) -> 0 | CY16: =IF(G16<>"",MAX(IF($I$11:I15<>$B$14,$M$11:M15)),"") -> 2024-08-26T10:08:00 | CZ16: =IF(CX16<>"",IF(CX16=0,0,IF(G16<>G15,0,IFERROR(INDEX($CZ$11:CZ15, MATCH(MAX($CY$11:CY15), $M$11:M15, 0))+1,1))),"") ->  | DB16: =IF(DA16<>"",IF(DA16=0,0,IF(G16<>G15,0,IFERROR(INDEX($DB$11:DB15, MATCH(MAX($CY$11:CY15), $M$11:M15, 0))+1,1))),"") ->  | DC16: 0 | DD16: 0 | DE16: 272 | DF16: =IF(DE16=0,"",IF(DE16<>"",DE16/1440,"")) -> 0.1888888889 | DG16: 0 | DH16: 0 | DI16: 90 | DJ16: 0.0625 | DK16: =IF(G15<>G16,MAX(IF($G$12:$G$503=G16,$DI$12:$DI$503)),"") ->  | DL16: =IF(DK16<>"",DK16/1440,"") ->  | DP16: ・１日の拘束時間が16時間を超えたときに赤表示
B17: 4 | C17: 休息（自宅） | G17: 0826 | H17: 826 | I17: 2 | K17: 労働時間（運転以外） | L17: =IF(O17<>"",O17,L16) -> 2024-08-26 | M17: 2024-08-26T12:26:00 | N17: 746 | P17: 12:46:00 | Q17: 2024-08-26T12:46:00 | R17: 766 | S17: 20 | T17: 0.01388888889 | U17: 2024-08-26 | X17: =IF(M17=MIN(IF($M$12:$M$501>=$O$1,$M$12:$M$501)),$B$40,IF(M17=MIN(IF($M$12:$M$501>=$O$1+7,$M$12:$M$501)),$B$41,IF(M17=MIN(IF($M$12:$M$501>=$O$1+14,$M$12:$M$501)),$B$42,IF(M17=MIN(IF($M$12:$M$501>=$O$1+21,$M$12:$M$501)),$B$43,IF(M17=MIN(IF($M$12:$M$501>=$O$1+28,$M$12:$M$501)),$B$44,""))))) ->  | Y17: =IF(M17=MIN(IF($M$12:$M$501>=$O$1,$M$12:$M$501)),$B$40,IF(M17=MIN(IF($M$12:$M$501>=$O$1+14,$M$12:$M$501)),$B$41,IF(M17=MIN(IF($M$12:$M$501>=$O$1+28,$M$12:$M$501)),$B$42,""))) ->  | Z17: 0 | AA17: 0 | AC17: 20 | AD17: 0.01388888889 | AE17: 0 | AG17: 20 | BK17: =IF(BJ17<>"",BJ17/1440,"") ->  | BQ17: =IF(G17<>G16,IF(BP17>=2,IF(MAX(IF($G$12:$G$503=G17,$BO$12:$BO$503))<$B$30,BP17,1),BP17),"") ->  | BR17: =IF(G17<>G16,IF(BP17>=2,IF(MAX(IF($G$12:$G$503=G17,$BO$12:$BO$503))<$B$31,BP17,1),BP17),"") ->  | BT17: =IF(MAX(IF($G$12:G17=G17,$BO$12:BO17))<$B$30,COUNTIFS($BO$12:BO17,">"&$B$56,$G$12:G17,G17),0) -> 0 | CX17: 0 | CY17: =IF(G17<>"",MAX(IF($I$11:I16<>$B$14,$M$11:M16)),"") -> 2024-08-26T10:08:00 | CZ17: =IF(CX17<>"",IF(CX17=0,0,IF(G17<>G16,0,IFERROR(INDEX($CZ$11:CZ16, MATCH(MAX($CY$11:CY16), $M$11:M16, 0))+1,1))),"") -> 0 | DB17: =IF(DA17<>"",IF(DA17=0,0,IF(G17<>G16,0,IFERROR(INDEX($DB$11:DB16, MATCH(MAX($CY$11:CY16), $M$11:M16, 0))+1,1))),"") ->  | DC17: 0 | DD17: 0 | DE17: 272 | DF17: 0.1888888889 | DG17: 20 | DH17: 20 | DI17: 90 | DJ17: 0.0625 | DK17: =IF(G16<>G17,MAX(IF($G$12:$G$503=G17,$DI$12:$DI$503)),"") ->  | DL17: =IF(DK17<>"",DK17/1440,"") ->  | DP17: ・１か月の拘束時間が284時間を超えたときに黄表示
B18: 5 | C18: 休息（出先） | G18: 0826 | H18: 826 | I18: 1 | K18: 労働時間（運転） | L18: 2024-08-26 | M18: 2024-08-26T12:46:00 | N18: 766 | P18: 14:12:00 | Q18: 2024-08-26T14:12:00 | R18: 852 | S18: 86 | T18: 0.05972222222 | U18: 2024-08-26 | X18: =IF(M18=MIN(IF($M$12:$M$501>=$O$1,$M$12:$M$501)),$B$40,IF(M18=MIN(IF($M$12:$M$501>=$O$1+7,$M$12:$M$501)),$B$41,IF(M18=MIN(IF($M$12:$M$501>=$O$1+14,$M$12:$M$501)),$B$42,IF(M18=MIN(IF($M$12:$M$501>=$O$1+21,$M$12:$M$501)),$B$43,IF(M18=MIN(IF($M$12:$M$501>=$O$1+28,$M$12:$M$501)),$B$44,""))))) ->  | Y18: =IF(M18=MIN(IF($M$12:$M$501>=$O$1,$M$12:$M$501)),$B$40,IF(M18=MIN(IF($M$12:$M$501>=$O$1+14,$M$12:$M$501)),$B$41,IF(M18=MIN(IF($M$12:$M$501>=$O$1+28,$M$12:$M$501)),$B$42,""))) ->  | Z18: 0 | AA18: 86 | AB18: 0.05972222222 | AE18: 0 | AG18: 0 | BK18: =IF(BJ18<>"",BJ18/1440,"") ->  | BQ18: =IF(G18<>G17,IF(BP18>=2,IF(MAX(IF($G$12:$G$503=G18,$BO$12:$BO$503))<$B$30,BP18,1),BP18),"") ->  | BR18: =IF(G18<>G17,IF(BP18>=2,IF(MAX(IF($G$12:$G$503=G18,$BO$12:$BO$503))<$B$31,BP18,1),BP18),"") ->  | BT18: =IF(MAX(IF($G$12:G18=G18,$BO$12:BO18))<$B$30,COUNTIFS($BO$12:BO18,">"&$B$56,$G$12:G18,G18),0) -> 0 | CY18: =IF(G18<>"",MAX(IF($I$11:I17<>$B$14,$M$11:M17)),"") -> 2024-08-26T12:26:00 | CZ18: =IF(CX18<>"",IF(CX18=0,0,IF(G18<>G17,0,IFERROR(INDEX($CZ$11:CZ17, MATCH(MAX($CY$11:CY17), $M$11:M17, 0))+1,1))),"") ->  | DB18: =IF(DA18<>"",IF(DA18=0,0,IF(G18<>G17,0,IFERROR(INDEX($DB$11:DB17, MATCH(MAX($CY$11:CY17), $M$11:M17, 0))+1,1))),"") ->  | DC18: 0 | DD18: 0 | DE18: 358 | DF18: 0.2486111111 | DG18: 0 | DH18: 20 | DI18: 176 | DJ18: 0.1222222222 | DK18: =IF(G17<>G18,MAX(IF($G$12:$G$503=G18,$DI$12:$DI$503)),"") ->  | DL18: =IF(DK18<>"",DK18/1440,"") ->  | DO18: ｇ休息期間（一勤務ごと） | DP18: ・休息期間が９時間を下回るときに黄表示
G19: 0826 | H19: 826 | I19: 2 | K19: 労働時間（運転以外） | L19: 2024-08-26 | M19: 2024-08-26T14:12:00 | N19: 852 | P19: 15:01:00 | Q19: 2024-08-26T15:01:00 | R19: 901 | S19: 49 | T19: 0.03402777778 | U19: 2024-08-26 | X19: =IF(M19=MIN(IF($M$12:$M$501>=$O$1,$M$12:$M$501)),$B$40,IF(M19=MIN(IF($M$12:$M$501>=$O$1+7,$M$12:$M$501)),$B$41,IF(M19=MIN(IF($M$12:$M$501>=$O$1+14,$M$12:$M$501)),$B$42,IF(M19=MIN(IF($M$12:$M$501>=$O$1+21,$M$12:$M$501)),$B$43,IF(M19=MIN(IF($M$12:$M$501>=$O$1+28,$M$12:$M$501)),$B$44,""))))) ->  | Y19: =IF(M19=MIN(IF($M$12:$M$501>=$O$1,$M$12:$M$501)),$B$40,IF(M19=MIN(IF($M$12:$M$501>=$O$1+14,$M$12:$M$501)),$B$41,IF(M19=MIN(IF($M$12:$M$501>=$O$1+28,$M$12:$M$501)),$B$42,""))) ->  | Z19: 0 | AA19: 0 | AC19: 49 | AD19: 0.03402777778 | AE19: 0 | AG19: 49 | BQ19: =IF(G19<>G18,IF(BP19>=2,IF(MAX(IF($G$12:$G$503=G19,$BO$12:$BO$503))<$B$30,BP19,1),BP19),"") ->  | BR19: =IF(G19<>G18,IF(BP19>=2,IF(MAX(IF($G$12:$G$503=G19,$BO$12:$BO$503))<$B$31,BP19,1),BP19),"") ->  | BT19: =IF(MAX(IF($G$12:G19=G19,$BO$12:BO19))<$B$30,COUNTIFS($BO$12:BO19,">"&$B$56,$G$12:G19,G19),0) -> 0 | CX19: 0 | CY19: =IF(G19<>"",MAX(IF($I$11:I18<>$B$14,$M$11:M18)),"") -> 2024-08-26T12:26:00 | CZ19: =IF(CX19<>"",IF(CX19=0,0,IF(G19<>G18,0,IFERROR(INDEX($CZ$11:CZ18, MATCH(MAX($CY$11:CY18), $M$11:M18, 0))+1,1))),"") -> 0 | DB19: =IF(DA19<>"",IF(DA19=0,0,IF(G19<>G18,0,IFERROR(INDEX($DB$11:DB18, MATCH(MAX($CY$11:CY18), $M$11:M18, 0))+1,1))),"") ->  | DC19: 0 | DD19: 0 | DE19: 358 | DF19: 0.2486111111 | DG19: 49 | DH19: 69 | DI19: 176 | DJ19: 0.1222222222 | DK19: =IF(G18<>G19,MAX(IF($G$12:$G$503=G19,$DI$12:$DI$503)),"") ->  | DL19: =IF(DK19<>"",DK19/1440,"") ->  | DP19: ・休息期間が８時間を下回るときに赤表示
A20: 1年、1か月の拘束時間 | B20: =284*60 -> 17040 | D20: 拘束時間284時間 | G20: 0826 | H20: 826 | I20: 1 | K20: 労働時間（運転） | L20: 2024-08-26 | M20: 2024-08-26T15:01:00 | N20: 901 | P20: 15:03:00 | Q20: 2024-08-26T15:03:00 | R20: 903 | S20: 2 | T20: 0.001388888889 | U20: 2024-08-26 | X20: =IF(M20=MIN(IF($M$12:$M$501>=$O$1,$M$12:$M$501)),$B$40,IF(M20=MIN(IF($M$12:$M$501>=$O$1+7,$M$12:$M$501)),$B$41,IF(M20=MIN(IF($M$12:$M$501>=$O$1+14,$M$12:$M$501)),$B$42,IF(M20=MIN(IF($M$12:$M$501>=$O$1+21,$M$12:$M$501)),$B$43,IF(M20=MIN(IF($M$12:$M$501>=$O$1+28,$M$12:$M$501)),$B$44,""))))) ->  | Y20: =IF(M20=MIN(IF($M$12:$M$501>=$O$1,$M$12:$M$501)),$B$40,IF(M20=MIN(IF($M$12:$M$501>=$O$1+14,$M$12:$M$501)),$B$41,IF(M20=MIN(IF($M$12:$M$501>=$O$1+28,$M$12:$M$501)),$B$42,""))) ->  | Z20: 0 | AA20: 2 | AB20: 0.001388888889 | AE20: 0 | AG20: 0 | BQ20: =IF(G20<>G19,IF(BP20>=2,IF(MAX(IF($G$12:$G$503=G20,$BO$12:$BO$503))<$B$30,BP20,1),BP20),"") ->  | BR20: =IF(G20<>G19,IF(BP20>=2,IF(MAX(IF($G$12:$G$503=G20,$BO$12:$BO$503))<$B$31,BP20,1),BP20),"") ->  | BT20: =IF(MAX(IF($G$12:G20=G20,$BO$12:BO20))<$B$30,COUNTIFS($BO$12:BO20,">"&$B$56,$G$12:G20,G20),0) -> 0 | CY20: =IF(G20<>"",MAX(IF($I$11:I19<>$B$14,$M$11:M19)),"") -> 2024-08-26T14:12:00 | CZ20: =IF(CX20<>"",IF(CX20=0,0,IF(G20<>G19,0,IFERROR(INDEX($CZ$11:CZ19, MATCH(MAX($CY$11:CY19), $M$11:M19, 0))+1,1))),"") ->  | DB20: =IF(DA20<>"",IF(DA20=0,0,IF(G20<>G19,0,IFERROR(INDEX($DB$11:DB19, MATCH(MAX($CY$11:CY19), $M$11:M19, 0))+1,1))),"") ->  | DC20: 0 | DD20: 0 | DE20: 360 | DF20: 0.25 | DG20: 0 | DH20: 0 | DI20: 2 | DJ20: 0.001388888889 | DK20: =IF(G19<>G20,MAX(IF($G$12:$G$503=G20,$DI$12:$DI$503)),"") ->  | DL20: =IF(DK20<>"",DK20/1440,"") ->  | DO20: ｊ運転時間（2日平均） | DP20: ・２日平均１日の運転時間が、９時間を超えたときに黄色表示
B21: 17040 | C21: 11.83333333 | D21: 284時間→分 | G21: 0826 | H21: 826 | I21: 2 | K21: 労働時間（運転以外） | L21: 2024-08-26 | M21: 2024-08-26T15:03:00 | N21: 903 | P21: 15:39:00 | Q21: 2024-08-26T15:39:00 | R21: 939 | S21: 36 | T21: 0.025 | U21: 2024-08-26 | X21: =IF(M21=MIN(IF($M$12:$M$501>=$O$1,$M$12:$M$501)),$B$40,IF(M21=MIN(IF($M$12:$M$501>=$O$1+7,$M$12:$M$501)),$B$41,IF(M21=MIN(IF($M$12:$M$501>=$O$1+14,$M$12:$M$501)),$B$42,IF(M21=MIN(IF($M$12:$M$501>=$O$1+21,$M$12:$M$501)),$B$43,IF(M21=MIN(IF($M$12:$M$501>=$O$1+28,$M$12:$M$501)),$B$44,""))))) ->  | Y21: =IF(M21=MIN(IF($M$12:$M$501>=$O$1,$M$12:$M$501)),$B$40,IF(M21=MIN(IF($M$12:$M$501>=$O$1+14,$M$12:$M$501)),$B$41,IF(M21=MIN(IF($M$12:$M$501>=$O$1+28,$M$12:$M$501)),$B$42,""))) ->  | Z21: 0 | AA21: 0 | AC21: 36 | AD21: 0.025 | AE21: 0 | AG21: 36 | BQ21: =IF(G21<>G20,IF(BP21>=2,IF(MAX(IF($G$12:$G$503=G21,$BO$12:$BO$503))<$B$30,BP21,1),BP21),"") ->  | BR21: =IF(G21<>G20,IF(BP21>=2,IF(MAX(IF($G$12:$G$503=G21,$BO$12:$BO$503))<$B$31,BP21,1),BP21),"") ->  | BT21: =IF(MAX(IF($G$12:G21=G21,$BO$12:BO21))<$B$30,COUNTIFS($BO$12:BO21,">"&$B$56,$G$12:G21,G21),0) -> 0 | CH21: =IF(CG21<>"",CG21/1440,"") ->  | CX21: 0 | CY21: =IF(G21<>"",MAX(IF($I$11:I20<>$B$14,$M$11:M20)),"") -> 2024-08-26T14:12:00 | CZ21: =IF(CX21<>"",IF(CX21=0,0,IF(G21<>G20,0,IFERROR(INDEX($CZ$11:CZ20, MATCH(MAX($CY$11:CY20), $M$11:M20, 0))+1,1))),"") -> 0 | DB21: =IF(DA21<>"",IF(DA21=0,0,IF(G21<>G20,0,IFERROR(INDEX($DB$11:DB20, MATCH(MAX($CY$11:CY20), $M$11:M20, 0))+1,1))),"") ->  | DC21: 0 | DD21: 0 | DE21: 360 | DF21: 0.25 | DG21: 36 | DH21: 36 | DI21: 2 | DJ21: 0.001388888889 | DK21: =IF(G20<>G21,MAX(IF($G$12:$G$503=G21,$DI$12:$DI$503)),"") ->  | DO21: ｋ運転時間（2週平均） | DP21: ・２週平均１週の運転時間が、44時間を超えたときに黄色表示
B22: =100*60 -> 6000 | C22: 4.166666667 | D22: 時間外100時間 | G22: 0826 | H22: 826 | I22: 1 | K22: 労働時間（運転） | L22: 2024-08-26 | M22: 2024-08-26T15:39:00 | N22: 939 | P22: 15:57:00 | Q22: 2024-08-26T15:57:00 | R22: 957 | S22: 18 | T22: 0.0125 | U22: 2024-08-26 | X22: =IF(M22=MIN(IF($M$12:$M$501>=$O$1,$M$12:$M$501)),$B$40,IF(M22=MIN(IF($M$12:$M$501>=$O$1+7,$M$12:$M$501)),$B$41,IF(M22=MIN(IF($M$12:$M$501>=$O$1+14,$M$12:$M$501)),$B$42,IF(M22=MIN(IF($M$12:$M$501>=$O$1+21,$M$12:$M$501)),$B$43,IF(M22=MIN(IF($M$12:$M$501>=$O$1+28,$M$12:$M$501)),$B$44,""))))) ->  | Y22: =IF(M22=MIN(IF($M$12:$M$501>=$O$1,$M$12:$M$501)),$B$40,IF(M22=MIN(IF($M$12:$M$501>=$O$1+14,$M$12:$M$501)),$B$41,IF(M22=MIN(IF($M$12:$M$501>=$O$1+28,$M$12:$M$501)),$B$42,""))) ->  | Z22: 0 | AA22: 18 | AB22: 0.0125 | AE22: 0 | AG22: 0 | BQ22: =IF(G22<>G21,IF(BP22>=2,IF(MAX(IF($G$12:$G$503=G22,$BO$12:$BO$503))<$B$30,BP22,1),BP22),"") ->  | BR22: =IF(G22<>G21,IF(BP22>=2,IF(MAX(IF($G$12:$G$503=G22,$BO$12:$BO$503))<$B$31,BP22,1),BP22),"") ->  | BT22: =IF(MAX(IF($G$12:G22=G22,$BO$12:BO22))<$B$30,COUNTIFS($BO$12:BO22,">"&$B$56,$G$12:G22,G22),0) -> 0 | CH22: =IF(CG22<>"",CG22/1440,"") ->  | CN22: =IF(CM22<>"",CM22/1440,"") ->  | CY22: =IF(G22<>"",MAX(IF($I$11:I21<>$B$14,$M$11:M21)),"") -> 2024-08-26T15:03:00 | CZ22: =IF(CX22<>"",IF(CX22=0,0,IF(G22<>G21,0,IFERROR(INDEX($CZ$11:CZ21, MATCH(MAX($CY$11:CY21), $M$11:M21, 0))+1,1))),"") ->  | DB22: =IF(DA22<>"",IF(DA22=0,0,IF(G22<>G21,0,IFERROR(INDEX($DB$11:DB21, MATCH(MAX($CY$11:CY21), $M$11:M21, 0))+1,1))),"") ->  | DC22: 0 | DD22: 0 | DE22: 378 | DF22: 0.2625 | DG22: 0 | DH22: 0 | DI22: 18 | DJ22: 0.0125 | DK22: =IF(G21<>G22,MAX(IF($G$12:$G$503=G22,$DI$12:$DI$503)),"") ->  | DO22: ｌ連続運転時間（休憩30分以上） | DP22: ・運転4時間後、「休憩」が30分未満のときに黄色背景
B23: 540 | C23: 0.375 | D23: 時間外(労働時間9時間) | G23: 0826 | H23: 826 | I23: 5 | K23: 休息（出先） | L23: 2024-08-27 | M23: 2024-08-26T15:57:00 | N23: 957 | O23: 2024-08-27 | P23: 03:47:00 | Q23: 2024-08-27T03:47:00 | R23: 1667 | S23: 710 | T23: 0.4930555556 | U23: 2024-08-26 | X23: =IF(M23=MIN(IF($M$12:$M$501>=$O$1,$M$12:$M$501)),$B$40,IF(M23=MIN(IF($M$12:$M$501>=$O$1+7,$M$12:$M$501)),$B$41,IF(M23=MIN(IF($M$12:$M$501>=$O$1+14,$M$12:$M$501)),$B$42,IF(M23=MIN(IF($M$12:$M$501>=$O$1+21,$M$12:$M$501)),$B$43,IF(M23=MIN(IF($M$12:$M$501>=$O$1+28,$M$12:$M$501)),$B$44,""))))) ->  | Y23: =IF(M23=MIN(IF($M$12:$M$501>=$O$1,$M$12:$M$501)),$B$40,IF(M23=MIN(IF($M$12:$M$501>=$O$1+14,$M$12:$M$501)),$B$41,IF(M23=MIN(IF($M$12:$M$501>=$O$1+28,$M$12:$M$501)),$B$42,""))) ->  | Z23: 0 | AA23: 0 | AE23: 0 | AG23: 710 | BJ23: 710 | BK23: 0.4930555556 | BL23: 710 | BM23: 0.4930555556 | BN23: 710 | BQ23: =IF(G23<>G22,IF(BP23>=2,IF(MAX(IF($G$12:$G$503=G23,$BO$12:$BO$503))<$B$30,BP23,1),BP23),"") ->  | BR23: =IF(G23<>G22,IF(BP23>=2,IF(MAX(IF($G$12:$G$503=G23,$BO$12:$BO$503))<$B$31,BP23,1),BP23),"") ->  | BT23: =IF(MAX(IF($G$12:G23=G23,$BO$12:BO23))<$B$30,COUNTIFS($BO$12:BO23,">"&$B$56,$G$12:G23,G23),0) -> 0 | CN23: =IF(CM23<>"",CM23/1440,"") ->  | CP23: =IF(CO23<>"",CO23/1440,"") ->  | CX23: 0 | CY23: =IF(G23<>"",MAX(IF($I$11:I22<>$B$14,$M$11:M22)),"") -> 2024-08-26T15:03:00 | CZ23: =IF(CX23<>"",IF(CX23=0,0,IF(G23<>G22,0,IFERROR(INDEX($CZ$11:CZ22, MATCH(MAX($CY$11:CY22), $M$11:M22, 0))+1,1))),"") -> 0 | DA23: 0 | DB23: =IF(DA23<>"",IF(DA23=0,0,IF(G23<>G22,0,IFERROR(INDEX($DB$11:DB22, MATCH(MAX($CY$11:CY22), $M$11:M22, 0))+1,1))),"") -> 0 | DC23: 710 | DD23: 710 | DE23: 378 | DF23: 0.2625 | DG23: 710 | DH23: 710 | DI23: 18 | DJ23: 0.0125 | DK23: =IF(G22<>G23,MAX(IF($G$12:$G$503=G23,$DI$12:$DI$503)),"") ->  | DO23: m連続運転時間（休憩30分以上） | DP23: ・運転4時間後、「中断（※）」が30分未満のときに黄色背景
F24: 2 | G24: 0827 | H24: 827 | I24: 1 | K24: 労働時間（運転） | L24: 2024-08-27 | M24: 2024-08-27T03:47:00 | N24: 227 | P24: 06:18:00 | Q24: 2024-08-27T06:18:00 | R24: 378 | S24: 151 | T24: 0.1048611111 | U24: 2024-08-27 | V24: 2024-08-27 | W24: 2024-08-27T23:50:00 | X24: =IF(M24=MIN(IF($M$12:$M$501>=$O$1,$M$12:$M$501)),$B$40,IF(M24=MIN(IF($M$12:$M$501>=$O$1+7,$M$12:$M$501)),$B$41,IF(M24=MIN(IF($M$12:$M$501>=$O$1+14,$M$12:$M$501)),$B$42,IF(M24=MIN(IF($M$12:$M$501>=$O$1+21,$M$12:$M$501)),$B$43,IF(M24=MIN(IF($M$12:$M$501>=$O$1+28,$M$12:$M$501)),$B$44,""))))) ->  | Y24: =IF(M24=MIN(IF($M$12:$M$501>=$O$1,$M$12:$M$501)),$B$40,IF(M24=MIN(IF($M$12:$M$501>=$O$1+14,$M$12:$M$501)),$B$41,IF(M24=MIN(IF($M$12:$M$501>=$O$1+28,$M$12:$M$501)),$B$42,""))) ->  | Z24: 0 | AA24: 151 | AB24: 0.1048611111 | AE24: 0 | AG24: 0 | AH24: 2024-08-28T03:47:00 | AI24: 227 | AJ24: 2024-08-28T01:32:00 | AK24: 92 | AL24: 2 | AM24: 135 | AN24: 783 | AO24: 2024-08-29T03:47:00 | AP24: 0 | AQ24: 00:00:00 | AR24: 0 | AS24: 0 | AT24: 0 | AZ24: 918 | BA24: 0.6375 | BB24: 681 | BC24: 0.4729166667 | BF24: 1 | BP24: 1 | BQ24: =IF(G24<>G23,IF(BP24>=2,IF(MAX(IF($G$12:$G$503=G24,$BO$12:$BO$503))<$B$30,BP24,1),BP24),"") -> 1 | BR24: =IF(G24<>G23,IF(BP24>=2,IF(MAX(IF($G$12:$G$503=G24,$BO$12:$BO$503))<$B$31,BP24,1),BP24),"") -> 1 | BS24: 1 | BT24: =IF(MAX(IF($G$12:G24=G24,$BO$12:BO24))<$B$30,COUNTIFS($BO$12:BO24,">"&$B$56,$G$12:G24,G24),0) -> 0 | BU24: 522 | BX24: 0 | BY24: 0 | BZ24: 522 | CA24: 0.3625 | CB24: 0 | CC24: 1 | CE24: 634 | CF24: 0 | CG24: 634 | CH24: 0.4402777778 | CI24: 532 | CJ24: 0.3694444444 | CK24: 991 | CL24: 0 | CM24: 991 | CN24: 0.6881944444 | CO24: 495.5 | CP24: =IF(CO24<>"",CO24/1440,"") -> 0.3440972222 | CQ24: 229.5 | CR24: 0 | CY24: =IF(G24<>"",MAX(IF($I$11:I23<>$B$14,$M$11:M23)),"") -> 2024-08-26T15:57:00 | CZ24: =IF(CX24<>"",IF(CX24=0,0,IF(G24<>G23,0,IFERROR(INDEX($CZ$11:CZ23, MATCH(MAX($CY$11:CY23), $M$11:M23, 0))+1,1))),"") ->  | DB24: =IF(DA24<>"",IF(DA24=0,0,IF(G24<>G23,0,IFERROR(INDEX($DB$11:DB23, MATCH(MAX($CY$11:CY23), $M$11:M23, 0))+1,1))),"") ->  | DC24: 0 | DD24: 0 | DE24: 151 | DF24: 0.1048611111 | DG24: 0 | DH24: 0 | DI24: 151 | DJ24: 0.1048611111 | DK24: =IF(G23<>G24,MAX(IF($G$12:$G$503=G24,$DI$12:$DI$503)),"") -> 181 | DL24: 0.1256944444 | DM24: 657 | DN24: 0.45625 | DP24: （※）中断は、「休憩」のほか、「労働時間（運転時間以外）」を含む。
A25: 1日の拘束時間 | B25: 780 | C25: 0.5416666667 | D25: 拘束時間 | G25: 0827 | H25: 827 | I25: 3 | K25: 休憩 | L25: 2024-08-27 | M25: 2024-08-27T06:18:00 | N25: 378 | P25: 06:42:00 | Q25: 2024-08-27T06:42:00 | R25: 402 | S25: 24 | T25: 0.01666666667 | U25: 2024-08-27 | X25: =IF(M25=MIN(IF($M$12:$M$501>=$O$1,$M$12:$M$501)),$B$40,IF(M25=MIN(IF($M$12:$M$501>=$O$1+7,$M$12:$M$501)),$B$41,IF(M25=MIN(IF($M$12:$M$501>=$O$1+14,$M$12:$M$501)),$B$42,IF(M25=MIN(IF($M$12:$M$501>=$O$1+21,$M$12:$M$501)),$B$43,IF(M25=MIN(IF($M$12:$M$501>=$O$1+28,$M$12:$M$501)),$B$44,""))))) ->  | Y25: =IF(M25=MIN(IF($M$12:$M$501>=$O$1,$M$12:$M$501)),$B$40,IF(M25=MIN(IF($M$12:$M$501>=$O$1+14,$M$12:$M$501)),$B$41,IF(M25=MIN(IF($M$12:$M$501>=$O$1+28,$M$12:$M$501)),$B$42,""))) ->  | Z25: 0 | AA25: 0 | AE25: 24 | AF25: 0.01666666667 | AG25: 24 | BQ25: =IF(G25<>G24,IF(BP25>=2,IF(MAX(IF($G$12:$G$503=G25,$BO$12:$BO$503))<$B$30,BP25,1),BP25),"") ->  | BR25: =IF(G25<>G24,IF(BP25>=2,IF(MAX(IF($G$12:$G$503=G25,$BO$12:$BO$503))<$B$31,BP25,1),BP25),"") ->  | BT25: =IF(MAX(IF($G$12:G25=G25,$BO$12:BO25))<$B$30,COUNTIFS($BO$12:BO25,">"&$B$56,$G$12:G25,G25),0) -> 0 | CX25: 0 | CY25: =IF(G25<>"",MAX(IF($I$11:I24<>$B$14,$M$11:M24)),"") -> 2024-08-26T15:57:00 | CZ25: =IF(CX25<>"",IF(CX25=0,0,IF(G25<>G24,0,IFERROR(INDEX($CZ$11:CZ24, MATCH(MAX($CY$11:CY24), $M$11:M24, 0))+1,1))),"") -> 0 | DA25: 0 | DB25: =IF(DA25<>"",IF(DA25=0,0,IF(G25<>G24,0,IFERROR(INDEX($DB$11:DB24, MATCH(MAX($CY$11:CY24), $M$11:M24, 0))+1,1))),"") -> 0 | DC25: 24 | DD25: 24 | DE25: 151 | DF25: 0.1048611111 | DG25: 24 | DH25: 24 | DI25: 151 | DJ25: 0.1048611111 | DK25: =IF(G24<>G25,MAX(IF($G$12:$G$503=G25,$DI$12:$DI$503)),"") -> 
B26: 840 | C26: 0.5833333333 | D26: 拘束時間14時間2週チェック | G26: 0827 | H26: 827 | I26: 2 | K26: 労働時間（運転以外） | L26: 2024-08-27 | M26: 2024-08-27T06:42:00 | N26: 402 | P26: 07:03:00 | Q26: 2024-08-27T07:03:00 | R26: 423 | S26: 21 | T26: 0.01458333333 | U26: 2024-08-27 | X26: =IF(M26=MIN(IF($M$12:$M$501>=$O$1,$M$12:$M$501)),$B$40,IF(M26=MIN(IF($M$12:$M$501>=$O$1+7,$M$12:$M$501)),$B$41,IF(M26=MIN(IF($M$12:$M$501>=$O$1+14,$M$12:$M$501)),$B$42,IF(M26=MIN(IF($M$12:$M$501>=$O$1+21,$M$12:$M$501)),$B$43,IF(M26=MIN(IF($M$12:$M$501>=$O$1+28,$M$12:$M$501)),$B$44,""))))) ->  | Y26: =IF(M26=MIN(IF($M$12:$M$501>=$O$1,$M$12:$M$501)),$B$40,IF(M26=MIN(IF($M$12:$M$501>=$O$1+14,$M$12:$M$501)),$B$41,IF(M26=MIN(IF($M$12:$M$501>=$O$1+28,$M$12:$M$501)),$B$42,""))) ->  | Z26: 0 | AA26: 0 | AC26: 21 | AD26: 0.01458333333 | AE26: 0 | AG26: 21 | BQ26: =IF(G26<>G25,IF(BP26>=2,IF(MAX(IF($G$12:$G$503=G26,$BO$12:$BO$503))<$B$30,BP26,1),BP26),"") ->  | BR26: =IF(G26<>G25,IF(BP26>=2,IF(MAX(IF($G$12:$G$503=G26,$BO$12:$BO$503))<$B$31,BP26,1),BP26),"") ->  | BT26: =IF(MAX(IF($G$12:G26=G26,$BO$12:BO26))<$B$30,COUNTIFS($BO$12:BO26,">"&$B$56,$G$12:G26,G26),0) -> 0 | CX26: 0 | CY26: =IF(G26<>"",MAX(IF($I$11:I25<>$B$14,$M$11:M25)),"") -> 2024-08-27T06:18:00 | CZ26: =IF(CX26<>"",IF(CX26=0,0,IF(G26<>G25,0,IFERROR(INDEX($CZ$11:CZ25, MATCH(MAX($CY$11:CY25), $M$11:M25, 0))+1,1))),"") -> 0 | DB26: =IF(DA26<>"",IF(DA26=0,0,IF(G26<>G25,0,IFERROR(INDEX($DB$11:DB25, MATCH(MAX($CY$11:CY25), $M$11:M25, 0))+1,1))),"") ->  | DC26: 0 | DD26: 24 | DE26: 151 | DF26: 0.1048611111 | DG26: 21 | DH26: 45 | DI26: 151 | DJ26: 0.1048611111 | DK26: =IF(G25<>G26,MAX(IF($G$12:$G$503=G26,$DI$12:$DI$503)),"") -> 
B27: 900 | C27: 0.625 | D27: 拘束時間上限15時間チェック | G27: 0827 | H27: 827 | I27: 1 | K27: 労働時間（運転） | L27: 2024-08-27 | M27: 2024-08-27T07:03:00 | N27: 423 | P27: 09:45:00 | Q27: 2024-08-27T09:45:00 | R27: 585 | S27: 162 | T27: 0.1125 | U27: 2024-08-27 | X27: =IF(M27=MIN(IF($M$12:$M$501>=$O$1,$M$12:$M$501)),$B$40,IF(M27=MIN(IF($M$12:$M$501>=$O$1+7,$M$12:$M$501)),$B$41,IF(M27=MIN(IF($M$12:$M$501>=$O$1+14,$M$12:$M$501)),$B$42,IF(M27=MIN(IF($M$12:$M$501>=$O$1+21,$M$12:$M$501)),$B$43,IF(M27=MIN(IF($M$12:$M$501>=$O$1+28,$M$12:$M$501)),$B$44,""))))) ->  | Y27: =IF(M27=MIN(IF($M$12:$M$501>=$O$1,$M$12:$M$501)),$B$40,IF(M27=MIN(IF($M$12:$M$501>=$O$1+14,$M$12:$M$501)),$B$41,IF(M27=MIN(IF($M$12:$M$501>=$O$1+28,$M$12:$M$501)),$B$42,""))) ->  | Z27: 0 | AA27: 162 | AB27: 0.1125 | AE27: 0 | AG27: 0 | BQ27: =IF(G27<>G26,IF(BP27>=2,IF(MAX(IF($G$12:$G$503=G27,$BO$12:$BO$503))<$B$30,BP27,1),BP27),"") ->  | BR27: =IF(G27<>G26,IF(BP27>=2,IF(MAX(IF($G$12:$G$503=G27,$BO$12:$BO$503))<$B$31,BP27,1),BP27),"") ->  | BT27: =IF(MAX(IF($G$12:G27=G27,$BO$12:BO27))<$B$30,COUNTIFS($BO$12:BO27,">"&$B$56,$G$12:G27,G27),0) -> 0 | CY27: =IF(G27<>"",MAX(IF($I$11:I26<>$B$14,$M$11:M26)),"") -> 2024-08-27T06:42:00 | CZ27: =IF(CX27<>"",IF(CX27=0,0,IF(G27<>G26,0,IFERROR(INDEX($CZ$11:CZ26, MATCH(MAX($CY$11:CY26), $M$11:M26, 0))+1,1))),"") ->  | DB27: =IF(DA27<>"",IF(DA27=0,0,IF(G27<>G26,0,IFERROR(INDEX($DB$11:DB26, MATCH(MAX($CY$11:CY26), $M$11:M26, 0))+1,1))),"") ->  | DC27: 0 | DD27: 24 | DE27: 313 | DF27: 0.2173611111 | DG27: 0 | DH27: 0 | DI27: 162 | DJ27: 0.1125 | DK27: =IF(G26<>G27,MAX(IF($G$12:$G$503=G27,$DI$12:$DI$503)),"") -> 
B28: 960 | C28: 0.6666666667 | D28: 拘束時間延長16時間チェック | G28: 0827 | H28: 827 | I28: 2 | K28: 労働時間（運転以外） | L28: 2024-08-27 | M28: 2024-08-27T09:45:00 | N28: 585 | P28: 10:07:00 | Q28: 2024-08-27T10:07:00 | R28: 607 | S28: 22 | T28: 0.01527777778 | U28: 2024-08-27 | X28: =IF(M28=MIN(IF($M$12:$M$501>=$O$1,$M$12:$M$501)),$B$40,IF(M28=MIN(IF($M$12:$M$501>=$O$1+7,$M$12:$M$501)),$B$41,IF(M28=MIN(IF($M$12:$M$501>=$O$1+14,$M$12:$M$501)),$B$42,IF(M28=MIN(IF($M$12:$M$501>=$O$1+21,$M$12:$M$501)),$B$43,IF(M28=MIN(IF($M$12:$M$501>=$O$1+28,$M$12:$M$501)),$B$44,""))))) ->  | Y28: =IF(M28=MIN(IF($M$12:$M$501>=$O$1,$M$12:$M$501)),$B$40,IF(M28=MIN(IF($M$12:$M$501>=$O$1+14,$M$12:$M$501)),$B$41,IF(M28=MIN(IF($M$12:$M$501>=$O$1+28,$M$12:$M$501)),$B$42,""))) ->  | Z28: 0 | AA28: 0 | AC28: 22 | AD28: 0.01527777778 | AE28: 0 | AG28: 22 | BQ28: =IF(G28<>G27,IF(BP28>=2,IF(MAX(IF($G$12:$G$503=G28,$BO$12:$BO$503))<$B$30,BP28,1),BP28),"") ->  | BR28: =IF(G28<>G27,IF(BP28>=2,IF(MAX(IF($G$12:$G$503=G28,$BO$12:$BO$503))<$B$31,BP28,1),BP28),"") ->  | BT28: =IF(MAX(IF($G$12:G28=G28,$BO$12:BO28))<$B$30,COUNTIFS($BO$12:BO28,">"&$B$56,$G$12:G28,G28),0) -> 0 | CX28: 0 | CY28: =IF(G28<>"",MAX(IF($I$11:I27<>$B$14,$M$11:M27)),"") -> 2024-08-27T06:42:00 | CZ28: =IF(CX28<>"",IF(CX28=0,0,IF(G28<>G27,0,IFERROR(INDEX($CZ$11:CZ27, MATCH(MAX($CY$11:CY27), $M$11:M27, 0))+1,1))),"") -> 0 | DB28: =IF(DA28<>"",IF(DA28=0,0,IF(G28<>G27,0,IFERROR(INDEX($DB$11:DB27, MATCH(MAX($CY$11:CY27), $M$11:M27, 0))+1,1))),"") ->  | DC28: 0 | DD28: 24 | DE28: 313 | DF28: 0.2173611111 | DG28: 22 | DH28: 22 | DI28: 162 | DJ28: 0.1125 | DK28: =IF(G27<>G28,MAX(IF($G$12:$G$503=G28,$DI$12:$DI$503)),"") -> 
G29: 0827 | H29: 827 | I29: 1 | K29: 労働時間（運転） | L29: 2024-08-27 | M29: 2024-08-27T10:07:00 | N29: 607 | P29: 10:26:00 | Q29: 2024-08-27T10:26:00 | R29: 626 | S29: 19 | T29: 0.01319444444 | U29: 2024-08-27 | X29: =IF(M29=MIN(IF($M$12:$M$501>=$O$1,$M$12:$M$501)),$B$40,IF(M29=MIN(IF($M$12:$M$501>=$O$1+7,$M$12:$M$501)),$B$41,IF(M29=MIN(IF($M$12:$M$501>=$O$1+14,$M$12:$M$501)),$B$42,IF(M29=MIN(IF($M$12:$M$501>=$O$1+21,$M$12:$M$501)),$B$43,IF(M29=MIN(IF($M$12:$M$501>=$O$1+28,$M$12:$M$501)),$B$44,""))))) ->  | Y29: =IF(M29=MIN(IF($M$12:$M$501>=$O$1,$M$12:$M$501)),$B$40,IF(M29=MIN(IF($M$12:$M$501>=$O$1+14,$M$12:$M$501)),$B$41,IF(M29=MIN(IF($M$12:$M$501>=$O$1+28,$M$12:$M$501)),$B$42,""))) ->  | Z29: 0 | AA29: 19 | AB29: 0.01319444444 | AE29: 0 | AG29: 0 | BQ29: =IF(G29<>G28,IF(BP29>=2,IF(MAX(IF($G$12:$G$503=G29,$BO$12:$BO$503))<$B$30,BP29,1),BP29),"") ->  | BR29: =IF(G29<>G28,IF(BP29>=2,IF(MAX(IF($G$12:$G$503=G29,$BO$12:$BO$503))<$B$31,BP29,1),BP29),"") ->  | BT29: =IF(MAX(IF($G$12:G29=G29,$BO$12:BO29))<$B$30,COUNTIFS($BO$12:BO29,">"&$B$56,$G$12:G29,G29),0) -> 0 | CY29: =IF(G29<>"",MAX(IF($I$11:I28<>$B$14,$M$11:M28)),"") -> 2024-08-27T09:45:00 | CZ29: =IF(CX29<>"",IF(CX29=0,0,IF(G29<>G28,0,IFERROR(INDEX($CZ$11:CZ28, MATCH(MAX($CY$11:CY28), $M$11:M28, 0))+1,1))),"") ->  | DB29: =IF(DA29<>"",IF(DA29=0,0,IF(G29<>G28,0,IFERROR(INDEX($DB$11:DB28, MATCH(MAX($CY$11:CY28), $M$11:M28, 0))+1,1))),"") ->  | DC29: 0 | DD29: 24 | DE29: 332 | DF29: 0.2305555556 | DG29: 0 | DH29: 22 | DI29: 181 | DJ29: 0.1256944444 | DK29: =IF(G28<>G29,MAX(IF($G$12:$G$503=G29,$DI$12:$DI$503)),"") -> 
A30: 1日の休息時間 | B30: 540 | C30: 0.375 | D30: 休息時間9時間 | G30: 0827 | H30: 827 | I30: 2 | K30: 労働時間（運転以外） | L30: 2024-08-27 | M30: 2024-08-27T10:26:00 | N30: 626 | P30: 10:54:00 | Q30: 2024-08-27T10:54:00 | R30: 654 | S30: 28 | T30: 0.01944444444 | U30: 2024-08-27 | X30: =IF(M30=MIN(IF($M$12:$M$501>=$O$1,$M$12:$M$501)),$B$40,IF(M30=MIN(IF($M$12:$M$501>=$O$1+7,$M$12:$M$501)),$B$41,IF(M30=MIN(IF($M$12:$M$501>=$O$1+14,$M$12:$M$501)),$B$42,IF(M30=MIN(IF($M$12:$M$501>=$O$1+21,$M$12:$M$501)),$B$43,IF(M30=MIN(IF($M$12:$M$501>=$O$1+28,$M$12:$M$501)),$B$44,""))))) ->  | Y30: =IF(M30=MIN(IF($M$12:$M$501>=$O$1,$M$12:$M$501)),$B$40,IF(M30=MIN(IF($M$12:$M$501>=$O$1+14,$M$12:$M$501)),$B$41,IF(M30=MIN(IF($M$12:$M$501>=$O$1+28,$M$12:$M$501)),$B$42,""))) ->  | Z30: 0 | AA30: 0 | AC30: 28 | AD30: 0.01944444444 | AE30: 0 | AG30: 28 | BQ30: =IF(G30<>G29,IF(BP30>=2,IF(MAX(IF($G$12:$G$503=G30,$BO$12:$BO$503))<$B$30,BP30,1),BP30),"") ->  | BR30: =IF(G30<>G29,IF(BP30>=2,IF(MAX(IF($G$12:$G$503=G30,$BO$12:$BO$503))<$B$31,BP30,1),BP30),"") ->  | BT30: =IF(MAX(IF($G$12:G30=G30,$BO$12:BO30))<$B$30,COUNTIFS($BO$12:BO30,">"&$B$56,$G$12:G30,G30),0) -> 0 | CX30: 0 | CY30: =IF(G30<>"",MAX(IF($I$11:I29<>$B$14,$M$11:M29)),"") -> 2024-08-27T09:45:00 | CZ30: =IF(CX30<>"",IF(CX30=0,0,IF(G30<>G29,0,IFERROR(INDEX($CZ$11:CZ29, MATCH(MAX($CY$11:CY29), $M$11:M29, 0))+1,1))),"") -> 0 | DB30: =IF(DA30<>"",IF(DA30=0,0,IF(G30<>G29,0,IFERROR(INDEX($DB$11:DB29, MATCH(MAX($CY$11:CY29), $M$11:M29, 0))+1,1))),"") ->  | DC30: 0 | DD30: 24 | DE30: 332 | DF30: 0.2305555556 | DG30: 28 | DH30: 50 | DI30: 181 | DJ30: 0.1256944444 | DK30: =IF(G29<>G30,MAX(IF($G$12:$G$503=G30,$DI$12:$DI$503)),"") -> 
B31: 480 | C31: 0.3333333333 | D31: 休息時間8時間(宿泊) | G31: 0827 | H31: 827 | I31: 1 | K31: 労働時間（運転） | L31: 2024-08-27 | M31: 2024-08-27T10:54:00 | N31: 654 | P31: 11:08:00 | Q31: 2024-08-27T11:08:00 | R31: 668 | S31: 14 | T31: 0.009722222222 | U31: 2024-08-27 | X31: =IF(M31=MIN(IF($M$12:$M$501>=$O$1,$M$12:$M$501)),$B$40,IF(M31=MIN(IF($M$12:$M$501>=$O$1+7,$M$12:$M$501)),$B$41,IF(M31=MIN(IF($M$12:$M$501>=$O$1+14,$M$12:$M$501)),$B$42,IF(M31=MIN(IF($M$12:$M$501>=$O$1+21,$M$12:$M$501)),$B$43,IF(M31=MIN(IF($M$12:$M$501>=$O$1+28,$M$12:$M$501)),$B$44,""))))) ->  | Y31: =IF(M31=MIN(IF($M$12:$M$501>=$O$1,$M$12:$M$501)),$B$40,IF(M31=MIN(IF($M$12:$M$501>=$O$1+14,$M$12:$M$501)),$B$41,IF(M31=MIN(IF($M$12:$M$501>=$O$1+28,$M$12:$M$501)),$B$42,""))) ->  | Z31: 0 | AA31: 14 | AB31: 0.009722222222 | AE31: 0 | AG31: 0 | BQ31: =IF(G31<>G30,IF(BP31>=2,IF(MAX(IF($G$12:$G$503=G31,$BO$12:$BO$503))<$B$30,BP31,1),BP31),"") ->  | BR31: =IF(G31<>G30,IF(BP31>=2,IF(MAX(IF($G$12:$G$503=G31,$BO$12:$BO$503))<$B$31,BP31,1),BP31),"") ->  | BT31: =IF(MAX(IF($G$12:G31=G31,$BO$12:BO31))<$B$30,COUNTIFS($BO$12:BO31,">"&$B$56,$G$12:G31,G31),0) -> 0 | CY31: =IF(G31<>"",MAX(IF($I$11:I30<>$B$14,$M$11:M30)),"") -> 2024-08-27T10:26:00 | CZ31: =IF(CX31<>"",IF(CX31=0,0,IF(G31<>G30,0,IFERROR(INDEX($CZ$11:CZ30, MATCH(MAX($CY$11:CY30), $M$11:M30, 0))+1,1))),"") ->  | DB31: =IF(DA31<>"",IF(DA31=0,0,IF(G31<>G30,0,IFERROR(INDEX($DB$11:DB30, MATCH(MAX($CY$11:CY30), $M$11:M30, 0))+1,1))),"") ->  | DC31: 0 | DD31: 24 | DE31: 346 | DF31: 0.2402777778 | DG31: 0 | DH31: 0 | DI31: 14 | DJ31: 0.009722222222 | DK31: =IF(G30<>G31,MAX(IF($G$12:$G$503=G31,$DI$12:$DI$503)),"") -> 
B32: 1 | D32: 分割休息の時の0をカウントしないようにするため | F32: 3 | G32: 0827 | H32: 827 | I32: 2 | K32: 労働時間（運転以外） | L32: 2024-08-27 | M32: 2024-08-27T11:08:00 | N32: 668 | P32: 11:22:00 | Q32: 2024-08-27T11:22:00 | R32: 682 | S32: 14 | T32: 0.009722222222 | U32: 2024-08-27 | X32: =IF(M32=MIN(IF($M$12:$M$501>=$O$1,$M$12:$M$501)),$B$40,IF(M32=MIN(IF($M$12:$M$501>=$O$1+7,$M$12:$M$501)),$B$41,IF(M32=MIN(IF($M$12:$M$501>=$O$1+14,$M$12:$M$501)),$B$42,IF(M32=MIN(IF($M$12:$M$501>=$O$1+21,$M$12:$M$501)),$B$43,IF(M32=MIN(IF($M$12:$M$501>=$O$1+28,$M$12:$M$501)),$B$44,""))))) ->  | Y32: =IF(M32=MIN(IF($M$12:$M$501>=$O$1,$M$12:$M$501)),$B$40,IF(M32=MIN(IF($M$12:$M$501>=$O$1+14,$M$12:$M$501)),$B$41,IF(M32=MIN(IF($M$12:$M$501>=$O$1+28,$M$12:$M$501)),$B$42,""))) ->  | Z32: 0 | AA32: 0 | AC32: 14 | AD32: 0.009722222222 | AE32: 0 | AG32: 14 | BQ32: =IF(G32<>G31,IF(BP32>=2,IF(MAX(IF($G$12:$G$503=G32,$BO$12:$BO$503))<$B$30,BP32,1),BP32),"") ->  | BR32: =IF(G32<>G31,IF(BP32>=2,IF(MAX(IF($G$12:$G$503=G32,$BO$12:$BO$503))<$B$31,BP32,1),BP32),"") ->  | BT32: =IF(MAX(IF($G$12:G32=G32,$BO$12:BO32))<$B$30,COUNTIFS($BO$12:BO32,">"&$B$56,$G$12:G32,G32),0) -> 0 | CX32: 0 | CY32: =IF(G32<>"",MAX(IF($I$11:I31<>$B$14,$M$11:M31)),"") -> 2024-08-27T10:26:00 | CZ32: =IF(CX32<>"",IF(CX32=0,0,IF(G32<>G31,0,IFERROR(INDEX($CZ$11:CZ31, MATCH(MAX($CY$11:CY31), $M$11:M31, 0))+1,1))),"") -> 0 | DB32: =IF(DA32<>"",IF(DA32=0,0,IF(G32<>G31,0,IFERROR(INDEX($DB$11:DB31, MATCH(MAX($CY$11:CY31), $M$11:M31, 0))+1,1))),"") ->  | DC32: 0 | DD32: 24 | DE32: 346 | DF32: 0.2402777778 | DG32: 14 | DH32: 14 | DI32: 14 | DJ32: 0.009722222222 | DK32: =IF(G31<>G32,MAX(IF($G$12:$G$503=G32,$DI$12:$DI$503)),"") -> 
B33: 720 | C33: 0.5 | D33: 休息時間12時間(運行終了) | G33: 0827 | H33: 827 | I33: 1 | K33: 労働時間（運転） | L33: 2024-08-27 | M33: 2024-08-27T11:22:00 | N33: 682 | P33: 12:45:00 | Q33: 2024-08-27T12:45:00 | R33: 765 | S33: 83 | T33: 0.05763888889 | U33: 2024-08-27 | X33: =IF(M33=MIN(IF($M$12:$M$501>=$O$1,$M$12:$M$501)),$B$40,IF(M33=MIN(IF($M$12:$M$501>=$O$1+7,$M$12:$M$501)),$B$41,IF(M33=MIN(IF($M$12:$M$501>=$O$1+14,$M$12:$M$501)),$B$42,IF(M33=MIN(IF($M$12:$M$501>=$O$1+21,$M$12:$M$501)),$B$43,IF(M33=MIN(IF($M$12:$M$501>=$O$1+28,$M$12:$M$501)),$B$44,""))))) ->  | Y33: =IF(M33=MIN(IF($M$12:$M$501>=$O$1,$M$12:$M$501)),$B$40,IF(M33=MIN(IF($M$12:$M$501>=$O$1+14,$M$12:$M$501)),$B$41,IF(M33=MIN(IF($M$12:$M$501>=$O$1+28,$M$12:$M$501)),$B$42,""))) ->  | Z33: 0 | AA33: 83 | AB33: 0.05763888889 | AE33: 0 | AG33: 0 | BQ33: =IF(G33<>G32,IF(BP33>=2,IF(MAX(IF($G$12:$G$503=G33,$BO$12:$BO$503))<$B$30,BP33,1),BP33),"") ->  | BR33: =IF(G33<>G32,IF(BP33>=2,IF(MAX(IF($G$12:$G$503=G33,$BO$12:$BO$503))<$B$31,BP33,1),BP33),"") ->  | BT33: =IF(MAX(IF($G$12:G33=G33,$BO$12:BO33))<$B$30,COUNTIFS($BO$12:BO33,">"&$B$56,$G$12:G33,G33),0) -> 0 | CW33: =IF(CV33<>"",CV33/1440,"") ->  | CY33: =IF(G33<>"",MAX(IF($I$11:I32<>$B$14,$M$11:M32)),"") -> 2024-08-27T11:08:00 | CZ33: =IF(CX33<>"",IF(CX33=0,0,IF(G33<>G32,0,IFERROR(INDEX($CZ$11:CZ32, MATCH(MAX($CY$11:CY32), $M$11:M32, 0))+1,1))),"") ->  | DB33: =IF(DA33<>"",IF(DA33=0,0,IF(G33<>G32,0,IFERROR(INDEX($DB$11:DB32, MATCH(MAX($CY$11:CY32), $M$11:M32, 0))+1,1))),"") ->  | DC33: 0 | DD33: 24 | DE33: 429 | DF33: 0.2979166667 | DG33: 0 | DH33: 14 | DI33: 97 | DJ33: 0.06736111111 | DK33: =IF(G32<>G33,MAX(IF($G$12:$G$503=G33,$DI$12:$DI$503)),"") -> 
B34: 10 | C34: 列 | D34: 種別から作業時間・分までの列 | G34: 0827 | H34: 827 | I34: 2 | K34: 労働時間（運転以外） | L34: 2024-08-27 | M34: 2024-08-27T12:45:00 | N34: 765 | P34: 13:06:00 | Q34: 2024-08-27T13:06:00 | R34: 786 | S34: 21 | T34: 0.01458333333 | U34: 2024-08-27 | X34: =IF(M34=MIN(IF($M$12:$M$501>=$O$1,$M$12:$M$501)),$B$40,IF(M34=MIN(IF($M$12:$M$501>=$O$1+7,$M$12:$M$501)),$B$41,IF(M34=MIN(IF($M$12:$M$501>=$O$1+14,$M$12:$M$501)),$B$42,IF(M34=MIN(IF($M$12:$M$501>=$O$1+21,$M$12:$M$501)),$B$43,IF(M34=MIN(IF($M$12:$M$501>=$O$1+28,$M$12:$M$501)),$B$44,""))))) ->  | Y34: =IF(M34=MIN(IF($M$12:$M$501>=$O$1,$M$12:$M$501)),$B$40,IF(M34=MIN(IF($M$12:$M$501>=$O$1+14,$M$12:$M$501)),$B$41,IF(M34=MIN(IF($M$12:$M$501>=$O$1+28,$M$12:$M$501)),$B$42,""))) ->  | Z34: 0 | AA34: 0 | AC34: 21 | AD34: 0.01458333333 | AE34: 0 | AG34: 21 | BQ34: =IF(G34<>G33,IF(BP34>=2,IF(MAX(IF($G$12:$G$503=G34,$BO$12:$BO$503))<$B$30,BP34,1),BP34),"") ->  | BR34: =IF(G34<>G33,IF(BP34>=2,IF(MAX(IF($G$12:$G$503=G34,$BO$12:$BO$503))<$B$31,BP34,1),BP34),"") ->  | BT34: =IF(MAX(IF($G$12:G34=G34,$BO$12:BO34))<$B$30,COUNTIFS($BO$12:BO34,">"&$B$56,$G$12:G34,G34),0) -> 0 | CW34: =IF(CV34<>"",CV34/1440,"") ->  | CX34: 0 | CY34: =IF(G34<>"",MAX(IF($I$11:I33<>$B$14,$M$11:M33)),"") -> 2024-08-27T11:08:00 | CZ34: =IF(CX34<>"",IF(CX34=0,0,IF(G34<>G33,0,IFERROR(INDEX($CZ$11:CZ33, MATCH(MAX($CY$11:CY33), $M$11:M33, 0))+1,1))),"") -> 0 | DB34: =IF(DA34<>"",IF(DA34=0,0,IF(G34<>G33,0,IFERROR(INDEX($DB$11:DB33, MATCH(MAX($CY$11:CY33), $M$11:M33, 0))+1,1))),"") ->  | DC34: 0 | DD34: 24 | DE34: 429 | DF34: 0.2979166667 | DG34: 21 | DH34: 35 | DI34: 97 | DJ34: 0.06736111111 | DK34: =IF(G33<>G34,MAX(IF($G$12:$G$503=G34,$DI$12:$DI$503)),"") -> 
G35: 0827 | H35: 827 | I35: 1 | K35: 労働時間（運転） | L35: 2024-08-27 | M35: 2024-08-27T13:06:00 | N35: 786 | P35: 14:33:00 | Q35: 2024-08-27T14:33:00 | R35: 873 | S35: 87 | T35: 0.06041666667 | U35: 2024-08-27 | X35: =IF(M35=MIN(IF($M$12:$M$501>=$O$1,$M$12:$M$501)),$B$40,IF(M35=MIN(IF($M$12:$M$501>=$O$1+7,$M$12:$M$501)),$B$41,IF(M35=MIN(IF($M$12:$M$501>=$O$1+14,$M$12:$M$501)),$B$42,IF(M35=MIN(IF($M$12:$M$501>=$O$1+21,$M$12:$M$501)),$B$43,IF(M35=MIN(IF($M$12:$M$501>=$O$1+28,$M$12:$M$501)),$B$44,""))))) ->  | Y35: =IF(M35=MIN(IF($M$12:$M$501>=$O$1,$M$12:$M$501)),$B$40,IF(M35=MIN(IF($M$12:$M$501>=$O$1+14,$M$12:$M$501)),$B$41,IF(M35=MIN(IF($M$12:$M$501>=$O$1+28,$M$12:$M$501)),$B$42,""))) ->  | Z35: 0 | AA35: 87 | AB35: 0.06041666667 | AE35: 0 | AG35: 0 | BQ35: =IF(G35<>G34,IF(BP35>=2,IF(MAX(IF($G$12:$G$503=G35,$BO$12:$BO$503))<$B$30,BP35,1),BP35),"") ->  | BR35: =IF(G35<>G34,IF(BP35>=2,IF(MAX(IF($G$12:$G$503=G35,$BO$12:$BO$503))<$B$31,BP35,1),BP35),"") ->  | BT35: =IF(MAX(IF($G$12:G35=G35,$BO$12:BO35))<$B$30,COUNTIFS($BO$12:BO35,">"&$B$56,$G$12:G35,G35),0) -> 0 | CY35: =IF(G35<>"",MAX(IF($I$11:I34<>$B$14,$M$11:M34)),"") -> 2024-08-27T12:45:00 | CZ35: =IF(CX35<>"",IF(CX35=0,0,IF(G35<>G34,0,IFERROR(INDEX($CZ$11:CZ34, MATCH(MAX($CY$11:CY34), $M$11:M34, 0))+1,1))),"") ->  | DB35: =IF(DA35<>"",IF(DA35=0,0,IF(G35<>G34,0,IFERROR(INDEX($DB$11:DB34, MATCH(MAX($CY$11:CY34), $M$11:M34, 0))+1,1))),"") ->  | DC35: 0 | DD35: 24 | DE35: 516 | DF35: 0.3583333333 | DG35: 0 | DH35: 0 | DI35: 87 | DJ35: 0.06041666667 | DK35: =IF(G34<>G35,MAX(IF($G$12:$G$503=G35,$DI$12:$DI$503)),"") -> 
A36: 運転時間 | B36: =9*60 -> 540 | D36: 2日平均9時間以内チェック | G36: 0827 | H36: 827 | I36: 2 | K36: 労働時間（運転以外） | L36: 2024-08-27 | M36: 2024-08-27T14:33:00 | N36: 873 | P36: 14:38:00 | Q36: 2024-08-27T14:38:00 | R36: 878 | S36: 5 | T36: 0.003472222222 | U36: 2024-08-27 | X36: =IF(M36=MIN(IF($M$12:$M$501>=$O$1,$M$12:$M$501)),$B$40,IF(M36=MIN(IF($M$12:$M$501>=$O$1+7,$M$12:$M$501)),$B$41,IF(M36=MIN(IF($M$12:$M$501>=$O$1+14,$M$12:$M$501)),$B$42,IF(M36=MIN(IF($M$12:$M$501>=$O$1+21,$M$12:$M$501)),$B$43,IF(M36=MIN(IF($M$12:$M$501>=$O$1+28,$M$12:$M$501)),$B$44,""))))) ->  | Y36: =IF(M36=MIN(IF($M$12:$M$501>=$O$1,$M$12:$M$501)),$B$40,IF(M36=MIN(IF($M$12:$M$501>=$O$1+14,$M$12:$M$501)),$B$41,IF(M36=MIN(IF($M$12:$M$501>=$O$1+28,$M$12:$M$501)),$B$42,""))) ->  | Z36: 0 | AA36: 0 | AC36: 5 | AD36: 0.003472222222 | AE36: 0 | AG36: 5 | BQ36: =IF(G36<>G35,IF(BP36>=2,IF(MAX(IF($G$12:$G$503=G36,$BO$12:$BO$503))<$B$30,BP36,1),BP36),"") ->  | BR36: =IF(G36<>G35,IF(BP36>=2,IF(MAX(IF($G$12:$G$503=G36,$BO$12:$BO$503))<$B$31,BP36,1),BP36),"") ->  | BT36: =IF(MAX(IF($G$12:G36=G36,$BO$12:BO36))<$B$30,COUNTIFS($BO$12:BO36,">"&$B$56,$G$12:G36,G36),0) -> 0 | CX36: 1 | CY36: =IF(G36<>"",MAX(IF($I$11:I35<>$B$14,$M$11:M35)),"") -> 2024-08-27T12:45:00 | CZ36: =IF(CX36<>"",IF(CX36=0,0,IF(G36<>G35,0,IFERROR(INDEX($CZ$11:CZ35, MATCH(MAX($CY$11:CY35), $M$11:M35, 0))+1,1))),"") -> 1 | DB36: =IF(DA36<>"",IF(DA36=0,0,IF(G36<>G35,0,IFERROR(INDEX($DB$11:DB35, MATCH(MAX($CY$11:CY35), $M$11:M35, 0))+1,1))),"") ->  | DC36: 0 | DD36: 24 | DE36: 516 | DF36: 0.3583333333 | DG36: 0 | DH36: 0 | DI36: 87 | DJ36: 0.06041666667 | DK36: =IF(G35<>G36,MAX(IF($G$12:$G$503=G36,$DI$12:$DI$503)),"") -> 
B37: =44*60 -> 2640 | D37: 2週間平均44時間以内チェック | G37: 0827 | H37: 827 | I37: 1 | K37: 労働時間（運転） | L37: 2024-08-27 | M37: 2024-08-27T14:38:00 | N37: 878 | P37: 14:43:00 | Q37: 2024-08-27T14:43:00 | R37: 883 | S37: 5 | T37: 0.003472222222 | U37: 2024-08-27 | X37: =IF(M37=MIN(IF($M$12:$M$501>=$O$1,$M$12:$M$501)),$B$40,IF(M37=MIN(IF($M$12:$M$501>=$O$1+7,$M$12:$M$501)),$B$41,IF(M37=MIN(IF($M$12:$M$501>=$O$1+14,$M$12:$M$501)),$B$42,IF(M37=MIN(IF($M$12:$M$501>=$O$1+21,$M$12:$M$501)),$B$43,IF(M37=MIN(IF($M$12:$M$501>=$O$1+28,$M$12:$M$501)),$B$44,""))))) ->  | Y37: =IF(M37=MIN(IF($M$12:$M$501>=$O$1,$M$12:$M$501)),$B$40,IF(M37=MIN(IF($M$12:$M$501>=$O$1+14,$M$12:$M$501)),$B$41,IF(M37=MIN(IF($M$12:$M$501>=$O$1+28,$M$12:$M$501)),$B$42,""))) ->  | Z37: 0 | AA37: 5 | AB37: 0.003472222222 | AE37: 0 | AG37: 0 | BQ37: =IF(G37<>G36,IF(BP37>=2,IF(MAX(IF($G$12:$G$503=G37,$BO$12:$BO$503))<$B$30,BP37,1),BP37),"") ->  | BR37: =IF(G37<>G36,IF(BP37>=2,IF(MAX(IF($G$12:$G$503=G37,$BO$12:$BO$503))<$B$31,BP37,1),BP37),"") ->  | BT37: =IF(MAX(IF($G$12:G37=G37,$BO$12:BO37))<$B$30,COUNTIFS($BO$12:BO37,">"&$B$56,$G$12:G37,G37),0) -> 0 | CY37: =IF(G37<>"",MAX(IF($I$11:I36<>$B$14,$M$11:M36)),"") -> 2024-08-27T14:33:00 | CZ37: =IF(CX37<>"",IF(CX37=0,0,IF(G37<>G36,0,IFERROR(INDEX($CZ$11:CZ36, MATCH(MAX($CY$11:CY36), $M$11:M36, 0))+1,1))),"") ->  | DB37: =IF(DA37<>"",IF(DA37=0,0,IF(G37<>G36,0,IFERROR(INDEX($DB$11:DB36, MATCH(MAX($CY$11:CY36), $M$11:M36, 0))+1,1))),"") ->  | DC37: 0 | DD37: 24 | DE37: 521 | DF37: 0.3618055556 | DG37: 0 | DH37: 0 | DI37: 92 | DJ37: 0.06388888889 | DK37: =IF(G36<>G37,MAX(IF($G$12:$G$503=G37,$DI$12:$DI$503)),"") -> 
B38: 14 | C38: 2週間(+14) | D38: 2週間平均 | G38: 0827 | H38: 827 | I38: 2 | K38: 労働時間（運転以外） | L38: 2024-08-27 | M38: 2024-08-27T14:43:00 | N38: 883 | P38: 14:57:00 | Q38: 2024-08-27T14:57:00 | R38: 897 | S38: 14 | T38: 0.009722222222 | U38: 2024-08-27 | X38: =IF(M38=MIN(IF($M$12:$M$501>=$O$1,$M$12:$M$501)),$B$40,IF(M38=MIN(IF($M$12:$M$501>=$O$1+7,$M$12:$M$501)),$B$41,IF(M38=MIN(IF($M$12:$M$501>=$O$1+14,$M$12:$M$501)),$B$42,IF(M38=MIN(IF($M$12:$M$501>=$O$1+21,$M$12:$M$501)),$B$43,IF(M38=MIN(IF($M$12:$M$501>=$O$1+28,$M$12:$M$501)),$B$44,""))))) ->  | Y38: =IF(M38=MIN(IF($M$12:$M$501>=$O$1,$M$12:$M$501)),$B$40,IF(M38=MIN(IF($M$12:$M$501>=$O$1+14,$M$12:$M$501)),$B$41,IF(M38=MIN(IF($M$12:$M$501>=$O$1+28,$M$12:$M$501)),$B$42,""))) ->  | Z38: 0 | AA38: 0 | AC38: 14 | AD38: 0.009722222222 | AE38: 0 | AG38: 14 | BQ38: =IF(G38<>G37,IF(BP38>=2,IF(MAX(IF($G$12:$G$503=G38,$BO$12:$BO$503))<$B$30,BP38,1),BP38),"") ->  | BR38: =IF(G38<>G37,IF(BP38>=2,IF(MAX(IF($G$12:$G$503=G38,$BO$12:$BO$503))<$B$31,BP38,1),BP38),"") ->  | BT38: =IF(MAX(IF($G$12:G38=G38,$BO$12:BO38))<$B$30,COUNTIFS($BO$12:BO38,">"&$B$56,$G$12:G38,G38),0) -> 0 | CX38: 0 | CY38: =IF(G38<>"",MAX(IF($I$11:I37<>$B$14,$M$11:M37)),"") -> 2024-08-27T14:33:00 | CZ38: =IF(CX38<>"",IF(CX38=0,0,IF(G38<>G37,0,IFERROR(INDEX($CZ$11:CZ37, MATCH(MAX($CY$11:CY37), $M$11:M37, 0))+1,1))),"") -> 0 | DB38: =IF(DA38<>"",IF(DA38=0,0,IF(G38<>G37,0,IFERROR(INDEX($DB$11:DB37, MATCH(MAX($CY$11:CY37), $M$11:M37, 0))+1,1))),"") ->  | DC38: 0 | DD38: 24 | DE38: 521 | DF38: 0.3618055556 | DG38: 14 | DH38: 14 | DI38: 92 | DJ38: 0.06388888889 | DK38: =IF(G37<>G38,MAX(IF($G$12:$G$503=G38,$DI$12:$DI$503)),"") -> 
B39: 28 | C39: 4週間(+28) | D39: 2週間平均 | G39: 0827 | H39: 827 | I39: 1 | K39: 労働時間（運転） | L39: 2024-08-27 | M39: 2024-08-27T14:57:00 | N39: 897 | P39: 15:08:00 | Q39: 2024-08-27T15:08:00 | R39: 908 | S39: 11 | T39: 0.007638888889 | U39: 2024-08-27 | X39: =IF(M39=MIN(IF($M$12:$M$501>=$O$1,$M$12:$M$501)),$B$40,IF(M39=MIN(IF($M$12:$M$501>=$O$1+7,$M$12:$M$501)),$B$41,IF(M39=MIN(IF($M$12:$M$501>=$O$1+14,$M$12:$M$501)),$B$42,IF(M39=MIN(IF($M$12:$M$501>=$O$1+21,$M$12:$M$501)),$B$43,IF(M39=MIN(IF($M$12:$M$501>=$O$1+28,$M$12:$M$501)),$B$44,""))))) ->  | Y39: =IF(M39=MIN(IF($M$12:$M$501>=$O$1,$M$12:$M$501)),$B$40,IF(M39=MIN(IF($M$12:$M$501>=$O$1+14,$M$12:$M$501)),$B$41,IF(M39=MIN(IF($M$12:$M$501>=$O$1+28,$M$12:$M$501)),$B$42,""))) ->  | Z39: 0 | AA39: 11 | AB39: 0.007638888889 | AE39: 0 | AG39: 0 | BQ39: =IF(G39<>G38,IF(BP39>=2,IF(MAX(IF($G$12:$G$503=G39,$BO$12:$BO$503))<$B$30,BP39,1),BP39),"") ->  | BR39: =IF(G39<>G38,IF(BP39>=2,IF(MAX(IF($G$12:$G$503=G39,$BO$12:$BO$503))<$B$31,BP39,1),BP39),"") ->  | BT39: =IF(MAX(IF($G$12:G39=G39,$BO$12:BO39))<$B$30,COUNTIFS($BO$12:BO39,">"&$B$56,$G$12:G39,G39),0) -> 0 | CY39: =IF(G39<>"",MAX(IF($I$11:I38<>$B$14,$M$11:M38)),"") -> 2024-08-27T14:43:00 | CZ39: =IF(CX39<>"",IF(CX39=0,0,IF(G39<>G38,0,IFERROR(INDEX($CZ$11:CZ38, MATCH(MAX($CY$11:CY38), $M$11:M38, 0))+1,1))),"") ->  | DB39: =IF(DA39<>"",IF(DA39=0,0,IF(G39<>G38,0,IFERROR(INDEX($DB$11:DB38, MATCH(MAX($CY$11:CY38), $M$11:M38, 0))+1,1))),"") ->  | DC39: 0 | DD39: 24 | DE39: 532 | DF39: 0.3694444444 | DG39: 0 | DH39: 14 | DI39: 103 | DJ39: 0.07152777778 | DK39: =IF(G38<>G39,MAX(IF($G$12:$G$503=G39,$DI$12:$DI$503)),"") -> 
B40: 1 | D40: n週間計算での1週目 | G40: 0827 | H40: 827 | I40: 4 | K40: 休息（自宅） | L40: 2024-08-27 | M40: 2024-08-27T15:08:00 | N40: 908 | O40: 2024-08-27 | P40: 23:50:00 | Q40: 2024-08-27T23:50:00 | R40: 1430 | S40: 522 | T40: 0.3625 | U40: 2024-08-27 | X40: =IF(M40=MIN(IF($M$12:$M$501>=$O$1,$M$12:$M$501)),$B$40,IF(M40=MIN(IF($M$12:$M$501>=$O$1+7,$M$12:$M$501)),$B$41,IF(M40=MIN(IF($M$12:$M$501>=$O$1+14,$M$12:$M$501)),$B$42,IF(M40=MIN(IF($M$12:$M$501>=$O$1+21,$M$12:$M$501)),$B$43,IF(M40=MIN(IF($M$12:$M$501>=$O$1+28,$M$12:$M$501)),$B$44,""))))) ->  | Y40: =IF(M40=MIN(IF($M$12:$M$501>=$O$1,$M$12:$M$501)),$B$40,IF(M40=MIN(IF($M$12:$M$501>=$O$1+14,$M$12:$M$501)),$B$41,IF(M40=MIN(IF($M$12:$M$501>=$O$1+28,$M$12:$M$501)),$B$42,""))) ->  | Z40: 0 | AA40: 0 | AE40: 0 | AG40: 522 | BH40: 522 | BI40: 0.3625 | BL40: 522 | BM40: 0.3625 | BN40: 522 | BQ40: =IF(G40<>G39,IF(BP40>=2,IF(MAX(IF($G$12:$G$503=G40,$BO$12:$BO$503))<$B$30,BP40,1),BP40),"") ->  | BR40: =IF(G40<>G39,IF(BP40>=2,IF(MAX(IF($G$12:$G$503=G40,$BO$12:$BO$503))<$B$31,BP40,1),BP40),"") ->  | BT40: =IF(MAX(IF($G$12:G40=G40,$BO$12:BO40))<$B$30,COUNTIFS($BO$12:BO40,">"&$B$56,$G$12:G40,G40),0) -> 0 | CX40: 0 | CY40: =IF(G40<>"",MAX(IF($I$11:I39<>$B$14,$M$11:M39)),"") -> 2024-08-27T14:43:00 | CZ40: =IF(CX40<>"",IF(CX40=0,0,IF(G40<>G39,0,IFERROR(INDEX($CZ$11:CZ39, MATCH(MAX($CY$11:CY39), $M$11:M39, 0))+1,1))),"") -> 0 | DA40: 0 | DB40: =IF(DA40<>"",IF(DA40=0,0,IF(G40<>G39,0,IFERROR(INDEX($DB$11:DB39, MATCH(MAX($CY$11:CY39), $M$11:M39, 0))+1,1))),"") -> 0 | DC40: 522 | DD40: 546 | DE40: 532 | DF40: 0.3694444444 | DG40: 522 | DH40: 536 | DI40: 103 | DJ40: 0.07152777778 | DK40: =IF(G39<>G40,MAX(IF($G$12:$G$503=G40,$DI$12:$DI$503)),"") -> 
B41: 2 | D41: n週間計算での2週目 | F41: 4 | G41: 0828 | H41: 828 | I41: 1 | K41: 労働時間（運転） | L41: 2024-08-28 | M41: 2024-08-27T23:50:00 | N41: 1430 | O41: 2024-08-28 | P41: 01:32:00 | Q41: 2024-08-28T01:32:00 | R41: 1532 | S41: 102 | T41: 0.07083333333 | U41: 2024-08-27 | V41: 2024-08-28 | W41: 00:00:00 | X41: =IF(M41=MIN(IF($M$12:$M$501>=$O$1,$M$12:$M$501)),$B$40,IF(M41=MIN(IF($M$12:$M$501>=$O$1+7,$M$12:$M$501)),$B$41,IF(M41=MIN(IF($M$12:$M$501>=$O$1+14,$M$12:$M$501)),$B$42,IF(M41=MIN(IF($M$12:$M$501>=$O$1+21,$M$12:$M$501)),$B$43,IF(M41=MIN(IF($M$12:$M$501>=$O$1+28,$M$12:$M$501)),$B$44,""))))) ->  | Y41: =IF(M41=MIN(IF($M$12:$M$501>=$O$1,$M$12:$M$501)),$B$40,IF(M41=MIN(IF($M$12:$M$501>=$O$1+14,$M$12:$M$501)),$B$41,IF(M41=MIN(IF($M$12:$M$501>=$O$1+28,$M$12:$M$501)),$B$42,""))) ->  | Z41: 0 | AA41: 102 | AB41: 0.07083333333 | AE41: 0 | AG41: 0 | AH41: 2024-08-28T23:50:00 | AI41: 0 | AJ41: 00:00:00 | AK41: 0 | AL41: 0 | AM41: 0 | AN41: 610 | AO41: 2024-08-29T23:50:00 | AP41: 0 | AQ41: 00:00:00 | AR41: 0 | AS41: 0 | AT41: 0 | AZ41: 610 | BA41: 0.4236111111 | BB41: 610 | BC41: 0.4236111111 | BF41: 0 | BP41: 0 | BQ41: =IF(G41<>G40,IF(BP41>=2,IF(MAX(IF($G$12:$G$503=G41,$BO$12:$BO$503))<$B$30,BP41,1),BP41),"") -> 0 | BR41: =IF(G41<>G40,IF(BP41>=2,IF(MAX(IF($G$12:$G$503=G41,$BO$12:$BO$503))<$B$31,BP41,1),BP41),"") -> 0 | BS41: 0 | BT41: =IF(MAX(IF($G$12:G41=G41,$BO$12:BO41))<$B$30,COUNTIFS($BO$12:BO41,">"&$B$56,$G$12:G41,G41),0) -> 0 | BX41: 0 | BY41: 0 | BZ41: 0 | CA41: 0 | CB41: 0 | CC41: 0 | CE41: 459 | CF41: 0 | CG41: 459 | CH41: 0.31875 | CI41: 459 | CJ41: 0.31875 | CK41: 459 | CL41: 0 | CM41: 459 | CN41: 0.31875 | CO41: 229.5 | CP41: 0.159375 | CQ41: 0 | CR41: 0 | CY41: =IF(G41<>"",MAX(IF($I$11:I40<>$B$14,$M$11:M40)),"") -> 2024-08-27T15:08:00 | CZ41: =IF(CX41<>"",IF(CX41=0,0,IF(G41<>G40,0,IFERROR(INDEX($CZ$11:CZ40, MATCH(MAX($CY$11:CY40), $M$11:M40, 0))+1,1))),"") ->  | DB41: =IF(DA41<>"",IF(DA41=0,0,IF(G41<>G40,0,IFERROR(INDEX($DB$11:DB40, MATCH(MAX($CY$11:CY40), $M$11:M40, 0))+1,1))),"") ->  | DC41: 0 | DD41: 0 | DE41: 102 | DF41: 0.07083333333 | DG41: 0 | DH41: 0 | DI41: 102 | DJ41: 0.07083333333 | DK41: =IF(G40<>G41,MAX(IF($G$12:$G$503=G41,$DI$12:$DI$503)),"") -> 357 | DL41: 0.2479166667 | DM41: 597 | DN41: 0.4145833333
B42: 3 | D42: n週間計算での3週目 | G42: 0828 | H42: 828 | I42: 2 | K42: 労働時間（運転以外） | L42: 2024-08-28 | M42: 2024-08-28T01:32:00 | N42: 92 | P42: 03:50:00 | Q42: 2024-08-28T03:50:00 | R42: 230 | S42: 138 | T42: 0.09583333333 | U42: 2024-08-28 | X42: =IF(M42=MIN(IF($M$12:$M$501>=$O$1,$M$12:$M$501)),$B$40,IF(M42=MIN(IF($M$12:$M$501>=$O$1+7,$M$12:$M$501)),$B$41,IF(M42=MIN(IF($M$12:$M$501>=$O$1+14,$M$12:$M$501)),$B$42,IF(M42=MIN(IF($M$12:$M$501>=$O$1+21,$M$12:$M$501)),$B$43,IF(M42=MIN(IF($M$12:$M$501>=$O$1+28,$M$12:$M$501)),$B$44,""))))) ->  | Y42: =IF(M42=MIN(IF($M$12:$M$501>=$O$1,$M$12:$M$501)),$B$40,IF(M42=MIN(IF($M$12:$M$501>=$O$1+14,$M$12:$M$501)),$B$41,IF(M42=MIN(IF($M$12:$M$501>=$O$1+28,$M$12:$M$501)),$B$42,""))) ->  | Z42: 0 | AA42: 0 | AC42: 138 | AD42: 0.09583333333 | AE42: 0 | AG42: 138 | BQ42: =IF(G42<>G41,IF(BP42>=2,IF(MAX(IF($G$12:$G$503=G42,$BO$12:$BO$503))<$B$30,BP42,1),BP42),"") ->  | BR42: =IF(G42<>G41,IF(BP42>=2,IF(MAX(IF($G$12:$G$503=G42,$BO$12:$BO$503))<$B$31,BP42,1),BP42),"") ->  | BT42: =IF(MAX(IF($G$12:G42=G42,$BO$12:BO42))<$B$30,COUNTIFS($BO$12:BO42,">"&$B$56,$G$12:G42,G42),0) -> 0 | CX42: 0 | CY42: =IF(G42<>"",MAX(IF($I$11:I41<>$B$14,$M$11:M41)),"") -> 2024-08-27T15:08:00 | CZ42: =IF(CX42<>"",IF(CX42=0,0,IF(G42<>G41,0,IFERROR(INDEX($CZ$11:CZ41, MATCH(MAX($CY$11:CY41), $M$11:M41, 0))+1,1))),"") -> 0 | DB42: =IF(DA42<>"",IF(DA42=0,0,IF(G42<>G41,0,IFERROR(INDEX($DB$11:DB41, MATCH(MAX($CY$11:CY41), $M$11:M41, 0))+1,1))),"") ->  | DC42: 0 | DD42: 0 | DE42: 102 | DF42: 0.07083333333 | DG42: 138 | DH42: 138 | DI42: 102 | DJ42: 0.07083333333 | DK42: =IF(G41<>G42,MAX(IF($G$12:$G$503=G42,$DI$12:$DI$503)),"") -> 
B43: 4 | D43: n週間計算での4週目 | G43: 0828 | H43: 828 | I43: 1 | K43: 労働時間（運転） | L43: 2024-08-28 | M43: 2024-08-28T03:50:00 | N43: 230 | P43: 08:22:00 | Q43: 2024-08-28T08:22:00 | R43: 502 | S43: 272 | T43: 0.1888888889 | U43: 2024-08-28 | X43: =IF(M43=MIN(IF($M$12:$M$501>=$O$1,$M$12:$M$501)),$B$40,IF(M43=MIN(IF($M$12:$M$501>=$O$1+7,$M$12:$M$501)),$B$41,IF(M43=MIN(IF($M$12:$M$501>=$O$1+14,$M$12:$M$501)),$B$42,IF(M43=MIN(IF($M$12:$M$501>=$O$1+21,$M$12:$M$501)),$B$43,IF(M43=MIN(IF($M$12:$M$501>=$O$1+28,$M$12:$M$501)),$B$44,""))))) ->  | Y43: =IF(M43=MIN(IF($M$12:$M$501>=$O$1,$M$12:$M$501)),$B$40,IF(M43=MIN(IF($M$12:$M$501>=$O$1+14,$M$12:$M$501)),$B$41,IF(M43=MIN(IF($M$12:$M$501>=$O$1+28,$M$12:$M$501)),$B$42,""))) ->  | Z43: 0 | AA43: 272 | AB43: 0.1888888889 | AE43: 0 | AG43: 0 | BQ43: =IF(G43<>G42,IF(BP43>=2,IF(MAX(IF($G$12:$G$503=G43,$BO$12:$BO$503))<$B$30,BP43,1),BP43),"") ->  | BR43: =IF(G43<>G42,IF(BP43>=2,IF(MAX(IF($G$12:$G$503=G43,$BO$12:$BO$503))<$B$31,BP43,1),BP43),"") ->  | BT43: =IF(MAX(IF($G$12:G43=G43,$BO$12:BO43))<$B$30,COUNTIFS($BO$12:BO43,">"&$B$56,$G$12:G43,G43),0) -> 0 | CY43: =IF(G43<>"",MAX(IF($I$11:I42<>$B$14,$M$11:M42)),"") -> 2024-08-28T01:32:00 | CZ43: =IF(CX43<>"",IF(CX43=0,0,IF(G43<>G42,0,IFERROR(INDEX($CZ$11:CZ42, MATCH(MAX($CY$11:CY42), $M$11:M42, 0))+1,1))),"") ->  | DB43: =IF(DA43<>"",IF(DA43=0,0,IF(G43<>G42,0,IFERROR(INDEX($DB$11:DB42, MATCH(MAX($CY$11:CY42), $M$11:M42, 0))+1,1))),"") ->  | DC43: 0 | DD43: 0 | DE43: 374 | DF43: 0.2597222222 | DG43: 0 | DH43: 0 | DI43: 272 | DJ43: 0.1888888889 | DK43: =IF(G42<>G43,MAX(IF($G$12:$G$503=G43,$DI$12:$DI$503)),"") -> 
B44: 5 | D44: n週間計算での5週目 | G44: 0828 | H44: 828 | I44: 3 | K44: 休憩 | L44: 2024-08-28 | M44: 2024-08-28T08:22:00 | N44: 502 | P44: 08:35:00 | Q44: 2024-08-28T08:35:00 | R44: 515 | S44: 13 | T44: 0.009027777778 | U44: 2024-08-28 | X44: =IF(M44=MIN(IF($M$12:$M$501>=$O$1,$M$12:$M$501)),$B$40,IF(M44=MIN(IF($M$12:$M$501>=$O$1+7,$M$12:$M$501)),$B$41,IF(M44=MIN(IF($M$12:$M$501>=$O$1+14,$M$12:$M$501)),$B$42,IF(M44=MIN(IF($M$12:$M$501>=$O$1+21,$M$12:$M$501)),$B$43,IF(M44=MIN(IF($M$12:$M$501>=$O$1+28,$M$12:$M$501)),$B$44,""))))) ->  | Y44: =IF(M44=MIN(IF($M$12:$M$501>=$O$1,$M$12:$M$501)),$B$40,IF(M44=MIN(IF($M$12:$M$501>=$O$1+14,$M$12:$M$501)),$B$41,IF(M44=MIN(IF($M$12:$M$501>=$O$1+28,$M$12:$M$501)),$B$42,""))) ->  | Z44: 0 | AA44: 0 | AE44: 13 | AF44: 0.009027777778 | AG44: 13 | BQ44: =IF(G44<>G43,IF(BP44>=2,IF(MAX(IF($G$12:$G$503=G44,$BO$12:$BO$503))<$B$30,BP44,1),BP44),"") ->  | BR44: =IF(G44<>G43,IF(BP44>=2,IF(MAX(IF($G$12:$G$503=G44,$BO$12:$BO$503))<$B$31,BP44,1),BP44),"") ->  | BT44: =IF(MAX(IF($G$12:G44=G44,$BO$12:BO44))<$B$30,COUNTIFS($BO$12:BO44,">"&$B$56,$G$12:G44,G44),0) -> 0 | CX44: 0 | CY44: =IF(G44<>"",MAX(IF($I$11:I43<>$B$14,$M$11:M43)),"") -> 2024-08-28T01:32:00 | CZ44: =IF(CX44<>"",IF(CX44=0,0,IF(G44<>G43,0,IFERROR(INDEX($CZ$11:CZ43, MATCH(MAX($CY$11:CY43), $M$11:M43, 0))+1,1))),"") -> 0 | DA44: 0 | DB44: =IF(DA44<>"",IF(DA44=0,0,IF(G44<>G43,0,IFERROR(INDEX($DB$11:DB43, MATCH(MAX($CY$11:CY43), $M$11:M43, 0))+1,1))),"") -> 0 | DC44: 13 | DD44: 13 | DE44: 374 | DF44: 0.2597222222 | DG44: 13 | DH44: 13 | DI44: 272 | DJ44: 0.1888888889 | DK44: =IF(G43<>G44,MAX(IF($G$12:$G$503=G44,$DI$12:$DI$503)),"") -> 
G45: 0828 | H45: 828 | I45: 1 | K45: 労働時間（運転） | L45: 2024-08-28 | M45: 2024-08-28T08:35:00 | N45: 515 | P45: 10:00:00 | Q45: 2024-08-28T10:00:00 | R45: 600 | S45: 85 | T45: 0.05902777778 | U45: 2024-08-28 | X45: =IF(M45=MIN(IF($M$12:$M$501>=$O$1,$M$12:$M$501)),$B$40,IF(M45=MIN(IF($M$12:$M$501>=$O$1+7,$M$12:$M$501)),$B$41,IF(M45=MIN(IF($M$12:$M$501>=$O$1+14,$M$12:$M$501)),$B$42,IF(M45=MIN(IF($M$12:$M$501>=$O$1+21,$M$12:$M$501)),$B$43,IF(M45=MIN(IF($M$12:$M$501>=$O$1+28,$M$12:$M$501)),$B$44,""))))) ->  | Y45: =IF(M45=MIN(IF($M$12:$M$501>=$O$1,$M$12:$M$501)),$B$40,IF(M45=MIN(IF($M$12:$M$501>=$O$1+14,$M$12:$M$501)),$B$41,IF(M45=MIN(IF($M$12:$M$501>=$O$1+28,$M$12:$M$501)),$B$42,""))) ->  | Z45: 0 | AA45: 85 | AB45: 0.05902777778 | AE45: 0 | AG45: 0 | BQ45: =IF(G45<>G44,IF(BP45>=2,IF(MAX(IF($G$12:$G$503=G45,$BO$12:$BO$503))<$B$30,BP45,1),BP45),"") ->  | BR45: =IF(G45<>G44,IF(BP45>=2,IF(MAX(IF($G$12:$G$503=G45,$BO$12:$BO$503))<$B$31,BP45,1),BP45),"") ->  | BT45: =IF(MAX(IF($G$12:G45=G45,$BO$12:BO45))<$B$30,COUNTIFS($BO$12:BO45,">"&$B$56,$G$12:G45,G45),0) -> 0 | CY45: =IF(G45<>"",MAX(IF($I$11:I44<>$B$14,$M$11:M44)),"") -> 2024-08-28T08:22:00 | CZ45: =IF(CX45<>"",IF(CX45=0,0,IF(G45<>G44,0,IFERROR(INDEX($CZ$11:CZ44, MATCH(MAX($CY$11:CY44), $M$11:M44, 0))+1,1))),"") ->  | DB45: =IF(DA45<>"",IF(DA45=0,0,IF(G45<>G44,0,IFERROR(INDEX($DB$11:DB44, MATCH(MAX($CY$11:CY44), $M$11:M44, 0))+1,1))),"") ->  | DC45: 0 | DD45: 13 | DE45: 459 | DF45: 0.31875 | DG45: 0 | DH45: 13 | DI45: 357 | DJ45: 0.2479166667 | DK45: =IF(G44<>G45,MAX(IF($G$12:$G$503=G45,$DI$12:$DI$503)),"") -> 
A46: 連続運転時間 | B46: 240 | C46: 0.1666666667 | D46: 連続運転4時間 | L46: 2024-08-28 | Q46: 2024-08-28 | W46: 00:00:00 | X46: =IF(M46=MIN(IF($M$12:$M$501>=$O$1,$M$12:$M$501)),$B$40,IF(M46=MIN(IF($M$12:$M$501>=$O$1+7,$M$12:$M$501)),$B$41,IF(M46=MIN(IF($M$12:$M$501>=$O$1+14,$M$12:$M$501)),$B$42,IF(M46=MIN(IF($M$12:$M$501>=$O$1+21,$M$12:$M$501)),$B$43,IF(M46=MIN(IF($M$12:$M$501>=$O$1+28,$M$12:$M$501)),$B$44,""))))) ->  | Y46: =IF(M46=MIN(IF($M$12:$M$501>=$O$1,$M$12:$M$501)),$B$40,IF(M46=MIN(IF($M$12:$M$501>=$O$1+14,$M$12:$M$501)),$B$41,IF(M46=MIN(IF($M$12:$M$501>=$O$1+28,$M$12:$M$501)),$B$42,""))) ->  | AI46: 0 | AJ46: 00:00:00 | AK46: 0 | AL46: 0 | AM46: 0 | AN46: 0 | AP46: 0 | AQ46: 00:00:00 | AR46: 0 | AS46: 0 | AT46: 0 | AZ46: 0 | BA46: 0 | BB46: 0 | BC46: 0 | BF46: 0 | BP46: 0 | BQ46: =IF(G46<>G45,IF(BP46>=2,IF(MAX(IF($G$12:$G$503=G46,$BO$12:$BO$503))<$B$30,BP46,1),BP46),"") -> 0 | BR46: =IF(G46<>G45,IF(BP46>=2,IF(MAX(IF($G$12:$G$503=G46,$BO$12:$BO$503))<$B$31,BP46,1),BP46),"") -> 0 | BT46: =IF(MAX(IF($G$12:G46=G46,$BO$12:BO46))<$B$30,COUNTIFS($BO$12:BO46,">"&$B$56,$G$12:G46,G46),0) -> 0 | BX46: 0 | BY46: 0 | CC46: 0 | CE46: 0 | CF46: 0 | CG46: 0 | CH46: 0 | CI46: 0 | CJ46: 0 | CK46: 0 | CL46: 0 | CM46: 0 | CN46: 0 | CO46: 0 | CP46: 0 | CQ46: 0 | CR46: 0 | CY46: =IF(G46<>"",MAX(IF($I$11:I45<>$B$14,$M$11:M45)),"") ->  | CZ46: =IF(CX46<>"",IF(CX46=0,0,IF(G46<>G45,0,IFERROR(INDEX($CZ$11:CZ45, MATCH(MAX($CY$11:CY45), $M$11:M45, 0))+1,1))),"") ->  | DB46: =IF(DA46<>"",IF(DA46=0,0,IF(G46<>G45,0,IFERROR(INDEX($DB$11:DB45, MATCH(MAX($CY$11:CY45), $M$11:M45, 0))+1,1))),"") ->  | DK46: =IF(G45<>G46,MAX(IF($G$12:$G$503=G46,$DI$12:$DI$503)),"") -> 0 | DL46: 0 | DM46: 0 | DN46: 0
B47: 270 | C47: 0.1875 | D47: 連続運転4時間30分 | L47: 2024-08-28 | Q47: 2024-08-28 | X47: =IF(M47=MIN(IF($M$12:$M$501>=$O$1,$M$12:$M$501)),$B$40,IF(M47=MIN(IF($M$12:$M$501>=$O$1+7,$M$12:$M$501)),$B$41,IF(M47=MIN(IF($M$12:$M$501>=$O$1+14,$M$12:$M$501)),$B$42,IF(M47=MIN(IF($M$12:$M$501>=$O$1+21,$M$12:$M$501)),$B$43,IF(M47=MIN(IF($M$12:$M$501>=$O$1+28,$M$12:$M$501)),$B$44,""))))) ->  | Y47: =IF(M47=MIN(IF($M$12:$M$501>=$O$1,$M$12:$M$501)),$B$40,IF(M47=MIN(IF($M$12:$M$501>=$O$1+14,$M$12:$M$501)),$B$41,IF(M47=MIN(IF($M$12:$M$501>=$O$1+28,$M$12:$M$501)),$B$42,""))) ->  | BQ47: =IF(G47<>G46,IF(BP47>=2,IF(MAX(IF($G$12:$G$503=G47,$BO$12:$BO$503))<$B$30,BP47,1),BP47),"") ->  | BR47: =IF(G47<>G46,IF(BP47>=2,IF(MAX(IF($G$12:$G$503=G47,$BO$12:$BO$503))<$B$31,BP47,1),BP47),"") ->  | BT47: =IF(MAX(IF($G$12:G47=G47,$BO$12:BO47))<$B$30,COUNTIFS($BO$12:BO47,">"&$B$56,$G$12:G47,G47),0) -> 0 | CY47: =IF(G47<>"",MAX(IF($I$11:I46<>$B$14,$M$11:M46)),"") ->  | CZ47: =IF(CX47<>"",IF(CX47=0,0,IF(G47<>G46,0,IFERROR(INDEX($CZ$11:CZ46, MATCH(MAX($CY$11:CY46), $M$11:M46, 0))+1,1))),"") ->  | DB47: =IF(DA47<>"",IF(DA47=0,0,IF(G47<>G46,0,IFERROR(INDEX($DB$11:DB46, MATCH(MAX($CY$11:CY46), $M$11:M46, 0))+1,1))),"") ->  | DK47: =IF(G46<>G47,MAX(IF($G$12:$G$503=G47,$DI$12:$DI$503)),"") -> 
B48: 30 | C48: 0.02083333333 | D48: 分割30分 | L48: 2024-08-28 | Q48: 2024-08-28 | X48: =IF(M48=MIN(IF($M$12:$M$501>=$O$1,$M$12:$M$501)),$B$40,IF(M48=MIN(IF($M$12:$M$501>=$O$1+7,$M$12:$M$501)),$B$41,IF(M48=MIN(IF($M$12:$M$501>=$O$1+14,$M$12:$M$501)),$B$42,IF(M48=MIN(IF($M$12:$M$501>=$O$1+21,$M$12:$M$501)),$B$43,IF(M48=MIN(IF($M$12:$M$501>=$O$1+28,$M$12:$M$501)),$B$44,""))))) ->  | Y48: =IF(M48=MIN(IF($M$12:$M$501>=$O$1,$M$12:$M$501)),$B$40,IF(M48=MIN(IF($M$12:$M$501>=$O$1+14,$M$12:$M$501)),$B$41,IF(M48=MIN(IF($M$12:$M$501>=$O$1+28,$M$12:$M$501)),$B$42,""))) ->  | BQ48: =IF(G48<>G47,IF(BP48>=2,IF(MAX(IF($G$12:$G$503=G48,$BO$12:$BO$503))<$B$30,BP48,1),BP48),"") ->  | BR48: =IF(G48<>G47,IF(BP48>=2,IF(MAX(IF($G$12:$G$503=G48,$BO$12:$BO$503))<$B$31,BP48,1),BP48),"") ->  | BT48: =IF(MAX(IF($G$12:G48=G48,$BO$12:BO48))<$B$30,COUNTIFS($BO$12:BO48,">"&$B$56,$G$12:G48,G48),0) -> 0 | CY48: =IF(G48<>"",MAX(IF($I$11:I47<>$B$14,$M$11:M47)),"") ->  | CZ48: =IF(CX48<>"",IF(CX48=0,0,IF(G48<>G47,0,IFERROR(INDEX($CZ$11:CZ47, MATCH(MAX($CY$11:CY47), $M$11:M47, 0))+1,1))),"") ->  | DB48: =IF(DA48<>"",IF(DA48=0,0,IF(G48<>G47,0,IFERROR(INDEX($DB$11:DB47, MATCH(MAX($CY$11:CY47), $M$11:M47, 0))+1,1))),"") ->  | DK48: =IF(G47<>G48,MAX(IF($G$12:$G$503=G48,$DI$12:$DI$503)),"") -> 
B49: 30 | D49: 休憩30分 | L49: 2024-08-28 | Q49: 2024-08-28 | X49: =IF(M49=MIN(IF($M$12:$M$501>=$O$1,$M$12:$M$501)),$B$40,IF(M49=MIN(IF($M$12:$M$501>=$O$1+7,$M$12:$M$501)),$B$41,IF(M49=MIN(IF($M$12:$M$501>=$O$1+14,$M$12:$M$501)),$B$42,IF(M49=MIN(IF($M$12:$M$501>=$O$1+21,$M$12:$M$501)),$B$43,IF(M49=MIN(IF($M$12:$M$501>=$O$1+28,$M$12:$M$501)),$B$44,""))))) ->  | Y49: =IF(M49=MIN(IF($M$12:$M$501>=$O$1,$M$12:$M$501)),$B$40,IF(M49=MIN(IF($M$12:$M$501>=$O$1+14,$M$12:$M$501)),$B$41,IF(M49=MIN(IF($M$12:$M$501>=$O$1+28,$M$12:$M$501)),$B$42,""))) ->  | BQ49: =IF(G49<>G48,IF(BP49>=2,IF(MAX(IF($G$12:$G$503=G49,$BO$12:$BO$503))<$B$30,BP49,1),BP49),"") ->  | BR49: =IF(G49<>G48,IF(BP49>=2,IF(MAX(IF($G$12:$G$503=G49,$BO$12:$BO$503))<$B$31,BP49,1),BP49),"") ->  | BT49: =IF(MAX(IF($G$12:G49=G49,$BO$12:BO49))<$B$30,COUNTIFS($BO$12:BO49,">"&$B$56,$G$12:G49,G49),0) -> 0 | CY49: =IF(G49<>"",MAX(IF($I$11:I48<>$B$14,$M$11:M48)),"") ->  | CZ49: =IF(CX49<>"",IF(CX49=0,0,IF(G49<>G48,0,IFERROR(INDEX($CZ$11:CZ48, MATCH(MAX($CY$11:CY48), $M$11:M48, 0))+1,1))),"") ->  | DB49: =IF(DA49<>"",IF(DA49=0,0,IF(G49<>G48,0,IFERROR(INDEX($DB$11:DB48, MATCH(MAX($CY$11:CY48), $M$11:M48, 0))+1,1))),"") ->  | DK49: =IF(G48<>G49,MAX(IF($G$12:$G$503=G49,$DI$12:$DI$503)),"") -> 
B50: 10 | C50: 0.006944444444 | D50: 10分チェック | L50: 2024-08-28 | Q50: 2024-08-28 | X50: =IF(M50=MIN(IF($M$12:$M$501>=$O$1,$M$12:$M$501)),$B$40,IF(M50=MIN(IF($M$12:$M$501>=$O$1+7,$M$12:$M$501)),$B$41,IF(M50=MIN(IF($M$12:$M$501>=$O$1+14,$M$12:$M$501)),$B$42,IF(M50=MIN(IF($M$12:$M$501>=$O$1+21,$M$12:$M$501)),$B$43,IF(M50=MIN(IF($M$12:$M$501>=$O$1+28,$M$12:$M$501)),$B$44,""))))) ->  | Y50: =IF(M50=MIN(IF($M$12:$M$501>=$O$1,$M$12:$M$501)),$B$40,IF(M50=MIN(IF($M$12:$M$501>=$O$1+14,$M$12:$M$501)),$B$41,IF(M50=MIN(IF($M$12:$M$501>=$O$1+28,$M$12:$M$501)),$B$42,""))) ->  | BQ50: =IF(G50<>G49,IF(BP50>=2,IF(MAX(IF($G$12:$G$503=G50,$BO$12:$BO$503))<$B$30,BP50,1),BP50),"") ->  | BR50: =IF(G50<>G49,IF(BP50>=2,IF(MAX(IF($G$12:$G$503=G50,$BO$12:$BO$503))<$B$31,BP50,1),BP50),"") ->  | BT50: =IF(MAX(IF($G$12:G50=G50,$BO$12:BO50))<$B$30,COUNTIFS($BO$12:BO50,">"&$B$56,$G$12:G50,G50),0) -> 0 | CY50: =IF(G50<>"",MAX(IF($I$11:I49<>$B$14,$M$11:M49)),"") ->  | CZ50: =IF(CX50<>"",IF(CX50=0,0,IF(G50<>G49,0,IFERROR(INDEX($CZ$11:CZ49, MATCH(MAX($CY$11:CY49), $M$11:M49, 0))+1,1))),"") ->  | DB50: =IF(DA50<>"",IF(DA50=0,0,IF(G50<>G49,0,IFERROR(INDEX($DB$11:DB49, MATCH(MAX($CY$11:CY49), $M$11:M49, 0))+1,1))),"") ->  | DK50: =IF(G49<>G50,MAX(IF($G$12:$G$503=G50,$DI$12:$DI$503)),"") -> 
L51: 2024-08-28 | Q51: 2024-08-28 | X51: =IF(M51=MIN(IF($M$12:$M$501>=$O$1,$M$12:$M$501)),$B$40,IF(M51=MIN(IF($M$12:$M$501>=$O$1+7,$M$12:$M$501)),$B$41,IF(M51=MIN(IF($M$12:$M$501>=$O$1+14,$M$12:$M$501)),$B$42,IF(M51=MIN(IF($M$12:$M$501>=$O$1+21,$M$12:$M$501)),$B$43,IF(M51=MIN(IF($M$12:$M$501>=$O$1+28,$M$12:$M$501)),$B$44,""))))) ->  | Y51: =IF(M51=MIN(IF($M$12:$M$501>=$O$1,$M$12:$M$501)),$B$40,IF(M51=MIN(IF($M$12:$M$501>=$O$1+14,$M$12:$M$501)),$B$41,IF(M51=MIN(IF($M$12:$M$501>=$O$1+28,$M$12:$M$501)),$B$42,""))) ->  | BQ51: =IF(G51<>G50,IF(BP51>=2,IF(MAX(IF($G$12:$G$503=G51,$BO$12:$BO$503))<$B$30,BP51,1),BP51),"") ->  | BR51: =IF(G51<>G50,IF(BP51>=2,IF(MAX(IF($G$12:$G$503=G51,$BO$12:$BO$503))<$B$31,BP51,1),BP51),"") ->  | BT51: =IF(MAX(IF($G$12:G51=G51,$BO$12:BO51))<$B$30,COUNTIFS($BO$12:BO51,">"&$B$56,$G$12:G51,G51),0) -> 0 | CY51: =IF(G51<>"",MAX(IF($I$11:I50<>$B$14,$M$11:M50)),"") ->  | CZ51: =IF(CX51<>"",IF(CX51=0,0,IF(G51<>G50,0,IFERROR(INDEX($CZ$11:CZ50, MATCH(MAX($CY$11:CY50), $M$11:M50, 0))+1,1))),"") ->  | DB51: =IF(DA51<>"",IF(DA51=0,0,IF(G51<>G50,0,IFERROR(INDEX($DB$11:DB50, MATCH(MAX($CY$11:CY50), $M$11:M50, 0))+1,1))),"") ->  | DK51: =IF(G50<>G51,MAX(IF($G$12:$G$503=G51,$DI$12:$DI$503)),"") -> 
A52: 特例(分割) | B52: 180 | C52: 0.125 | D52: 分割休息3時間 | L52: 2024-08-28 | Q52: 2024-08-28 | T52: =IF(S52<>"",S52/1440,"") ->  | X52: =IF(M52=MIN(IF($M$12:$M$501>=$O$1,$M$12:$M$501)),$B$40,IF(M52=MIN(IF($M$12:$M$501>=$O$1+7,$M$12:$M$501)),$B$41,IF(M52=MIN(IF($M$12:$M$501>=$O$1+14,$M$12:$M$501)),$B$42,IF(M52=MIN(IF($M$12:$M$501>=$O$1+21,$M$12:$M$501)),$B$43,IF(M52=MIN(IF($M$12:$M$501>=$O$1+28,$M$12:$M$501)),$B$44,""))))) ->  | Y52: =IF(M52=MIN(IF($M$12:$M$501>=$O$1,$M$12:$M$501)),$B$40,IF(M52=MIN(IF($M$12:$M$501>=$O$1+14,$M$12:$M$501)),$B$41,IF(M52=MIN(IF($M$12:$M$501>=$O$1+28,$M$12:$M$501)),$B$42,""))) ->  | BQ52: =IF(G52<>G51,IF(BP52>=2,IF(MAX(IF($G$12:$G$503=G52,$BO$12:$BO$503))<$B$30,BP52,1),BP52),"") ->  | BR52: =IF(G52<>G51,IF(BP52>=2,IF(MAX(IF($G$12:$G$503=G52,$BO$12:$BO$503))<$B$31,BP52,1),BP52),"") ->  | BT52: =IF(MAX(IF($G$12:G52=G52,$BO$12:BO52))<$B$30,COUNTIFS($BO$12:BO52,">"&$B$56,$G$12:G52,G52),0) -> 0 | CY52: =IF(G52<>"",MAX(IF($I$11:I51<>$B$14,$M$11:M51)),"") ->  | CZ52: =IF(CX52<>"",IF(CX52=0,0,IF(G52<>G51,0,IFERROR(INDEX($CZ$11:CZ51, MATCH(MAX($CY$11:CY51), $M$11:M51, 0))+1,1))),"") ->  | DB52: =IF(DA52<>"",IF(DA52=0,0,IF(G52<>G51,0,IFERROR(INDEX($DB$11:DB51, MATCH(MAX($CY$11:CY51), $M$11:M51, 0))+1,1))),"") ->  | DK52: =IF(G51<>G52,MAX(IF($G$12:$G$503=G52,$DI$12:$DI$503)),"") -> 
B53: 600 | C53: 0.4166666667 | D53: 2分割10時間 | L53: 2024-08-28 | Q53: 2024-08-28 | T53: =IF(S53<>"",S53/1440,"") ->  | X53: =IF(M53=MIN(IF($M$12:$M$501>=$O$1,$M$12:$M$501)),$B$40,IF(M53=MIN(IF($M$12:$M$501>=$O$1+7,$M$12:$M$501)),$B$41,IF(M53=MIN(IF($M$12:$M$501>=$O$1+14,$M$12:$M$501)),$B$42,IF(M53=MIN(IF($M$12:$M$501>=$O$1+21,$M$12:$M$501)),$B$43,IF(M53=MIN(IF($M$12:$M$501>=$O$1+28,$M$12:$M$501)),$B$44,""))))) ->  | Y53: =IF(M53=MIN(IF($M$12:$M$501>=$O$1,$M$12:$M$501)),$B$40,IF(M53=MIN(IF($M$12:$M$501>=$O$1+14,$M$12:$M$501)),$B$41,IF(M53=MIN(IF($M$12:$M$501>=$O$1+28,$M$12:$M$501)),$B$42,""))) ->  | BQ53: =IF(G53<>G52,IF(BP53>=2,IF(MAX(IF($G$12:$G$503=G53,$BO$12:$BO$503))<$B$30,BP53,1),BP53),"") ->  | BR53: =IF(G53<>G52,IF(BP53>=2,IF(MAX(IF($G$12:$G$503=G53,$BO$12:$BO$503))<$B$31,BP53,1),BP53),"") ->  | BT53: =IF(MAX(IF($G$12:G53=G53,$BO$12:BO53))<$B$30,COUNTIFS($BO$12:BO53,">"&$B$56,$G$12:G53,G53),0) -> 0 | CY53: =IF(G53<>"",MAX(IF($I$11:I52<>$B$14,$M$11:M52)),"") ->  | CZ53: =IF(CX53<>"",IF(CX53=0,0,IF(G53<>G52,0,IFERROR(INDEX($CZ$11:CZ52, MATCH(MAX($CY$11:CY52), $M$11:M52, 0))+1,1))),"") ->  | DB53: =IF(DA53<>"",IF(DA53=0,0,IF(G53<>G52,0,IFERROR(INDEX($DB$11:DB52, MATCH(MAX($CY$11:CY52), $M$11:M52, 0))+1,1))),"") ->  | DK53: =IF(G52<>G53,MAX(IF($G$12:$G$503=G53,$DI$12:$DI$503)),"") -> 
B54: 720 | C54: 0.5 | D54: 3分割12時間 | L54: 2024-08-28 | Q54: 2024-08-28 | X54: =IF(M54=MIN(IF($M$12:$M$501>=$O$1,$M$12:$M$501)),$B$40,IF(M54=MIN(IF($M$12:$M$501>=$O$1+7,$M$12:$M$501)),$B$41,IF(M54=MIN(IF($M$12:$M$501>=$O$1+14,$M$12:$M$501)),$B$42,IF(M54=MIN(IF($M$12:$M$501>=$O$1+21,$M$12:$M$501)),$B$43,IF(M54=MIN(IF($M$12:$M$501>=$O$1+28,$M$12:$M$501)),$B$44,""))))) ->  | Y54: =IF(M54=MIN(IF($M$12:$M$501>=$O$1,$M$12:$M$501)),$B$40,IF(M54=MIN(IF($M$12:$M$501>=$O$1+14,$M$12:$M$501)),$B$41,IF(M54=MIN(IF($M$12:$M$501>=$O$1+28,$M$12:$M$501)),$B$42,""))) ->  | BQ54: =IF(G54<>G53,IF(BP54>=2,IF(MAX(IF($G$12:$G$503=G54,$BO$12:$BO$503))<$B$30,BP54,1),BP54),"") ->  | BR54: =IF(G54<>G53,IF(BP54>=2,IF(MAX(IF($G$12:$G$503=G54,$BO$12:$BO$503))<$B$31,BP54,1),BP54),"") ->  | BT54: =IF(MAX(IF($G$12:G54=G54,$BO$12:BO54))<$B$30,COUNTIFS($BO$12:BO54,">"&$B$56,$G$12:G54,G54),0) -> 0 | CY54: =IF(G54<>"",MAX(IF($I$11:I53<>$B$14,$M$11:M53)),"") ->  | CZ54: =IF(CX54<>"",IF(CX54=0,0,IF(G54<>G53,0,IFERROR(INDEX($CZ$11:CZ53, MATCH(MAX($CY$11:CY53), $M$11:M53, 0))+1,1))),"") ->  | DB54: =IF(DA54<>"",IF(DA54=0,0,IF(G54<>G53,0,IFERROR(INDEX($DB$11:DB53, MATCH(MAX($CY$11:CY53), $M$11:M53, 0))+1,1))),"") ->  | DK54: =IF(G53<>G54,MAX(IF($G$12:$G$503=G54,$DI$12:$DI$503)),"") -> 
B55: 1 | D55: 休息の数が1より大きい時、分割 | L55: 2024-08-28 | Q55: 2024-08-28 | X55: =IF(M55=MIN(IF($M$12:$M$501>=$O$1,$M$12:$M$501)),$B$40,IF(M55=MIN(IF($M$12:$M$501>=$O$1+7,$M$12:$M$501)),$B$41,IF(M55=MIN(IF($M$12:$M$501>=$O$1+14,$M$12:$M$501)),$B$42,IF(M55=MIN(IF($M$12:$M$501>=$O$1+21,$M$12:$M$501)),$B$43,IF(M55=MIN(IF($M$12:$M$501>=$O$1+28,$M$12:$M$501)),$B$44,""))))) ->  | Y55: =IF(M55=MIN(IF($M$12:$M$501>=$O$1,$M$12:$M$501)),$B$40,IF(M55=MIN(IF($M$12:$M$501>=$O$1+14,$M$12:$M$501)),$B$41,IF(M55=MIN(IF($M$12:$M$501>=$O$1+28,$M$12:$M$501)),$B$42,""))) ->  | BQ55: =IF(G55<>G54,IF(BP55>=2,IF(MAX(IF($G$12:$G$503=G55,$BO$12:$BO$503))<$B$30,BP55,1),BP55),"") ->  | BR55: =IF(G55<>G54,IF(BP55>=2,IF(MAX(IF($G$12:$G$503=G55,$BO$12:$BO$503))<$B$31,BP55,1),BP55),"") ->  | BT55: =IF(MAX(IF($G$12:G55=G55,$BO$12:BO55))<$B$30,COUNTIFS($BO$12:BO55,">"&$B$56,$G$12:G55,G55),0) -> 0 | CY55: =IF(G55<>"",MAX(IF($I$11:I54<>$B$14,$M$11:M54)),"") ->  | CZ55: =IF(CX55<>"",IF(CX55=0,0,IF(G55<>G54,0,IFERROR(INDEX($CZ$11:CZ54, MATCH(MAX($CY$11:CY54), $M$11:M54, 0))+1,1))),"") ->  | DB55: =IF(DA55<>"",IF(DA55=0,0,IF(G55<>G54,0,IFERROR(INDEX($DB$11:DB54, MATCH(MAX($CY$11:CY54), $M$11:M54, 0))+1,1))),"") ->  | DK55: =IF(G54<>G55,MAX(IF($G$12:$G$503=G55,$DI$12:$DI$503)),"") -> 
B56: 0 | D56: 分割休息0以上(値あるかないか) | L56: 2024-08-28 | Q56: 2024-08-28 | X56: =IF(M56=MIN(IF($M$12:$M$501>=$O$1,$M$12:$M$501)),$B$40,IF(M56=MIN(IF($M$12:$M$501>=$O$1+7,$M$12:$M$501)),$B$41,IF(M56=MIN(IF($M$12:$M$501>=$O$1+14,$M$12:$M$501)),$B$42,IF(M56=MIN(IF($M$12:$M$501>=$O$1+21,$M$12:$M$501)),$B$43,IF(M56=MIN(IF($M$12:$M$501>=$O$1+28,$M$12:$M$501)),$B$44,""))))) ->  | Y56: =IF(M56=MIN(IF($M$12:$M$501>=$O$1,$M$12:$M$501)),$B$40,IF(M56=MIN(IF($M$12:$M$501>=$O$1+14,$M$12:$M$501)),$B$41,IF(M56=MIN(IF($M$12:$M$501>=$O$1+28,$M$12:$M$501)),$B$42,""))) ->  | BQ56: =IF(G56<>G55,IF(BP56>=2,IF(MAX(IF($G$12:$G$503=G56,$BO$12:$BO$503))<$B$30,BP56,1),BP56),"") ->  | BR56: =IF(G56<>G55,IF(BP56>=2,IF(MAX(IF($G$12:$G$503=G56,$BO$12:$BO$503))<$B$31,BP56,1),BP56),"") ->  | BT56: =IF(MAX(IF($G$12:G56=G56,$BO$12:BO56))<$B$30,COUNTIFS($BO$12:BO56,">"&$B$56,$G$12:G56,G56),0) -> 0 | CY56: =IF(G56<>"",MAX(IF($I$11:I55<>$B$14,$M$11:M55)),"") ->  | CZ56: =IF(CX56<>"",IF(CX56=0,0,IF(G56<>G55,0,IFERROR(INDEX($CZ$11:CZ55, MATCH(MAX($CY$11:CY55), $M$11:M55, 0))+1,1))),"") ->  | DB56: =IF(DA56<>"",IF(DA56=0,0,IF(G56<>G55,0,IFERROR(INDEX($DB$11:DB55, MATCH(MAX($CY$11:CY55), $M$11:M55, 0))+1,1))),"") ->  | DK56: =IF(G55<>G56,MAX(IF($G$12:$G$503=G56,$DI$12:$DI$503)),"") -> 
B57: 4 | D57: 4分割目以降は切り捨て | J57: =IF(OR(I57=$B$17, I57=$B$18),IF(S57<$B$52,1,""),"") ->  | K57: =IFERROR(VLOOKUP(I57,$B$14:$C$18,2,FALSE),"") ->  | L57: =IF(O57<>"",O57,L56) -> 2024-08-28 | Q57: 2024-08-28 | X57: =IF(M57=MIN(IF($M$12:$M$501>=$O$1,$M$12:$M$501)),$B$40,IF(M57=MIN(IF($M$12:$M$501>=$O$1+7,$M$12:$M$501)),$B$41,IF(M57=MIN(IF($M$12:$M$501>=$O$1+14,$M$12:$M$501)),$B$42,IF(M57=MIN(IF($M$12:$M$501>=$O$1+21,$M$12:$M$501)),$B$43,IF(M57=MIN(IF($M$12:$M$501>=$O$1+28,$M$12:$M$501)),$B$44,""))))) ->  | Y57: =IF(M57=MIN(IF($M$12:$M$501>=$O$1,$M$12:$M$501)),$B$40,IF(M57=MIN(IF($M$12:$M$501>=$O$1+14,$M$12:$M$501)),$B$41,IF(M57=MIN(IF($M$12:$M$501>=$O$1+28,$M$12:$M$501)),$B$42,""))) ->  | BQ57: =IF(G57<>G56,IF(BP57>=2,IF(MAX(IF($G$12:$G$503=G57,$BO$12:$BO$503))<$B$30,BP57,1),BP57),"") ->  | BR57: =IF(G57<>G56,IF(BP57>=2,IF(MAX(IF($G$12:$G$503=G57,$BO$12:$BO$503))<$B$31,BP57,1),BP57),"") ->  | BT57: =IF(MAX(IF($G$12:G57=G57,$BO$12:BO57))<$B$30,COUNTIFS($BO$12:BO57,">"&$B$56,$G$12:G57,G57),0) -> 0 | CY57: =IF(G57<>"",MAX(IF($I$11:I56<>$B$14,$M$11:M56)),"") ->  | CZ57: =IF(CX57<>"",IF(CX57=0,0,IF(G57<>G56,0,IFERROR(INDEX($CZ$11:CZ56, MATCH(MAX($CY$11:CY56), $M$11:M56, 0))+1,1))),"") ->  | DB57: =IF(DA57<>"",IF(DA57=0,0,IF(G57<>G56,0,IFERROR(INDEX($DB$11:DB56, MATCH(MAX($CY$11:CY56), $M$11:M56, 0))+1,1))),"") ->  | DK57: =IF(G56<>G57,MAX(IF($G$12:$G$503=G57,$DI$12:$DI$503)),"") -> 
B58: 2 | D58: 2分割以上のとき(分割の時) | L58: =IF(O58<>"",O58,L57) -> 2024-08-28 | Q58: 2024-08-28 | X58: =IF(M58=MIN(IF($M$12:$M$501>=$O$1,$M$12:$M$501)),$B$40,IF(M58=MIN(IF($M$12:$M$501>=$O$1+7,$M$12:$M$501)),$B$41,IF(M58=MIN(IF($M$12:$M$501>=$O$1+14,$M$12:$M$501)),$B$42,IF(M58=MIN(IF($M$12:$M$501>=$O$1+21,$M$12:$M$501)),$B$43,IF(M58=MIN(IF($M$12:$M$501>=$O$1+28,$M$12:$M$501)),$B$44,""))))) ->  | Y58: =IF(M58=MIN(IF($M$12:$M$501>=$O$1,$M$12:$M$501)),$B$40,IF(M58=MIN(IF($M$12:$M$501>=$O$1+14,$M$12:$M$501)),$B$41,IF(M58=MIN(IF($M$12:$M$501>=$O$1+28,$M$12:$M$501)),$B$42,""))) ->  | BQ58: =IF(G58<>G57,IF(BP58>=2,IF(MAX(IF($G$12:$G$503=G58,$BO$12:$BO$503))<$B$30,BP58,1),BP58),"") ->  | BR58: =IF(G58<>G57,IF(BP58>=2,IF(MAX(IF($G$12:$G$503=G58,$BO$12:$BO$503))<$B$31,BP58,1),BP58),"") ->  | BT58: =IF(MAX(IF($G$12:G58=G58,$BO$12:BO58))<$B$30,COUNTIFS($BO$12:BO58,">"&$B$56,$G$12:G58,G58),0) -> 0 | CY58: =IF(G58<>"",MAX(IF($I$11:I57<>$B$14,$M$11:M57)),"") ->  | CZ58: =IF(CX58<>"",IF(CX58=0,0,IF(G58<>G57,0,IFERROR(INDEX($CZ$11:CZ57, MATCH(MAX($CY$11:CY57), $M$11:M57, 0))+1,1))),"") ->  | DB58: =IF(DA58<>"",IF(DA58=0,0,IF(G58<>G57,0,IFERROR(INDEX($DB$11:DB57, MATCH(MAX($CY$11:CY57), $M$11:M57, 0))+1,1))),"") ->  | DK58: =IF(G57<>G58,MAX(IF($G$12:$G$503=G58,$DI$12:$DI$503)),"") -> 
L59: =IF(O59<>"",O59,L58) -> 2024-08-28 | Q59: 2024-08-28 | X59: =IF(M59=MIN(IF($M$12:$M$501>=$O$1,$M$12:$M$501)),$B$40,IF(M59=MIN(IF($M$12:$M$501>=$O$1+7,$M$12:$M$501)),$B$41,IF(M59=MIN(IF($M$12:$M$501>=$O$1+14,$M$12:$M$501)),$B$42,IF(M59=MIN(IF($M$12:$M$501>=$O$1+21,$M$12:$M$501)),$B$43,IF(M59=MIN(IF($M$12:$M$501>=$O$1+28,$M$12:$M$501)),$B$44,""))))) ->  | Y59: =IF(M59=MIN(IF($M$12:$M$501>=$O$1,$M$12:$M$501)),$B$40,IF(M59=MIN(IF($M$12:$M$501>=$O$1+14,$M$12:$M$501)),$B$41,IF(M59=MIN(IF($M$12:$M$501>=$O$1+28,$M$12:$M$501)),$B$42,""))) ->  | BQ59: =IF(G59<>G58,IF(BP59>=2,IF(MAX(IF($G$12:$G$503=G59,$BO$12:$BO$503))<$B$30,BP59,1),BP59),"") ->  | BR59: =IF(G59<>G58,IF(BP59>=2,IF(MAX(IF($G$12:$G$503=G59,$BO$12:$BO$503))<$B$31,BP59,1),BP59),"") ->  | BT59: =IF(MAX(IF($G$12:G59=G59,$BO$12:BO59))<$B$30,COUNTIFS($BO$12:BO59,">"&$B$56,$G$12:G59,G59),0) -> 0 | CY59: =IF(G59<>"",MAX(IF($I$11:I58<>$B$14,$M$11:M58)),"") ->  | CZ59: =IF(CX59<>"",IF(CX59=0,0,IF(G59<>G58,0,IFERROR(INDEX($CZ$11:CZ58, MATCH(MAX($CY$11:CY58), $M$11:M58, 0))+1,1))),"") ->  | DB59: =IF(DA59<>"",IF(DA59=0,0,IF(G59<>G58,0,IFERROR(INDEX($DB$11:DB58, MATCH(MAX($CY$11:CY58), $M$11:M58, 0))+1,1))),"") ->  | DK59: =IF(G58<>G59,MAX(IF($G$12:$G$503=G59,$DI$12:$DI$503)),"") -> 
A60: その他(6.2) | B60: =60*33 -> 1980 | C60: 1.375 | D60: 休息時間33時間 | L60: 2024-08-28 | Q60: 2024-08-28 | X60: =IF(M60=MIN(IF($M$12:$M$501>=$O$1,$M$12:$M$501)),$B$40,IF(M60=MIN(IF($M$12:$M$501>=$O$1+7,$M$12:$M$501)),$B$41,IF(M60=MIN(IF($M$12:$M$501>=$O$1+14,$M$12:$M$501)),$B$42,IF(M60=MIN(IF($M$12:$M$501>=$O$1+21,$M$12:$M$501)),$B$43,IF(M60=MIN(IF($M$12:$M$501>=$O$1+28,$M$12:$M$501)),$B$44,""))))) ->  | Y60: =IF(M60=MIN(IF($M$12:$M$501>=$O$1,$M$12:$M$501)),$B$40,IF(M60=MIN(IF($M$12:$M$501>=$O$1+14,$M$12:$M$501)),$B$41,IF(M60=MIN(IF($M$12:$M$501>=$O$1+28,$M$12:$M$501)),$B$42,""))) ->  | BQ60: =IF(G60<>G59,IF(BP60>=2,IF(MAX(IF($G$12:$G$503=G60,$BO$12:$BO$503))<$B$30,BP60,1),BP60),"") ->  | BR60: =IF(G60<>G59,IF(BP60>=2,IF(MAX(IF($G$12:$G$503=G60,$BO$12:$BO$503))<$B$31,BP60,1),BP60),"") ->  | BT60: =IF(MAX(IF($G$12:G60=G60,$BO$12:BO60))<$B$30,COUNTIFS($BO$12:BO60,">"&$B$56,$G$12:G60,G60),0) -> 0 | CY60: =IF(G60<>"",MAX(IF($I$11:I59<>$B$14,$M$11:M59)),"") ->  | CZ60: =IF(CX60<>"",IF(CX60=0,0,IF(G60<>G59,0,IFERROR(INDEX($CZ$11:CZ59, MATCH(MAX($CY$11:CY59), $M$11:M59, 0))+1,1))),"") ->  | DB60: =IF(DA60<>"",IF(DA60=0,0,IF(G60<>G59,0,IFERROR(INDEX($DB$11:DB59, MATCH(MAX($CY$11:CY59), $M$11:M59, 0))+1,1))),"") ->  | DK60: =IF(G59<>G60,MAX(IF($G$12:$G$503=G60,$DI$12:$DI$503)),"") -> 
L61: 2024-08-28 | Q61: 2024-08-28 | X61: =IF(M61=MIN(IF($M$12:$M$501>=$O$1,$M$12:$M$501)),$B$40,IF(M61=MIN(IF($M$12:$M$501>=$O$1+7,$M$12:$M$501)),$B$41,IF(M61=MIN(IF($M$12:$M$501>=$O$1+14,$M$12:$M$501)),$B$42,IF(M61=MIN(IF($M$12:$M$501>=$O$1+21,$M$12:$M$501)),$B$43,IF(M61=MIN(IF($M$12:$M$501>=$O$1+28,$M$12:$M$501)),$B$44,""))))) ->  | Y61: =IF(M61=MIN(IF($M$12:$M$501>=$O$1,$M$12:$M$501)),$B$40,IF(M61=MIN(IF($M$12:$M$501>=$O$1+14,$M$12:$M$501)),$B$41,IF(M61=MIN(IF($M$12:$M$501>=$O$1+28,$M$12:$M$501)),$B$42,""))) ->  | BQ61: =IF(G61<>G60,IF(BP61>=2,IF(MAX(IF($G$12:$G$503=G61,$BO$12:$BO$503))<$B$30,BP61,1),BP61),"") ->  | BR61: =IF(G61<>G60,IF(BP61>=2,IF(MAX(IF($G$12:$G$503=G61,$BO$12:$BO$503))<$B$31,BP61,1),BP61),"") ->  | BT61: =IF(MAX(IF($G$12:G61=G61,$BO$12:BO61))<$B$30,COUNTIFS($BO$12:BO61,">"&$B$56,$G$12:G61,G61),0) -> 0 | CY61: =IF(G61<>"",MAX(IF($I$11:I60<>$B$14,$M$11:M60)),"") ->  | CZ61: =IF(CX61<>"",IF(CX61=0,0,IF(G61<>G60,0,IFERROR(INDEX($CZ$11:CZ60, MATCH(MAX($CY$11:CY60), $M$11:M60, 0))+1,1))),"") ->  | DB61: =IF(DA61<>"",IF(DA61=0,0,IF(G61<>G60,0,IFERROR(INDEX($DB$11:DB60, MATCH(MAX($CY$11:CY60), $M$11:M60, 0))+1,1))),"") ->  | DK61: =IF(G60<>G61,MAX(IF($G$12:$G$503=G61,$DI$12:$DI$503)),"") -> 
A62: 休日労働 | B62: 0 | C62: 出勤 | L62: 2024-08-28 | Q62: 2024-08-28 | X62: =IF(M62=MIN(IF($M$12:$M$501>=$O$1,$M$12:$M$501)),$B$40,IF(M62=MIN(IF($M$12:$M$501>=$O$1+7,$M$12:$M$501)),$B$41,IF(M62=MIN(IF($M$12:$M$501>=$O$1+14,$M$12:$M$501)),$B$42,IF(M62=MIN(IF($M$12:$M$501>=$O$1+21,$M$12:$M$501)),$B$43,IF(M62=MIN(IF($M$12:$M$501>=$O$1+28,$M$12:$M$501)),$B$44,""))))) ->  | Y62: =IF(M62=MIN(IF($M$12:$M$501>=$O$1,$M$12:$M$501)),$B$40,IF(M62=MIN(IF($M$12:$M$501>=$O$1+14,$M$12:$M$501)),$B$41,IF(M62=MIN(IF($M$12:$M$501>=$O$1+28,$M$12:$M$501)),$B$42,""))) ->  | BQ62: =IF(G62<>G61,IF(BP62>=2,IF(MAX(IF($G$12:$G$503=G62,$BO$12:$BO$503))<$B$30,BP62,1),BP62),"") ->  | BR62: =IF(G62<>G61,IF(BP62>=2,IF(MAX(IF($G$12:$G$503=G62,$BO$12:$BO$503))<$B$31,BP62,1),BP62),"") ->  | BT62: =IF(MAX(IF($G$12:G62=G62,$BO$12:BO62))<$B$30,COUNTIFS($BO$12:BO62,">"&$B$56,$G$12:G62,G62),0) -> 0 | CY62: =IF(G62<>"",MAX(IF($I$11:I61<>$B$14,$M$11:M61)),"") ->  | CZ62: =IF(CX62<>"",IF(CX62=0,0,IF(G62<>G61,0,IFERROR(INDEX($CZ$11:CZ61, MATCH(MAX($CY$11:CY61), $M$11:M61, 0))+1,1))),"") ->  | DB62: =IF(DA62<>"",IF(DA62=0,0,IF(G62<>G61,0,IFERROR(INDEX($DB$11:DB61, MATCH(MAX($CY$11:CY61), $M$11:M61, 0))+1,1))),"") ->  | DK62: =IF(G61<>G62,MAX(IF($G$12:$G$503=G62,$DI$12:$DI$503)),"") -> 
B63: 1 | C63: 休日出勤 | L63: 2024-08-28 | Q63: 2024-08-28 | X63: =IF(M63=MIN(IF($M$12:$M$501>=$O$1,$M$12:$M$501)),$B$40,IF(M63=MIN(IF($M$12:$M$501>=$O$1+7,$M$12:$M$501)),$B$41,IF(M63=MIN(IF($M$12:$M$501>=$O$1+14,$M$12:$M$501)),$B$42,IF(M63=MIN(IF($M$12:$M$501>=$O$1+21,$M$12:$M$501)),$B$43,IF(M63=MIN(IF($M$12:$M$501>=$O$1+28,$M$12:$M$501)),$B$44,""))))) ->  | Y63: =IF(M63=MIN(IF($M$12:$M$501>=$O$1,$M$12:$M$501)),$B$40,IF(M63=MIN(IF($M$12:$M$501>=$O$1+14,$M$12:$M$501)),$B$41,IF(M63=MIN(IF($M$12:$M$501>=$O$1+28,$M$12:$M$501)),$B$42,""))) ->  | BQ63: =IF(G63<>G62,IF(BP63>=2,IF(MAX(IF($G$12:$G$503=G63,$BO$12:$BO$503))<$B$30,BP63,1),BP63),"") ->  | BR63: =IF(G63<>G62,IF(BP63>=2,IF(MAX(IF($G$12:$G$503=G63,$BO$12:$BO$503))<$B$31,BP63,1),BP63),"") ->  | BT63: =IF(MAX(IF($G$12:G63=G63,$BO$12:BO63))<$B$30,COUNTIFS($BO$12:BO63,">"&$B$56,$G$12:G63,G63),0) -> 0 | CY63: =IF(G63<>"",MAX(IF($I$11:I62<>$B$14,$M$11:M62)),"") ->  | CZ63: =IF(CX63<>"",IF(CX63=0,0,IF(G63<>G62,0,IFERROR(INDEX($CZ$11:CZ62, MATCH(MAX($CY$11:CY62), $M$11:M62, 0))+1,1))),"") ->  | DB63: =IF(DA63<>"",IF(DA63=0,0,IF(G63<>G62,0,IFERROR(INDEX($DB$11:DB62, MATCH(MAX($CY$11:CY62), $M$11:M62, 0))+1,1))),"") ->  | DK63: =IF(G62<>G63,MAX(IF($G$12:$G$503=G63,$DI$12:$DI$503)),"") -> 
B64: 2 | C64: 休日フラグが2のとき | L64: 2024-08-28 | Q64: 2024-08-28 | X64: =IF(M64=MIN(IF($M$12:$M$501>=$O$1,$M$12:$M$501)),$B$40,IF(M64=MIN(IF($M$12:$M$501>=$O$1+7,$M$12:$M$501)),$B$41,IF(M64=MIN(IF($M$12:$M$501>=$O$1+14,$M$12:$M$501)),$B$42,IF(M64=MIN(IF($M$12:$M$501>=$O$1+21,$M$12:$M$501)),$B$43,IF(M64=MIN(IF($M$12:$M$501>=$O$1+28,$M$12:$M$501)),$B$44,""))))) ->  | Y64: =IF(M64=MIN(IF($M$12:$M$501>=$O$1,$M$12:$M$501)),$B$40,IF(M64=MIN(IF($M$12:$M$501>=$O$1+14,$M$12:$M$501)),$B$41,IF(M64=MIN(IF($M$12:$M$501>=$O$1+28,$M$12:$M$501)),$B$42,""))) ->  | BQ64: =IF(G64<>G63,IF(BP64>=2,IF(MAX(IF($G$12:$G$503=G64,$BO$12:$BO$503))<$B$30,BP64,1),BP64),"") ->  | BR64: =IF(G64<>G63,IF(BP64>=2,IF(MAX(IF($G$12:$G$503=G64,$BO$12:$BO$503))<$B$31,BP64,1),BP64),"") ->  | BT64: =IF(MAX(IF($G$12:G64=G64,$BO$12:BO64))<$B$30,COUNTIFS($BO$12:BO64,">"&$B$56,$G$12:G64,G64),0) -> 0 | CY64: =IF(G64<>"",MAX(IF($I$11:I63<>$B$14,$M$11:M63)),"") ->  | CZ64: =IF(CX64<>"",IF(CX64=0,0,IF(G64<>G63,0,IFERROR(INDEX($CZ$11:CZ63, MATCH(MAX($CY$11:CY63), $M$11:M63, 0))+1,1))),"") ->  | DB64: =IF(DA64<>"",IF(DA64=0,0,IF(G64<>G63,0,IFERROR(INDEX($DB$11:DB63, MATCH(MAX($CY$11:CY63), $M$11:M63, 0))+1,1))),"") ->  | DK64: =IF(G63<>G64,MAX(IF($G$12:$G$503=G64,$DI$12:$DI$503)),"") -> 
B65: 1 | C65: 宿泊フラグ | L65: 2024-08-28 | Q65: 2024-08-28 | X65: =IF(M65=MIN(IF($M$12:$M$501>=$O$1,$M$12:$M$501)),$B$40,IF(M65=MIN(IF($M$12:$M$501>=$O$1+7,$M$12:$M$501)),$B$41,IF(M65=MIN(IF($M$12:$M$501>=$O$1+14,$M$12:$M$501)),$B$42,IF(M65=MIN(IF($M$12:$M$501>=$O$1+21,$M$12:$M$501)),$B$43,IF(M65=MIN(IF($M$12:$M$501>=$O$1+28,$M$12:$M$501)),$B$44,""))))) ->  | Y65: =IF(M65=MIN(IF($M$12:$M$501>=$O$1,$M$12:$M$501)),$B$40,IF(M65=MIN(IF($M$12:$M$501>=$O$1+14,$M$12:$M$501)),$B$41,IF(M65=MIN(IF($M$12:$M$501>=$O$1+28,$M$12:$M$501)),$B$42,""))) ->  | BQ65: =IF(G65<>G64,IF(BP65>=2,IF(MAX(IF($G$12:$G$503=G65,$BO$12:$BO$503))<$B$30,BP65,1),BP65),"") ->  | BR65: =IF(G65<>G64,IF(BP65>=2,IF(MAX(IF($G$12:$G$503=G65,$BO$12:$BO$503))<$B$31,BP65,1),BP65),"") ->  | BT65: =IF(MAX(IF($G$12:G65=G65,$BO$12:BO65))<$B$30,COUNTIFS($BO$12:BO65,">"&$B$56,$G$12:G65,G65),0) -> 0 | CY65: =IF(G65<>"",MAX(IF($I$11:I64<>$B$14,$M$11:M64)),"") ->  | CZ65: =IF(CX65<>"",IF(CX65=0,0,IF(G65<>G64,0,IFERROR(INDEX($CZ$11:CZ64, MATCH(MAX($CY$11:CY64), $M$11:M64, 0))+1,1))),"") ->  | DB65: =IF(DA65<>"",IF(DA65=0,0,IF(G65<>G64,0,IFERROR(INDEX($DB$11:DB64, MATCH(MAX($CY$11:CY64), $M$11:M64, 0))+1,1))),"") ->  | DK65: =IF(G64<>G65,MAX(IF($G$12:$G$503=G65,$DI$12:$DI$503)),"") -> 
B66: 2 | C66: 2分割休息 | L66: 2024-08-28 | Q66: 2024-08-28 | X66: =IF(M66=MIN(IF($M$12:$M$501>=$O$1,$M$12:$M$501)),$B$40,IF(M66=MIN(IF($M$12:$M$501>=$O$1+7,$M$12:$M$501)),$B$41,IF(M66=MIN(IF($M$12:$M$501>=$O$1+14,$M$12:$M$501)),$B$42,IF(M66=MIN(IF($M$12:$M$501>=$O$1+21,$M$12:$M$501)),$B$43,IF(M66=MIN(IF($M$12:$M$501>=$O$1+28,$M$12:$M$501)),$B$44,""))))) ->  | Y66: =IF(M66=MIN(IF($M$12:$M$501>=$O$1,$M$12:$M$501)),$B$40,IF(M66=MIN(IF($M$12:$M$501>=$O$1+14,$M$12:$M$501)),$B$41,IF(M66=MIN(IF($M$12:$M$501>=$O$1+28,$M$12:$M$501)),$B$42,""))) ->  | BQ66: =IF(G66<>G65,IF(BP66>=2,IF(MAX(IF($G$12:$G$503=G66,$BO$12:$BO$503))<$B$30,BP66,1),BP66),"") ->  | BR66: =IF(G66<>G65,IF(BP66>=2,IF(MAX(IF($G$12:$G$503=G66,$BO$12:$BO$503))<$B$31,BP66,1),BP66),"") ->  | BT66: =IF(MAX(IF($G$12:G66=G66,$BO$12:BO66))<$B$30,COUNTIFS($BO$12:BO66,">"&$B$56,$G$12:G66,G66),0) -> 0 | CY66: =IF(G66<>"",MAX(IF($I$11:I65<>$B$14,$M$11:M65)),"") ->  | CZ66: =IF(CX66<>"",IF(CX66=0,0,IF(G66<>G65,0,IFERROR(INDEX($CZ$11:CZ65, MATCH(MAX($CY$11:CY65), $M$11:M65, 0))+1,1))),"") ->  | DB66: =IF(DA66<>"",IF(DA66=0,0,IF(G66<>G65,0,IFERROR(INDEX($DB$11:DB65, MATCH(MAX($CY$11:CY65), $M$11:M65, 0))+1,1))),"") ->  | DK66: =IF(G65<>G66,MAX(IF($G$12:$G$503=G66,$DI$12:$DI$503)),"") -> 
B67: 3 | C67: 3分割休息 | L67: 2024-08-28 | Q67: 2024-08-28 | X67: =IF(M67=MIN(IF($M$12:$M$501>=$O$1,$M$12:$M$501)),$B$40,IF(M67=MIN(IF($M$12:$M$501>=$O$1+7,$M$12:$M$501)),$B$41,IF(M67=MIN(IF($M$12:$M$501>=$O$1+14,$M$12:$M$501)),$B$42,IF(M67=MIN(IF($M$12:$M$501>=$O$1+21,$M$12:$M$501)),$B$43,IF(M67=MIN(IF($M$12:$M$501>=$O$1+28,$M$12:$M$501)),$B$44,""))))) ->  | Y67: =IF(M67=MIN(IF($M$12:$M$501>=$O$1,$M$12:$M$501)),$B$40,IF(M67=MIN(IF($M$12:$M$501>=$O$1+14,$M$12:$M$501)),$B$41,IF(M67=MIN(IF($M$12:$M$501>=$O$1+28,$M$12:$M$501)),$B$42,""))) ->  | BQ67: =IF(G67<>G66,IF(BP67>=2,IF(MAX(IF($G$12:$G$503=G67,$BO$12:$BO$503))<$B$30,BP67,1),BP67),"") ->  | BR67: =IF(G67<>G66,IF(BP67>=2,IF(MAX(IF($G$12:$G$503=G67,$BO$12:$BO$503))<$B$31,BP67,1),BP67),"") ->  | BT67: =IF(MAX(IF($G$12:G67=G67,$BO$12:BO67))<$B$30,COUNTIFS($BO$12:BO67,">"&$B$56,$G$12:G67,G67),0) -> 0 | CY67: =IF(G67<>"",MAX(IF($I$11:I66<>$B$14,$M$11:M66)),"") ->  | CZ67: =IF(CX67<>"",IF(CX67=0,0,IF(G67<>G66,0,IFERROR(INDEX($CZ$11:CZ66, MATCH(MAX($CY$11:CY66), $M$11:M66, 0))+1,1))),"") ->  | DB67: =IF(DA67<>"",IF(DA67=0,0,IF(G67<>G66,0,IFERROR(INDEX($DB$11:DB66, MATCH(MAX($CY$11:CY66), $M$11:M66, 0))+1,1))),"") ->  | DK67: =IF(G66<>G67,MAX(IF($G$12:$G$503=G67,$DI$12:$DI$503)),"") -> 
L68: 2024-08-28 | Q68: 2024-08-28 | X68: =IF(M68=MIN(IF($M$12:$M$501>=$O$1,$M$12:$M$501)),$B$40,IF(M68=MIN(IF($M$12:$M$501>=$O$1+7,$M$12:$M$501)),$B$41,IF(M68=MIN(IF($M$12:$M$501>=$O$1+14,$M$12:$M$501)),$B$42,IF(M68=MIN(IF($M$12:$M$501>=$O$1+21,$M$12:$M$501)),$B$43,IF(M68=MIN(IF($M$12:$M$501>=$O$1+28,$M$12:$M$501)),$B$44,""))))) ->  | Y68: =IF(M68=MIN(IF($M$12:$M$501>=$O$1,$M$12:$M$501)),$B$40,IF(M68=MIN(IF($M$12:$M$501>=$O$1+14,$M$12:$M$501)),$B$41,IF(M68=MIN(IF($M$12:$M$501>=$O$1+28,$M$12:$M$501)),$B$42,""))) ->  | BQ68: =IF(G68<>G67,IF(BP68>=2,IF(MAX(IF($G$12:$G$503=G68,$BO$12:$BO$503))<$B$30,BP68,1),BP68),"") ->  | BR68: =IF(G68<>G67,IF(BP68>=2,IF(MAX(IF($G$12:$G$503=G68,$BO$12:$BO$503))<$B$31,BP68,1),BP68),"") ->  | BT68: =IF(MAX(IF($G$12:G68=G68,$BO$12:BO68))<$B$30,COUNTIFS($BO$12:BO68,">"&$B$56,$G$12:G68,G68),0) -> 0 | CY68: =IF(G68<>"",MAX(IF($I$11:I67<>$B$14,$M$11:M67)),"") ->  | CZ68: =IF(CX68<>"",IF(CX68=0,0,IF(G68<>G67,0,IFERROR(INDEX($CZ$11:CZ67, MATCH(MAX($CY$11:CY67), $M$11:M67, 0))+1,1))),"") ->  | DB68: =IF(DA68<>"",IF(DA68=0,0,IF(G68<>G67,0,IFERROR(INDEX($DB$11:DB67, MATCH(MAX($CY$11:CY67), $M$11:M67, 0))+1,1))),"") ->  | DK68: =IF(G67<>G68,MAX(IF($G$12:$G$503=G68,$DI$12:$DI$503)),"") -> 
A69: 複数 | B69: 7 | C69: 1週間(+7) | L69: =IF(O69<>"",O69,L68) -> 2024-08-28 | M69: =IF(I69>=1,Q68,"") ->  | Q69: 2024-08-28 | X69: =IF(M69=MIN(IF($M$12:$M$501>=$O$1,$M$12:$M$501)),$B$40,IF(M69=MIN(IF($M$12:$M$501>=$O$1+7,$M$12:$M$501)),$B$41,IF(M69=MIN(IF($M$12:$M$501>=$O$1+14,$M$12:$M$501)),$B$42,IF(M69=MIN(IF($M$12:$M$501>=$O$1+21,$M$12:$M$501)),$B$43,IF(M69=MIN(IF($M$12:$M$501>=$O$1+28,$M$12:$M$501)),$B$44,""))))) ->  | Y69: =IF(M69=MIN(IF($M$12:$M$501>=$O$1,$M$12:$M$501)),$B$40,IF(M69=MIN(IF($M$12:$M$501>=$O$1+14,$M$12:$M$501)),$B$41,IF(M69=MIN(IF($M$12:$M$501>=$O$1+28,$M$12:$M$501)),$B$42,""))) ->  | BQ69: =IF(G69<>G68,IF(BP69>=2,IF(MAX(IF($G$12:$G$503=G69,$BO$12:$BO$503))<$B$30,BP69,1),BP69),"") ->  | BR69: =IF(G69<>G68,IF(BP69>=2,IF(MAX(IF($G$12:$G$503=G69,$BO$12:$BO$503))<$B$31,BP69,1),BP69),"") ->  | BT69: =IF(MAX(IF($G$12:G69=G69,$BO$12:BO69))<$B$30,COUNTIFS($BO$12:BO69,">"&$B$56,$G$12:G69,G69),0) -> 0 | CY69: =IF(G69<>"",MAX(IF($I$11:I68<>$B$14,$M$11:M68)),"") ->  | CZ69: =IF(CX69<>"",IF(CX69=0,0,IF(G69<>G68,0,IFERROR(INDEX($CZ$11:CZ68, MATCH(MAX($CY$11:CY68), $M$11:M68, 0))+1,1))),"") ->  | DB69: =IF(DA69<>"",IF(DA69=0,0,IF(G69<>G68,0,IFERROR(INDEX($DB$11:DB68, MATCH(MAX($CY$11:CY68), $M$11:M68, 0))+1,1))),"") ->  | DK69: =IF(G68<>G69,MAX(IF($G$12:$G$503=G69,$DI$12:$DI$503)),"") -> 
B70: 14 | C70: 2週間(+14) | L70: =IF(O70<>"",O70,L69) -> 2024-08-28 | M70: =IF(I70>=1,Q69,"") ->  | Q70: 2024-08-28 | X70: =IF(M70=MIN(IF($M$12:$M$501>=$O$1,$M$12:$M$501)),$B$40,IF(M70=MIN(IF($M$12:$M$501>=$O$1+7,$M$12:$M$501)),$B$41,IF(M70=MIN(IF($M$12:$M$501>=$O$1+14,$M$12:$M$501)),$B$42,IF(M70=MIN(IF($M$12:$M$501>=$O$1+21,$M$12:$M$501)),$B$43,IF(M70=MIN(IF($M$12:$M$501>=$O$1+28,$M$12:$M$501)),$B$44,""))))) ->  | Y70: =IF(M70=MIN(IF($M$12:$M$501>=$O$1,$M$12:$M$501)),$B$40,IF(M70=MIN(IF($M$12:$M$501>=$O$1+14,$M$12:$M$501)),$B$41,IF(M70=MIN(IF($M$12:$M$501>=$O$1+28,$M$12:$M$501)),$B$42,""))) ->  | BQ70: =IF(G70<>G69,IF(BP70>=2,IF(MAX(IF($G$12:$G$503=G70,$BO$12:$BO$503))<$B$30,BP70,1),BP70),"") ->  | BR70: =IF(G70<>G69,IF(BP70>=2,IF(MAX(IF($G$12:$G$503=G70,$BO$12:$BO$503))<$B$31,BP70,1),BP70),"") ->  | BT70: =IF(MAX(IF($G$12:G70=G70,$BO$12:BO70))<$B$30,COUNTIFS($BO$12:BO70,">"&$B$56,$G$12:G70,G70),0) -> 0 | CY70: =IF(G70<>"",MAX(IF($I$11:I69<>$B$14,$M$11:M69)),"") ->  | CZ70: =IF(CX70<>"",IF(CX70=0,0,IF(G70<>G69,0,IFERROR(INDEX($CZ$11:CZ69, MATCH(MAX($CY$11:CY69), $M$11:M69, 0))+1,1))),"") ->  | DB70: =IF(DA70<>"",IF(DA70=0,0,IF(G70<>G69,0,IFERROR(INDEX($DB$11:DB69, MATCH(MAX($CY$11:CY69), $M$11:M69, 0))+1,1))),"") ->  | DK70: =IF(G69<>G70,MAX(IF($G$12:$G$503=G70,$DI$12:$DI$503)),"") -> 
B71: 21 | C71: 3週間(+21) | L71: 2024-08-28 | Q71: 2024-08-28 | X71: =IF(M71=MIN(IF($M$12:$M$501>=$O$1,$M$12:$M$501)),$B$40,IF(M71=MIN(IF($M$12:$M$501>=$O$1+7,$M$12:$M$501)),$B$41,IF(M71=MIN(IF($M$12:$M$501>=$O$1+14,$M$12:$M$501)),$B$42,IF(M71=MIN(IF($M$12:$M$501>=$O$1+21,$M$12:$M$501)),$B$43,IF(M71=MIN(IF($M$12:$M$501>=$O$1+28,$M$12:$M$501)),$B$44,""))))) ->  | Y71: =IF(M71=MIN(IF($M$12:$M$501>=$O$1,$M$12:$M$501)),$B$40,IF(M71=MIN(IF($M$12:$M$501>=$O$1+14,$M$12:$M$501)),$B$41,IF(M71=MIN(IF($M$12:$M$501>=$O$1+28,$M$12:$M$501)),$B$42,""))) ->  | BQ71: =IF(G71<>G70,IF(BP71>=2,IF(MAX(IF($G$12:$G$503=G71,$BO$12:$BO$503))<$B$30,BP71,1),BP71),"") ->  | BR71: =IF(G71<>G70,IF(BP71>=2,IF(MAX(IF($G$12:$G$503=G71,$BO$12:$BO$503))<$B$31,BP71,1),BP71),"") ->  | BT71: =IF(MAX(IF($G$12:G71=G71,$BO$12:BO71))<$B$30,COUNTIFS($BO$12:BO71,">"&$B$56,$G$12:G71,G71),0) -> 0 | CY71: =IF(G71<>"",MAX(IF($I$11:I70<>$B$14,$M$11:M70)),"") ->  | CZ71: =IF(CX71<>"",IF(CX71=0,0,IF(G71<>G70,0,IFERROR(INDEX($CZ$11:CZ70, MATCH(MAX($CY$11:CY70), $M$11:M70, 0))+1,1))),"") ->  | DB71: =IF(DA71<>"",IF(DA71=0,0,IF(G71<>G70,0,IFERROR(INDEX($DB$11:DB70, MATCH(MAX($CY$11:CY70), $M$11:M70, 0))+1,1))),"") ->  | DK71: =IF(G70<>G71,MAX(IF($G$12:$G$503=G71,$DI$12:$DI$503)),"") -> 
B72: 28 | C72: 4週間(+28) | L72: 2024-08-28 | Q72: 2024-08-28 | X72: =IF(M72=MIN(IF($M$12:$M$501>=$O$1,$M$12:$M$501)),$B$40,IF(M72=MIN(IF($M$12:$M$501>=$O$1+7,$M$12:$M$501)),$B$41,IF(M72=MIN(IF($M$12:$M$501>=$O$1+14,$M$12:$M$501)),$B$42,IF(M72=MIN(IF($M$12:$M$501>=$O$1+21,$M$12:$M$501)),$B$43,IF(M72=MIN(IF($M$12:$M$501>=$O$1+28,$M$12:$M$501)),$B$44,""))))) ->  | Y72: =IF(M72=MIN(IF($M$12:$M$501>=$O$1,$M$12:$M$501)),$B$40,IF(M72=MIN(IF($M$12:$M$501>=$O$1+14,$M$12:$M$501)),$B$41,IF(M72=MIN(IF($M$12:$M$501>=$O$1+28,$M$12:$M$501)),$B$42,""))) ->  | BQ72: =IF(G72<>G71,IF(BP72>=2,IF(MAX(IF($G$12:$G$503=G72,$BO$12:$BO$503))<$B$30,BP72,1),BP72),"") ->  | BR72: =IF(G72<>G71,IF(BP72>=2,IF(MAX(IF($G$12:$G$503=G72,$BO$12:$BO$503))<$B$31,BP72,1),BP72),"") ->  | BT72: =IF(MAX(IF($G$12:G72=G72,$BO$12:BO72))<$B$30,COUNTIFS($BO$12:BO72,">"&$B$56,$G$12:G72,G72),0) -> 0 | CY72: =IF(G72<>"",MAX(IF($I$11:I71<>$B$14,$M$11:M71)),"") ->  | CZ72: =IF(CX72<>"",IF(CX72=0,0,IF(G72<>G71,0,IFERROR(INDEX($CZ$11:CZ71, MATCH(MAX($CY$11:CY71), $M$11:M71, 0))+1,1))),"") ->  | DB72: =IF(DA72<>"",IF(DA72=0,0,IF(G72<>G71,0,IFERROR(INDEX($DB$11:DB71, MATCH(MAX($CY$11:CY71), $M$11:M71, 0))+1,1))),"") ->  | DK72: =IF(G71<>G72,MAX(IF($G$12:$G$503=G72,$DI$12:$DI$503)),"") -> 
L73: 2024-08-28 | Q73: 2024-08-28 | X73: =IF(M73=MIN(IF($M$12:$M$501>=$O$1,$M$12:$M$501)),$B$40,IF(M73=MIN(IF($M$12:$M$501>=$O$1+7,$M$12:$M$501)),$B$41,IF(M73=MIN(IF($M$12:$M$501>=$O$1+14,$M$12:$M$501)),$B$42,IF(M73=MIN(IF($M$12:$M$501>=$O$1+21,$M$12:$M$501)),$B$43,IF(M73=MIN(IF($M$12:$M$501>=$O$1+28,$M$12:$M$501)),$B$44,""))))) ->  | Y73: =IF(M73=MIN(IF($M$12:$M$501>=$O$1,$M$12:$M$501)),$B$40,IF(M73=MIN(IF($M$12:$M$501>=$O$1+14,$M$12:$M$501)),$B$41,IF(M73=MIN(IF($M$12:$M$501>=$O$1+28,$M$12:$M$501)),$B$42,""))) ->  | BQ73: =IF(G73<>G72,IF(BP73>=2,IF(MAX(IF($G$12:$G$503=G73,$BO$12:$BO$503))<$B$30,BP73,1),BP73),"") ->  | BR73: =IF(G73<>G72,IF(BP73>=2,IF(MAX(IF($G$12:$G$503=G73,$BO$12:$BO$503))<$B$31,BP73,1),BP73),"") ->  | BT73: =IF(MAX(IF($G$12:G73=G73,$BO$12:BO73))<$B$30,COUNTIFS($BO$12:BO73,">"&$B$56,$G$12:G73,G73),0) -> 0 | CY73: =IF(G73<>"",MAX(IF($I$11:I72<>$B$14,$M$11:M72)),"") ->  | CZ73: =IF(CX73<>"",IF(CX73=0,0,IF(G73<>G72,0,IFERROR(INDEX($CZ$11:CZ72, MATCH(MAX($CY$11:CY72), $M$11:M72, 0))+1,1))),"") ->  | DB73: =IF(DA73<>"",IF(DA73=0,0,IF(G73<>G72,0,IFERROR(INDEX($DB$11:DB72, MATCH(MAX($CY$11:CY72), $M$11:M72, 0))+1,1))),"") ->  | DK73: =IF(G72<>G73,MAX(IF($G$12:$G$503=G73,$DI$12:$DI$503)),"") -> 
L74: 2024-08-28 | Q74: 2024-08-28 | X74: =IF(M74=MIN(IF($M$12:$M$501>=$O$1,$M$12:$M$501)),$B$40,IF(M74=MIN(IF($M$12:$M$501>=$O$1+7,$M$12:$M$501)),$B$41,IF(M74=MIN(IF($M$12:$M$501>=$O$1+14,$M$12:$M$501)),$B$42,IF(M74=MIN(IF($M$12:$M$501>=$O$1+21,$M$12:$M$501)),$B$43,IF(M74=MIN(IF($M$12:$M$501>=$O$1+28,$M$12:$M$501)),$B$44,""))))) ->  | Y74: =IF(M74=MIN(IF($M$12:$M$501>=$O$1,$M$12:$M$501)),$B$40,IF(M74=MIN(IF($M$12:$M$501>=$O$1+14,$M$12:$M$501)),$B$41,IF(M74=MIN(IF($M$12:$M$501>=$O$1+28,$M$12:$M$501)),$B$42,""))) ->  | BQ74: =IF(G74<>G73,IF(BP74>=2,IF(MAX(IF($G$12:$G$503=G74,$BO$12:$BO$503))<$B$30,BP74,1),BP74),"") ->  | BR74: =IF(G74<>G73,IF(BP74>=2,IF(MAX(IF($G$12:$G$503=G74,$BO$12:$BO$503))<$B$31,BP74,1),BP74),"") ->  | BT74: =IF(MAX(IF($G$12:G74=G74,$BO$12:BO74))<$B$30,COUNTIFS($BO$12:BO74,">"&$B$56,$G$12:G74,G74),0) -> 0 | CY74: =IF(G74<>"",MAX(IF($I$11:I73<>$B$14,$M$11:M73)),"") ->  | CZ74: =IF(CX74<>"",IF(CX74=0,0,IF(G74<>G73,0,IFERROR(INDEX($CZ$11:CZ73, MATCH(MAX($CY$11:CY73), $M$11:M73, 0))+1,1))),"") ->  | DB74: =IF(DA74<>"",IF(DA74=0,0,IF(G74<>G73,0,IFERROR(INDEX($DB$11:DB73, MATCH(MAX($CY$11:CY73), $M$11:M73, 0))+1,1))),"") ->  | DK74: =IF(G73<>G74,MAX(IF($G$12:$G$503=G74,$DI$12:$DI$503)),"") -> 
L75: 2024-08-28 | Q75: 2024-08-28 | X75: =IF(M75=MIN(IF($M$12:$M$501>=$O$1,$M$12:$M$501)),$B$40,IF(M75=MIN(IF($M$12:$M$501>=$O$1+7,$M$12:$M$501)),$B$41,IF(M75=MIN(IF($M$12:$M$501>=$O$1+14,$M$12:$M$501)),$B$42,IF(M75=MIN(IF($M$12:$M$501>=$O$1+21,$M$12:$M$501)),$B$43,IF(M75=MIN(IF($M$12:$M$501>=$O$1+28,$M$12:$M$501)),$B$44,""))))) ->  | Y75: =IF(M75=MIN(IF($M$12:$M$501>=$O$1,$M$12:$M$501)),$B$40,IF(M75=MIN(IF($M$12:$M$501>=$O$1+14,$M$12:$M$501)),$B$41,IF(M75=MIN(IF($M$12:$M$501>=$O$1+28,$M$12:$M$501)),$B$42,""))) ->  | BQ75: =IF(G75<>G74,IF(BP75>=2,IF(MAX(IF($G$12:$G$503=G75,$BO$12:$BO$503))<$B$30,BP75,1),BP75),"") ->  | BR75: =IF(G75<>G74,IF(BP75>=2,IF(MAX(IF($G$12:$G$503=G75,$BO$12:$BO$503))<$B$31,BP75,1),BP75),"") ->  | BT75: =IF(MAX(IF($G$12:G75=G75,$BO$12:BO75))<$B$30,COUNTIFS($BO$12:BO75,">"&$B$56,$G$12:G75,G75),0) -> 0 | CY75: =IF(G75<>"",MAX(IF($I$11:I74<>$B$14,$M$11:M74)),"") ->  | CZ75: =IF(CX75<>"",IF(CX75=0,0,IF(G75<>G74,0,IFERROR(INDEX($CZ$11:CZ74, MATCH(MAX($CY$11:CY74), $M$11:M74, 0))+1,1))),"") ->  | DB75: =IF(DA75<>"",IF(DA75=0,0,IF(G75<>G74,0,IFERROR(INDEX($DB$11:DB74, MATCH(MAX($CY$11:CY74), $M$11:M74, 0))+1,1))),"") ->  | DK75: =IF(G74<>G75,MAX(IF($G$12:$G$503=G75,$DI$12:$DI$503)),"") -> 
L76: 2024-08-28 | N76: =HOUR(M76)*60+MINUTE(M76) ->  | Q76: 2024-08-28 | R76: =_xlfn.DAYS(Q76,M76)*1440+HOUR(Q76)*60+MINUTE(Q76) ->  | S76: =IF(G76<>"",R76-N76,"") ->  | U76: =IF(M76<>"",DATE(YEAR(M76),MONTH(M76),DAY(M76)),"") ->  | V76: =IF(G76<>G75,IF(G76<>"",IF(AND(YEAR($O$1)<>YEAR($Q$1),LEFT(G76, 2)="01"),DATE(YEAR($Q$1),LEFT(G76, 2), RIGHT(G76, 2)),DATE(YEAR($O$1),LEFT(G76, 2), RIGHT(G76, 2))),""),"") ->  | X76: =IF(M76=MIN(IF($M$12:$M$501>=$O$1,$M$12:$M$501)),$B$40,IF(M76=MIN(IF($M$12:$M$501>=$O$1+7,$M$12:$M$501)),$B$41,IF(M76=MIN(IF($M$12:$M$501>=$O$1+14,$M$12:$M$501)),$B$42,IF(M76=MIN(IF($M$12:$M$501>=$O$1+21,$M$12:$M$501)),$B$43,IF(M76=MIN(IF($M$12:$M$501>=$O$1+28,$M$12:$M$501)),$B$44,""))))) ->  | Y76: =IF(M76=MIN(IF($M$12:$M$501>=$O$1,$M$12:$M$501)),$B$40,IF(M76=MIN(IF($M$12:$M$501>=$O$1+14,$M$12:$M$501)),$B$41,IF(M76=MIN(IF($M$12:$M$501>=$O$1+28,$M$12:$M$501)),$B$42,""))) ->  | Z76: =IF(G76<>"",IF(X76<>"",IFERROR(INDEX(N$4:N$7, MATCH(X76, L$4:L$7, 0)),0), Z75), "") ->  | AC76: =IF(I76=$B$15,S76,"") ->  | AD76: =IF(AC76<>"",AC76/1440,"") ->  | AG76: =IF(I76<>$B$14,S76,0) ->  | AH76: =IF(G75<>G76,M76+1,"") ->  | AI76: =IF(G76<>G75,IF(AJ76<>0,_xlfn.DAYS(AH76,AJ76)*1440+HOUR(AH76)*60+MINUTE(AH76),0),"") ->  | AJ76: =IF(G76<>G75,SUMIFS($M$12:$M$511,$M$12:$M$511,"<="&AH76,$Q$12:$Q$511,">"&AH76),"") ->  | AK76: =IF(G76<>G75,HOUR(AJ76)*60+MINUTE(AJ76),"") ->  | AL76: =IF(G76<>G75,SUMIFS($I$12:$I$511,$M$12:$M$511,"<"&AH76,$Q$12:$Q$511,">="&AH76),"") ->  | AM76: =IF(G76<>G75,IF(AND(AL76<>0,AL76<=$B$16),IF(AI76-AK76>=0,AI76-AK76,0),0),"") ->  | AN76: =IF(G76<>G75,SUMIFS($S$12:$S$510,$M$12:$M$510,">="&M76,$Q$12:$Q$510,"<="&AH76,$I$12:$I$510,"<="&$B$16),"") ->  | AO76: =IF(G75<>G76,M76+2,"") ->  | AP76: =IF(G76<>G75,IF(AQ76<>0,_xlfn.DAYS(AO76,AQ76)*1440+HOUR(AO76)*60+MINUTE(AO76),0),"") ->  | AQ76: =IF(G76<>G75,SUMIFS($M$12:$M$511,$M$12:$M$511,"<="&AO76,$Q$12:$Q$511,">"&AO76),"") ->  | AR76: =IF(G76<>G75,HOUR(AQ76)*60+MINUTE(AQ76),"") ->  | AS76: =IF(G76<>G75,SUMIFS($I$12:$I$511,$M$12:$M$511,"<"&AO76,$Q$12:$Q$511,">="&AO76),"") ->  | AT76: =IF(G76<>G75,IF(AND(AL76<>0,AL76<=$B$16),IF(AP76-AR76>=0,AP76-AR76,0),0),"") ->  | AU76: =IF(Y76=$B$40,$O$1+14,IF(Y76=$B$41,$O$1+28,"")) ->  | AV76: =IF(Y76<>"",_xlfn.DAYS(AU76,AW76)*1440+HOUR(AU76)*60+MINUTE(AU76),"") ->  | AW76: =IF(Y76<>"",SUMIFS($M$12:$M$511,$M$12:$M$511,"<="&AU76,$Q$12:$Q$511,">"&AU76),"") ->  | AX76: =IF(Y76<>"",HOUR(AW76)*60+MINUTE(AW76),"") ->  | AY76: =IF(Y76<>"",SUMIFS($I$12:$I$511,$M$12:$M$511,"<"&AU76,$Q$12:$Q$511,">="&AU76),"") ->  | AZ76: =IF(G76<>G75,AN76+AM76,"") ->  | BD76: =IF(X76<>"",COUNTIFS($BB$12:$BB$512,">"&$B$26,$U$12:$U$512,">="&U76,$U$12:$U$512,"<"&U76+$B$69),"") ->  | BE76: =IF(X76<>"",COUNTIFS($BB$12:$BB$512,">"&$B$27,$U$12:$U$512,">="&U76,$U$12:$U$512,"<"&U76+$B$69),"") ->  | BF76: =IF(G75<>G76,IF(AND(AZ76>$B$27,AZ76<=$B$28),1,0),"") ->  | BG76: =IF(X76<>"",IF(Z76=1,COUNTIFS($BF$12:$BF$500,">=1",$U$12:$U$500,">="&U76,$U$12:$U$500,"<"&U76+$B$69),""),"") ->  | BH76: =IF(I76=$B$17,S76,"") ->  | BJ76: =IF(I76=$B$18,S76,"") ->  | BL76: =IF(OR(I76=$B$18,I76=$B$17),S76,"") ->  | BN76: =IF(SUM(COUNTIFS($I$12:$I$509,$B$18,$G$12:$G$509,G76), COUNTIFS($I$12:$I$509,$B$17,$G$12:$G$509,G76))>$B$55,"",IF(OR(I76=$B$18, I76=$B$17), S76, "")) ->  | BO76: =IF(SUM(COUNTIFS($I$12:$I$509,$B$18,$G$12:$G$509,G76), COUNTIFS($I$12:$I$509,$B$17,$G$12:$G$509,G76))>$B$55,IF(OR(I76=$B$18, I76=$B$17), S76, ""),"") ->  | BQ76: =IF(G76<>G75,IF(BP76>=2,IF(MAX(IF($G$12:$G$503=G76,$BO$12:$BO$503))<$B$30,BP76,1),BP76),"") ->  | BR76: =IF(G76<>G75,IF(BP76>=2,IF(MAX(IF($G$12:$G$503=G76,$BO$12:$BO$503))<$B$31,BP76,1),BP76),"") ->  | BS76: =IF(Z76=1,BR76,IF(Z76=0,BQ76,"")) ->  | BT76: =IF(MAX(IF($G$12:G76=G76,$BO$12:BO76))<$B$30,COUNTIFS($BO$12:BO76,">"&$B$56,$G$12:G76,G76),0) -> 0 | BV76: =IF(G75<>G76,IF(SUMIFS($BS$12:$BS$503,$G$12:$G$503,G76)>=$B$58,SUMIFS($BO$12:$BO$503,$G$12:$G$503,G76,$BT$12:$BT$503,">=1",$BT$12:$BT$503,"<=3"),""),"") ->  | BX76: =IF(G75<>G76,IF(BS76=2,BW76,0),"") ->  | BY76: =IF(G75<>G76,IF(BS76=3,BW76,0),"") ->  | BZ76: =IF(G75<>G76,IF(BS76=1,BU76,IF(BS76=0,0,BV76)),"") ->  | CA76: =IF(BZ76<>"",BZ76/1440,"") ->  | CB76: =IF(G76<>G75,IF(G76<>"",IF(BZ76>=1980,1,0),""),"") ->  | CC76: =IF(G75<>G76,IF(AND(BZ76>=$B$31,BZ76<$B$30),1,0),"") ->  | CD76: =IF(X76<>"",COUNTIFS($CC$12:$CC$499,">=1",$U$12:$U$499,">="&U76,$U$12:$U$499,"<"&U76+$B$69),"") ->  | CE76: =IF(G76<>G75,SUMIFS($AA$12:$AA$510,$M$12:$M$510,">="&M76,$Q$12:$Q$510,"<="&AH76),"") ->  | CF76: =IF(G76<>G75,IF(AL76=$B$14,IF(AI76-AK76>=0,AI76-AK76,0),0),"") ->  | CG76: =IF(G76<>G75,CE76+CF76,"") ->  | CI76: =IF(G76<>G75,SUMIFS($AA$12:$AA$503,$G$12:$G$503,G76),"") ->  | CK76: =IF(G76<>G75,SUMIFS($AA$12:$AA$510,$M$12:$M$510,">="&M76,$Q$12:$Q$510,"<="&AO76),"") ->  | CL76: =IF(G76<>G75,IF(AS76=$B$14,IF(AP76-AR76>=0,AP76-AR76,0),0),"") ->  | CM76: =IF(G76<>G75,CK76+CL76,"") ->  | CO76: =IF(G76<>G75,CM76/2,"") ->  | CR76: =IF(G75<>G76,IF(AND(CO76>$B$30,CQ76>$B$30),1,0),"") ->  | CS76: =IF(Y76=$B$40,SUMIFS($AA$12:$AA$501,$M$12:$M$501,">="&$O$1,$Q$12:$Q$501,"<="&AU76),IF(Y76=$B$41,SUMIFS($AA$12:$AA$501,$M$12:$M$501,">="&$O$1+14,$Q$12:$Q$501,"<="&AU76),"")) ->  | CT76: =IF(Y76<>"",IF(AY76=$B$14,IF(AV76-AX76>=0,AV76-AX76,0),0),"") ->  | CU76: =IF(Y76<>"",CS76+CT76,"") ->  | CV76: =IF(Y76<>"",CU76/2,"") ->  | CX76: =IF(G76<>"",IF(I76<>$B$14,IF(S76<$B$50,1,0),""),"") ->  | CY76: =IF(G76<>"",MAX(IF($I$11:I75<>$B$14,$M$11:M75)),"") ->  | CZ76: =IF(CX76<>"",IF(CX76=0,0,IF(G76<>G75,0,IFERROR(INDEX($CZ$11:CZ75, MATCH(MAX($CY$11:CY75), $M$11:M75, 0))+1,1))),"") ->  | DA76: =IF(G76<>"",IF(I76>=$B$16,IF(S76<$B$50,1,0),""),"") ->  | DB76: =IF(DA76<>"",IF(DA76=0,0,IF(G76<>G75,0,IFERROR(INDEX($DB$11:DB75, MATCH(MAX($CY$11:CY75), $M$11:M75, 0))+1,1))),"") ->  | DC76: =IF(G76<>"",IF(I76>=$B$16,IF(S76>=9,IF(DB76>=3,0,S76),0),0),"") ->  | DD76: =IF(G76<>"",IF(G76=G75,IF(DD75>=$B$49,DC76,DD75+DC76),DC76),"") ->  | DE76: =IF(G76<>"",IF(G76=G75,IF(DD75>=$B$49,AA76,DE75+AA76),AA76),"") ->  | DG76: =IF(G76<>"",IF(I76<>$B$14,IF(S76>=9,IF(CZ76>=3,0,S76),0),0),"") ->  | DH76: =IF(G76<>"",IF(G76=G75,IF(DH75>=$B$49,DG76,DH75+DG76),DG76),"") ->  | DI76: =IF(G76<>"",IF(G76=G75,IF(DH75>=$B$49,AA76,DI75+AA76),AA76),"") ->  | DJ76: =IF(DI76<>"",DI76/1440,"") ->  | DK76: =IF(G75<>G76,MAX(IF($G$12:$G$503=G76,$DI$12:$DI$503)),"") ->  | DM76: =IF(G76<>G75,SUMIFS($S$12:$S$503,$G$12:$G$503,G76,$I$12:$I$503,$B$14) + SUMIFS($S$12:$S$503,$G$12:$G$503,G76,$I$12:$I$503,$B$15),"") -> 
L77: 2024-08-28 | Q77: =L77+P77 -> 2024-08-28 | W77: =IF(G76<>G77,_xlfn.MINIFS($M$12:$M$500,$M$12:$M$500,">"&M77,$H$12:$H$500,"<>"&H77),"") ->  | X77: =IF(M77=MIN(IF($M$12:$M$501>=$O$1,$M$12:$M$501)),$B$40,IF(M77=MIN(IF($M$12:$M$501>=$O$1+7,$M$12:$M$501)),$B$41,IF(M77=MIN(IF($M$12:$M$501>=$O$1+14,$M$12:$M$501)),$B$42,IF(M77=MIN(IF($M$12:$M$501>=$O$1+21,$M$12:$M$501)),$B$43,IF(M77=MIN(IF($M$12:$M$501>=$O$1+28,$M$12:$M$501)),$B$44,""))))) ->  | Y77: =IF(M77=MIN(IF($M$12:$M$501>=$O$1,$M$12:$M$501)),$B$40,IF(M77=MIN(IF($M$12:$M$501>=$O$1+14,$M$12:$M$501)),$B$41,IF(M77=MIN(IF($M$12:$M$501>=$O$1+28,$M$12:$M$501)),$B$42,""))) ->  | AA77: =IF(G77<>"",IF(I77=$B$14,S77,0),"") ->  | AE77: =IF(G77<>"",IF(I77=$B$16,S77,0),"") ->  | AF77: =IF(AE77<>"",IF(AE77<>0,AE77/1440,""),"") ->  | BA77: =IF(AZ77<>"",AZ77/1440,"") ->  | BB77: =IF(G76<>G77,SUMIFS($S$12:$S$512,$I$12:$I$512,"<="&$B$16,$G$12:$G$512,G77),"") ->  | BC77: =IF(BB77<>"",BB77/1440,"") ->  | BI77: =IF(BH77<>"",BH77/1440,"") ->  | BM77: =IF(BL77<>"",BL77/1440,"") ->  | BP77: =IF(G77<>G76,IF(SUMIFS($BN$12:$BN$503,$G$12:$G$503,G77)>0,1,COUNTIFS($BO$12:$BO$503,">"&$B$56,$G$12:$G$503,G77)),"") ->  | BQ77: =IF(G77<>G76,IF(BP77>=2,IF(MAX(IF($G$12:$G$503=G77,$BO$12:$BO$503))<$B$30,BP77,1),BP77),"") ->  | BR77: =IF(G77<>G76,IF(BP77>=2,IF(MAX(IF($G$12:$G$503=G77,$BO$12:$BO$503))<$B$31,BP77,1),BP77),"") ->  | BT77: =IF(MAX(IF($G$12:G77=G77,$BO$12:BO77))<$B$30,COUNTIFS($BO$12:BO77,">"&$B$56,$G$12:G77,G77),0) -> 0 | BU77: =IF(G76<>G77,IF(BQ77=$B$55,SUMIFS($S$12:$S$503,$G$12:$G$503,G77,$I$12:$I$503,$B$17)+SUMIFS($S$12:$S$503,$G$12:$G$503,G77,$I$12:$I$503,$B$18),""),"") ->  | BW77: =IF(BV77<>"",BV77/1440,"") ->  | CJ77: =IF(CI77<>"",CI77/1440,"") ->  | CQ77: =IF(G76<>G77,SUMIFS($CO$12:$CO$500,$M$12:$M$500,W77),"") ->  | CY77: =IF(G77<>"",MAX(IF($I$11:I76<>$B$14,$M$11:M76)),"") ->  | CZ77: =IF(CX77<>"",IF(CX77=0,0,IF(G77<>G76,0,IFERROR(INDEX($CZ$11:CZ76, MATCH(MAX($CY$11:CY76), $M$11:M76, 0))+1,1))),"") ->  | DB77: =IF(DA77<>"",IF(DA77=0,0,IF(G77<>G76,0,IFERROR(INDEX($DB$11:DB76, MATCH(MAX($CY$11:CY76), $M$11:M76, 0))+1,1))),"") ->  | DK77: =IF(G76<>G77,MAX(IF($G$12:$G$503=G77,$DI$12:$DI$503)),"") ->  | DN77: =IF(DM77<>"",DM77/1440,"") -> 
L78: 2024-08-28 | Q78: 2024-08-28 | X78: =IF(M78=MIN(IF($M$12:$M$501>=$O$1,$M$12:$M$501)),$B$40,IF(M78=MIN(IF($M$12:$M$501>=$O$1+7,$M$12:$M$501)),$B$41,IF(M78=MIN(IF($M$12:$M$501>=$O$1+14,$M$12:$M$501)),$B$42,IF(M78=MIN(IF($M$12:$M$501>=$O$1+21,$M$12:$M$501)),$B$43,IF(M78=MIN(IF($M$12:$M$501>=$O$1+28,$M$12:$M$501)),$B$44,""))))) ->  | Y78: =IF(M78=MIN(IF($M$12:$M$501>=$O$1,$M$12:$M$501)),$B$40,IF(M78=MIN(IF($M$12:$M$501>=$O$1+14,$M$12:$M$501)),$B$41,IF(M78=MIN(IF($M$12:$M$501>=$O$1+28,$M$12:$M$501)),$B$42,""))) ->  | BQ78: =IF(G78<>G77,IF(BP78>=2,IF(MAX(IF($G$12:$G$503=G78,$BO$12:$BO$503))<$B$30,BP78,1),BP78),"") ->  | BR78: =IF(G78<>G77,IF(BP78>=2,IF(MAX(IF($G$12:$G$503=G78,$BO$12:$BO$503))<$B$31,BP78,1),BP78),"") ->  | BT78: =IF(MAX(IF($G$12:G78=G78,$BO$12:BO78))<$B$30,COUNTIFS($BO$12:BO78,">"&$B$56,$G$12:G78,G78),0) -> 0 | CY78: =IF(G78<>"",MAX(IF($I$11:I77<>$B$14,$M$11:M77)),"") ->  | CZ78: =IF(CX78<>"",IF(CX78=0,0,IF(G78<>G77,0,IFERROR(INDEX($CZ$11:CZ77, MATCH(MAX($CY$11:CY77), $M$11:M77, 0))+1,1))),"") ->  | DB78: =IF(DA78<>"",IF(DA78=0,0,IF(G78<>G77,0,IFERROR(INDEX($DB$11:DB77, MATCH(MAX($CY$11:CY77), $M$11:M77, 0))+1,1))),"") ->  | DK78: =IF(G77<>G78,MAX(IF($G$12:$G$503=G78,$DI$12:$DI$503)),"") -> 
L79: 2024-08-28 | Q79: 2024-08-28 | X79: =IF(M79=MIN(IF($M$12:$M$501>=$O$1,$M$12:$M$501)),$B$40,IF(M79=MIN(IF($M$12:$M$501>=$O$1+7,$M$12:$M$501)),$B$41,IF(M79=MIN(IF($M$12:$M$501>=$O$1+14,$M$12:$M$501)),$B$42,IF(M79=MIN(IF($M$12:$M$501>=$O$1+21,$M$12:$M$501)),$B$43,IF(M79=MIN(IF($M$12:$M$501>=$O$1+28,$M$12:$M$501)),$B$44,""))))) ->  | Y79: =IF(M79=MIN(IF($M$12:$M$501>=$O$1,$M$12:$M$501)),$B$40,IF(M79=MIN(IF($M$12:$M$501>=$O$1+14,$M$12:$M$501)),$B$41,IF(M79=MIN(IF($M$12:$M$501>=$O$1+28,$M$12:$M$501)),$B$42,""))) ->  | AB79: =IF(AA79<>"",IF(AA79<>0,AA79/1440,""),"") ->  | BQ79: =IF(G79<>G78,IF(BP79>=2,IF(MAX(IF($G$12:$G$503=G79,$BO$12:$BO$503))<$B$30,BP79,1),BP79),"") ->  | BR79: =IF(G79<>G78,IF(BP79>=2,IF(MAX(IF($G$12:$G$503=G79,$BO$12:$BO$503))<$B$31,BP79,1),BP79),"") ->  | BT79: =IF(MAX(IF($G$12:G79=G79,$BO$12:BO79))<$B$30,COUNTIFS($BO$12:BO79,">"&$B$56,$G$12:G79,G79),0) -> 0 | CY79: =IF(G79<>"",MAX(IF($I$11:I78<>$B$14,$M$11:M78)),"") ->  | CZ79: =IF(CX79<>"",IF(CX79=0,0,IF(G79<>G78,0,IFERROR(INDEX($CZ$11:CZ78, MATCH(MAX($CY$11:CY78), $M$11:M78, 0))+1,1))),"") ->  | DB79: =IF(DA79<>"",IF(DA79=0,0,IF(G79<>G78,0,IFERROR(INDEX($DB$11:DB78, MATCH(MAX($CY$11:CY78), $M$11:M78, 0))+1,1))),"") ->  | DK79: =IF(G78<>G79,MAX(IF($G$12:$G$503=G79,$DI$12:$DI$503)),"") -> 
L80: 2024-08-28 | Q80: 2024-08-28 | X80: =IF(M80=MIN(IF($M$12:$M$501>=$O$1,$M$12:$M$501)),$B$40,IF(M80=MIN(IF($M$12:$M$501>=$O$1+7,$M$12:$M$501)),$B$41,IF(M80=MIN(IF($M$12:$M$501>=$O$1+14,$M$12:$M$501)),$B$42,IF(M80=MIN(IF($M$12:$M$501>=$O$1+21,$M$12:$M$501)),$B$43,IF(M80=MIN(IF($M$12:$M$501>=$O$1+28,$M$12:$M$501)),$B$44,""))))) ->  | Y80: =IF(M80=MIN(IF($M$12:$M$501>=$O$1,$M$12:$M$501)),$B$40,IF(M80=MIN(IF($M$12:$M$501>=$O$1+14,$M$12:$M$501)),$B$41,IF(M80=MIN(IF($M$12:$M$501>=$O$1+28,$M$12:$M$501)),$B$42,""))) ->  | BQ80: =IF(G80<>G79,IF(BP80>=2,IF(MAX(IF($G$12:$G$503=G80,$BO$12:$BO$503))<$B$30,BP80,1),BP80),"") ->  | BR80: =IF(G80<>G79,IF(BP80>=2,IF(MAX(IF($G$12:$G$503=G80,$BO$12:$BO$503))<$B$31,BP80,1),BP80),"") ->  | BT80: =IF(MAX(IF($G$12:G80=G80,$BO$12:BO80))<$B$30,COUNTIFS($BO$12:BO80,">"&$B$56,$G$12:G80,G80),0) -> 0 | CY80: =IF(G80<>"",MAX(IF($I$11:I79<>$B$14,$M$11:M79)),"") ->  | CZ80: =IF(CX80<>"",IF(CX80=0,0,IF(G80<>G79,0,IFERROR(INDEX($CZ$11:CZ79, MATCH(MAX($CY$11:CY79), $M$11:M79, 0))+1,1))),"") ->  | DB80: =IF(DA80<>"",IF(DA80=0,0,IF(G80<>G79,0,IFERROR(INDEX($DB$11:DB79, MATCH(MAX($CY$11:CY79), $M$11:M79, 0))+1,1))),"") ->  | DF80: =IF(DE80=0,"",IF(DE80<>"",DE80/1440,"")) ->  | DK80: =IF(G79<>G80,MAX(IF($G$12:$G$503=G80,$DI$12:$DI$503)),"") -> 
L81: 2024-08-28 | Q81: 2024-08-28 | X81: =IF(M81=MIN(IF($M$12:$M$501>=$O$1,$M$12:$M$501)),$B$40,IF(M81=MIN(IF($M$12:$M$501>=$O$1+7,$M$12:$M$501)),$B$41,IF(M81=MIN(IF($M$12:$M$501>=$O$1+14,$M$12:$M$501)),$B$42,IF(M81=MIN(IF($M$12:$M$501>=$O$1+21,$M$12:$M$501)),$B$43,IF(M81=MIN(IF($M$12:$M$501>=$O$1+28,$M$12:$M$501)),$B$44,""))))) ->  | Y81: =IF(M81=MIN(IF($M$12:$M$501>=$O$1,$M$12:$M$501)),$B$40,IF(M81=MIN(IF($M$12:$M$501>=$O$1+14,$M$12:$M$501)),$B$41,IF(M81=MIN(IF($M$12:$M$501>=$O$1+28,$M$12:$M$501)),$B$42,""))) ->  | BQ81: =IF(G81<>G80,IF(BP81>=2,IF(MAX(IF($G$12:$G$503=G81,$BO$12:$BO$503))<$B$30,BP81,1),BP81),"") ->  | BR81: =IF(G81<>G80,IF(BP81>=2,IF(MAX(IF($G$12:$G$503=G81,$BO$12:$BO$503))<$B$31,BP81,1),BP81),"") ->  | BT81: =IF(MAX(IF($G$12:G81=G81,$BO$12:BO81))<$B$30,COUNTIFS($BO$12:BO81,">"&$B$56,$G$12:G81,G81),0) -> 0 | CY81: =IF(G81<>"",MAX(IF($I$11:I80<>$B$14,$M$11:M80)),"") ->  | CZ81: =IF(CX81<>"",IF(CX81=0,0,IF(G81<>G80,0,IFERROR(INDEX($CZ$11:CZ80, MATCH(MAX($CY$11:CY80), $M$11:M80, 0))+1,1))),"") ->  | DB81: =IF(DA81<>"",IF(DA81=0,0,IF(G81<>G80,0,IFERROR(INDEX($DB$11:DB80, MATCH(MAX($CY$11:CY80), $M$11:M80, 0))+1,1))),"") ->  | DK81: =IF(G80<>G81,MAX(IF($G$12:$G$503=G81,$DI$12:$DI$503)),"") -> 
L82: 2024-08-28 | Q82: 2024-08-28 | X82: =IF(M82=MIN(IF($M$12:$M$501>=$O$1,$M$12:$M$501)),$B$40,IF(M82=MIN(IF($M$12:$M$501>=$O$1+7,$M$12:$M$501)),$B$41,IF(M82=MIN(IF($M$12:$M$501>=$O$1+14,$M$12:$M$501)),$B$42,IF(M82=MIN(IF($M$12:$M$501>=$O$1+21,$M$12:$M$501)),$B$43,IF(M82=MIN(IF($M$12:$M$501>=$O$1+28,$M$12:$M$501)),$B$44,""))))) ->  | Y82: =IF(M82=MIN(IF($M$12:$M$501>=$O$1,$M$12:$M$501)),$B$40,IF(M82=MIN(IF($M$12:$M$501>=$O$1+14,$M$12:$M$501)),$B$41,IF(M82=MIN(IF($M$12:$M$501>=$O$1+28,$M$12:$M$501)),$B$42,""))) ->  | BK82: =IF(BJ82<>"",BJ82/1440,"") ->  | BQ82: =IF(G82<>G81,IF(BP82>=2,IF(MAX(IF($G$12:$G$503=G82,$BO$12:$BO$503))<$B$30,BP82,1),BP82),"") ->  | BR82: =IF(G82<>G81,IF(BP82>=2,IF(MAX(IF($G$12:$G$503=G82,$BO$12:$BO$503))<$B$31,BP82,1),BP82),"") ->  | BT82: =IF(MAX(IF($G$12:G82=G82,$BO$12:BO82))<$B$30,COUNTIFS($BO$12:BO82,">"&$B$56,$G$12:G82,G82),0) -> 0 | CY82: =IF(G82<>"",MAX(IF($I$11:I81<>$B$14,$M$11:M81)),"") ->  | CZ82: =IF(CX82<>"",IF(CX82=0,0,IF(G82<>G81,0,IFERROR(INDEX($CZ$11:CZ81, MATCH(MAX($CY$11:CY81), $M$11:M81, 0))+1,1))),"") ->  | DB82: =IF(DA82<>"",IF(DA82=0,0,IF(G82<>G81,0,IFERROR(INDEX($DB$11:DB81, MATCH(MAX($CY$11:CY81), $M$11:M81, 0))+1,1))),"") ->  | DK82: =IF(G81<>G82,MAX(IF($G$12:$G$503=G82,$DI$12:$DI$503)),"") -> 
L83: 2024-08-28 | Q83: 2024-08-28 | X83: =IF(M83=MIN(IF($M$12:$M$501>=$O$1,$M$12:$M$501)),$B$40,IF(M83=MIN(IF($M$12:$M$501>=$O$1+7,$M$12:$M$501)),$B$41,IF(M83=MIN(IF($M$12:$M$501>=$O$1+14,$M$12:$M$501)),$B$42,IF(M83=MIN(IF($M$12:$M$501>=$O$1+21,$M$12:$M$501)),$B$43,IF(M83=MIN(IF($M$12:$M$501>=$O$1+28,$M$12:$M$501)),$B$44,""))))) ->  | Y83: =IF(M83=MIN(IF($M$12:$M$501>=$O$1,$M$12:$M$501)),$B$40,IF(M83=MIN(IF($M$12:$M$501>=$O$1+14,$M$12:$M$501)),$B$41,IF(M83=MIN(IF($M$12:$M$501>=$O$1+28,$M$12:$M$501)),$B$42,""))) ->  | BQ83: =IF(G83<>G82,IF(BP83>=2,IF(MAX(IF($G$12:$G$503=G83,$BO$12:$BO$503))<$B$30,BP83,1),BP83),"") ->  | BR83: =IF(G83<>G82,IF(BP83>=2,IF(MAX(IF($G$12:$G$503=G83,$BO$12:$BO$503))<$B$31,BP83,1),BP83),"") ->  | BT83: =IF(MAX(IF($G$12:G83=G83,$BO$12:BO83))<$B$30,COUNTIFS($BO$12:BO83,">"&$B$56,$G$12:G83,G83),0) -> 0 | CY83: =IF(G83<>"",MAX(IF($I$11:I82<>$B$14,$M$11:M82)),"") ->  | CZ83: =IF(CX83<>"",IF(CX83=0,0,IF(G83<>G82,0,IFERROR(INDEX($CZ$11:CZ82, MATCH(MAX($CY$11:CY82), $M$11:M82, 0))+1,1))),"") ->  | DB83: =IF(DA83<>"",IF(DA83=0,0,IF(G83<>G82,0,IFERROR(INDEX($DB$11:DB82, MATCH(MAX($CY$11:CY82), $M$11:M82, 0))+1,1))),"") ->  | DK83: =IF(G82<>G83,MAX(IF($G$12:$G$503=G83,$DI$12:$DI$503)),"") -> 
L84: 2024-08-28 | Q84: 2024-08-28 | X84: =IF(M84=MIN(IF($M$12:$M$501>=$O$1,$M$12:$M$501)),$B$40,IF(M84=MIN(IF($M$12:$M$501>=$O$1+7,$M$12:$M$501)),$B$41,IF(M84=MIN(IF($M$12:$M$501>=$O$1+14,$M$12:$M$501)),$B$42,IF(M84=MIN(IF($M$12:$M$501>=$O$1+21,$M$12:$M$501)),$B$43,IF(M84=MIN(IF($M$12:$M$501>=$O$1+28,$M$12:$M$501)),$B$44,""))))) ->  | Y84: =IF(M84=MIN(IF($M$12:$M$501>=$O$1,$M$12:$M$501)),$B$40,IF(M84=MIN(IF($M$12:$M$501>=$O$1+14,$M$12:$M$501)),$B$41,IF(M84=MIN(IF($M$12:$M$501>=$O$1+28,$M$12:$M$501)),$B$42,""))) ->  | BQ84: =IF(G84<>G83,IF(BP84>=2,IF(MAX(IF($G$12:$G$503=G84,$BO$12:$BO$503))<$B$30,BP84,1),BP84),"") ->  | BR84: =IF(G84<>G83,IF(BP84>=2,IF(MAX(IF($G$12:$G$503=G84,$BO$12:$BO$503))<$B$31,BP84,1),BP84),"") ->  | BT84: =IF(MAX(IF($G$12:G84=G84,$BO$12:BO84))<$B$30,COUNTIFS($BO$12:BO84,">"&$B$56,$G$12:G84,G84),0) -> 0 | CY84: =IF(G84<>"",MAX(IF($I$11:I83<>$B$14,$M$11:M83)),"") ->  | CZ84: =IF(CX84<>"",IF(CX84=0,0,IF(G84<>G83,0,IFERROR(INDEX($CZ$11:CZ83, MATCH(MAX($CY$11:CY83), $M$11:M83, 0))+1,1))),"") ->  | DB84: =IF(DA84<>"",IF(DA84=0,0,IF(G84<>G83,0,IFERROR(INDEX($DB$11:DB83, MATCH(MAX($CY$11:CY83), $M$11:M83, 0))+1,1))),"") ->  | DK84: =IF(G83<>G84,MAX(IF($G$12:$G$503=G84,$DI$12:$DI$503)),"") ->  | DL84: =IF(DK84<>"",DK84/1440,"") -> 
L85: 2024-08-28 | Q85: 2024-08-28 | X85: =IF(M85=MIN(IF($M$12:$M$501>=$O$1,$M$12:$M$501)),$B$40,IF(M85=MIN(IF($M$12:$M$501>=$O$1+7,$M$12:$M$501)),$B$41,IF(M85=MIN(IF($M$12:$M$501>=$O$1+14,$M$12:$M$501)),$B$42,IF(M85=MIN(IF($M$12:$M$501>=$O$1+21,$M$12:$M$501)),$B$43,IF(M85=MIN(IF($M$12:$M$501>=$O$1+28,$M$12:$M$501)),$B$44,""))))) ->  | Y85: =IF(M85=MIN(IF($M$12:$M$501>=$O$1,$M$12:$M$501)),$B$40,IF(M85=MIN(IF($M$12:$M$501>=$O$1+14,$M$12:$M$501)),$B$41,IF(M85=MIN(IF($M$12:$M$501>=$O$1+28,$M$12:$M$501)),$B$42,""))) ->  | BQ85: =IF(G85<>G84,IF(BP85>=2,IF(MAX(IF($G$12:$G$503=G85,$BO$12:$BO$503))<$B$30,BP85,1),BP85),"") ->  | BR85: =IF(G85<>G84,IF(BP85>=2,IF(MAX(IF($G$12:$G$503=G85,$BO$12:$BO$503))<$B$31,BP85,1),BP85),"") ->  | BT85: =IF(MAX(IF($G$12:G85=G85,$BO$12:BO85))<$B$30,COUNTIFS($BO$12:BO85,">"&$B$56,$G$12:G85,G85),0) -> 0 | CY85: =IF(G85<>"",MAX(IF($I$11:I84<>$B$14,$M$11:M84)),"") ->  | CZ85: =IF(CX85<>"",IF(CX85=0,0,IF(G85<>G84,0,IFERROR(INDEX($CZ$11:CZ84, MATCH(MAX($CY$11:CY84), $M$11:M84, 0))+1,1))),"") ->  | DB85: =IF(DA85<>"",IF(DA85=0,0,IF(G85<>G84,0,IFERROR(INDEX($DB$11:DB84, MATCH(MAX($CY$11:CY84), $M$11:M84, 0))+1,1))),"") ->  | DK85: =IF(G84<>G85,MAX(IF($G$12:$G$503=G85,$DI$12:$DI$503)),"") -> 
L86: 2024-08-28 | Q86: 2024-08-28 | X86: =IF(M86=MIN(IF($M$12:$M$501>=$O$1,$M$12:$M$501)),$B$40,IF(M86=MIN(IF($M$12:$M$501>=$O$1+7,$M$12:$M$501)),$B$41,IF(M86=MIN(IF($M$12:$M$501>=$O$1+14,$M$12:$M$501)),$B$42,IF(M86=MIN(IF($M$12:$M$501>=$O$1+21,$M$12:$M$501)),$B$43,IF(M86=MIN(IF($M$12:$M$501>=$O$1+28,$M$12:$M$501)),$B$44,""))))) ->  | Y86: =IF(M86=MIN(IF($M$12:$M$501>=$O$1,$M$12:$M$501)),$B$40,IF(M86=MIN(IF($M$12:$M$501>=$O$1+14,$M$12:$M$501)),$B$41,IF(M86=MIN(IF($M$12:$M$501>=$O$1+28,$M$12:$M$501)),$B$42,""))) ->  | BQ86: =IF(G86<>G85,IF(BP86>=2,IF(MAX(IF($G$12:$G$503=G86,$BO$12:$BO$503))<$B$30,BP86,1),BP86),"") ->  | BR86: =IF(G86<>G85,IF(BP86>=2,IF(MAX(IF($G$12:$G$503=G86,$BO$12:$BO$503))<$B$31,BP86,1),BP86),"") ->  | BT86: =IF(MAX(IF($G$12:G86=G86,$BO$12:BO86))<$B$30,COUNTIFS($BO$12:BO86,">"&$B$56,$G$12:G86,G86),0) -> 0 | CH86: =IF(CG86<>"",CG86/1440,"") ->  | CY86: =IF(G86<>"",MAX(IF($I$11:I85<>$B$14,$M$11:M85)),"") ->  | CZ86: =IF(CX86<>"",IF(CX86=0,0,IF(G86<>G85,0,IFERROR(INDEX($CZ$11:CZ85, MATCH(MAX($CY$11:CY85), $M$11:M85, 0))+1,1))),"") ->  | DB86: =IF(DA86<>"",IF(DA86=0,0,IF(G86<>G85,0,IFERROR(INDEX($DB$11:DB85, MATCH(MAX($CY$11:CY85), $M$11:M85, 0))+1,1))),"") ->  | DK86: =IF(G85<>G86,MAX(IF($G$12:$G$503=G86,$DI$12:$DI$503)),"") -> 
L87: 2024-08-28 | Q87: 2024-08-28 | X87: =IF(M87=MIN(IF($M$12:$M$501>=$O$1,$M$12:$M$501)),$B$40,IF(M87=MIN(IF($M$12:$M$501>=$O$1+7,$M$12:$M$501)),$B$41,IF(M87=MIN(IF($M$12:$M$501>=$O$1+14,$M$12:$M$501)),$B$42,IF(M87=MIN(IF($M$12:$M$501>=$O$1+21,$M$12:$M$501)),$B$43,IF(M87=MIN(IF($M$12:$M$501>=$O$1+28,$M$12:$M$501)),$B$44,""))))) ->  | Y87: =IF(M87=MIN(IF($M$12:$M$501>=$O$1,$M$12:$M$501)),$B$40,IF(M87=MIN(IF($M$12:$M$501>=$O$1+14,$M$12:$M$501)),$B$41,IF(M87=MIN(IF($M$12:$M$501>=$O$1+28,$M$12:$M$501)),$B$42,""))) ->  | BQ87: =IF(G87<>G86,IF(BP87>=2,IF(MAX(IF($G$12:$G$503=G87,$BO$12:$BO$503))<$B$30,BP87,1),BP87),"") ->  | BR87: =IF(G87<>G86,IF(BP87>=2,IF(MAX(IF($G$12:$G$503=G87,$BO$12:$BO$503))<$B$31,BP87,1),BP87),"") ->  | BT87: =IF(MAX(IF($G$12:G87=G87,$BO$12:BO87))<$B$30,COUNTIFS($BO$12:BO87,">"&$B$56,$G$12:G87,G87),0) -> 0 | CN87: =IF(CM87<>"",CM87/1440,"") ->  | CY87: =IF(G87<>"",MAX(IF($I$11:I86<>$B$14,$M$11:M86)),"") ->  | CZ87: =IF(CX87<>"",IF(CX87=0,0,IF(G87<>G86,0,IFERROR(INDEX($CZ$11:CZ86, MATCH(MAX($CY$11:CY86), $M$11:M86, 0))+1,1))),"") ->  | DB87: =IF(DA87<>"",IF(DA87=0,0,IF(G87<>G86,0,IFERROR(INDEX($DB$11:DB86, MATCH(MAX($CY$11:CY86), $M$11:M86, 0))+1,1))),"") ->  | DK87: =IF(G86<>G87,MAX(IF($G$12:$G$503=G87,$DI$12:$DI$503)),"") -> 
L88: 2024-08-28 | Q88: 2024-08-28 | X88: =IF(M88=MIN(IF($M$12:$M$501>=$O$1,$M$12:$M$501)),$B$40,IF(M88=MIN(IF($M$12:$M$501>=$O$1+7,$M$12:$M$501)),$B$41,IF(M88=MIN(IF($M$12:$M$501>=$O$1+14,$M$12:$M$501)),$B$42,IF(M88=MIN(IF($M$12:$M$501>=$O$1+21,$M$12:$M$501)),$B$43,IF(M88=MIN(IF($M$12:$M$501>=$O$1+28,$M$12:$M$501)),$B$44,""))))) ->  | Y88: =IF(M88=MIN(IF($M$12:$M$501>=$O$1,$M$12:$M$501)),$B$40,IF(M88=MIN(IF($M$12:$M$501>=$O$1+14,$M$12:$M$501)),$B$41,IF(M88=MIN(IF($M$12:$M$501>=$O$1+28,$M$12:$M$501)),$B$42,""))) ->  | BQ88: =IF(G88<>G87,IF(BP88>=2,IF(MAX(IF($G$12:$G$503=G88,$BO$12:$BO$503))<$B$30,BP88,1),BP88),"") ->  | BR88: =IF(G88<>G87,IF(BP88>=2,IF(MAX(IF($G$12:$G$503=G88,$BO$12:$BO$503))<$B$31,BP88,1),BP88),"") ->  | BT88: =IF(MAX(IF($G$12:G88=G88,$BO$12:BO88))<$B$30,COUNTIFS($BO$12:BO88,">"&$B$56,$G$12:G88,G88),0) -> 0 | CP88: =IF(CO88<>"",CO88/1440,"") ->  | CY88: =IF(G88<>"",MAX(IF($I$11:I87<>$B$14,$M$11:M87)),"") ->  | CZ88: =IF(CX88<>"",IF(CX88=0,0,IF(G88<>G87,0,IFERROR(INDEX($CZ$11:CZ87, MATCH(MAX($CY$11:CY87), $M$11:M87, 0))+1,1))),"") ->  | DB88: =IF(DA88<>"",IF(DA88=0,0,IF(G88<>G87,0,IFERROR(INDEX($DB$11:DB87, MATCH(MAX($CY$11:CY87), $M$11:M87, 0))+1,1))),"") ->  | DK88: =IF(G87<>G88,MAX(IF($G$12:$G$503=G88,$DI$12:$DI$503)),"") -> 
L89: 2024-08-28 | Q89: 2024-08-28 | X89: =IF(M89=MIN(IF($M$12:$M$501>=$O$1,$M$12:$M$501)),$B$40,IF(M89=MIN(IF($M$12:$M$501>=$O$1+7,$M$12:$M$501)),$B$41,IF(M89=MIN(IF($M$12:$M$501>=$O$1+14,$M$12:$M$501)),$B$42,IF(M89=MIN(IF($M$12:$M$501>=$O$1+21,$M$12:$M$501)),$B$43,IF(M89=MIN(IF($M$12:$M$501>=$O$1+28,$M$12:$M$501)),$B$44,""))))) ->  | Y89: =IF(M89=MIN(IF($M$12:$M$501>=$O$1,$M$12:$M$501)),$B$40,IF(M89=MIN(IF($M$12:$M$501>=$O$1+14,$M$12:$M$501)),$B$41,IF(M89=MIN(IF($M$12:$M$501>=$O$1+28,$M$12:$M$501)),$B$42,""))) ->  | BQ89: =IF(G89<>G88,IF(BP89>=2,IF(MAX(IF($G$12:$G$503=G89,$BO$12:$BO$503))<$B$30,BP89,1),BP89),"") ->  | BR89: =IF(G89<>G88,IF(BP89>=2,IF(MAX(IF($G$12:$G$503=G89,$BO$12:$BO$503))<$B$31,BP89,1),BP89),"") ->  | BT89: =IF(MAX(IF($G$12:G89=G89,$BO$12:BO89))<$B$30,COUNTIFS($BO$12:BO89,">"&$B$56,$G$12:G89,G89),0) -> 0 | CY89: =IF(G89<>"",MAX(IF($I$11:I88<>$B$14,$M$11:M88)),"") ->  | CZ89: =IF(CX89<>"",IF(CX89=0,0,IF(G89<>G88,0,IFERROR(INDEX($CZ$11:CZ88, MATCH(MAX($CY$11:CY88), $M$11:M88, 0))+1,1))),"") ->  | DB89: =IF(DA89<>"",IF(DA89=0,0,IF(G89<>G88,0,IFERROR(INDEX($DB$11:DB88, MATCH(MAX($CY$11:CY88), $M$11:M88, 0))+1,1))),"") ->  | DK89: =IF(G88<>G89,MAX(IF($G$12:$G$503=G89,$DI$12:$DI$503)),"") -> 
L90: 2024-08-28 | Q90: 2024-08-28 | X90: =IF(M90=MIN(IF($M$12:$M$501>=$O$1,$M$12:$M$501)),$B$40,IF(M90=MIN(IF($M$12:$M$501>=$O$1+7,$M$12:$M$501)),$B$41,IF(M90=MIN(IF($M$12:$M$501>=$O$1+14,$M$12:$M$501)),$B$42,IF(M90=MIN(IF($M$12:$M$501>=$O$1+21,$M$12:$M$501)),$B$43,IF(M90=MIN(IF($M$12:$M$501>=$O$1+28,$M$12:$M$501)),$B$44,""))))) ->  | Y90: =IF(M90=MIN(IF($M$12:$M$501>=$O$1,$M$12:$M$501)),$B$40,IF(M90=MIN(IF($M$12:$M$501>=$O$1+14,$M$12:$M$501)),$B$41,IF(M90=MIN(IF($M$12:$M$501>=$O$1+28,$M$12:$M$501)),$B$42,""))) ->  | BQ90: =IF(G90<>G89,IF(BP90>=2,IF(MAX(IF($G$12:$G$503=G90,$BO$12:$BO$503))<$B$30,BP90,1),BP90),"") ->  | BR90: =IF(G90<>G89,IF(BP90>=2,IF(MAX(IF($G$12:$G$503=G90,$BO$12:$BO$503))<$B$31,BP90,1),BP90),"") ->  | BT90: =IF(MAX(IF($G$12:G90=G90,$BO$12:BO90))<$B$30,COUNTIFS($BO$12:BO90,">"&$B$56,$G$12:G90,G90),0) -> 0 | CY90: =IF(G90<>"",MAX(IF($I$11:I89<>$B$14,$M$11:M89)),"") ->  | CZ90: =IF(CX90<>"",IF(CX90=0,0,IF(G90<>G89,0,IFERROR(INDEX($CZ$11:CZ89, MATCH(MAX($CY$11:CY89), $M$11:M89, 0))+1,1))),"") ->  | DB90: =IF(DA90<>"",IF(DA90=0,0,IF(G90<>G89,0,IFERROR(INDEX($DB$11:DB89, MATCH(MAX($CY$11:CY89), $M$11:M89, 0))+1,1))),"") ->  | DK90: =IF(G89<>G90,MAX(IF($G$12:$G$503=G90,$DI$12:$DI$503)),"") -> 
L91: 2024-08-28 | Q91: 2024-08-28 | X91: =IF(M91=MIN(IF($M$12:$M$501>=$O$1,$M$12:$M$501)),$B$40,IF(M91=MIN(IF($M$12:$M$501>=$O$1+7,$M$12:$M$501)),$B$41,IF(M91=MIN(IF($M$12:$M$501>=$O$1+14,$M$12:$M$501)),$B$42,IF(M91=MIN(IF($M$12:$M$501>=$O$1+21,$M$12:$M$501)),$B$43,IF(M91=MIN(IF($M$12:$M$501>=$O$1+28,$M$12:$M$501)),$B$44,""))))) ->  | Y91: =IF(M91=MIN(IF($M$12:$M$501>=$O$1,$M$12:$M$501)),$B$40,IF(M91=MIN(IF($M$12:$M$501>=$O$1+14,$M$12:$M$501)),$B$41,IF(M91=MIN(IF($M$12:$M$501>=$O$1+28,$M$12:$M$501)),$B$42,""))) ->  | BQ91: =IF(G91<>G90,IF(BP91>=2,IF(MAX(IF($G$12:$G$503=G91,$BO$12:$BO$503))<$B$30,BP91,1),BP91),"") ->  | BR91: =IF(G91<>G90,IF(BP91>=2,IF(MAX(IF($G$12:$G$503=G91,$BO$12:$BO$503))<$B$31,BP91,1),BP91),"") ->  | BT91: =IF(MAX(IF($G$12:G91=G91,$BO$12:BO91))<$B$30,COUNTIFS($BO$12:BO91,">"&$B$56,$G$12:G91,G91),0) -> 0 | CY91: =IF(G91<>"",MAX(IF($I$11:I90<>$B$14,$M$11:M90)),"") ->  | CZ91: =IF(CX91<>"",IF(CX91=0,0,IF(G91<>G90,0,IFERROR(INDEX($CZ$11:CZ90, MATCH(MAX($CY$11:CY90), $M$11:M90, 0))+1,1))),"") ->  | DB91: =IF(DA91<>"",IF(DA91=0,0,IF(G91<>G90,0,IFERROR(INDEX($DB$11:DB90, MATCH(MAX($CY$11:CY90), $M$11:M90, 0))+1,1))),"") ->  | DK91: =IF(G90<>G91,MAX(IF($G$12:$G$503=G91,$DI$12:$DI$503)),"") -> 
L92: 2024-08-28 | Q92: 2024-08-28 | X92: =IF(M92=MIN(IF($M$12:$M$501>=$O$1,$M$12:$M$501)),$B$40,IF(M92=MIN(IF($M$12:$M$501>=$O$1+7,$M$12:$M$501)),$B$41,IF(M92=MIN(IF($M$12:$M$501>=$O$1+14,$M$12:$M$501)),$B$42,IF(M92=MIN(IF($M$12:$M$501>=$O$1+21,$M$12:$M$501)),$B$43,IF(M92=MIN(IF($M$12:$M$501>=$O$1+28,$M$12:$M$501)),$B$44,""))))) ->  | Y92: =IF(M92=MIN(IF($M$12:$M$501>=$O$1,$M$12:$M$501)),$B$40,IF(M92=MIN(IF($M$12:$M$501>=$O$1+14,$M$12:$M$501)),$B$41,IF(M92=MIN(IF($M$12:$M$501>=$O$1+28,$M$12:$M$501)),$B$42,""))) ->  | BQ92: =IF(G92<>G91,IF(BP92>=2,IF(MAX(IF($G$12:$G$503=G92,$BO$12:$BO$503))<$B$30,BP92,1),BP92),"") ->  | BR92: =IF(G92<>G91,IF(BP92>=2,IF(MAX(IF($G$12:$G$503=G92,$BO$12:$BO$503))<$B$31,BP92,1),BP92),"") ->  | BT92: =IF(MAX(IF($G$12:G92=G92,$BO$12:BO92))<$B$30,COUNTIFS($BO$12:BO92,">"&$B$56,$G$12:G92,G92),0) -> 0 | CY92: =IF(G92<>"",MAX(IF($I$11:I91<>$B$14,$M$11:M91)),"") ->  | CZ92: =IF(CX92<>"",IF(CX92=0,0,IF(G92<>G91,0,IFERROR(INDEX($CZ$11:CZ91, MATCH(MAX($CY$11:CY91), $M$11:M91, 0))+1,1))),"") ->  | DB92: =IF(DA92<>"",IF(DA92=0,0,IF(G92<>G91,0,IFERROR(INDEX($DB$11:DB91, MATCH(MAX($CY$11:CY91), $M$11:M91, 0))+1,1))),"") ->  | DK92: =IF(G91<>G92,MAX(IF($G$12:$G$503=G92,$DI$12:$DI$503)),"") -> 
L93: 2024-08-28 | Q93: 2024-08-28 | X93: =IF(M93=MIN(IF($M$12:$M$501>=$O$1,$M$12:$M$501)),$B$40,IF(M93=MIN(IF($M$12:$M$501>=$O$1+7,$M$12:$M$501)),$B$41,IF(M93=MIN(IF($M$12:$M$501>=$O$1+14,$M$12:$M$501)),$B$42,IF(M93=MIN(IF($M$12:$M$501>=$O$1+21,$M$12:$M$501)),$B$43,IF(M93=MIN(IF($M$12:$M$501>=$O$1+28,$M$12:$M$501)),$B$44,""))))) ->  | Y93: =IF(M93=MIN(IF($M$12:$M$501>=$O$1,$M$12:$M$501)),$B$40,IF(M93=MIN(IF($M$12:$M$501>=$O$1+14,$M$12:$M$501)),$B$41,IF(M93=MIN(IF($M$12:$M$501>=$O$1+28,$M$12:$M$501)),$B$42,""))) ->  | BQ93: =IF(G93<>G92,IF(BP93>=2,IF(MAX(IF($G$12:$G$503=G93,$BO$12:$BO$503))<$B$30,BP93,1),BP93),"") ->  | BR93: =IF(G93<>G92,IF(BP93>=2,IF(MAX(IF($G$12:$G$503=G93,$BO$12:$BO$503))<$B$31,BP93,1),BP93),"") ->  | BT93: =IF(MAX(IF($G$12:G93=G93,$BO$12:BO93))<$B$30,COUNTIFS($BO$12:BO93,">"&$B$56,$G$12:G93,G93),0) -> 0 | CY93: =IF(G93<>"",MAX(IF($I$11:I92<>$B$14,$M$11:M92)),"") ->  | CZ93: =IF(CX93<>"",IF(CX93=0,0,IF(G93<>G92,0,IFERROR(INDEX($CZ$11:CZ92, MATCH(MAX($CY$11:CY92), $M$11:M92, 0))+1,1))),"") ->  | DB93: =IF(DA93<>"",IF(DA93=0,0,IF(G93<>G92,0,IFERROR(INDEX($DB$11:DB92, MATCH(MAX($CY$11:CY92), $M$11:M92, 0))+1,1))),"") ->  | DK93: =IF(G92<>G93,MAX(IF($G$12:$G$503=G93,$DI$12:$DI$503)),"") -> 
L94: 2024-08-28 | Q94: 2024-08-28 | X94: =IF(M94=MIN(IF($M$12:$M$501>=$O$1,$M$12:$M$501)),$B$40,IF(M94=MIN(IF($M$12:$M$501>=$O$1+7,$M$12:$M$501)),$B$41,IF(M94=MIN(IF($M$12:$M$501>=$O$1+14,$M$12:$M$501)),$B$42,IF(M94=MIN(IF($M$12:$M$501>=$O$1+21,$M$12:$M$501)),$B$43,IF(M94=MIN(IF($M$12:$M$501>=$O$1+28,$M$12:$M$501)),$B$44,""))))) ->  | Y94: =IF(M94=MIN(IF($M$12:$M$501>=$O$1,$M$12:$M$501)),$B$40,IF(M94=MIN(IF($M$12:$M$501>=$O$1+14,$M$12:$M$501)),$B$41,IF(M94=MIN(IF($M$12:$M$501>=$O$1+28,$M$12:$M$501)),$B$42,""))) ->  | AF94: =IF(AE94<>"",IF(AE94<>0,AE94/1440,""),"") ->  | BQ94: =IF(G94<>G93,IF(BP94>=2,IF(MAX(IF($G$12:$G$503=G94,$BO$12:$BO$503))<$B$30,BP94,1),BP94),"") ->  | BR94: =IF(G94<>G93,IF(BP94>=2,IF(MAX(IF($G$12:$G$503=G94,$BO$12:$BO$503))<$B$31,BP94,1),BP94),"") ->  | BT94: =IF(MAX(IF($G$12:G94=G94,$BO$12:BO94))<$B$30,COUNTIFS($BO$12:BO94,">"&$B$56,$G$12:G94,G94),0) -> 0 | CY94: =IF(G94<>"",MAX(IF($I$11:I93<>$B$14,$M$11:M93)),"") ->  | CZ94: =IF(CX94<>"",IF(CX94=0,0,IF(G94<>G93,0,IFERROR(INDEX($CZ$11:CZ93, MATCH(MAX($CY$11:CY93), $M$11:M93, 0))+1,1))),"") ->  | DB94: =IF(DA94<>"",IF(DA94=0,0,IF(G94<>G93,0,IFERROR(INDEX($DB$11:DB93, MATCH(MAX($CY$11:CY93), $M$11:M93, 0))+1,1))),"") ->  | DK94: =IF(G93<>G94,MAX(IF($G$12:$G$503=G94,$DI$12:$DI$503)),"") -> 
L95: 2024-08-28 | Q95: 2024-08-28 | X95: =IF(M95=MIN(IF($M$12:$M$501>=$O$1,$M$12:$M$501)),$B$40,IF(M95=MIN(IF($M$12:$M$501>=$O$1+7,$M$12:$M$501)),$B$41,IF(M95=MIN(IF($M$12:$M$501>=$O$1+14,$M$12:$M$501)),$B$42,IF(M95=MIN(IF($M$12:$M$501>=$O$1+21,$M$12:$M$501)),$B$43,IF(M95=MIN(IF($M$12:$M$501>=$O$1+28,$M$12:$M$501)),$B$44,""))))) ->  | Y95: =IF(M95=MIN(IF($M$12:$M$501>=$O$1,$M$12:$M$501)),$B$40,IF(M95=MIN(IF($M$12:$M$501>=$O$1+14,$M$12:$M$501)),$B$41,IF(M95=MIN(IF($M$12:$M$501>=$O$1+28,$M$12:$M$501)),$B$42,""))) ->  | AF95: =IF(AE95<>"",IF(AE95<>0,AE95/1440,""),"") ->  | BQ95: =IF(G95<>G94,IF(BP95>=2,IF(MAX(IF($G$12:$G$503=G95,$BO$12:$BO$503))<$B$30,BP95,1),BP95),"") ->  | BR95: =IF(G95<>G94,IF(BP95>=2,IF(MAX(IF($G$12:$G$503=G95,$BO$12:$BO$503))<$B$31,BP95,1),BP95),"") ->  | BT95: =IF(MAX(IF($G$12:G95=G95,$BO$12:BO95))<$B$30,COUNTIFS($BO$12:BO95,">"&$B$56,$G$12:G95,G95),0) -> 0 | CY95: =IF(G95<>"",MAX(IF($I$11:I94<>$B$14,$M$11:M94)),"") ->  | CZ95: =IF(CX95<>"",IF(CX95=0,0,IF(G95<>G94,0,IFERROR(INDEX($CZ$11:CZ94, MATCH(MAX($CY$11:CY94), $M$11:M94, 0))+1,1))),"") ->  | DB95: =IF(DA95<>"",IF(DA95=0,0,IF(G95<>G94,0,IFERROR(INDEX($DB$11:DB94, MATCH(MAX($CY$11:CY94), $M$11:M94, 0))+1,1))),"") ->  | DK95: =IF(G94<>G95,MAX(IF($G$12:$G$503=G95,$DI$12:$DI$503)),"") -> 
L96: 2024-08-28 | Q96: 2024-08-28 | X96: =IF(M96=MIN(IF($M$12:$M$501>=$O$1,$M$12:$M$501)),$B$40,IF(M96=MIN(IF($M$12:$M$501>=$O$1+7,$M$12:$M$501)),$B$41,IF(M96=MIN(IF($M$12:$M$501>=$O$1+14,$M$12:$M$501)),$B$42,IF(M96=MIN(IF($M$12:$M$501>=$O$1+21,$M$12:$M$501)),$B$43,IF(M96=MIN(IF($M$12:$M$501>=$O$1+28,$M$12:$M$501)),$B$44,""))))) ->  | Y96: =IF(M96=MIN(IF($M$12:$M$501>=$O$1,$M$12:$M$501)),$B$40,IF(M96=MIN(IF($M$12:$M$501>=$O$1+14,$M$12:$M$501)),$B$41,IF(M96=MIN(IF($M$12:$M$501>=$O$1+28,$M$12:$M$501)),$B$42,""))) ->  | BQ96: =IF(G96<>G95,IF(BP96>=2,IF(MAX(IF($G$12:$G$503=G96,$BO$12:$BO$503))<$B$30,BP96,1),BP96),"") ->  | BR96: =IF(G96<>G95,IF(BP96>=2,IF(MAX(IF($G$12:$G$503=G96,$BO$12:$BO$503))<$B$31,BP96,1),BP96),"") ->  | BT96: =IF(MAX(IF($G$12:G96=G96,$BO$12:BO96))<$B$30,COUNTIFS($BO$12:BO96,">"&$B$56,$G$12:G96,G96),0) -> 0 | CY96: =IF(G96<>"",MAX(IF($I$11:I95<>$B$14,$M$11:M95)),"") ->  | CZ96: =IF(CX96<>"",IF(CX96=0,0,IF(G96<>G95,0,IFERROR(INDEX($CZ$11:CZ95, MATCH(MAX($CY$11:CY95), $M$11:M95, 0))+1,1))),"") ->  | DB96: =IF(DA96<>"",IF(DA96=0,0,IF(G96<>G95,0,IFERROR(INDEX($DB$11:DB95, MATCH(MAX($CY$11:CY95), $M$11:M95, 0))+1,1))),"") ->  | DK96: =IF(G95<>G96,MAX(IF($G$12:$G$503=G96,$DI$12:$DI$503)),"") -> 
L97: 2024-08-28 | Q97: 2024-08-28 | X97: =IF(M97=MIN(IF($M$12:$M$501>=$O$1,$M$12:$M$501)),$B$40,IF(M97=MIN(IF($M$12:$M$501>=$O$1+7,$M$12:$M$501)),$B$41,IF(M97=MIN(IF($M$12:$M$501>=$O$1+14,$M$12:$M$501)),$B$42,IF(M97=MIN(IF($M$12:$M$501>=$O$1+21,$M$12:$M$501)),$B$43,IF(M97=MIN(IF($M$12:$M$501>=$O$1+28,$M$12:$M$501)),$B$44,""))))) ->  | Y97: =IF(M97=MIN(IF($M$12:$M$501>=$O$1,$M$12:$M$501)),$B$40,IF(M97=MIN(IF($M$12:$M$501>=$O$1+14,$M$12:$M$501)),$B$41,IF(M97=MIN(IF($M$12:$M$501>=$O$1+28,$M$12:$M$501)),$B$42,""))) ->  | BQ97: =IF(G97<>G96,IF(BP97>=2,IF(MAX(IF($G$12:$G$503=G97,$BO$12:$BO$503))<$B$30,BP97,1),BP97),"") ->  | BR97: =IF(G97<>G96,IF(BP97>=2,IF(MAX(IF($G$12:$G$503=G97,$BO$12:$BO$503))<$B$31,BP97,1),BP97),"") ->  | BT97: =IF(MAX(IF($G$12:G97=G97,$BO$12:BO97))<$B$30,COUNTIFS($BO$12:BO97,">"&$B$56,$G$12:G97,G97),0) -> 0 | CY97: =IF(G97<>"",MAX(IF($I$11:I96<>$B$14,$M$11:M96)),"") ->  | CZ97: =IF(CX97<>"",IF(CX97=0,0,IF(G97<>G96,0,IFERROR(INDEX($CZ$11:CZ96, MATCH(MAX($CY$11:CY96), $M$11:M96, 0))+1,1))),"") ->  | DB97: =IF(DA97<>"",IF(DA97=0,0,IF(G97<>G96,0,IFERROR(INDEX($DB$11:DB96, MATCH(MAX($CY$11:CY96), $M$11:M96, 0))+1,1))),"") ->  | DK97: =IF(G96<>G97,MAX(IF($G$12:$G$503=G97,$DI$12:$DI$503)),"") -> 
L98: 2024-08-28 | Q98: 2024-08-28 | X98: =IF(M98=MIN(IF($M$12:$M$501>=$O$1,$M$12:$M$501)),$B$40,IF(M98=MIN(IF($M$12:$M$501>=$O$1+7,$M$12:$M$501)),$B$41,IF(M98=MIN(IF($M$12:$M$501>=$O$1+14,$M$12:$M$501)),$B$42,IF(M98=MIN(IF($M$12:$M$501>=$O$1+21,$M$12:$M$501)),$B$43,IF(M98=MIN(IF($M$12:$M$501>=$O$1+28,$M$12:$M$501)),$B$44,""))))) ->  | Y98: =IF(M98=MIN(IF($M$12:$M$501>=$O$1,$M$12:$M$501)),$B$40,IF(M98=MIN(IF($M$12:$M$501>=$O$1+14,$M$12:$M$501)),$B$41,IF(M98=MIN(IF($M$12:$M$501>=$O$1+28,$M$12:$M$501)),$B$42,""))) ->  | BQ98: =IF(G98<>G97,IF(BP98>=2,IF(MAX(IF($G$12:$G$503=G98,$BO$12:$BO$503))<$B$30,BP98,1),BP98),"") ->  | BR98: =IF(G98<>G97,IF(BP98>=2,IF(MAX(IF($G$12:$G$503=G98,$BO$12:$BO$503))<$B$31,BP98,1),BP98),"") ->  | BT98: =IF(MAX(IF($G$12:G98=G98,$BO$12:BO98))<$B$30,COUNTIFS($BO$12:BO98,">"&$B$56,$G$12:G98,G98),0) -> 0 | CW98: =IF(CV98<>"",CV98/1440,"") ->  | CY98: =IF(G98<>"",MAX(IF($I$11:I97<>$B$14,$M$11:M97)),"") ->  | CZ98: =IF(CX98<>"",IF(CX98=0,0,IF(G98<>G97,0,IFERROR(INDEX($CZ$11:CZ97, MATCH(MAX($CY$11:CY97), $M$11:M97, 0))+1,1))),"") ->  | DB98: =IF(DA98<>"",IF(DA98=0,0,IF(G98<>G97,0,IFERROR(INDEX($DB$11:DB97, MATCH(MAX($CY$11:CY97), $M$11:M97, 0))+1,1))),"") ->  | DK98: =IF(G97<>G98,MAX(IF($G$12:$G$503=G98,$DI$12:$DI$503)),"") -> 
L99: 2024-08-28 | Q99: 2024-08-28 | X99: =IF(M99=MIN(IF($M$12:$M$501>=$O$1,$M$12:$M$501)),$B$40,IF(M99=MIN(IF($M$12:$M$501>=$O$1+7,$M$12:$M$501)),$B$41,IF(M99=MIN(IF($M$12:$M$501>=$O$1+14,$M$12:$M$501)),$B$42,IF(M99=MIN(IF($M$12:$M$501>=$O$1+21,$M$12:$M$501)),$B$43,IF(M99=MIN(IF($M$12:$M$501>=$O$1+28,$M$12:$M$501)),$B$44,""))))) ->  | Y99: =IF(M99=MIN(IF($M$12:$M$501>=$O$1,$M$12:$M$501)),$B$40,IF(M99=MIN(IF($M$12:$M$501>=$O$1+14,$M$12:$M$501)),$B$41,IF(M99=MIN(IF($M$12:$M$501>=$O$1+28,$M$12:$M$501)),$B$42,""))) ->  | BQ99: =IF(G99<>G98,IF(BP99>=2,IF(MAX(IF($G$12:$G$503=G99,$BO$12:$BO$503))<$B$30,BP99,1),BP99),"") ->  | BR99: =IF(G99<>G98,IF(BP99>=2,IF(MAX(IF($G$12:$G$503=G99,$BO$12:$BO$503))<$B$31,BP99,1),BP99),"") ->  | BT99: =IF(MAX(IF($G$12:G99=G99,$BO$12:BO99))<$B$30,COUNTIFS($BO$12:BO99,">"&$B$56,$G$12:G99,G99),0) -> 0 | CY99: =IF(G99<>"",MAX(IF($I$11:I98<>$B$14,$M$11:M98)),"") ->  | CZ99: =IF(CX99<>"",IF(CX99=0,0,IF(G99<>G98,0,IFERROR(INDEX($CZ$11:CZ98, MATCH(MAX($CY$11:CY98), $M$11:M98, 0))+1,1))),"") ->  | DB99: =IF(DA99<>"",IF(DA99=0,0,IF(G99<>G98,0,IFERROR(INDEX($DB$11:DB98, MATCH(MAX($CY$11:CY98), $M$11:M98, 0))+1,1))),"") ->  | DK99: =IF(G98<>G99,MAX(IF($G$12:$G$503=G99,$DI$12:$DI$503)),"") -> 
L100: 2024-08-28 | Q100: 2024-08-28 | X100: =IF(M100=MIN(IF($M$12:$M$501>=$O$1,$M$12:$M$501)),$B$40,IF(M100=MIN(IF($M$12:$M$501>=$O$1+7,$M$12:$M$501)),$B$41,IF(M100=MIN(IF($M$12:$M$501>=$O$1+14,$M$12:$M$501)),$B$42,IF(M100=MIN(IF($M$12:$M$501>=$O$1+21,$M$12:$M$501)),$B$43,IF(M100=MIN(IF($M$12:$M$501>=$O$1+28,$M$12:$M$501)),$B$44,""))))) ->  | Y100: =IF(M100=MIN(IF($M$12:$M$501>=$O$1,$M$12:$M$501)),$B$40,IF(M100=MIN(IF($M$12:$M$501>=$O$1+14,$M$12:$M$501)),$B$41,IF(M100=MIN(IF($M$12:$M$501>=$O$1+28,$M$12:$M$501)),$B$42,""))) ->  | BQ100: =IF(G100<>G99,IF(BP100>=2,IF(MAX(IF($G$12:$G$503=G100,$BO$12:$BO$503))<$B$30,BP100,1),BP100),"") ->  | BR100: =IF(G100<>G99,IF(BP100>=2,IF(MAX(IF($G$12:$G$503=G100,$BO$12:$BO$503))<$B$31,BP100,1),BP100),"") ->  | BT100: =IF(MAX(IF($G$12:G100=G100,$BO$12:BO100))<$B$30,COUNTIFS($BO$12:BO100,">"&$B$56,$G$12:G100,G100),0) -> 0 | CY100: =IF(G100<>"",MAX(IF($I$11:I99<>$B$14,$M$11:M99)),"") ->  | CZ100: =IF(CX100<>"",IF(CX100=0,0,IF(G100<>G99,0,IFERROR(INDEX($CZ$11:CZ99, MATCH(MAX($CY$11:CY99), $M$11:M99, 0))+1,1))),"") ->  | DB100: =IF(DA100<>"",IF(DA100=0,0,IF(G100<>G99,0,IFERROR(INDEX($DB$11:DB99, MATCH(MAX($CY$11:CY99), $M$11:M99, 0))+1,1))),"") ->  | DK100: =IF(G99<>G100,MAX(IF($G$12:$G$503=G100,$DI$12:$DI$503)),"") -> 
L101: 2024-08-28 | Q101: 2024-08-28 | X101: =IF(M101=MIN(IF($M$12:$M$501>=$O$1,$M$12:$M$501)),$B$40,IF(M101=MIN(IF($M$12:$M$501>=$O$1+7,$M$12:$M$501)),$B$41,IF(M101=MIN(IF($M$12:$M$501>=$O$1+14,$M$12:$M$501)),$B$42,IF(M101=MIN(IF($M$12:$M$501>=$O$1+21,$M$12:$M$501)),$B$43,IF(M101=MIN(IF($M$12:$M$501>=$O$1+28,$M$12:$M$501)),$B$44,""))))) ->  | Y101: =IF(M101=MIN(IF($M$12:$M$501>=$O$1,$M$12:$M$501)),$B$40,IF(M101=MIN(IF($M$12:$M$501>=$O$1+14,$M$12:$M$501)),$B$41,IF(M101=MIN(IF($M$12:$M$501>=$O$1+28,$M$12:$M$501)),$B$42,""))) ->  | BQ101: =IF(G101<>G100,IF(BP101>=2,IF(MAX(IF($G$12:$G$503=G101,$BO$12:$BO$503))<$B$30,BP101,1),BP101),"") ->  | BR101: =IF(G101<>G100,IF(BP101>=2,IF(MAX(IF($G$12:$G$503=G101,$BO$12:$BO$503))<$B$31,BP101,1),BP101),"") ->  | BT101: =IF(MAX(IF($G$12:G101=G101,$BO$12:BO101))<$B$30,COUNTIFS($BO$12:BO101,">"&$B$56,$G$12:G101,G101),0) -> 0 | CY101: =IF(G101<>"",MAX(IF($I$11:I100<>$B$14,$M$11:M100)),"") ->  | CZ101: =IF(CX101<>"",IF(CX101=0,0,IF(G101<>G100,0,IFERROR(INDEX($CZ$11:CZ100, MATCH(MAX($CY$11:CY100), $M$11:M100, 0))+1,1))),"") ->  | DB101: =IF(DA101<>"",IF(DA101=0,0,IF(G101<>G100,0,IFERROR(INDEX($DB$11:DB100, MATCH(MAX($CY$11:CY100), $M$11:M100, 0))+1,1))),"") ->  | DK101: =IF(G100<>G101,MAX(IF($G$12:$G$503=G101,$DI$12:$DI$503)),"") -> 
L102: 2024-08-28 | Q102: 2024-08-28 | X102: =IF(M102=MIN(IF($M$12:$M$501>=$O$1,$M$12:$M$501)),$B$40,IF(M102=MIN(IF($M$12:$M$501>=$O$1+7,$M$12:$M$501)),$B$41,IF(M102=MIN(IF($M$12:$M$501>=$O$1+14,$M$12:$M$501)),$B$42,IF(M102=MIN(IF($M$12:$M$501>=$O$1+21,$M$12:$M$501)),$B$43,IF(M102=MIN(IF($M$12:$M$501>=$O$1+28,$M$12:$M$501)),$B$44,""))))) ->  | Y102: =IF(M102=MIN(IF($M$12:$M$501>=$O$1,$M$12:$M$501)),$B$40,IF(M102=MIN(IF($M$12:$M$501>=$O$1+14,$M$12:$M$501)),$B$41,IF(M102=MIN(IF($M$12:$M$501>=$O$1+28,$M$12:$M$501)),$B$42,""))) ->  | BQ102: =IF(G102<>G101,IF(BP102>=2,IF(MAX(IF($G$12:$G$503=G102,$BO$12:$BO$503))<$B$30,BP102,1),BP102),"") ->  | BR102: =IF(G102<>G101,IF(BP102>=2,IF(MAX(IF($G$12:$G$503=G102,$BO$12:$BO$503))<$B$31,BP102,1),BP102),"") ->  | BT102: =IF(MAX(IF($G$12:G102=G102,$BO$12:BO102))<$B$30,COUNTIFS($BO$12:BO102,">"&$B$56,$G$12:G102,G102),0) -> 0 | CY102: =IF(G102<>"",MAX(IF($I$11:I101<>$B$14,$M$11:M101)),"") ->  | CZ102: =IF(CX102<>"",IF(CX102=0,0,IF(G102<>G101,0,IFERROR(INDEX($CZ$11:CZ101, MATCH(MAX($CY$11:CY101), $M$11:M101, 0))+1,1))),"") ->  | DB102: =IF(DA102<>"",IF(DA102=0,0,IF(G102<>G101,0,IFERROR(INDEX($DB$11:DB101, MATCH(MAX($CY$11:CY101), $M$11:M101, 0))+1,1))),"") ->  | DK102: =IF(G101<>G102,MAX(IF($G$12:$G$503=G102,$DI$12:$DI$503)),"") -> 
L103: 2024-08-28 | Q103: 2024-08-28 | X103: =IF(M103=MIN(IF($M$12:$M$501>=$O$1,$M$12:$M$501)),$B$40,IF(M103=MIN(IF($M$12:$M$501>=$O$1+7,$M$12:$M$501)),$B$41,IF(M103=MIN(IF($M$12:$M$501>=$O$1+14,$M$12:$M$501)),$B$42,IF(M103=MIN(IF($M$12:$M$501>=$O$1+21,$M$12:$M$501)),$B$43,IF(M103=MIN(IF($M$12:$M$501>=$O$1+28,$M$12:$M$501)),$B$44,""))))) ->  | Y103: =IF(M103=MIN(IF($M$12:$M$501>=$O$1,$M$12:$M$501)),$B$40,IF(M103=MIN(IF($M$12:$M$501>=$O$1+14,$M$12:$M$501)),$B$41,IF(M103=MIN(IF($M$12:$M$501>=$O$1+28,$M$12:$M$501)),$B$42,""))) ->  | BQ103: =IF(G103<>G102,IF(BP103>=2,IF(MAX(IF($G$12:$G$503=G103,$BO$12:$BO$503))<$B$30,BP103,1),BP103),"") ->  | BR103: =IF(G103<>G102,IF(BP103>=2,IF(MAX(IF($G$12:$G$503=G103,$BO$12:$BO$503))<$B$31,BP103,1),BP103),"") ->  | BT103: =IF(MAX(IF($G$12:G103=G103,$BO$12:BO103))<$B$30,COUNTIFS($BO$12:BO103,">"&$B$56,$G$12:G103,G103),0) -> 0 | CY103: =IF(G103<>"",MAX(IF($I$11:I102<>$B$14,$M$11:M102)),"") ->  | CZ103: =IF(CX103<>"",IF(CX103=0,0,IF(G103<>G102,0,IFERROR(INDEX($CZ$11:CZ102, MATCH(MAX($CY$11:CY102), $M$11:M102, 0))+1,1))),"") ->  | DB103: =IF(DA103<>"",IF(DA103=0,0,IF(G103<>G102,0,IFERROR(INDEX($DB$11:DB102, MATCH(MAX($CY$11:CY102), $M$11:M102, 0))+1,1))),"") ->  | DK103: =IF(G102<>G103,MAX(IF($G$12:$G$503=G103,$DI$12:$DI$503)),"") -> 
L104: 2024-08-28 | Q104: 2024-08-28 | X104: =IF(M104=MIN(IF($M$12:$M$501>=$O$1,$M$12:$M$501)),$B$40,IF(M104=MIN(IF($M$12:$M$501>=$O$1+7,$M$12:$M$501)),$B$41,IF(M104=MIN(IF($M$12:$M$501>=$O$1+14,$M$12:$M$501)),$B$42,IF(M104=MIN(IF($M$12:$M$501>=$O$1+21,$M$12:$M$501)),$B$43,IF(M104=MIN(IF($M$12:$M$501>=$O$1+28,$M$12:$M$501)),$B$44,""))))) ->  | Y104: =IF(M104=MIN(IF($M$12:$M$501>=$O$1,$M$12:$M$501)),$B$40,IF(M104=MIN(IF($M$12:$M$501>=$O$1+14,$M$12:$M$501)),$B$41,IF(M104=MIN(IF($M$12:$M$501>=$O$1+28,$M$12:$M$501)),$B$42,""))) ->  | BQ104: =IF(G104<>G103,IF(BP104>=2,IF(MAX(IF($G$12:$G$503=G104,$BO$12:$BO$503))<$B$30,BP104,1),BP104),"") ->  | BR104: =IF(G104<>G103,IF(BP104>=2,IF(MAX(IF($G$12:$G$503=G104,$BO$12:$BO$503))<$B$31,BP104,1),BP104),"") ->  | BT104: =IF(MAX(IF($G$12:G104=G104,$BO$12:BO104))<$B$30,COUNTIFS($BO$12:BO104,">"&$B$56,$G$12:G104,G104),0) -> 0 | CY104: =IF(G104<>"",MAX(IF($I$11:I103<>$B$14,$M$11:M103)),"") ->  | CZ104: =IF(CX104<>"",IF(CX104=0,0,IF(G104<>G103,0,IFERROR(INDEX($CZ$11:CZ103, MATCH(MAX($CY$11:CY103), $M$11:M103, 0))+1,1))),"") ->  | DB104: =IF(DA104<>"",IF(DA104=0,0,IF(G104<>G103,0,IFERROR(INDEX($DB$11:DB103, MATCH(MAX($CY$11:CY103), $M$11:M103, 0))+1,1))),"") ->  | DK104: =IF(G103<>G104,MAX(IF($G$12:$G$503=G104,$DI$12:$DI$503)),"") -> 
L105: 2024-08-28 | Q105: 2024-08-28 | X105: =IF(M105=MIN(IF($M$12:$M$501>=$O$1,$M$12:$M$501)),$B$40,IF(M105=MIN(IF($M$12:$M$501>=$O$1+7,$M$12:$M$501)),$B$41,IF(M105=MIN(IF($M$12:$M$501>=$O$1+14,$M$12:$M$501)),$B$42,IF(M105=MIN(IF($M$12:$M$501>=$O$1+21,$M$12:$M$501)),$B$43,IF(M105=MIN(IF($M$12:$M$501>=$O$1+28,$M$12:$M$501)),$B$44,""))))) ->  | Y105: =IF(M105=MIN(IF($M$12:$M$501>=$O$1,$M$12:$M$501)),$B$40,IF(M105=MIN(IF($M$12:$M$501>=$O$1+14,$M$12:$M$501)),$B$41,IF(M105=MIN(IF($M$12:$M$501>=$O$1+28,$M$12:$M$501)),$B$42,""))) ->  | BQ105: =IF(G105<>G104,IF(BP105>=2,IF(MAX(IF($G$12:$G$503=G105,$BO$12:$BO$503))<$B$30,BP105,1),BP105),"") ->  | BR105: =IF(G105<>G104,IF(BP105>=2,IF(MAX(IF($G$12:$G$503=G105,$BO$12:$BO$503))<$B$31,BP105,1),BP105),"") ->  | BT105: =IF(MAX(IF($G$12:G105=G105,$BO$12:BO105))<$B$30,COUNTIFS($BO$12:BO105,">"&$B$56,$G$12:G105,G105),0) -> 0 | CY105: =IF(G105<>"",MAX(IF($I$11:I104<>$B$14,$M$11:M104)),"") ->  | CZ105: =IF(CX105<>"",IF(CX105=0,0,IF(G105<>G104,0,IFERROR(INDEX($CZ$11:CZ104, MATCH(MAX($CY$11:CY104), $M$11:M104, 0))+1,1))),"") ->  | DB105: =IF(DA105<>"",IF(DA105=0,0,IF(G105<>G104,0,IFERROR(INDEX($DB$11:DB104, MATCH(MAX($CY$11:CY104), $M$11:M104, 0))+1,1))),"") ->  | DK105: =IF(G104<>G105,MAX(IF($G$12:$G$503=G105,$DI$12:$DI$503)),"") -> 
L106: 2024-08-28 | Q106: 2024-08-28 | X106: =IF(M106=MIN(IF($M$12:$M$501>=$O$1,$M$12:$M$501)),$B$40,IF(M106=MIN(IF($M$12:$M$501>=$O$1+7,$M$12:$M$501)),$B$41,IF(M106=MIN(IF($M$12:$M$501>=$O$1+14,$M$12:$M$501)),$B$42,IF(M106=MIN(IF($M$12:$M$501>=$O$1+21,$M$12:$M$501)),$B$43,IF(M106=MIN(IF($M$12:$M$501>=$O$1+28,$M$12:$M$501)),$B$44,""))))) ->  | Y106: =IF(M106=MIN(IF($M$12:$M$501>=$O$1,$M$12:$M$501)),$B$40,IF(M106=MIN(IF($M$12:$M$501>=$O$1+14,$M$12:$M$501)),$B$41,IF(M106=MIN(IF($M$12:$M$501>=$O$1+28,$M$12:$M$501)),$B$42,""))) ->  | BQ106: =IF(G106<>G105,IF(BP106>=2,IF(MAX(IF($G$12:$G$503=G106,$BO$12:$BO$503))<$B$30,BP106,1),BP106),"") ->  | BR106: =IF(G106<>G105,IF(BP106>=2,IF(MAX(IF($G$12:$G$503=G106,$BO$12:$BO$503))<$B$31,BP106,1),BP106),"") ->  | BT106: =IF(MAX(IF($G$12:G106=G106,$BO$12:BO106))<$B$30,COUNTIFS($BO$12:BO106,">"&$B$56,$G$12:G106,G106),0) -> 0 | CY106: =IF(G106<>"",MAX(IF($I$11:I105<>$B$14,$M$11:M105)),"") ->  | CZ106: =IF(CX106<>"",IF(CX106=0,0,IF(G106<>G105,0,IFERROR(INDEX($CZ$11:CZ105, MATCH(MAX($CY$11:CY105), $M$11:M105, 0))+1,1))),"") ->  | DB106: =IF(DA106<>"",IF(DA106=0,0,IF(G106<>G105,0,IFERROR(INDEX($DB$11:DB105, MATCH(MAX($CY$11:CY105), $M$11:M105, 0))+1,1))),"") ->  | DK106: =IF(G105<>G106,MAX(IF($G$12:$G$503=G106,$DI$12:$DI$503)),"") -> 
L107: 2024-08-28 | Q107: 2024-08-28 | X107: =IF(M107=MIN(IF($M$12:$M$501>=$O$1,$M$12:$M$501)),$B$40,IF(M107=MIN(IF($M$12:$M$501>=$O$1+7,$M$12:$M$501)),$B$41,IF(M107=MIN(IF($M$12:$M$501>=$O$1+14,$M$12:$M$501)),$B$42,IF(M107=MIN(IF($M$12:$M$501>=$O$1+21,$M$12:$M$501)),$B$43,IF(M107=MIN(IF($M$12:$M$501>=$O$1+28,$M$12:$M$501)),$B$44,""))))) ->  | Y107: =IF(M107=MIN(IF($M$12:$M$501>=$O$1,$M$12:$M$501)),$B$40,IF(M107=MIN(IF($M$12:$M$501>=$O$1+14,$M$12:$M$501)),$B$41,IF(M107=MIN(IF($M$12:$M$501>=$O$1+28,$M$12:$M$501)),$B$42,""))) ->  | BQ107: =IF(G107<>G106,IF(BP107>=2,IF(MAX(IF($G$12:$G$503=G107,$BO$12:$BO$503))<$B$30,BP107,1),BP107),"") ->  | BR107: =IF(G107<>G106,IF(BP107>=2,IF(MAX(IF($G$12:$G$503=G107,$BO$12:$BO$503))<$B$31,BP107,1),BP107),"") ->  | BT107: =IF(MAX(IF($G$12:G107=G107,$BO$12:BO107))<$B$30,COUNTIFS($BO$12:BO107,">"&$B$56,$G$12:G107,G107),0) -> 0 | CY107: =IF(G107<>"",MAX(IF($I$11:I106<>$B$14,$M$11:M106)),"") ->  | CZ107: =IF(CX107<>"",IF(CX107=0,0,IF(G107<>G106,0,IFERROR(INDEX($CZ$11:CZ106, MATCH(MAX($CY$11:CY106), $M$11:M106, 0))+1,1))),"") ->  | DB107: =IF(DA107<>"",IF(DA107=0,0,IF(G107<>G106,0,IFERROR(INDEX($DB$11:DB106, MATCH(MAX($CY$11:CY106), $M$11:M106, 0))+1,1))),"") ->  | DK107: =IF(G106<>G107,MAX(IF($G$12:$G$503=G107,$DI$12:$DI$503)),"") -> 
L108: 2024-08-28 | Q108: 2024-08-28 | X108: =IF(M108=MIN(IF($M$12:$M$501>=$O$1,$M$12:$M$501)),$B$40,IF(M108=MIN(IF($M$12:$M$501>=$O$1+7,$M$12:$M$501)),$B$41,IF(M108=MIN(IF($M$12:$M$501>=$O$1+14,$M$12:$M$501)),$B$42,IF(M108=MIN(IF($M$12:$M$501>=$O$1+21,$M$12:$M$501)),$B$43,IF(M108=MIN(IF($M$12:$M$501>=$O$1+28,$M$12:$M$501)),$B$44,""))))) ->  | Y108: =IF(M108=MIN(IF($M$12:$M$501>=$O$1,$M$12:$M$501)),$B$40,IF(M108=MIN(IF($M$12:$M$501>=$O$1+14,$M$12:$M$501)),$B$41,IF(M108=MIN(IF($M$12:$M$501>=$O$1+28,$M$12:$M$501)),$B$42,""))) ->  | BQ108: =IF(G108<>G107,IF(BP108>=2,IF(MAX(IF($G$12:$G$503=G108,$BO$12:$BO$503))<$B$30,BP108,1),BP108),"") ->  | BR108: =IF(G108<>G107,IF(BP108>=2,IF(MAX(IF($G$12:$G$503=G108,$BO$12:$BO$503))<$B$31,BP108,1),BP108),"") ->  | BT108: =IF(MAX(IF($G$12:G108=G108,$BO$12:BO108))<$B$30,COUNTIFS($BO$12:BO108,">"&$B$56,$G$12:G108,G108),0) -> 0 | CY108: =IF(G108<>"",MAX(IF($I$11:I107<>$B$14,$M$11:M107)),"") ->  | CZ108: =IF(CX108<>"",IF(CX108=0,0,IF(G108<>G107,0,IFERROR(INDEX($CZ$11:CZ107, MATCH(MAX($CY$11:CY107), $M$11:M107, 0))+1,1))),"") ->  | DB108: =IF(DA108<>"",IF(DA108=0,0,IF(G108<>G107,0,IFERROR(INDEX($DB$11:DB107, MATCH(MAX($CY$11:CY107), $M$11:M107, 0))+1,1))),"") ->  | DK108: =IF(G107<>G108,MAX(IF($G$12:$G$503=G108,$DI$12:$DI$503)),"") -> 
L109: 2024-08-28 | Q109: 2024-08-28 | X109: =IF(M109=MIN(IF($M$12:$M$501>=$O$1,$M$12:$M$501)),$B$40,IF(M109=MIN(IF($M$12:$M$501>=$O$1+7,$M$12:$M$501)),$B$41,IF(M109=MIN(IF($M$12:$M$501>=$O$1+14,$M$12:$M$501)),$B$42,IF(M109=MIN(IF($M$12:$M$501>=$O$1+21,$M$12:$M$501)),$B$43,IF(M109=MIN(IF($M$12:$M$501>=$O$1+28,$M$12:$M$501)),$B$44,""))))) ->  | Y109: =IF(M109=MIN(IF($M$12:$M$501>=$O$1,$M$12:$M$501)),$B$40,IF(M109=MIN(IF($M$12:$M$501>=$O$1+14,$M$12:$M$501)),$B$41,IF(M109=MIN(IF($M$12:$M$501>=$O$1+28,$M$12:$M$501)),$B$42,""))) ->  | BQ109: =IF(G109<>G108,IF(BP109>=2,IF(MAX(IF($G$12:$G$503=G109,$BO$12:$BO$503))<$B$30,BP109,1),BP109),"") ->  | BR109: =IF(G109<>G108,IF(BP109>=2,IF(MAX(IF($G$12:$G$503=G109,$BO$12:$BO$503))<$B$31,BP109,1),BP109),"") ->  | BT109: =IF(MAX(IF($G$12:G109=G109,$BO$12:BO109))<$B$30,COUNTIFS($BO$12:BO109,">"&$B$56,$G$12:G109,G109),0) -> 0 | CY109: =IF(G109<>"",MAX(IF($I$11:I108<>$B$14,$M$11:M108)),"") ->  | CZ109: =IF(CX109<>"",IF(CX109=0,0,IF(G109<>G108,0,IFERROR(INDEX($CZ$11:CZ108, MATCH(MAX($CY$11:CY108), $M$11:M108, 0))+1,1))),"") ->  | DB109: =IF(DA109<>"",IF(DA109=0,0,IF(G109<>G108,0,IFERROR(INDEX($DB$11:DB108, MATCH(MAX($CY$11:CY108), $M$11:M108, 0))+1,1))),"") ->  | DK109: =IF(G108<>G109,MAX(IF($G$12:$G$503=G109,$DI$12:$DI$503)),"") -> 
L110: 2024-08-28 | Q110: 2024-08-28 | X110: =IF(M110=MIN(IF($M$12:$M$501>=$O$1,$M$12:$M$501)),$B$40,IF(M110=MIN(IF($M$12:$M$501>=$O$1+7,$M$12:$M$501)),$B$41,IF(M110=MIN(IF($M$12:$M$501>=$O$1+14,$M$12:$M$501)),$B$42,IF(M110=MIN(IF($M$12:$M$501>=$O$1+21,$M$12:$M$501)),$B$43,IF(M110=MIN(IF($M$12:$M$501>=$O$1+28,$M$12:$M$501)),$B$44,""))))) ->  | Y110: =IF(M110=MIN(IF($M$12:$M$501>=$O$1,$M$12:$M$501)),$B$40,IF(M110=MIN(IF($M$12:$M$501>=$O$1+14,$M$12:$M$501)),$B$41,IF(M110=MIN(IF($M$12:$M$501>=$O$1+28,$M$12:$M$501)),$B$42,""))) ->  | BQ110: =IF(G110<>G109,IF(BP110>=2,IF(MAX(IF($G$12:$G$503=G110,$BO$12:$BO$503))<$B$30,BP110,1),BP110),"") ->  | BR110: =IF(G110<>G109,IF(BP110>=2,IF(MAX(IF($G$12:$G$503=G110,$BO$12:$BO$503))<$B$31,BP110,1),BP110),"") ->  | BT110: =IF(MAX(IF($G$12:G110=G110,$BO$12:BO110))<$B$30,COUNTIFS($BO$12:BO110,">"&$B$56,$G$12:G110,G110),0) -> 0 | CY110: =IF(G110<>"",MAX(IF($I$11:I109<>$B$14,$M$11:M109)),"") ->  | CZ110: =IF(CX110<>"",IF(CX110=0,0,IF(G110<>G109,0,IFERROR(INDEX($CZ$11:CZ109, MATCH(MAX($CY$11:CY109), $M$11:M109, 0))+1,1))),"") ->  | DB110: =IF(DA110<>"",IF(DA110=0,0,IF(G110<>G109,0,IFERROR(INDEX($DB$11:DB109, MATCH(MAX($CY$11:CY109), $M$11:M109, 0))+1,1))),"") ->  | DK110: =IF(G109<>G110,MAX(IF($G$12:$G$503=G110,$DI$12:$DI$503)),"") -> 
L111: 2024-08-28 | Q111: 2024-08-28 | X111: =IF(M111=MIN(IF($M$12:$M$501>=$O$1,$M$12:$M$501)),$B$40,IF(M111=MIN(IF($M$12:$M$501>=$O$1+7,$M$12:$M$501)),$B$41,IF(M111=MIN(IF($M$12:$M$501>=$O$1+14,$M$12:$M$501)),$B$42,IF(M111=MIN(IF($M$12:$M$501>=$O$1+21,$M$12:$M$501)),$B$43,IF(M111=MIN(IF($M$12:$M$501>=$O$1+28,$M$12:$M$501)),$B$44,""))))) ->  | Y111: =IF(M111=MIN(IF($M$12:$M$501>=$O$1,$M$12:$M$501)),$B$40,IF(M111=MIN(IF($M$12:$M$501>=$O$1+14,$M$12:$M$501)),$B$41,IF(M111=MIN(IF($M$12:$M$501>=$O$1+28,$M$12:$M$501)),$B$42,""))) ->  | BQ111: =IF(G111<>G110,IF(BP111>=2,IF(MAX(IF($G$12:$G$503=G111,$BO$12:$BO$503))<$B$30,BP111,1),BP111),"") ->  | BR111: =IF(G111<>G110,IF(BP111>=2,IF(MAX(IF($G$12:$G$503=G111,$BO$12:$BO$503))<$B$31,BP111,1),BP111),"") ->  | BT111: =IF(MAX(IF($G$12:G111=G111,$BO$12:BO111))<$B$30,COUNTIFS($BO$12:BO111,">"&$B$56,$G$12:G111,G111),0) -> 0 | CY111: =IF(G111<>"",MAX(IF($I$11:I110<>$B$14,$M$11:M110)),"") ->  | CZ111: =IF(CX111<>"",IF(CX111=0,0,IF(G111<>G110,0,IFERROR(INDEX($CZ$11:CZ110, MATCH(MAX($CY$11:CY110), $M$11:M110, 0))+1,1))),"") ->  | DB111: =IF(DA111<>"",IF(DA111=0,0,IF(G111<>G110,0,IFERROR(INDEX($DB$11:DB110, MATCH(MAX($CY$11:CY110), $M$11:M110, 0))+1,1))),"") ->  | DK111: =IF(G110<>G111,MAX(IF($G$12:$G$503=G111,$DI$12:$DI$503)),"") -> 
L112: 2024-08-28 | Q112: 2024-08-28 | X112: =IF(M112=MIN(IF($M$12:$M$501>=$O$1,$M$12:$M$501)),$B$40,IF(M112=MIN(IF($M$12:$M$501>=$O$1+7,$M$12:$M$501)),$B$41,IF(M112=MIN(IF($M$12:$M$501>=$O$1+14,$M$12:$M$501)),$B$42,IF(M112=MIN(IF($M$12:$M$501>=$O$1+21,$M$12:$M$501)),$B$43,IF(M112=MIN(IF($M$12:$M$501>=$O$1+28,$M$12:$M$501)),$B$44,""))))) ->  | Y112: =IF(M112=MIN(IF($M$12:$M$501>=$O$1,$M$12:$M$501)),$B$40,IF(M112=MIN(IF($M$12:$M$501>=$O$1+14,$M$12:$M$501)),$B$41,IF(M112=MIN(IF($M$12:$M$501>=$O$1+28,$M$12:$M$501)),$B$42,""))) ->  | BQ112: =IF(G112<>G111,IF(BP112>=2,IF(MAX(IF($G$12:$G$503=G112,$BO$12:$BO$503))<$B$30,BP112,1),BP112),"") ->  | BR112: =IF(G112<>G111,IF(BP112>=2,IF(MAX(IF($G$12:$G$503=G112,$BO$12:$BO$503))<$B$31,BP112,1),BP112),"") ->  | BT112: =IF(MAX(IF($G$12:G112=G112,$BO$12:BO112))<$B$30,COUNTIFS($BO$12:BO112,">"&$B$56,$G$12:G112,G112),0) -> 0 | CY112: =IF(G112<>"",MAX(IF($I$11:I111<>$B$14,$M$11:M111)),"") ->  | CZ112: =IF(CX112<>"",IF(CX112=0,0,IF(G112<>G111,0,IFERROR(INDEX($CZ$11:CZ111, MATCH(MAX($CY$11:CY111), $M$11:M111, 0))+1,1))),"") ->  | DB112: =IF(DA112<>"",IF(DA112=0,0,IF(G112<>G111,0,IFERROR(INDEX($DB$11:DB111, MATCH(MAX($CY$11:CY111), $M$11:M111, 0))+1,1))),"") ->  | DK112: =IF(G111<>G112,MAX(IF($G$12:$G$503=G112,$DI$12:$DI$503)),"") -> 
L113: 2024-08-28 | Q113: 2024-08-28 | X113: =IF(M113=MIN(IF($M$12:$M$501>=$O$1,$M$12:$M$501)),$B$40,IF(M113=MIN(IF($M$12:$M$501>=$O$1+7,$M$12:$M$501)),$B$41,IF(M113=MIN(IF($M$12:$M$501>=$O$1+14,$M$12:$M$501)),$B$42,IF(M113=MIN(IF($M$12:$M$501>=$O$1+21,$M$12:$M$501)),$B$43,IF(M113=MIN(IF($M$12:$M$501>=$O$1+28,$M$12:$M$501)),$B$44,""))))) ->  | Y113: =IF(M113=MIN(IF($M$12:$M$501>=$O$1,$M$12:$M$501)),$B$40,IF(M113=MIN(IF($M$12:$M$501>=$O$1+14,$M$12:$M$501)),$B$41,IF(M113=MIN(IF($M$12:$M$501>=$O$1+28,$M$12:$M$501)),$B$42,""))) ->  | BQ113: =IF(G113<>G112,IF(BP113>=2,IF(MAX(IF($G$12:$G$503=G113,$BO$12:$BO$503))<$B$30,BP113,1),BP113),"") ->  | BR113: =IF(G113<>G112,IF(BP113>=2,IF(MAX(IF($G$12:$G$503=G113,$BO$12:$BO$503))<$B$31,BP113,1),BP113),"") ->  | BT113: =IF(MAX(IF($G$12:G113=G113,$BO$12:BO113))<$B$30,COUNTIFS($BO$12:BO113,">"&$B$56,$G$12:G113,G113),0) -> 0 | CY113: =IF(G113<>"",MAX(IF($I$11:I112<>$B$14,$M$11:M112)),"") ->  | CZ113: =IF(CX113<>"",IF(CX113=0,0,IF(G113<>G112,0,IFERROR(INDEX($CZ$11:CZ112, MATCH(MAX($CY$11:CY112), $M$11:M112, 0))+1,1))),"") ->  | DB113: =IF(DA113<>"",IF(DA113=0,0,IF(G113<>G112,0,IFERROR(INDEX($DB$11:DB112, MATCH(MAX($CY$11:CY112), $M$11:M112, 0))+1,1))),"") ->  | DK113: =IF(G112<>G113,MAX(IF($G$12:$G$503=G113,$DI$12:$DI$503)),"") -> 
L114: 2024-08-28 | Q114: 2024-08-28 | X114: =IF(M114=MIN(IF($M$12:$M$501>=$O$1,$M$12:$M$501)),$B$40,IF(M114=MIN(IF($M$12:$M$501>=$O$1+7,$M$12:$M$501)),$B$41,IF(M114=MIN(IF($M$12:$M$501>=$O$1+14,$M$12:$M$501)),$B$42,IF(M114=MIN(IF($M$12:$M$501>=$O$1+21,$M$12:$M$501)),$B$43,IF(M114=MIN(IF($M$12:$M$501>=$O$1+28,$M$12:$M$501)),$B$44,""))))) ->  | Y114: =IF(M114=MIN(IF($M$12:$M$501>=$O$1,$M$12:$M$501)),$B$40,IF(M114=MIN(IF($M$12:$M$501>=$O$1+14,$M$12:$M$501)),$B$41,IF(M114=MIN(IF($M$12:$M$501>=$O$1+28,$M$12:$M$501)),$B$42,""))) ->  | BQ114: =IF(G114<>G113,IF(BP114>=2,IF(MAX(IF($G$12:$G$503=G114,$BO$12:$BO$503))<$B$30,BP114,1),BP114),"") ->  | BR114: =IF(G114<>G113,IF(BP114>=2,IF(MAX(IF($G$12:$G$503=G114,$BO$12:$BO$503))<$B$31,BP114,1),BP114),"") ->  | BT114: =IF(MAX(IF($G$12:G114=G114,$BO$12:BO114))<$B$30,COUNTIFS($BO$12:BO114,">"&$B$56,$G$12:G114,G114),0) -> 0 | CY114: =IF(G114<>"",MAX(IF($I$11:I113<>$B$14,$M$11:M113)),"") ->  | CZ114: =IF(CX114<>"",IF(CX114=0,0,IF(G114<>G113,0,IFERROR(INDEX($CZ$11:CZ113, MATCH(MAX($CY$11:CY113), $M$11:M113, 0))+1,1))),"") ->  | DB114: =IF(DA114<>"",IF(DA114=0,0,IF(G114<>G113,0,IFERROR(INDEX($DB$11:DB113, MATCH(MAX($CY$11:CY113), $M$11:M113, 0))+1,1))),"") ->  | DK114: =IF(G113<>G114,MAX(IF($G$12:$G$503=G114,$DI$12:$DI$503)),"") -> 
L115: 2024-08-28 | Q115: 2024-08-28 | X115: =IF(M115=MIN(IF($M$12:$M$501>=$O$1,$M$12:$M$501)),$B$40,IF(M115=MIN(IF($M$12:$M$501>=$O$1+7,$M$12:$M$501)),$B$41,IF(M115=MIN(IF($M$12:$M$501>=$O$1+14,$M$12:$M$501)),$B$42,IF(M115=MIN(IF($M$12:$M$501>=$O$1+21,$M$12:$M$501)),$B$43,IF(M115=MIN(IF($M$12:$M$501>=$O$1+28,$M$12:$M$501)),$B$44,""))))) ->  | Y115: =IF(M115=MIN(IF($M$12:$M$501>=$O$1,$M$12:$M$501)),$B$40,IF(M115=MIN(IF($M$12:$M$501>=$O$1+14,$M$12:$M$501)),$B$41,IF(M115=MIN(IF($M$12:$M$501>=$O$1+28,$M$12:$M$501)),$B$42,""))) ->  | BQ115: =IF(G115<>G114,IF(BP115>=2,IF(MAX(IF($G$12:$G$503=G115,$BO$12:$BO$503))<$B$30,BP115,1),BP115),"") ->  | BR115: =IF(G115<>G114,IF(BP115>=2,IF(MAX(IF($G$12:$G$503=G115,$BO$12:$BO$503))<$B$31,BP115,1),BP115),"") ->  | BT115: =IF(MAX(IF($G$12:G115=G115,$BO$12:BO115))<$B$30,COUNTIFS($BO$12:BO115,">"&$B$56,$G$12:G115,G115),0) -> 0 | CY115: =IF(G115<>"",MAX(IF($I$11:I114<>$B$14,$M$11:M114)),"") ->  | CZ115: =IF(CX115<>"",IF(CX115=0,0,IF(G115<>G114,0,IFERROR(INDEX($CZ$11:CZ114, MATCH(MAX($CY$11:CY114), $M$11:M114, 0))+1,1))),"") ->  | DB115: =IF(DA115<>"",IF(DA115=0,0,IF(G115<>G114,0,IFERROR(INDEX($DB$11:DB114, MATCH(MAX($CY$11:CY114), $M$11:M114, 0))+1,1))),"") ->  | DK115: =IF(G114<>G115,MAX(IF($G$12:$G$503=G115,$DI$12:$DI$503)),"") -> 
L116: 2024-08-28 | Q116: 2024-08-28 | X116: =IF(M116=MIN(IF($M$12:$M$501>=$O$1,$M$12:$M$501)),$B$40,IF(M116=MIN(IF($M$12:$M$501>=$O$1+7,$M$12:$M$501)),$B$41,IF(M116=MIN(IF($M$12:$M$501>=$O$1+14,$M$12:$M$501)),$B$42,IF(M116=MIN(IF($M$12:$M$501>=$O$1+21,$M$12:$M$501)),$B$43,IF(M116=MIN(IF($M$12:$M$501>=$O$1+28,$M$12:$M$501)),$B$44,""))))) ->  | Y116: =IF(M116=MIN(IF($M$12:$M$501>=$O$1,$M$12:$M$501)),$B$40,IF(M116=MIN(IF($M$12:$M$501>=$O$1+14,$M$12:$M$501)),$B$41,IF(M116=MIN(IF($M$12:$M$501>=$O$1+28,$M$12:$M$501)),$B$42,""))) ->  | BQ116: =IF(G116<>G115,IF(BP116>=2,IF(MAX(IF($G$12:$G$503=G116,$BO$12:$BO$503))<$B$30,BP116,1),BP116),"") ->  | BR116: =IF(G116<>G115,IF(BP116>=2,IF(MAX(IF($G$12:$G$503=G116,$BO$12:$BO$503))<$B$31,BP116,1),BP116),"") ->  | BT116: =IF(MAX(IF($G$12:G116=G116,$BO$12:BO116))<$B$30,COUNTIFS($BO$12:BO116,">"&$B$56,$G$12:G116,G116),0) -> 0 | CY116: =IF(G116<>"",MAX(IF($I$11:I115<>$B$14,$M$11:M115)),"") ->  | CZ116: =IF(CX116<>"",IF(CX116=0,0,IF(G116<>G115,0,IFERROR(INDEX($CZ$11:CZ115, MATCH(MAX($CY$11:CY115), $M$11:M115, 0))+1,1))),"") ->  | DB116: =IF(DA116<>"",IF(DA116=0,0,IF(G116<>G115,0,IFERROR(INDEX($DB$11:DB115, MATCH(MAX($CY$11:CY115), $M$11:M115, 0))+1,1))),"") ->  | DK116: =IF(G115<>G116,MAX(IF($G$12:$G$503=G116,$DI$12:$DI$503)),"") -> 
L117: 2024-08-28 | Q117: 2024-08-28 | T117: =IF(S117<>"",S117/1440,"") ->  | X117: =IF(M117=MIN(IF($M$12:$M$501>=$O$1,$M$12:$M$501)),$B$40,IF(M117=MIN(IF($M$12:$M$501>=$O$1+7,$M$12:$M$501)),$B$41,IF(M117=MIN(IF($M$12:$M$501>=$O$1+14,$M$12:$M$501)),$B$42,IF(M117=MIN(IF($M$12:$M$501>=$O$1+21,$M$12:$M$501)),$B$43,IF(M117=MIN(IF($M$12:$M$501>=$O$1+28,$M$12:$M$501)),$B$44,""))))) ->  | Y117: =IF(M117=MIN(IF($M$12:$M$501>=$O$1,$M$12:$M$501)),$B$40,IF(M117=MIN(IF($M$12:$M$501>=$O$1+14,$M$12:$M$501)),$B$41,IF(M117=MIN(IF($M$12:$M$501>=$O$1+28,$M$12:$M$501)),$B$42,""))) ->  | BQ117: =IF(G117<>G116,IF(BP117>=2,IF(MAX(IF($G$12:$G$503=G117,$BO$12:$BO$503))<$B$30,BP117,1),BP117),"") ->  | BR117: =IF(G117<>G116,IF(BP117>=2,IF(MAX(IF($G$12:$G$503=G117,$BO$12:$BO$503))<$B$31,BP117,1),BP117),"") ->  | BT117: =IF(MAX(IF($G$12:G117=G117,$BO$12:BO117))<$B$30,COUNTIFS($BO$12:BO117,">"&$B$56,$G$12:G117,G117),0) -> 0 | CY117: =IF(G117<>"",MAX(IF($I$11:I116<>$B$14,$M$11:M116)),"") ->  | CZ117: =IF(CX117<>"",IF(CX117=0,0,IF(G117<>G116,0,IFERROR(INDEX($CZ$11:CZ116, MATCH(MAX($CY$11:CY116), $M$11:M116, 0))+1,1))),"") ->  | DB117: =IF(DA117<>"",IF(DA117=0,0,IF(G117<>G116,0,IFERROR(INDEX($DB$11:DB116, MATCH(MAX($CY$11:CY116), $M$11:M116, 0))+1,1))),"") ->  | DK117: =IF(G116<>G117,MAX(IF($G$12:$G$503=G117,$DI$12:$DI$503)),"") -> 
L118: 2024-08-28 | Q118: 2024-08-28 | X118: =IF(M118=MIN(IF($M$12:$M$501>=$O$1,$M$12:$M$501)),$B$40,IF(M118=MIN(IF($M$12:$M$501>=$O$1+7,$M$12:$M$501)),$B$41,IF(M118=MIN(IF($M$12:$M$501>=$O$1+14,$M$12:$M$501)),$B$42,IF(M118=MIN(IF($M$12:$M$501>=$O$1+21,$M$12:$M$501)),$B$43,IF(M118=MIN(IF($M$12:$M$501>=$O$1+28,$M$12:$M$501)),$B$44,""))))) ->  | Y118: =IF(M118=MIN(IF($M$12:$M$501>=$O$1,$M$12:$M$501)),$B$40,IF(M118=MIN(IF($M$12:$M$501>=$O$1+14,$M$12:$M$501)),$B$41,IF(M118=MIN(IF($M$12:$M$501>=$O$1+28,$M$12:$M$501)),$B$42,""))) ->  | BQ118: =IF(G118<>G117,IF(BP118>=2,IF(MAX(IF($G$12:$G$503=G118,$BO$12:$BO$503))<$B$30,BP118,1),BP118),"") ->  | BR118: =IF(G118<>G117,IF(BP118>=2,IF(MAX(IF($G$12:$G$503=G118,$BO$12:$BO$503))<$B$31,BP118,1),BP118),"") ->  | BT118: =IF(MAX(IF($G$12:G118=G118,$BO$12:BO118))<$B$30,COUNTIFS($BO$12:BO118,">"&$B$56,$G$12:G118,G118),0) -> 0 | CY118: =IF(G118<>"",MAX(IF($I$11:I117<>$B$14,$M$11:M117)),"") ->  | CZ118: =IF(CX118<>"",IF(CX118=0,0,IF(G118<>G117,0,IFERROR(INDEX($CZ$11:CZ117, MATCH(MAX($CY$11:CY117), $M$11:M117, 0))+1,1))),"") ->  | DB118: =IF(DA118<>"",IF(DA118=0,0,IF(G118<>G117,0,IFERROR(INDEX($DB$11:DB117, MATCH(MAX($CY$11:CY117), $M$11:M117, 0))+1,1))),"") ->  | DK118: =IF(G117<>G118,MAX(IF($G$12:$G$503=G118,$DI$12:$DI$503)),"") -> 
L119: 2024-08-28 | Q119: 2024-08-28 | X119: =IF(M119=MIN(IF($M$12:$M$501>=$O$1,$M$12:$M$501)),$B$40,IF(M119=MIN(IF($M$12:$M$501>=$O$1+7,$M$12:$M$501)),$B$41,IF(M119=MIN(IF($M$12:$M$501>=$O$1+14,$M$12:$M$501)),$B$42,IF(M119=MIN(IF($M$12:$M$501>=$O$1+21,$M$12:$M$501)),$B$43,IF(M119=MIN(IF($M$12:$M$501>=$O$1+28,$M$12:$M$501)),$B$44,""))))) ->  | Y119: =IF(M119=MIN(IF($M$12:$M$501>=$O$1,$M$12:$M$501)),$B$40,IF(M119=MIN(IF($M$12:$M$501>=$O$1+14,$M$12:$M$501)),$B$41,IF(M119=MIN(IF($M$12:$M$501>=$O$1+28,$M$12:$M$501)),$B$42,""))) ->  | BQ119: =IF(G119<>G118,IF(BP119>=2,IF(MAX(IF($G$12:$G$503=G119,$BO$12:$BO$503))<$B$30,BP119,1),BP119),"") ->  | BR119: =IF(G119<>G118,IF(BP119>=2,IF(MAX(IF($G$12:$G$503=G119,$BO$12:$BO$503))<$B$31,BP119,1),BP119),"") ->  | BT119: =IF(MAX(IF($G$12:G119=G119,$BO$12:BO119))<$B$30,COUNTIFS($BO$12:BO119,">"&$B$56,$G$12:G119,G119),0) -> 0 | CY119: =IF(G119<>"",MAX(IF($I$11:I118<>$B$14,$M$11:M118)),"") ->  | CZ119: =IF(CX119<>"",IF(CX119=0,0,IF(G119<>G118,0,IFERROR(INDEX($CZ$11:CZ118, MATCH(MAX($CY$11:CY118), $M$11:M118, 0))+1,1))),"") ->  | DB119: =IF(DA119<>"",IF(DA119=0,0,IF(G119<>G118,0,IFERROR(INDEX($DB$11:DB118, MATCH(MAX($CY$11:CY118), $M$11:M118, 0))+1,1))),"") ->  | DK119: =IF(G118<>G119,MAX(IF($G$12:$G$503=G119,$DI$12:$DI$503)),"") -> 
L120: 2024-08-28 | Q120: 2024-08-28 | X120: =IF(M120=MIN(IF($M$12:$M$501>=$O$1,$M$12:$M$501)),$B$40,IF(M120=MIN(IF($M$12:$M$501>=$O$1+7,$M$12:$M$501)),$B$41,IF(M120=MIN(IF($M$12:$M$501>=$O$1+14,$M$12:$M$501)),$B$42,IF(M120=MIN(IF($M$12:$M$501>=$O$1+21,$M$12:$M$501)),$B$43,IF(M120=MIN(IF($M$12:$M$501>=$O$1+28,$M$12:$M$501)),$B$44,""))))) ->  | Y120: =IF(M120=MIN(IF($M$12:$M$501>=$O$1,$M$12:$M$501)),$B$40,IF(M120=MIN(IF($M$12:$M$501>=$O$1+14,$M$12:$M$501)),$B$41,IF(M120=MIN(IF($M$12:$M$501>=$O$1+28,$M$12:$M$501)),$B$42,""))) ->  | BQ120: =IF(G120<>G119,IF(BP120>=2,IF(MAX(IF($G$12:$G$503=G120,$BO$12:$BO$503))<$B$30,BP120,1),BP120),"") ->  | BR120: =IF(G120<>G119,IF(BP120>=2,IF(MAX(IF($G$12:$G$503=G120,$BO$12:$BO$503))<$B$31,BP120,1),BP120),"") ->  | BT120: =IF(MAX(IF($G$12:G120=G120,$BO$12:BO120))<$B$30,COUNTIFS($BO$12:BO120,">"&$B$56,$G$12:G120,G120),0) -> 0 | CY120: =IF(G120<>"",MAX(IF($I$11:I119<>$B$14,$M$11:M119)),"") ->  | CZ120: =IF(CX120<>"",IF(CX120=0,0,IF(G120<>G119,0,IFERROR(INDEX($CZ$11:CZ119, MATCH(MAX($CY$11:CY119), $M$11:M119, 0))+1,1))),"") ->  | DB120: =IF(DA120<>"",IF(DA120=0,0,IF(G120<>G119,0,IFERROR(INDEX($DB$11:DB119, MATCH(MAX($CY$11:CY119), $M$11:M119, 0))+1,1))),"") ->  | DK120: =IF(G119<>G120,MAX(IF($G$12:$G$503=G120,$DI$12:$DI$503)),"") -> 
J121: =IF(OR(I121=$B$17, I121=$B$18),IF(S121<$B$52,1,""),"") ->  | K121: =IFERROR(VLOOKUP(I121,$B$14:$C$18,2,FALSE),"") ->  | L121: 2024-08-28 | Q121: 2024-08-28 | X121: =IF(M121=MIN(IF($M$12:$M$501>=$O$1,$M$12:$M$501)),$B$40,IF(M121=MIN(IF($M$12:$M$501>=$O$1+7,$M$12:$M$501)),$B$41,IF(M121=MIN(IF($M$12:$M$501>=$O$1+14,$M$12:$M$501)),$B$42,IF(M121=MIN(IF($M$12:$M$501>=$O$1+21,$M$12:$M$501)),$B$43,IF(M121=MIN(IF($M$12:$M$501>=$O$1+28,$M$12:$M$501)),$B$44,""))))) ->  | Y121: =IF(M121=MIN(IF($M$12:$M$501>=$O$1,$M$12:$M$501)),$B$40,IF(M121=MIN(IF($M$12:$M$501>=$O$1+14,$M$12:$M$501)),$B$41,IF(M121=MIN(IF($M$12:$M$501>=$O$1+28,$M$12:$M$501)),$B$42,""))) ->  | BQ121: =IF(G121<>G120,IF(BP121>=2,IF(MAX(IF($G$12:$G$503=G121,$BO$12:$BO$503))<$B$30,BP121,1),BP121),"") ->  | BR121: =IF(G121<>G120,IF(BP121>=2,IF(MAX(IF($G$12:$G$503=G121,$BO$12:$BO$503))<$B$31,BP121,1),BP121),"") ->  | BT121: =IF(MAX(IF($G$12:G121=G121,$BO$12:BO121))<$B$30,COUNTIFS($BO$12:BO121,">"&$B$56,$G$12:G121,G121),0) -> 0 | CY121: =IF(G121<>"",MAX(IF($I$11:I120<>$B$14,$M$11:M120)),"") ->  | CZ121: =IF(CX121<>"",IF(CX121=0,0,IF(G121<>G120,0,IFERROR(INDEX($CZ$11:CZ120, MATCH(MAX($CY$11:CY120), $M$11:M120, 0))+1,1))),"") ->  | DB121: =IF(DA121<>"",IF(DA121=0,0,IF(G121<>G120,0,IFERROR(INDEX($DB$11:DB120, MATCH(MAX($CY$11:CY120), $M$11:M120, 0))+1,1))),"") ->  | DK121: =IF(G120<>G121,MAX(IF($G$12:$G$503=G121,$DI$12:$DI$503)),"") -> 
L122: 2024-08-28 | Q122: 2024-08-28 | X122: =IF(M122=MIN(IF($M$12:$M$501>=$O$1,$M$12:$M$501)),$B$40,IF(M122=MIN(IF($M$12:$M$501>=$O$1+7,$M$12:$M$501)),$B$41,IF(M122=MIN(IF($M$12:$M$501>=$O$1+14,$M$12:$M$501)),$B$42,IF(M122=MIN(IF($M$12:$M$501>=$O$1+21,$M$12:$M$501)),$B$43,IF(M122=MIN(IF($M$12:$M$501>=$O$1+28,$M$12:$M$501)),$B$44,""))))) ->  | Y122: =IF(M122=MIN(IF($M$12:$M$501>=$O$1,$M$12:$M$501)),$B$40,IF(M122=MIN(IF($M$12:$M$501>=$O$1+14,$M$12:$M$501)),$B$41,IF(M122=MIN(IF($M$12:$M$501>=$O$1+28,$M$12:$M$501)),$B$42,""))) ->  | BQ122: =IF(G122<>G121,IF(BP122>=2,IF(MAX(IF($G$12:$G$503=G122,$BO$12:$BO$503))<$B$30,BP122,1),BP122),"") ->  | BR122: =IF(G122<>G121,IF(BP122>=2,IF(MAX(IF($G$12:$G$503=G122,$BO$12:$BO$503))<$B$31,BP122,1),BP122),"") ->  | BT122: =IF(MAX(IF($G$12:G122=G122,$BO$12:BO122))<$B$30,COUNTIFS($BO$12:BO122,">"&$B$56,$G$12:G122,G122),0) -> 0 | CY122: =IF(G122<>"",MAX(IF($I$11:I121<>$B$14,$M$11:M121)),"") ->  | CZ122: =IF(CX122<>"",IF(CX122=0,0,IF(G122<>G121,0,IFERROR(INDEX($CZ$11:CZ121, MATCH(MAX($CY$11:CY121), $M$11:M121, 0))+1,1))),"") ->  | DB122: =IF(DA122<>"",IF(DA122=0,0,IF(G122<>G121,0,IFERROR(INDEX($DB$11:DB121, MATCH(MAX($CY$11:CY121), $M$11:M121, 0))+1,1))),"") ->  | DK122: =IF(G121<>G122,MAX(IF($G$12:$G$503=G122,$DI$12:$DI$503)),"") -> 
L123: 2024-08-28 | Q123: 2024-08-28 | X123: =IF(M123=MIN(IF($M$12:$M$501>=$O$1,$M$12:$M$501)),$B$40,IF(M123=MIN(IF($M$12:$M$501>=$O$1+7,$M$12:$M$501)),$B$41,IF(M123=MIN(IF($M$12:$M$501>=$O$1+14,$M$12:$M$501)),$B$42,IF(M123=MIN(IF($M$12:$M$501>=$O$1+21,$M$12:$M$501)),$B$43,IF(M123=MIN(IF($M$12:$M$501>=$O$1+28,$M$12:$M$501)),$B$44,""))))) ->  | Y123: =IF(M123=MIN(IF($M$12:$M$501>=$O$1,$M$12:$M$501)),$B$40,IF(M123=MIN(IF($M$12:$M$501>=$O$1+14,$M$12:$M$501)),$B$41,IF(M123=MIN(IF($M$12:$M$501>=$O$1+28,$M$12:$M$501)),$B$42,""))) ->  | BQ123: =IF(G123<>G122,IF(BP123>=2,IF(MAX(IF($G$12:$G$503=G123,$BO$12:$BO$503))<$B$30,BP123,1),BP123),"") ->  | BR123: =IF(G123<>G122,IF(BP123>=2,IF(MAX(IF($G$12:$G$503=G123,$BO$12:$BO$503))<$B$31,BP123,1),BP123),"") ->  | BT123: =IF(MAX(IF($G$12:G123=G123,$BO$12:BO123))<$B$30,COUNTIFS($BO$12:BO123,">"&$B$56,$G$12:G123,G123),0) -> 0 | CY123: =IF(G123<>"",MAX(IF($I$11:I122<>$B$14,$M$11:M122)),"") ->  | CZ123: =IF(CX123<>"",IF(CX123=0,0,IF(G123<>G122,0,IFERROR(INDEX($CZ$11:CZ122, MATCH(MAX($CY$11:CY122), $M$11:M122, 0))+1,1))),"") ->  | DB123: =IF(DA123<>"",IF(DA123=0,0,IF(G123<>G122,0,IFERROR(INDEX($DB$11:DB122, MATCH(MAX($CY$11:CY122), $M$11:M122, 0))+1,1))),"") ->  | DK123: =IF(G122<>G123,MAX(IF($G$12:$G$503=G123,$DI$12:$DI$503)),"") -> 
L124: 2024-08-28 | Q124: 2024-08-28 | X124: =IF(M124=MIN(IF($M$12:$M$501>=$O$1,$M$12:$M$501)),$B$40,IF(M124=MIN(IF($M$12:$M$501>=$O$1+7,$M$12:$M$501)),$B$41,IF(M124=MIN(IF($M$12:$M$501>=$O$1+14,$M$12:$M$501)),$B$42,IF(M124=MIN(IF($M$12:$M$501>=$O$1+21,$M$12:$M$501)),$B$43,IF(M124=MIN(IF($M$12:$M$501>=$O$1+28,$M$12:$M$501)),$B$44,""))))) ->  | Y124: =IF(M124=MIN(IF($M$12:$M$501>=$O$1,$M$12:$M$501)),$B$40,IF(M124=MIN(IF($M$12:$M$501>=$O$1+14,$M$12:$M$501)),$B$41,IF(M124=MIN(IF($M$12:$M$501>=$O$1+28,$M$12:$M$501)),$B$42,""))) ->  | BQ124: =IF(G124<>G123,IF(BP124>=2,IF(MAX(IF($G$12:$G$503=G124,$BO$12:$BO$503))<$B$30,BP124,1),BP124),"") ->  | BR124: =IF(G124<>G123,IF(BP124>=2,IF(MAX(IF($G$12:$G$503=G124,$BO$12:$BO$503))<$B$31,BP124,1),BP124),"") ->  | BT124: =IF(MAX(IF($G$12:G124=G124,$BO$12:BO124))<$B$30,COUNTIFS($BO$12:BO124,">"&$B$56,$G$12:G124,G124),0) -> 0 | CY124: =IF(G124<>"",MAX(IF($I$11:I123<>$B$14,$M$11:M123)),"") ->  | CZ124: =IF(CX124<>"",IF(CX124=0,0,IF(G124<>G123,0,IFERROR(INDEX($CZ$11:CZ123, MATCH(MAX($CY$11:CY123), $M$11:M123, 0))+1,1))),"") ->  | DB124: =IF(DA124<>"",IF(DA124=0,0,IF(G124<>G123,0,IFERROR(INDEX($DB$11:DB123, MATCH(MAX($CY$11:CY123), $M$11:M123, 0))+1,1))),"") ->  | DK124: =IF(G123<>G124,MAX(IF($G$12:$G$503=G124,$DI$12:$DI$503)),"") -> 
L125: 2024-08-28 | Q125: 2024-08-28 | X125: =IF(M125=MIN(IF($M$12:$M$501>=$O$1,$M$12:$M$501)),$B$40,IF(M125=MIN(IF($M$12:$M$501>=$O$1+7,$M$12:$M$501)),$B$41,IF(M125=MIN(IF($M$12:$M$501>=$O$1+14,$M$12:$M$501)),$B$42,IF(M125=MIN(IF($M$12:$M$501>=$O$1+21,$M$12:$M$501)),$B$43,IF(M125=MIN(IF($M$12:$M$501>=$O$1+28,$M$12:$M$501)),$B$44,""))))) ->  | Y125: =IF(M125=MIN(IF($M$12:$M$501>=$O$1,$M$12:$M$501)),$B$40,IF(M125=MIN(IF($M$12:$M$501>=$O$1+14,$M$12:$M$501)),$B$41,IF(M125=MIN(IF($M$12:$M$501>=$O$1+28,$M$12:$M$501)),$B$42,""))) ->  | BQ125: =IF(G125<>G124,IF(BP125>=2,IF(MAX(IF($G$12:$G$503=G125,$BO$12:$BO$503))<$B$30,BP125,1),BP125),"") ->  | BR125: =IF(G125<>G124,IF(BP125>=2,IF(MAX(IF($G$12:$G$503=G125,$BO$12:$BO$503))<$B$31,BP125,1),BP125),"") ->  | BT125: =IF(MAX(IF($G$12:G125=G125,$BO$12:BO125))<$B$30,COUNTIFS($BO$12:BO125,">"&$B$56,$G$12:G125,G125),0) -> 0 | CY125: =IF(G125<>"",MAX(IF($I$11:I124<>$B$14,$M$11:M124)),"") ->  | CZ125: =IF(CX125<>"",IF(CX125=0,0,IF(G125<>G124,0,IFERROR(INDEX($CZ$11:CZ124, MATCH(MAX($CY$11:CY124), $M$11:M124, 0))+1,1))),"") ->  | DB125: =IF(DA125<>"",IF(DA125=0,0,IF(G125<>G124,0,IFERROR(INDEX($DB$11:DB124, MATCH(MAX($CY$11:CY124), $M$11:M124, 0))+1,1))),"") ->  | DK125: =IF(G124<>G125,MAX(IF($G$12:$G$503=G125,$DI$12:$DI$503)),"") -> 
L126: 2024-08-28 | Q126: 2024-08-28 | X126: =IF(M126=MIN(IF($M$12:$M$501>=$O$1,$M$12:$M$501)),$B$40,IF(M126=MIN(IF($M$12:$M$501>=$O$1+7,$M$12:$M$501)),$B$41,IF(M126=MIN(IF($M$12:$M$501>=$O$1+14,$M$12:$M$501)),$B$42,IF(M126=MIN(IF($M$12:$M$501>=$O$1+21,$M$12:$M$501)),$B$43,IF(M126=MIN(IF($M$12:$M$501>=$O$1+28,$M$12:$M$501)),$B$44,""))))) ->  | Y126: =IF(M126=MIN(IF($M$12:$M$501>=$O$1,$M$12:$M$501)),$B$40,IF(M126=MIN(IF($M$12:$M$501>=$O$1+14,$M$12:$M$501)),$B$41,IF(M126=MIN(IF($M$12:$M$501>=$O$1+28,$M$12:$M$501)),$B$42,""))) ->  | BQ126: =IF(G126<>G125,IF(BP126>=2,IF(MAX(IF($G$12:$G$503=G126,$BO$12:$BO$503))<$B$30,BP126,1),BP126),"") ->  | BR126: =IF(G126<>G125,IF(BP126>=2,IF(MAX(IF($G$12:$G$503=G126,$BO$12:$BO$503))<$B$31,BP126,1),BP126),"") ->  | BT126: =IF(MAX(IF($G$12:G126=G126,$BO$12:BO126))<$B$30,COUNTIFS($BO$12:BO126,">"&$B$56,$G$12:G126,G126),0) -> 0 | CY126: =IF(G126<>"",MAX(IF($I$11:I125<>$B$14,$M$11:M125)),"") ->  | CZ126: =IF(CX126<>"",IF(CX126=0,0,IF(G126<>G125,0,IFERROR(INDEX($CZ$11:CZ125, MATCH(MAX($CY$11:CY125), $M$11:M125, 0))+1,1))),"") ->  | DB126: =IF(DA126<>"",IF(DA126=0,0,IF(G126<>G125,0,IFERROR(INDEX($DB$11:DB125, MATCH(MAX($CY$11:CY125), $M$11:M125, 0))+1,1))),"") ->  | DK126: =IF(G125<>G126,MAX(IF($G$12:$G$503=G126,$DI$12:$DI$503)),"") -> 
L127: 2024-08-28 | Q127: 2024-08-28 | X127: =IF(M127=MIN(IF($M$12:$M$501>=$O$1,$M$12:$M$501)),$B$40,IF(M127=MIN(IF($M$12:$M$501>=$O$1+7,$M$12:$M$501)),$B$41,IF(M127=MIN(IF($M$12:$M$501>=$O$1+14,$M$12:$M$501)),$B$42,IF(M127=MIN(IF($M$12:$M$501>=$O$1+21,$M$12:$M$501)),$B$43,IF(M127=MIN(IF($M$12:$M$501>=$O$1+28,$M$12:$M$501)),$B$44,""))))) ->  | Y127: =IF(M127=MIN(IF($M$12:$M$501>=$O$1,$M$12:$M$501)),$B$40,IF(M127=MIN(IF($M$12:$M$501>=$O$1+14,$M$12:$M$501)),$B$41,IF(M127=MIN(IF($M$12:$M$501>=$O$1+28,$M$12:$M$501)),$B$42,""))) ->  | BQ127: =IF(G127<>G126,IF(BP127>=2,IF(MAX(IF($G$12:$G$503=G127,$BO$12:$BO$503))<$B$30,BP127,1),BP127),"") ->  | BR127: =IF(G127<>G126,IF(BP127>=2,IF(MAX(IF($G$12:$G$503=G127,$BO$12:$BO$503))<$B$31,BP127,1),BP127),"") ->  | BT127: =IF(MAX(IF($G$12:G127=G127,$BO$12:BO127))<$B$30,COUNTIFS($BO$12:BO127,">"&$B$56,$G$12:G127,G127),0) -> 0 | CY127: =IF(G127<>"",MAX(IF($I$11:I126<>$B$14,$M$11:M126)),"") ->  | CZ127: =IF(CX127<>"",IF(CX127=0,0,IF(G127<>G126,0,IFERROR(INDEX($CZ$11:CZ126, MATCH(MAX($CY$11:CY126), $M$11:M126, 0))+1,1))),"") ->  | DB127: =IF(DA127<>"",IF(DA127=0,0,IF(G127<>G126,0,IFERROR(INDEX($DB$11:DB126, MATCH(MAX($CY$11:CY126), $M$11:M126, 0))+1,1))),"") ->  | DK127: =IF(G126<>G127,MAX(IF($G$12:$G$503=G127,$DI$12:$DI$503)),"") -> 
L128: 2024-08-28 | Q128: 2024-08-28 | X128: =IF(M128=MIN(IF($M$12:$M$501>=$O$1,$M$12:$M$501)),$B$40,IF(M128=MIN(IF($M$12:$M$501>=$O$1+7,$M$12:$M$501)),$B$41,IF(M128=MIN(IF($M$12:$M$501>=$O$1+14,$M$12:$M$501)),$B$42,IF(M128=MIN(IF($M$12:$M$501>=$O$1+21,$M$12:$M$501)),$B$43,IF(M128=MIN(IF($M$12:$M$501>=$O$1+28,$M$12:$M$501)),$B$44,""))))) ->  | Y128: =IF(M128=MIN(IF($M$12:$M$501>=$O$1,$M$12:$M$501)),$B$40,IF(M128=MIN(IF($M$12:$M$501>=$O$1+14,$M$12:$M$501)),$B$41,IF(M128=MIN(IF($M$12:$M$501>=$O$1+28,$M$12:$M$501)),$B$42,""))) ->  | BQ128: =IF(G128<>G127,IF(BP128>=2,IF(MAX(IF($G$12:$G$503=G128,$BO$12:$BO$503))<$B$30,BP128,1),BP128),"") ->  | BR128: =IF(G128<>G127,IF(BP128>=2,IF(MAX(IF($G$12:$G$503=G128,$BO$12:$BO$503))<$B$31,BP128,1),BP128),"") ->  | BT128: =IF(MAX(IF($G$12:G128=G128,$BO$12:BO128))<$B$30,COUNTIFS($BO$12:BO128,">"&$B$56,$G$12:G128,G128),0) -> 0 | CY128: =IF(G128<>"",MAX(IF($I$11:I127<>$B$14,$M$11:M127)),"") ->  | CZ128: =IF(CX128<>"",IF(CX128=0,0,IF(G128<>G127,0,IFERROR(INDEX($CZ$11:CZ127, MATCH(MAX($CY$11:CY127), $M$11:M127, 0))+1,1))),"") ->  | DB128: =IF(DA128<>"",IF(DA128=0,0,IF(G128<>G127,0,IFERROR(INDEX($DB$11:DB127, MATCH(MAX($CY$11:CY127), $M$11:M127, 0))+1,1))),"") ->  | DK128: =IF(G127<>G128,MAX(IF($G$12:$G$503=G128,$DI$12:$DI$503)),"") -> 
L129: 2024-08-28 | Q129: 2024-08-28 | X129: =IF(M129=MIN(IF($M$12:$M$501>=$O$1,$M$12:$M$501)),$B$40,IF(M129=MIN(IF($M$12:$M$501>=$O$1+7,$M$12:$M$501)),$B$41,IF(M129=MIN(IF($M$12:$M$501>=$O$1+14,$M$12:$M$501)),$B$42,IF(M129=MIN(IF($M$12:$M$501>=$O$1+21,$M$12:$M$501)),$B$43,IF(M129=MIN(IF($M$12:$M$501>=$O$1+28,$M$12:$M$501)),$B$44,""))))) ->  | Y129: =IF(M129=MIN(IF($M$12:$M$501>=$O$1,$M$12:$M$501)),$B$40,IF(M129=MIN(IF($M$12:$M$501>=$O$1+14,$M$12:$M$501)),$B$41,IF(M129=MIN(IF($M$12:$M$501>=$O$1+28,$M$12:$M$501)),$B$42,""))) ->  | BQ129: =IF(G129<>G128,IF(BP129>=2,IF(MAX(IF($G$12:$G$503=G129,$BO$12:$BO$503))<$B$30,BP129,1),BP129),"") ->  | BR129: =IF(G129<>G128,IF(BP129>=2,IF(MAX(IF($G$12:$G$503=G129,$BO$12:$BO$503))<$B$31,BP129,1),BP129),"") ->  | BT129: =IF(MAX(IF($G$12:G129=G129,$BO$12:BO129))<$B$30,COUNTIFS($BO$12:BO129,">"&$B$56,$G$12:G129,G129),0) -> 0 | CY129: =IF(G129<>"",MAX(IF($I$11:I128<>$B$14,$M$11:M128)),"") ->  | CZ129: =IF(CX129<>"",IF(CX129=0,0,IF(G129<>G128,0,IFERROR(INDEX($CZ$11:CZ128, MATCH(MAX($CY$11:CY128), $M$11:M128, 0))+1,1))),"") ->  | DB129: =IF(DA129<>"",IF(DA129=0,0,IF(G129<>G128,0,IFERROR(INDEX($DB$11:DB128, MATCH(MAX($CY$11:CY128), $M$11:M128, 0))+1,1))),"") ->  | DK129: =IF(G128<>G129,MAX(IF($G$12:$G$503=G129,$DI$12:$DI$503)),"") -> 
L130: 2024-08-28 | Q130: 2024-08-28 | X130: =IF(M130=MIN(IF($M$12:$M$501>=$O$1,$M$12:$M$501)),$B$40,IF(M130=MIN(IF($M$12:$M$501>=$O$1+7,$M$12:$M$501)),$B$41,IF(M130=MIN(IF($M$12:$M$501>=$O$1+14,$M$12:$M$501)),$B$42,IF(M130=MIN(IF($M$12:$M$501>=$O$1+21,$M$12:$M$501)),$B$43,IF(M130=MIN(IF($M$12:$M$501>=$O$1+28,$M$12:$M$501)),$B$44,""))))) ->  | Y130: =IF(M130=MIN(IF($M$12:$M$501>=$O$1,$M$12:$M$501)),$B$40,IF(M130=MIN(IF($M$12:$M$501>=$O$1+14,$M$12:$M$501)),$B$41,IF(M130=MIN(IF($M$12:$M$501>=$O$1+28,$M$12:$M$501)),$B$42,""))) ->  | BQ130: =IF(G130<>G129,IF(BP130>=2,IF(MAX(IF($G$12:$G$503=G130,$BO$12:$BO$503))<$B$30,BP130,1),BP130),"") ->  | BR130: =IF(G130<>G129,IF(BP130>=2,IF(MAX(IF($G$12:$G$503=G130,$BO$12:$BO$503))<$B$31,BP130,1),BP130),"") ->  | BT130: =IF(MAX(IF($G$12:G130=G130,$BO$12:BO130))<$B$30,COUNTIFS($BO$12:BO130,">"&$B$56,$G$12:G130,G130),0) -> 0 | CY130: =IF(G130<>"",MAX(IF($I$11:I129<>$B$14,$M$11:M129)),"") ->  | CZ130: =IF(CX130<>"",IF(CX130=0,0,IF(G130<>G129,0,IFERROR(INDEX($CZ$11:CZ129, MATCH(MAX($CY$11:CY129), $M$11:M129, 0))+1,1))),"") ->  | DB130: =IF(DA130<>"",IF(DA130=0,0,IF(G130<>G129,0,IFERROR(INDEX($DB$11:DB129, MATCH(MAX($CY$11:CY129), $M$11:M129, 0))+1,1))),"") ->  | DK130: =IF(G129<>G130,MAX(IF($G$12:$G$503=G130,$DI$12:$DI$503)),"") -> 
L131: 2024-08-28 | Q131: 2024-08-28 | X131: =IF(M131=MIN(IF($M$12:$M$501>=$O$1,$M$12:$M$501)),$B$40,IF(M131=MIN(IF($M$12:$M$501>=$O$1+7,$M$12:$M$501)),$B$41,IF(M131=MIN(IF($M$12:$M$501>=$O$1+14,$M$12:$M$501)),$B$42,IF(M131=MIN(IF($M$12:$M$501>=$O$1+21,$M$12:$M$501)),$B$43,IF(M131=MIN(IF($M$12:$M$501>=$O$1+28,$M$12:$M$501)),$B$44,""))))) ->  | Y131: =IF(M131=MIN(IF($M$12:$M$501>=$O$1,$M$12:$M$501)),$B$40,IF(M131=MIN(IF($M$12:$M$501>=$O$1+14,$M$12:$M$501)),$B$41,IF(M131=MIN(IF($M$12:$M$501>=$O$1+28,$M$12:$M$501)),$B$42,""))) ->  | BQ131: =IF(G131<>G130,IF(BP131>=2,IF(MAX(IF($G$12:$G$503=G131,$BO$12:$BO$503))<$B$30,BP131,1),BP131),"") ->  | BR131: =IF(G131<>G130,IF(BP131>=2,IF(MAX(IF($G$12:$G$503=G131,$BO$12:$BO$503))<$B$31,BP131,1),BP131),"") ->  | BT131: =IF(MAX(IF($G$12:G131=G131,$BO$12:BO131))<$B$30,COUNTIFS($BO$12:BO131,">"&$B$56,$G$12:G131,G131),0) -> 0 | CY131: =IF(G131<>"",MAX(IF($I$11:I130<>$B$14,$M$11:M130)),"") ->  | CZ131: =IF(CX131<>"",IF(CX131=0,0,IF(G131<>G130,0,IFERROR(INDEX($CZ$11:CZ130, MATCH(MAX($CY$11:CY130), $M$11:M130, 0))+1,1))),"") ->  | DB131: =IF(DA131<>"",IF(DA131=0,0,IF(G131<>G130,0,IFERROR(INDEX($DB$11:DB130, MATCH(MAX($CY$11:CY130), $M$11:M130, 0))+1,1))),"") ->  | DK131: =IF(G130<>G131,MAX(IF($G$12:$G$503=G131,$DI$12:$DI$503)),"") -> 
L132: 2024-08-28 | Q132: 2024-08-28 | X132: =IF(M132=MIN(IF($M$12:$M$501>=$O$1,$M$12:$M$501)),$B$40,IF(M132=MIN(IF($M$12:$M$501>=$O$1+7,$M$12:$M$501)),$B$41,IF(M132=MIN(IF($M$12:$M$501>=$O$1+14,$M$12:$M$501)),$B$42,IF(M132=MIN(IF($M$12:$M$501>=$O$1+21,$M$12:$M$501)),$B$43,IF(M132=MIN(IF($M$12:$M$501>=$O$1+28,$M$12:$M$501)),$B$44,""))))) ->  | Y132: =IF(M132=MIN(IF($M$12:$M$501>=$O$1,$M$12:$M$501)),$B$40,IF(M132=MIN(IF($M$12:$M$501>=$O$1+14,$M$12:$M$501)),$B$41,IF(M132=MIN(IF($M$12:$M$501>=$O$1+28,$M$12:$M$501)),$B$42,""))) ->  | BQ132: =IF(G132<>G131,IF(BP132>=2,IF(MAX(IF($G$12:$G$503=G132,$BO$12:$BO$503))<$B$30,BP132,1),BP132),"") ->  | BR132: =IF(G132<>G131,IF(BP132>=2,IF(MAX(IF($G$12:$G$503=G132,$BO$12:$BO$503))<$B$31,BP132,1),BP132),"") ->  | BT132: =IF(MAX(IF($G$12:G132=G132,$BO$12:BO132))<$B$30,COUNTIFS($BO$12:BO132,">"&$B$56,$G$12:G132,G132),0) -> 0 | CY132: =IF(G132<>"",MAX(IF($I$11:I131<>$B$14,$M$11:M131)),"") ->  | CZ132: =IF(CX132<>"",IF(CX132=0,0,IF(G132<>G131,0,IFERROR(INDEX($CZ$11:CZ131, MATCH(MAX($CY$11:CY131), $M$11:M131, 0))+1,1))),"") ->  | DB132: =IF(DA132<>"",IF(DA132=0,0,IF(G132<>G131,0,IFERROR(INDEX($DB$11:DB131, MATCH(MAX($CY$11:CY131), $M$11:M131, 0))+1,1))),"") ->  | DK132: =IF(G131<>G132,MAX(IF($G$12:$G$503=G132,$DI$12:$DI$503)),"") -> 
L133: 2024-08-28 | Q133: 2024-08-28 | X133: =IF(M133=MIN(IF($M$12:$M$501>=$O$1,$M$12:$M$501)),$B$40,IF(M133=MIN(IF($M$12:$M$501>=$O$1+7,$M$12:$M$501)),$B$41,IF(M133=MIN(IF($M$12:$M$501>=$O$1+14,$M$12:$M$501)),$B$42,IF(M133=MIN(IF($M$12:$M$501>=$O$1+21,$M$12:$M$501)),$B$43,IF(M133=MIN(IF($M$12:$M$501>=$O$1+28,$M$12:$M$501)),$B$44,""))))) ->  | Y133: =IF(M133=MIN(IF($M$12:$M$501>=$O$1,$M$12:$M$501)),$B$40,IF(M133=MIN(IF($M$12:$M$501>=$O$1+14,$M$12:$M$501)),$B$41,IF(M133=MIN(IF($M$12:$M$501>=$O$1+28,$M$12:$M$501)),$B$42,""))) ->  | BQ133: =IF(G133<>G132,IF(BP133>=2,IF(MAX(IF($G$12:$G$503=G133,$BO$12:$BO$503))<$B$30,BP133,1),BP133),"") ->  | BR133: =IF(G133<>G132,IF(BP133>=2,IF(MAX(IF($G$12:$G$503=G133,$BO$12:$BO$503))<$B$31,BP133,1),BP133),"") ->  | BT133: =IF(MAX(IF($G$12:G133=G133,$BO$12:BO133))<$B$30,COUNTIFS($BO$12:BO133,">"&$B$56,$G$12:G133,G133),0) -> 0 | CY133: =IF(G133<>"",MAX(IF($I$11:I132<>$B$14,$M$11:M132)),"") ->  | CZ133: =IF(CX133<>"",IF(CX133=0,0,IF(G133<>G132,0,IFERROR(INDEX($CZ$11:CZ132, MATCH(MAX($CY$11:CY132), $M$11:M132, 0))+1,1))),"") ->  | DB133: =IF(DA133<>"",IF(DA133=0,0,IF(G133<>G132,0,IFERROR(INDEX($DB$11:DB132, MATCH(MAX($CY$11:CY132), $M$11:M132, 0))+1,1))),"") ->  | DK133: =IF(G132<>G133,MAX(IF($G$12:$G$503=G133,$DI$12:$DI$503)),"") -> 
L134: =IF(O134<>"",O134,L133) -> 2024-08-28 | M134: =IF(I134>=1,Q133,"") ->  | Q134: 2024-08-28 | X134: =IF(M134=MIN(IF($M$12:$M$501>=$O$1,$M$12:$M$501)),$B$40,IF(M134=MIN(IF($M$12:$M$501>=$O$1+7,$M$12:$M$501)),$B$41,IF(M134=MIN(IF($M$12:$M$501>=$O$1+14,$M$12:$M$501)),$B$42,IF(M134=MIN(IF($M$12:$M$501>=$O$1+21,$M$12:$M$501)),$B$43,IF(M134=MIN(IF($M$12:$M$501>=$O$1+28,$M$12:$M$501)),$B$44,""))))) ->  | Y134: =IF(M134=MIN(IF($M$12:$M$501>=$O$1,$M$12:$M$501)),$B$40,IF(M134=MIN(IF($M$12:$M$501>=$O$1+14,$M$12:$M$501)),$B$41,IF(M134=MIN(IF($M$12:$M$501>=$O$1+28,$M$12:$M$501)),$B$42,""))) ->  | BQ134: =IF(G134<>G133,IF(BP134>=2,IF(MAX(IF($G$12:$G$503=G134,$BO$12:$BO$503))<$B$30,BP134,1),BP134),"") ->  | BR134: =IF(G134<>G133,IF(BP134>=2,IF(MAX(IF($G$12:$G$503=G134,$BO$12:$BO$503))<$B$31,BP134,1),BP134),"") ->  | BT134: =IF(MAX(IF($G$12:G134=G134,$BO$12:BO134))<$B$30,COUNTIFS($BO$12:BO134,">"&$B$56,$G$12:G134,G134),0) -> 0 | CY134: =IF(G134<>"",MAX(IF($I$11:I133<>$B$14,$M$11:M133)),"") ->  | CZ134: =IF(CX134<>"",IF(CX134=0,0,IF(G134<>G133,0,IFERROR(INDEX($CZ$11:CZ133, MATCH(MAX($CY$11:CY133), $M$11:M133, 0))+1,1))),"") ->  | DB134: =IF(DA134<>"",IF(DA134=0,0,IF(G134<>G133,0,IFERROR(INDEX($DB$11:DB133, MATCH(MAX($CY$11:CY133), $M$11:M133, 0))+1,1))),"") ->  | DK134: =IF(G133<>G134,MAX(IF($G$12:$G$503=G134,$DI$12:$DI$503)),"") -> 
L135: 2024-08-28 | Q135: 2024-08-28 | X135: =IF(M135=MIN(IF($M$12:$M$501>=$O$1,$M$12:$M$501)),$B$40,IF(M135=MIN(IF($M$12:$M$501>=$O$1+7,$M$12:$M$501)),$B$41,IF(M135=MIN(IF($M$12:$M$501>=$O$1+14,$M$12:$M$501)),$B$42,IF(M135=MIN(IF($M$12:$M$501>=$O$1+21,$M$12:$M$501)),$B$43,IF(M135=MIN(IF($M$12:$M$501>=$O$1+28,$M$12:$M$501)),$B$44,""))))) ->  | Y135: =IF(M135=MIN(IF($M$12:$M$501>=$O$1,$M$12:$M$501)),$B$40,IF(M135=MIN(IF($M$12:$M$501>=$O$1+14,$M$12:$M$501)),$B$41,IF(M135=MIN(IF($M$12:$M$501>=$O$1+28,$M$12:$M$501)),$B$42,""))) ->  | BQ135: =IF(G135<>G134,IF(BP135>=2,IF(MAX(IF($G$12:$G$503=G135,$BO$12:$BO$503))<$B$30,BP135,1),BP135),"") ->  | BR135: =IF(G135<>G134,IF(BP135>=2,IF(MAX(IF($G$12:$G$503=G135,$BO$12:$BO$503))<$B$31,BP135,1),BP135),"") ->  | BT135: =IF(MAX(IF($G$12:G135=G135,$BO$12:BO135))<$B$30,COUNTIFS($BO$12:BO135,">"&$B$56,$G$12:G135,G135),0) -> 0 | CY135: =IF(G135<>"",MAX(IF($I$11:I134<>$B$14,$M$11:M134)),"") ->  | CZ135: =IF(CX135<>"",IF(CX135=0,0,IF(G135<>G134,0,IFERROR(INDEX($CZ$11:CZ134, MATCH(MAX($CY$11:CY134), $M$11:M134, 0))+1,1))),"") ->  | DB135: =IF(DA135<>"",IF(DA135=0,0,IF(G135<>G134,0,IFERROR(INDEX($DB$11:DB134, MATCH(MAX($CY$11:CY134), $M$11:M134, 0))+1,1))),"") ->  | DK135: =IF(G134<>G135,MAX(IF($G$12:$G$503=G135,$DI$12:$DI$503)),"") -> 
L136: 2024-08-28 | Q136: 2024-08-28 | X136: =IF(M136=MIN(IF($M$12:$M$501>=$O$1,$M$12:$M$501)),$B$40,IF(M136=MIN(IF($M$12:$M$501>=$O$1+7,$M$12:$M$501)),$B$41,IF(M136=MIN(IF($M$12:$M$501>=$O$1+14,$M$12:$M$501)),$B$42,IF(M136=MIN(IF($M$12:$M$501>=$O$1+21,$M$12:$M$501)),$B$43,IF(M136=MIN(IF($M$12:$M$501>=$O$1+28,$M$12:$M$501)),$B$44,""))))) ->  | Y136: =IF(M136=MIN(IF($M$12:$M$501>=$O$1,$M$12:$M$501)),$B$40,IF(M136=MIN(IF($M$12:$M$501>=$O$1+14,$M$12:$M$501)),$B$41,IF(M136=MIN(IF($M$12:$M$501>=$O$1+28,$M$12:$M$501)),$B$42,""))) ->  | BQ136: =IF(G136<>G135,IF(BP136>=2,IF(MAX(IF($G$12:$G$503=G136,$BO$12:$BO$503))<$B$30,BP136,1),BP136),"") ->  | BR136: =IF(G136<>G135,IF(BP136>=2,IF(MAX(IF($G$12:$G$503=G136,$BO$12:$BO$503))<$B$31,BP136,1),BP136),"") ->  | BT136: =IF(MAX(IF($G$12:G136=G136,$BO$12:BO136))<$B$30,COUNTIFS($BO$12:BO136,">"&$B$56,$G$12:G136,G136),0) -> 0 | CY136: =IF(G136<>"",MAX(IF($I$11:I135<>$B$14,$M$11:M135)),"") ->  | CZ136: =IF(CX136<>"",IF(CX136=0,0,IF(G136<>G135,0,IFERROR(INDEX($CZ$11:CZ135, MATCH(MAX($CY$11:CY135), $M$11:M135, 0))+1,1))),"") ->  | DB136: =IF(DA136<>"",IF(DA136=0,0,IF(G136<>G135,0,IFERROR(INDEX($DB$11:DB135, MATCH(MAX($CY$11:CY135), $M$11:M135, 0))+1,1))),"") ->  | DK136: =IF(G135<>G136,MAX(IF($G$12:$G$503=G136,$DI$12:$DI$503)),"") -> 
L137: 2024-08-28 | Q137: 2024-08-28 | X137: =IF(M137=MIN(IF($M$12:$M$501>=$O$1,$M$12:$M$501)),$B$40,IF(M137=MIN(IF($M$12:$M$501>=$O$1+7,$M$12:$M$501)),$B$41,IF(M137=MIN(IF($M$12:$M$501>=$O$1+14,$M$12:$M$501)),$B$42,IF(M137=MIN(IF($M$12:$M$501>=$O$1+21,$M$12:$M$501)),$B$43,IF(M137=MIN(IF($M$12:$M$501>=$O$1+28,$M$12:$M$501)),$B$44,""))))) ->  | Y137: =IF(M137=MIN(IF($M$12:$M$501>=$O$1,$M$12:$M$501)),$B$40,IF(M137=MIN(IF($M$12:$M$501>=$O$1+14,$M$12:$M$501)),$B$41,IF(M137=MIN(IF($M$12:$M$501>=$O$1+28,$M$12:$M$501)),$B$42,""))) ->  | BQ137: =IF(G137<>G136,IF(BP137>=2,IF(MAX(IF($G$12:$G$503=G137,$BO$12:$BO$503))<$B$30,BP137,1),BP137),"") ->  | BR137: =IF(G137<>G136,IF(BP137>=2,IF(MAX(IF($G$12:$G$503=G137,$BO$12:$BO$503))<$B$31,BP137,1),BP137),"") ->  | BT137: =IF(MAX(IF($G$12:G137=G137,$BO$12:BO137))<$B$30,COUNTIFS($BO$12:BO137,">"&$B$56,$G$12:G137,G137),0) -> 0 | CY137: =IF(G137<>"",MAX(IF($I$11:I136<>$B$14,$M$11:M136)),"") ->  | CZ137: =IF(CX137<>"",IF(CX137=0,0,IF(G137<>G136,0,IFERROR(INDEX($CZ$11:CZ136, MATCH(MAX($CY$11:CY136), $M$11:M136, 0))+1,1))),"") ->  | DB137: =IF(DA137<>"",IF(DA137=0,0,IF(G137<>G136,0,IFERROR(INDEX($DB$11:DB136, MATCH(MAX($CY$11:CY136), $M$11:M136, 0))+1,1))),"") ->  | DK137: =IF(G136<>G137,MAX(IF($G$12:$G$503=G137,$DI$12:$DI$503)),"") -> 
L138: 2024-08-28 | Q138: 2024-08-28 | X138: =IF(M138=MIN(IF($M$12:$M$501>=$O$1,$M$12:$M$501)),$B$40,IF(M138=MIN(IF($M$12:$M$501>=$O$1+7,$M$12:$M$501)),$B$41,IF(M138=MIN(IF($M$12:$M$501>=$O$1+14,$M$12:$M$501)),$B$42,IF(M138=MIN(IF($M$12:$M$501>=$O$1+21,$M$12:$M$501)),$B$43,IF(M138=MIN(IF($M$12:$M$501>=$O$1+28,$M$12:$M$501)),$B$44,""))))) ->  | Y138: =IF(M138=MIN(IF($M$12:$M$501>=$O$1,$M$12:$M$501)),$B$40,IF(M138=MIN(IF($M$12:$M$501>=$O$1+14,$M$12:$M$501)),$B$41,IF(M138=MIN(IF($M$12:$M$501>=$O$1+28,$M$12:$M$501)),$B$42,""))) ->  | BQ138: =IF(G138<>G137,IF(BP138>=2,IF(MAX(IF($G$12:$G$503=G138,$BO$12:$BO$503))<$B$30,BP138,1),BP138),"") ->  | BR138: =IF(G138<>G137,IF(BP138>=2,IF(MAX(IF($G$12:$G$503=G138,$BO$12:$BO$503))<$B$31,BP138,1),BP138),"") ->  | BT138: =IF(MAX(IF($G$12:G138=G138,$BO$12:BO138))<$B$30,COUNTIFS($BO$12:BO138,">"&$B$56,$G$12:G138,G138),0) -> 0 | CY138: =IF(G138<>"",MAX(IF($I$11:I137<>$B$14,$M$11:M137)),"") ->  | CZ138: =IF(CX138<>"",IF(CX138=0,0,IF(G138<>G137,0,IFERROR(INDEX($CZ$11:CZ137, MATCH(MAX($CY$11:CY137), $M$11:M137, 0))+1,1))),"") ->  | DB138: =IF(DA138<>"",IF(DA138=0,0,IF(G138<>G137,0,IFERROR(INDEX($DB$11:DB137, MATCH(MAX($CY$11:CY137), $M$11:M137, 0))+1,1))),"") ->  | DK138: =IF(G137<>G138,MAX(IF($G$12:$G$503=G138,$DI$12:$DI$503)),"") -> 
L139: 2024-08-28 | Q139: 2024-08-28 | X139: =IF(M139=MIN(IF($M$12:$M$501>=$O$1,$M$12:$M$501)),$B$40,IF(M139=MIN(IF($M$12:$M$501>=$O$1+7,$M$12:$M$501)),$B$41,IF(M139=MIN(IF($M$12:$M$501>=$O$1+14,$M$12:$M$501)),$B$42,IF(M139=MIN(IF($M$12:$M$501>=$O$1+21,$M$12:$M$501)),$B$43,IF(M139=MIN(IF($M$12:$M$501>=$O$1+28,$M$12:$M$501)),$B$44,""))))) ->  | Y139: =IF(M139=MIN(IF($M$12:$M$501>=$O$1,$M$12:$M$501)),$B$40,IF(M139=MIN(IF($M$12:$M$501>=$O$1+14,$M$12:$M$501)),$B$41,IF(M139=MIN(IF($M$12:$M$501>=$O$1+28,$M$12:$M$501)),$B$42,""))) ->  | BQ139: =IF(G139<>G138,IF(BP139>=2,IF(MAX(IF($G$12:$G$503=G139,$BO$12:$BO$503))<$B$30,BP139,1),BP139),"") ->  | BR139: =IF(G139<>G138,IF(BP139>=2,IF(MAX(IF($G$12:$G$503=G139,$BO$12:$BO$503))<$B$31,BP139,1),BP139),"") ->  | BT139: =IF(MAX(IF($G$12:G139=G139,$BO$12:BO139))<$B$30,COUNTIFS($BO$12:BO139,">"&$B$56,$G$12:G139,G139),0) -> 0 | CY139: =IF(G139<>"",MAX(IF($I$11:I138<>$B$14,$M$11:M138)),"") ->  | CZ139: =IF(CX139<>"",IF(CX139=0,0,IF(G139<>G138,0,IFERROR(INDEX($CZ$11:CZ138, MATCH(MAX($CY$11:CY138), $M$11:M138, 0))+1,1))),"") ->  | DB139: =IF(DA139<>"",IF(DA139=0,0,IF(G139<>G138,0,IFERROR(INDEX($DB$11:DB138, MATCH(MAX($CY$11:CY138), $M$11:M138, 0))+1,1))),"") ->  | DK139: =IF(G138<>G139,MAX(IF($G$12:$G$503=G139,$DI$12:$DI$503)),"") -> 
L140: 2024-08-28 | N140: =HOUR(M140)*60+MINUTE(M140) ->  | Q140: 2024-08-28 | R140: =_xlfn.DAYS(Q140,M140)*1440+HOUR(Q140)*60+MINUTE(Q140) ->  | S140: =IF(G140<>"",R140-N140,"") ->  | U140: =IF(M140<>"",DATE(YEAR(M140),MONTH(M140),DAY(M140)),"") ->  | V140: =IF(G140<>G139,IF(G140<>"",IF(AND(YEAR($O$1)<>YEAR($Q$1),LEFT(G140, 2)="01"),DATE(YEAR($Q$1),LEFT(G140, 2), RIGHT(G140, 2)),DATE(YEAR($O$1),LEFT(G140, 2), RIGHT(G140, 2))),""),"") ->  | X140: =IF(M140=MIN(IF($M$12:$M$501>=$O$1,$M$12:$M$501)),$B$40,IF(M140=MIN(IF($M$12:$M$501>=$O$1+7,$M$12:$M$501)),$B$41,IF(M140=MIN(IF($M$12:$M$501>=$O$1+14,$M$12:$M$501)),$B$42,IF(M140=MIN(IF($M$12:$M$501>=$O$1+21,$M$12:$M$501)),$B$43,IF(M140=MIN(IF($M$12:$M$501>=$O$1+28,$M$12:$M$501)),$B$44,""))))) ->  | Y140: =IF(M140=MIN(IF($M$12:$M$501>=$O$1,$M$12:$M$501)),$B$40,IF(M140=MIN(IF($M$12:$M$501>=$O$1+14,$M$12:$M$501)),$B$41,IF(M140=MIN(IF($M$12:$M$501>=$O$1+28,$M$12:$M$501)),$B$42,""))) ->  | Z140: =IF(G140<>"",IF(X140<>"",IFERROR(INDEX(N$4:N$7, MATCH(X140, L$4:L$7, 0)),0), Z139), "") ->  | AC140: =IF(I140=$B$15,S140,"") ->  | AD140: =IF(AC140<>"",AC140/1440,"") ->  | AG140: =IF(I140<>$B$14,S140,0) ->  | AH140: =IF(G139<>G140,M140+1,"") ->  | AI140: =IF(G140<>G139,IF(AJ140<>0,_xlfn.DAYS(AH140,AJ140)*1440+HOUR(AH140)*60+MINUTE(AH140),0),"") ->  | AJ140: =IF(G140<>G139,SUMIFS($M$12:$M$511,$M$12:$M$511,"<="&AH140,$Q$12:$Q$511,">"&AH140),"") ->  | AK140: =IF(G140<>G139,HOUR(AJ140)*60+MINUTE(AJ140),"") ->  | AL140: =IF(G140<>G139,SUMIFS($I$12:$I$511,$M$12:$M$511,"<"&AH140,$Q$12:$Q$511,">="&AH140),"") ->  | AM140: =IF(G140<>G139,IF(AND(AL140<>0,AL140<=$B$16),IF(AI140-AK140>=0,AI140-AK140,0),0),"") ->  | AN140: =IF(G140<>G139,SUMIFS($S$12:$S$510,$M$12:$M$510,">="&M140,$Q$12:$Q$510,"<="&AH140,$I$12:$I$510,"<="&$B$16),"") ->  | AO140: =IF(G139<>G140,M140+2,"") ->  | AP140: =IF(G140<>G139,IF(AQ140<>0,_xlfn.DAYS(AO140,AQ140)*1440+HOUR(AO140)*60+MINUTE(AO140),0),"") ->  | AQ140: =IF(G140<>G139,SUMIFS($M$12:$M$511,$M$12:$M$511,"<="&AO140,$Q$12:$Q$511,">"&AO140),"") ->  | AR140: =IF(G140<>G139,HOUR(AQ140)*60+MINUTE(AQ140),"") ->  | AS140: =IF(G140<>G139,SUMIFS($I$12:$I$511,$M$12:$M$511,"<"&AO140,$Q$12:$Q$511,">="&AO140),"") ->  | AT140: =IF(G140<>G139,IF(AND(AL140<>0,AL140<=$B$16),IF(AP140-AR140>=0,AP140-AR140,0),0),"") ->  | AU140: =IF(Y140=$B$40,$O$1+14,IF(Y140=$B$41,$O$1+28,"")) ->  | AV140: =IF(Y140<>"",_xlfn.DAYS(AU140,AW140)*1440+HOUR(AU140)*60+MINUTE(AU140),"") ->  | AW140: =IF(Y140<>"",SUMIFS($M$12:$M$511,$M$12:$M$511,"<="&AU140,$Q$12:$Q$511,">"&AU140),"") ->  | AX140: =IF(Y140<>"",HOUR(AW140)*60+MINUTE(AW140),"") ->  | AY140: =IF(Y140<>"",SUMIFS($I$12:$I$511,$M$12:$M$511,"<"&AU140,$Q$12:$Q$511,">="&AU140),"") ->  | AZ140: =IF(G140<>G139,AN140+AM140,"") ->  | BD140: =IF(X140<>"",COUNTIFS($BB$12:$BB$512,">"&$B$26,$U$12:$U$512,">="&U140,$U$12:$U$512,"<"&U140+$B$69),"") ->  | BE140: =IF(X140<>"",COUNTIFS($BB$12:$BB$512,">"&$B$27,$U$12:$U$512,">="&U140,$U$12:$U$512,"<"&U140+$B$69),"") ->  | BF140: =IF(G139<>G140,IF(AND(AZ140>$B$27,AZ140<=$B$28),1,0),"") ->  | BG140: =IF(X140<>"",IF(Z140=1,COUNTIFS($BF$12:$BF$500,">=1",$U$12:$U$500,">="&U140,$U$12:$U$500,"<"&U140+$B$69),""),"") ->  | BH140: =IF(I140=$B$17,S140,"") ->  | BJ140: =IF(I140=$B$18,S140,"") ->  | BL140: =IF(OR(I140=$B$18,I140=$B$17),S140,"") ->  | BN140: =IF(SUM(COUNTIFS($I$12:$I$509,$B$18,$G$12:$G$509,G140), COUNTIFS($I$12:$I$509,$B$17,$G$12:$G$509,G140))>$B$55,"",IF(OR(I140=$B$18, I140=$B$17), S140, "")) ->  | BO140: =IF(SUM(COUNTIFS($I$12:$I$509,$B$18,$G$12:$G$509,G140), COUNTIFS($I$12:$I$509,$B$17,$G$12:$G$509,G140))>$B$55,IF(OR(I140=$B$18, I140=$B$17), S140, ""),"") ->  | BQ140: =IF(G140<>G139,IF(BP140>=2,IF(MAX(IF($G$12:$G$503=G140,$BO$12:$BO$503))<$B$30,BP140,1),BP140),"") ->  | BR140: =IF(G140<>G139,IF(BP140>=2,IF(MAX(IF($G$12:$G$503=G140,$BO$12:$BO$503))<$B$31,BP140,1),BP140),"") ->  | BS140: =IF(Z140=1,BR140,IF(Z140=0,BQ140,"")) ->  | BT140: =IF(MAX(IF($G$12:G140=G140,$BO$12:BO140))<$B$30,COUNTIFS($BO$12:BO140,">"&$B$56,$G$12:G140,G140),0) -> 0 | BV140: =IF(G139<>G140,IF(SUMIFS($BS$12:$BS$503,$G$12:$G$503,G140)>=$B$58,SUMIFS($BO$12:$BO$503,$G$12:$G$503,G140,$BT$12:$BT$503,">=1",$BT$12:$BT$503,"<=3"),""),"") ->  | BX140: =IF(G139<>G140,IF(BS140=2,BW140,0),"") ->  | BY140: =IF(G139<>G140,IF(BS140=3,BW140,0),"") ->  | BZ140: =IF(G139<>G140,IF(BS140=1,BU140,IF(BS140=0,0,BV140)),"") ->  | CA140: =IF(BZ140<>"",BZ140/1440,"") ->  | CB140: =IF(G140<>G139,IF(G140<>"",IF(BZ140>=1980,1,0),""),"") ->  | CC140: =IF(G139<>G140,IF(AND(BZ140>=$B$31,BZ140<$B$30),1,0),"") ->  | CD140: =IF(X140<>"",COUNTIFS($CC$12:$CC$499,">=1",$U$12:$U$499,">="&U140,$U$12:$U$499,"<"&U140+$B$69),"") ->  | CE140: =IF(G140<>G139,SUMIFS($AA$12:$AA$510,$M$12:$M$510,">="&M140,$Q$12:$Q$510,"<="&AH140),"") ->  | CF140: =IF(G140<>G139,IF(AL140=$B$14,IF(AI140-AK140>=0,AI140-AK140,0),0),"") ->  | CG140: =IF(G140<>G139,CE140+CF140,"") ->  | CI140: =IF(G140<>G139,SUMIFS($AA$12:$AA$503,$G$12:$G$503,G140),"") ->  | CK140: =IF(G140<>G139,SUMIFS($AA$12:$AA$510,$M$12:$M$510,">="&M140,$Q$12:$Q$510,"<="&AO140),"") ->  | CL140: =IF(G140<>G139,IF(AS140=$B$14,IF(AP140-AR140>=0,AP140-AR140,0),0),"") ->  | CM140: =IF(G140<>G139,CK140+CL140,"") ->  | CO140: =IF(G140<>G139,CM140/2,"") ->  | CR140: =IF(G139<>G140,IF(AND(CO140>$B$30,CQ140>$B$30),1,0),"") ->  | CS140: =IF(Y140=$B$40,SUMIFS($AA$12:$AA$501,$M$12:$M$501,">="&$O$1,$Q$12:$Q$501,"<="&AU140),IF(Y140=$B$41,SUMIFS($AA$12:$AA$501,$M$12:$M$501,">="&$O$1+14,$Q$12:$Q$501,"<="&AU140),"")) ->  | CT140: =IF(Y140<>"",IF(AY140=$B$14,IF(AV140-AX140>=0,AV140-AX140,0),0),"") ->  | CU140: =IF(Y140<>"",CS140+CT140,"") ->  | CV140: =IF(Y140<>"",CU140/2,"") ->  | CX140: =IF(G140<>"",IF(I140<>$B$14,IF(S140<$B$50,1,0),""),"") ->  | CY140: =IF(G140<>"",MAX(IF($I$11:I139<>$B$14,$M$11:M139)),"") ->  | CZ140: =IF(CX140<>"",IF(CX140=0,0,IF(G140<>G139,0,IFERROR(INDEX($CZ$11:CZ139, MATCH(MAX($CY$11:CY139), $M$11:M139, 0))+1,1))),"") ->  | DA140: =IF(G140<>"",IF(I140>=$B$16,IF(S140<$B$50,1,0),""),"") ->  | DB140: =IF(DA140<>"",IF(DA140=0,0,IF(G140<>G139,0,IFERROR(INDEX($DB$11:DB139, MATCH(MAX($CY$11:CY139), $M$11:M139, 0))+1,1))),"") ->  | DC140: =IF(G140<>"",IF(I140>=$B$16,IF(S140>=9,IF(DB140>=3,0,S140),0),0),"") ->  | DD140: =IF(G140<>"",IF(G140=G139,IF(DD139>=$B$49,DC140,DD139+DC140),DC140),"") ->  | DE140: =IF(G140<>"",IF(G140=G139,IF(DD139>=$B$49,AA140,DE139+AA140),AA140),"") ->  | DG140: =IF(G140<>"",IF(I140<>$B$14,IF(S140>=9,IF(CZ140>=3,0,S140),0),0),"") ->  | DH140: =IF(G140<>"",IF(G140=G139,IF(DH139>=$B$49,DG140,DH139+DG140),DG140),"") ->  | DI140: =IF(G140<>"",IF(G140=G139,IF(DH139>=$B$49,AA140,DI139+AA140),AA140),"") ->  | DJ140: =IF(DI140<>"",DI140/1440,"") ->  | DK140: =IF(G139<>G140,MAX(IF($G$12:$G$503=G140,$DI$12:$DI$503)),"") ->  | DM140: =IF(G140<>G139,SUMIFS($S$12:$S$503,$G$12:$G$503,G140,$I$12:$I$503,$B$14) + SUMIFS($S$12:$S$503,$G$12:$G$503,G140,$I$12:$I$503,$B$15),"") -> 
L141: 2024-08-28 | Q141: =L141+P141 -> 2024-08-28 | W141: =IF(G140<>G141,_xlfn.MINIFS($M$12:$M$500,$M$12:$M$500,">"&M141,$H$12:$H$500,"<>"&H141),"") ->  | X141: =IF(M141=MIN(IF($M$12:$M$501>=$O$1,$M$12:$M$501)),$B$40,IF(M141=MIN(IF($M$12:$M$501>=$O$1+7,$M$12:$M$501)),$B$41,IF(M141=MIN(IF($M$12:$M$501>=$O$1+14,$M$12:$M$501)),$B$42,IF(M141=MIN(IF($M$12:$M$501>=$O$1+21,$M$12:$M$501)),$B$43,IF(M141=MIN(IF($M$12:$M$501>=$O$1+28,$M$12:$M$501)),$B$44,""))))) ->  | Y141: =IF(M141=MIN(IF($M$12:$M$501>=$O$1,$M$12:$M$501)),$B$40,IF(M141=MIN(IF($M$12:$M$501>=$O$1+14,$M$12:$M$501)),$B$41,IF(M141=MIN(IF($M$12:$M$501>=$O$1+28,$M$12:$M$501)),$B$42,""))) ->  | AA141: =IF(G141<>"",IF(I141=$B$14,S141,0),"") ->  | AE141: =IF(G141<>"",IF(I141=$B$16,S141,0),"") ->  | BA141: =IF(AZ141<>"",AZ141/1440,"") ->  | BB141: =IF(G140<>G141,SUMIFS($S$12:$S$512,$I$12:$I$512,"<="&$B$16,$G$12:$G$512,G141),"") ->  | BC141: =IF(BB141<>"",BB141/1440,"") ->  | BI141: =IF(BH141<>"",BH141/1440,"") ->  | BM141: =IF(BL141<>"",BL141/1440,"") ->  | BP141: =IF(G141<>G140,IF(SUMIFS($BN$12:$BN$503,$G$12:$G$503,G141)>0,1,COUNTIFS($BO$12:$BO$503,">"&$B$56,$G$12:$G$503,G141)),"") ->  | BQ141: =IF(G141<>G140,IF(BP141>=2,IF(MAX(IF($G$12:$G$503=G141,$BO$12:$BO$503))<$B$30,BP141,1),BP141),"") ->  | BR141: =IF(G141<>G140,IF(BP141>=2,IF(MAX(IF($G$12:$G$503=G141,$BO$12:$BO$503))<$B$31,BP141,1),BP141),"") ->  | BT141: =IF(MAX(IF($G$12:G141=G141,$BO$12:BO141))<$B$30,COUNTIFS($BO$12:BO141,">"&$B$56,$G$12:G141,G141),0) -> 0 | BU141: =IF(G140<>G141,IF(BQ141=$B$55,SUMIFS($S$12:$S$503,$G$12:$G$503,G141,$I$12:$I$503,$B$17)+SUMIFS($S$12:$S$503,$G$12:$G$503,G141,$I$12:$I$503,$B$18),""),"") ->  | BW141: =IF(BV141<>"",BV141/1440,"") ->  | CJ141: =IF(CI141<>"",CI141/1440,"") ->  | CQ141: =IF(G140<>G141,SUMIFS($CO$12:$CO$500,$M$12:$M$500,W141),"") ->  | CY141: =IF(G141<>"",MAX(IF($I$11:I140<>$B$14,$M$11:M140)),"") ->  | CZ141: =IF(CX141<>"",IF(CX141=0,0,IF(G141<>G140,0,IFERROR(INDEX($CZ$11:CZ140, MATCH(MAX($CY$11:CY140), $M$11:M140, 0))+1,1))),"") ->  | DB141: =IF(DA141<>"",IF(DA141=0,0,IF(G141<>G140,0,IFERROR(INDEX($DB$11:DB140, MATCH(MAX($CY$11:CY140), $M$11:M140, 0))+1,1))),"") ->  | DK141: =IF(G140<>G141,MAX(IF($G$12:$G$503=G141,$DI$12:$DI$503)),"") ->  | DN141: =IF(DM141<>"",DM141/1440,"") -> 
L142: 2024-08-28 | Q142: 2024-08-28 | X142: =IF(M142=MIN(IF($M$12:$M$501>=$O$1,$M$12:$M$501)),$B$40,IF(M142=MIN(IF($M$12:$M$501>=$O$1+7,$M$12:$M$501)),$B$41,IF(M142=MIN(IF($M$12:$M$501>=$O$1+14,$M$12:$M$501)),$B$42,IF(M142=MIN(IF($M$12:$M$501>=$O$1+21,$M$12:$M$501)),$B$43,IF(M142=MIN(IF($M$12:$M$501>=$O$1+28,$M$12:$M$501)),$B$44,""))))) ->  | Y142: =IF(M142=MIN(IF($M$12:$M$501>=$O$1,$M$12:$M$501)),$B$40,IF(M142=MIN(IF($M$12:$M$501>=$O$1+14,$M$12:$M$501)),$B$41,IF(M142=MIN(IF($M$12:$M$501>=$O$1+28,$M$12:$M$501)),$B$42,""))) ->  | BQ142: =IF(G142<>G141,IF(BP142>=2,IF(MAX(IF($G$12:$G$503=G142,$BO$12:$BO$503))<$B$30,BP142,1),BP142),"") ->  | BR142: =IF(G142<>G141,IF(BP142>=2,IF(MAX(IF($G$12:$G$503=G142,$BO$12:$BO$503))<$B$31,BP142,1),BP142),"") ->  | BT142: =IF(MAX(IF($G$12:G142=G142,$BO$12:BO142))<$B$30,COUNTIFS($BO$12:BO142,">"&$B$56,$G$12:G142,G142),0) -> 0 | CY142: =IF(G142<>"",MAX(IF($I$11:I141<>$B$14,$M$11:M141)),"") ->  | CZ142: =IF(CX142<>"",IF(CX142=0,0,IF(G142<>G141,0,IFERROR(INDEX($CZ$11:CZ141, MATCH(MAX($CY$11:CY141), $M$11:M141, 0))+1,1))),"") ->  | DB142: =IF(DA142<>"",IF(DA142=0,0,IF(G142<>G141,0,IFERROR(INDEX($DB$11:DB141, MATCH(MAX($CY$11:CY141), $M$11:M141, 0))+1,1))),"") ->  | DK142: =IF(G141<>G142,MAX(IF($G$12:$G$503=G142,$DI$12:$DI$503)),"") -> 
L143: 2024-08-28 | Q143: 2024-08-28 | X143: =IF(M143=MIN(IF($M$12:$M$501>=$O$1,$M$12:$M$501)),$B$40,IF(M143=MIN(IF($M$12:$M$501>=$O$1+7,$M$12:$M$501)),$B$41,IF(M143=MIN(IF($M$12:$M$501>=$O$1+14,$M$12:$M$501)),$B$42,IF(M143=MIN(IF($M$12:$M$501>=$O$1+21,$M$12:$M$501)),$B$43,IF(M143=MIN(IF($M$12:$M$501>=$O$1+28,$M$12:$M$501)),$B$44,""))))) ->  | Y143: =IF(M143=MIN(IF($M$12:$M$501>=$O$1,$M$12:$M$501)),$B$40,IF(M143=MIN(IF($M$12:$M$501>=$O$1+14,$M$12:$M$501)),$B$41,IF(M143=MIN(IF($M$12:$M$501>=$O$1+28,$M$12:$M$501)),$B$42,""))) ->  | AB143: =IF(AA143<>"",IF(AA143<>0,AA143/1440,""),"") ->  | BQ143: =IF(G143<>G142,IF(BP143>=2,IF(MAX(IF($G$12:$G$503=G143,$BO$12:$BO$503))<$B$30,BP143,1),BP143),"") ->  | BR143: =IF(G143<>G142,IF(BP143>=2,IF(MAX(IF($G$12:$G$503=G143,$BO$12:$BO$503))<$B$31,BP143,1),BP143),"") ->  | BT143: =IF(MAX(IF($G$12:G143=G143,$BO$12:BO143))<$B$30,COUNTIFS($BO$12:BO143,">"&$B$56,$G$12:G143,G143),0) -> 0 | CY143: =IF(G143<>"",MAX(IF($I$11:I142<>$B$14,$M$11:M142)),"") ->  | CZ143: =IF(CX143<>"",IF(CX143=0,0,IF(G143<>G142,0,IFERROR(INDEX($CZ$11:CZ142, MATCH(MAX($CY$11:CY142), $M$11:M142, 0))+1,1))),"") ->  | DB143: =IF(DA143<>"",IF(DA143=0,0,IF(G143<>G142,0,IFERROR(INDEX($DB$11:DB142, MATCH(MAX($CY$11:CY142), $M$11:M142, 0))+1,1))),"") ->  | DK143: =IF(G142<>G143,MAX(IF($G$12:$G$503=G143,$DI$12:$DI$503)),"") -> 
L144: 2024-08-28 | Q144: 2024-08-28 | X144: =IF(M144=MIN(IF($M$12:$M$501>=$O$1,$M$12:$M$501)),$B$40,IF(M144=MIN(IF($M$12:$M$501>=$O$1+7,$M$12:$M$501)),$B$41,IF(M144=MIN(IF($M$12:$M$501>=$O$1+14,$M$12:$M$501)),$B$42,IF(M144=MIN(IF($M$12:$M$501>=$O$1+21,$M$12:$M$501)),$B$43,IF(M144=MIN(IF($M$12:$M$501>=$O$1+28,$M$12:$M$501)),$B$44,""))))) ->  | Y144: =IF(M144=MIN(IF($M$12:$M$501>=$O$1,$M$12:$M$501)),$B$40,IF(M144=MIN(IF($M$12:$M$501>=$O$1+14,$M$12:$M$501)),$B$41,IF(M144=MIN(IF($M$12:$M$501>=$O$1+28,$M$12:$M$501)),$B$42,""))) ->  | BQ144: =IF(G144<>G143,IF(BP144>=2,IF(MAX(IF($G$12:$G$503=G144,$BO$12:$BO$503))<$B$30,BP144,1),BP144),"") ->  | BR144: =IF(G144<>G143,IF(BP144>=2,IF(MAX(IF($G$12:$G$503=G144,$BO$12:$BO$503))<$B$31,BP144,1),BP144),"") ->  | BT144: =IF(MAX(IF($G$12:G144=G144,$BO$12:BO144))<$B$30,COUNTIFS($BO$12:BO144,">"&$B$56,$G$12:G144,G144),0) -> 0 | CY144: =IF(G144<>"",MAX(IF($I$11:I143<>$B$14,$M$11:M143)),"") ->  | CZ144: =IF(CX144<>"",IF(CX144=0,0,IF(G144<>G143,0,IFERROR(INDEX($CZ$11:CZ143, MATCH(MAX($CY$11:CY143), $M$11:M143, 0))+1,1))),"") ->  | DB144: =IF(DA144<>"",IF(DA144=0,0,IF(G144<>G143,0,IFERROR(INDEX($DB$11:DB143, MATCH(MAX($CY$11:CY143), $M$11:M143, 0))+1,1))),"") ->  | DF144: =IF(DE144=0,"",IF(DE144<>"",DE144/1440,"")) ->  | DK144: =IF(G143<>G144,MAX(IF($G$12:$G$503=G144,$DI$12:$DI$503)),"") -> 
L145: 2024-08-28 | Q145: 2024-08-28 | X145: =IF(M145=MIN(IF($M$12:$M$501>=$O$1,$M$12:$M$501)),$B$40,IF(M145=MIN(IF($M$12:$M$501>=$O$1+7,$M$12:$M$501)),$B$41,IF(M145=MIN(IF($M$12:$M$501>=$O$1+14,$M$12:$M$501)),$B$42,IF(M145=MIN(IF($M$12:$M$501>=$O$1+21,$M$12:$M$501)),$B$43,IF(M145=MIN(IF($M$12:$M$501>=$O$1+28,$M$12:$M$501)),$B$44,""))))) ->  | Y145: =IF(M145=MIN(IF($M$12:$M$501>=$O$1,$M$12:$M$501)),$B$40,IF(M145=MIN(IF($M$12:$M$501>=$O$1+14,$M$12:$M$501)),$B$41,IF(M145=MIN(IF($M$12:$M$501>=$O$1+28,$M$12:$M$501)),$B$42,""))) ->  | BQ145: =IF(G145<>G144,IF(BP145>=2,IF(MAX(IF($G$12:$G$503=G145,$BO$12:$BO$503))<$B$30,BP145,1),BP145),"") ->  | BR145: =IF(G145<>G144,IF(BP145>=2,IF(MAX(IF($G$12:$G$503=G145,$BO$12:$BO$503))<$B$31,BP145,1),BP145),"") ->  | BT145: =IF(MAX(IF($G$12:G145=G145,$BO$12:BO145))<$B$30,COUNTIFS($BO$12:BO145,">"&$B$56,$G$12:G145,G145),0) -> 0 | CY145: =IF(G145<>"",MAX(IF($I$11:I144<>$B$14,$M$11:M144)),"") ->  | CZ145: =IF(CX145<>"",IF(CX145=0,0,IF(G145<>G144,0,IFERROR(INDEX($CZ$11:CZ144, MATCH(MAX($CY$11:CY144), $M$11:M144, 0))+1,1))),"") ->  | DB145: =IF(DA145<>"",IF(DA145=0,0,IF(G145<>G144,0,IFERROR(INDEX($DB$11:DB144, MATCH(MAX($CY$11:CY144), $M$11:M144, 0))+1,1))),"") ->  | DK145: =IF(G144<>G145,MAX(IF($G$12:$G$503=G145,$DI$12:$DI$503)),"") -> 
L146: 2024-08-28 | Q146: 2024-08-28 | X146: =IF(M146=MIN(IF($M$12:$M$501>=$O$1,$M$12:$M$501)),$B$40,IF(M146=MIN(IF($M$12:$M$501>=$O$1+7,$M$12:$M$501)),$B$41,IF(M146=MIN(IF($M$12:$M$501>=$O$1+14,$M$12:$M$501)),$B$42,IF(M146=MIN(IF($M$12:$M$501>=$O$1+21,$M$12:$M$501)),$B$43,IF(M146=MIN(IF($M$12:$M$501>=$O$1+28,$M$12:$M$501)),$B$44,""))))) ->  | Y146: =IF(M146=MIN(IF($M$12:$M$501>=$O$1,$M$12:$M$501)),$B$40,IF(M146=MIN(IF($M$12:$M$501>=$O$1+14,$M$12:$M$501)),$B$41,IF(M146=MIN(IF($M$12:$M$501>=$O$1+28,$M$12:$M$501)),$B$42,""))) ->  | BK146: =IF(BJ146<>"",BJ146/1440,"") ->  | BQ146: =IF(G146<>G145,IF(BP146>=2,IF(MAX(IF($G$12:$G$503=G146,$BO$12:$BO$503))<$B$30,BP146,1),BP146),"") ->  | BR146: =IF(G146<>G145,IF(BP146>=2,IF(MAX(IF($G$12:$G$503=G146,$BO$12:$BO$503))<$B$31,BP146,1),BP146),"") ->  | BT146: =IF(MAX(IF($G$12:G146=G146,$BO$12:BO146))<$B$30,COUNTIFS($BO$12:BO146,">"&$B$56,$G$12:G146,G146),0) -> 0 | CY146: =IF(G146<>"",MAX(IF($I$11:I145<>$B$14,$M$11:M145)),"") ->  | CZ146: =IF(CX146<>"",IF(CX146=0,0,IF(G146<>G145,0,IFERROR(INDEX($CZ$11:CZ145, MATCH(MAX($CY$11:CY145), $M$11:M145, 0))+1,1))),"") ->  | DB146: =IF(DA146<>"",IF(DA146=0,0,IF(G146<>G145,0,IFERROR(INDEX($DB$11:DB145, MATCH(MAX($CY$11:CY145), $M$11:M145, 0))+1,1))),"") ->  | DK146: =IF(G145<>G146,MAX(IF($G$12:$G$503=G146,$DI$12:$DI$503)),"") -> 
L147: 2024-08-28 | Q147: 2024-08-28 | X147: =IF(M147=MIN(IF($M$12:$M$501>=$O$1,$M$12:$M$501)),$B$40,IF(M147=MIN(IF($M$12:$M$501>=$O$1+7,$M$12:$M$501)),$B$41,IF(M147=MIN(IF($M$12:$M$501>=$O$1+14,$M$12:$M$501)),$B$42,IF(M147=MIN(IF($M$12:$M$501>=$O$1+21,$M$12:$M$501)),$B$43,IF(M147=MIN(IF($M$12:$M$501>=$O$1+28,$M$12:$M$501)),$B$44,""))))) ->  | Y147: =IF(M147=MIN(IF($M$12:$M$501>=$O$1,$M$12:$M$501)),$B$40,IF(M147=MIN(IF($M$12:$M$501>=$O$1+14,$M$12:$M$501)),$B$41,IF(M147=MIN(IF($M$12:$M$501>=$O$1+28,$M$12:$M$501)),$B$42,""))) ->  | BQ147: =IF(G147<>G146,IF(BP147>=2,IF(MAX(IF($G$12:$G$503=G147,$BO$12:$BO$503))<$B$30,BP147,1),BP147),"") ->  | BR147: =IF(G147<>G146,IF(BP147>=2,IF(MAX(IF($G$12:$G$503=G147,$BO$12:$BO$503))<$B$31,BP147,1),BP147),"") ->  | BT147: =IF(MAX(IF($G$12:G147=G147,$BO$12:BO147))<$B$30,COUNTIFS($BO$12:BO147,">"&$B$56,$G$12:G147,G147),0) -> 0 | CY147: =IF(G147<>"",MAX(IF($I$11:I146<>$B$14,$M$11:M146)),"") ->  | CZ147: =IF(CX147<>"",IF(CX147=0,0,IF(G147<>G146,0,IFERROR(INDEX($CZ$11:CZ146, MATCH(MAX($CY$11:CY146), $M$11:M146, 0))+1,1))),"") ->  | DB147: =IF(DA147<>"",IF(DA147=0,0,IF(G147<>G146,0,IFERROR(INDEX($DB$11:DB146, MATCH(MAX($CY$11:CY146), $M$11:M146, 0))+1,1))),"") ->  | DK147: =IF(G146<>G147,MAX(IF($G$12:$G$503=G147,$DI$12:$DI$503)),"") -> 
L148: 2024-08-28 | Q148: 2024-08-28 | X148: =IF(M148=MIN(IF($M$12:$M$501>=$O$1,$M$12:$M$501)),$B$40,IF(M148=MIN(IF($M$12:$M$501>=$O$1+7,$M$12:$M$501)),$B$41,IF(M148=MIN(IF($M$12:$M$501>=$O$1+14,$M$12:$M$501)),$B$42,IF(M148=MIN(IF($M$12:$M$501>=$O$1+21,$M$12:$M$501)),$B$43,IF(M148=MIN(IF($M$12:$M$501>=$O$1+28,$M$12:$M$501)),$B$44,""))))) ->  | Y148: =IF(M148=MIN(IF($M$12:$M$501>=$O$1,$M$12:$M$501)),$B$40,IF(M148=MIN(IF($M$12:$M$501>=$O$1+14,$M$12:$M$501)),$B$41,IF(M148=MIN(IF($M$12:$M$501>=$O$1+28,$M$12:$M$501)),$B$42,""))) ->  | BQ148: =IF(G148<>G147,IF(BP148>=2,IF(MAX(IF($G$12:$G$503=G148,$BO$12:$BO$503))<$B$30,BP148,1),BP148),"") ->  | BR148: =IF(G148<>G147,IF(BP148>=2,IF(MAX(IF($G$12:$G$503=G148,$BO$12:$BO$503))<$B$31,BP148,1),BP148),"") ->  | BT148: =IF(MAX(IF($G$12:G148=G148,$BO$12:BO148))<$B$30,COUNTIFS($BO$12:BO148,">"&$B$56,$G$12:G148,G148),0) -> 0 | CY148: =IF(G148<>"",MAX(IF($I$11:I147<>$B$14,$M$11:M147)),"") ->  | CZ148: =IF(CX148<>"",IF(CX148=0,0,IF(G148<>G147,0,IFERROR(INDEX($CZ$11:CZ147, MATCH(MAX($CY$11:CY147), $M$11:M147, 0))+1,1))),"") ->  | DB148: =IF(DA148<>"",IF(DA148=0,0,IF(G148<>G147,0,IFERROR(INDEX($DB$11:DB147, MATCH(MAX($CY$11:CY147), $M$11:M147, 0))+1,1))),"") ->  | DK148: =IF(G147<>G148,MAX(IF($G$12:$G$503=G148,$DI$12:$DI$503)),"") ->  | DL148: =IF(DK148<>"",DK148/1440,"") -> 
L149: 2024-08-28 | Q149: 2024-08-28 | X149: =IF(M149=MIN(IF($M$12:$M$501>=$O$1,$M$12:$M$501)),$B$40,IF(M149=MIN(IF($M$12:$M$501>=$O$1+7,$M$12:$M$501)),$B$41,IF(M149=MIN(IF($M$12:$M$501>=$O$1+14,$M$12:$M$501)),$B$42,IF(M149=MIN(IF($M$12:$M$501>=$O$1+21,$M$12:$M$501)),$B$43,IF(M149=MIN(IF($M$12:$M$501>=$O$1+28,$M$12:$M$501)),$B$44,""))))) ->  | Y149: =IF(M149=MIN(IF($M$12:$M$501>=$O$1,$M$12:$M$501)),$B$40,IF(M149=MIN(IF($M$12:$M$501>=$O$1+14,$M$12:$M$501)),$B$41,IF(M149=MIN(IF($M$12:$M$501>=$O$1+28,$M$12:$M$501)),$B$42,""))) ->  | BQ149: =IF(G149<>G148,IF(BP149>=2,IF(MAX(IF($G$12:$G$503=G149,$BO$12:$BO$503))<$B$30,BP149,1),BP149),"") ->  | BR149: =IF(G149<>G148,IF(BP149>=2,IF(MAX(IF($G$12:$G$503=G149,$BO$12:$BO$503))<$B$31,BP149,1),BP149),"") ->  | BT149: =IF(MAX(IF($G$12:G149=G149,$BO$12:BO149))<$B$30,COUNTIFS($BO$12:BO149,">"&$B$56,$G$12:G149,G149),0) -> 0 | CY149: =IF(G149<>"",MAX(IF($I$11:I148<>$B$14,$M$11:M148)),"") ->  | CZ149: =IF(CX149<>"",IF(CX149=0,0,IF(G149<>G148,0,IFERROR(INDEX($CZ$11:CZ148, MATCH(MAX($CY$11:CY148), $M$11:M148, 0))+1,1))),"") ->  | DB149: =IF(DA149<>"",IF(DA149=0,0,IF(G149<>G148,0,IFERROR(INDEX($DB$11:DB148, MATCH(MAX($CY$11:CY148), $M$11:M148, 0))+1,1))),"") ->  | DK149: =IF(G148<>G149,MAX(IF($G$12:$G$503=G149,$DI$12:$DI$503)),"") -> 
L150: 2024-08-28 | Q150: 2024-08-28 | X150: =IF(M150=MIN(IF($M$12:$M$501>=$O$1,$M$12:$M$501)),$B$40,IF(M150=MIN(IF($M$12:$M$501>=$O$1+7,$M$12:$M$501)),$B$41,IF(M150=MIN(IF($M$12:$M$501>=$O$1+14,$M$12:$M$501)),$B$42,IF(M150=MIN(IF($M$12:$M$501>=$O$1+21,$M$12:$M$501)),$B$43,IF(M150=MIN(IF($M$12:$M$501>=$O$1+28,$M$12:$M$501)),$B$44,""))))) ->  | Y150: =IF(M150=MIN(IF($M$12:$M$501>=$O$1,$M$12:$M$501)),$B$40,IF(M150=MIN(IF($M$12:$M$501>=$O$1+14,$M$12:$M$501)),$B$41,IF(M150=MIN(IF($M$12:$M$501>=$O$1+28,$M$12:$M$501)),$B$42,""))) ->  | BQ150: =IF(G150<>G149,IF(BP150>=2,IF(MAX(IF($G$12:$G$503=G150,$BO$12:$BO$503))<$B$30,BP150,1),BP150),"") ->  | BR150: =IF(G150<>G149,IF(BP150>=2,IF(MAX(IF($G$12:$G$503=G150,$BO$12:$BO$503))<$B$31,BP150,1),BP150),"") ->  | BT150: =IF(MAX(IF($G$12:G150=G150,$BO$12:BO150))<$B$30,COUNTIFS($BO$12:BO150,">"&$B$56,$G$12:G150,G150),0) -> 0 | CH150: =IF(CG150<>"",CG150/1440,"") ->  | CY150: =IF(G150<>"",MAX(IF($I$11:I149<>$B$14,$M$11:M149)),"") ->  | CZ150: =IF(CX150<>"",IF(CX150=0,0,IF(G150<>G149,0,IFERROR(INDEX($CZ$11:CZ149, MATCH(MAX($CY$11:CY149), $M$11:M149, 0))+1,1))),"") ->  | DB150: =IF(DA150<>"",IF(DA150=0,0,IF(G150<>G149,0,IFERROR(INDEX($DB$11:DB149, MATCH(MAX($CY$11:CY149), $M$11:M149, 0))+1,1))),"") ->  | DK150: =IF(G149<>G150,MAX(IF($G$12:$G$503=G150,$DI$12:$DI$503)),"") -> 
L151: 2024-08-28 | Q151: 2024-08-28 | X151: =IF(M151=MIN(IF($M$12:$M$501>=$O$1,$M$12:$M$501)),$B$40,IF(M151=MIN(IF($M$12:$M$501>=$O$1+7,$M$12:$M$501)),$B$41,IF(M151=MIN(IF($M$12:$M$501>=$O$1+14,$M$12:$M$501)),$B$42,IF(M151=MIN(IF($M$12:$M$501>=$O$1+21,$M$12:$M$501)),$B$43,IF(M151=MIN(IF($M$12:$M$501>=$O$1+28,$M$12:$M$501)),$B$44,""))))) ->  | Y151: =IF(M151=MIN(IF($M$12:$M$501>=$O$1,$M$12:$M$501)),$B$40,IF(M151=MIN(IF($M$12:$M$501>=$O$1+14,$M$12:$M$501)),$B$41,IF(M151=MIN(IF($M$12:$M$501>=$O$1+28,$M$12:$M$501)),$B$42,""))) ->  | BQ151: =IF(G151<>G150,IF(BP151>=2,IF(MAX(IF($G$12:$G$503=G151,$BO$12:$BO$503))<$B$30,BP151,1),BP151),"") ->  | BR151: =IF(G151<>G150,IF(BP151>=2,IF(MAX(IF($G$12:$G$503=G151,$BO$12:$BO$503))<$B$31,BP151,1),BP151),"") ->  | BT151: =IF(MAX(IF($G$12:G151=G151,$BO$12:BO151))<$B$30,COUNTIFS($BO$12:BO151,">"&$B$56,$G$12:G151,G151),0) -> 0 | CN151: =IF(CM151<>"",CM151/1440,"") ->  | CY151: =IF(G151<>"",MAX(IF($I$11:I150<>$B$14,$M$11:M150)),"") ->  | CZ151: =IF(CX151<>"",IF(CX151=0,0,IF(G151<>G150,0,IFERROR(INDEX($CZ$11:CZ150, MATCH(MAX($CY$11:CY150), $M$11:M150, 0))+1,1))),"") ->  | DB151: =IF(DA151<>"",IF(DA151=0,0,IF(G151<>G150,0,IFERROR(INDEX($DB$11:DB150, MATCH(MAX($CY$11:CY150), $M$11:M150, 0))+1,1))),"") ->  | DK151: =IF(G150<>G151,MAX(IF($G$12:$G$503=G151,$DI$12:$DI$503)),"") -> 
L152: 2024-08-28 | Q152: 2024-08-28 | X152: =IF(M152=MIN(IF($M$12:$M$501>=$O$1,$M$12:$M$501)),$B$40,IF(M152=MIN(IF($M$12:$M$501>=$O$1+7,$M$12:$M$501)),$B$41,IF(M152=MIN(IF($M$12:$M$501>=$O$1+14,$M$12:$M$501)),$B$42,IF(M152=MIN(IF($M$12:$M$501>=$O$1+21,$M$12:$M$501)),$B$43,IF(M152=MIN(IF($M$12:$M$501>=$O$1+28,$M$12:$M$501)),$B$44,""))))) ->  | Y152: =IF(M152=MIN(IF($M$12:$M$501>=$O$1,$M$12:$M$501)),$B$40,IF(M152=MIN(IF($M$12:$M$501>=$O$1+14,$M$12:$M$501)),$B$41,IF(M152=MIN(IF($M$12:$M$501>=$O$1+28,$M$12:$M$501)),$B$42,""))) ->  | BQ152: =IF(G152<>G151,IF(BP152>=2,IF(MAX(IF($G$12:$G$503=G152,$BO$12:$BO$503))<$B$30,BP152,1),BP152),"") ->  | BR152: =IF(G152<>G151,IF(BP152>=2,IF(MAX(IF($G$12:$G$503=G152,$BO$12:$BO$503))<$B$31,BP152,1),BP152),"") ->  | BT152: =IF(MAX(IF($G$12:G152=G152,$BO$12:BO152))<$B$30,COUNTIFS($BO$12:BO152,">"&$B$56,$G$12:G152,G152),0) -> 0 | CP152: =IF(CO152<>"",CO152/1440,"") ->  | CY152: =IF(G152<>"",MAX(IF($I$11:I151<>$B$14,$M$11:M151)),"") ->  | CZ152: =IF(CX152<>"",IF(CX152=0,0,IF(G152<>G151,0,IFERROR(INDEX($CZ$11:CZ151, MATCH(MAX($CY$11:CY151), $M$11:M151, 0))+1,1))),"") ->  | DB152: =IF(DA152<>"",IF(DA152=0,0,IF(G152<>G151,0,IFERROR(INDEX($DB$11:DB151, MATCH(MAX($CY$11:CY151), $M$11:M151, 0))+1,1))),"") ->  | DK152: =IF(G151<>G152,MAX(IF($G$12:$G$503=G152,$DI$12:$DI$503)),"") -> 
L153: 2024-08-28 | Q153: 2024-08-28 | X153: =IF(M153=MIN(IF($M$12:$M$501>=$O$1,$M$12:$M$501)),$B$40,IF(M153=MIN(IF($M$12:$M$501>=$O$1+7,$M$12:$M$501)),$B$41,IF(M153=MIN(IF($M$12:$M$501>=$O$1+14,$M$12:$M$501)),$B$42,IF(M153=MIN(IF($M$12:$M$501>=$O$1+21,$M$12:$M$501)),$B$43,IF(M153=MIN(IF($M$12:$M$501>=$O$1+28,$M$12:$M$501)),$B$44,""))))) ->  | Y153: =IF(M153=MIN(IF($M$12:$M$501>=$O$1,$M$12:$M$501)),$B$40,IF(M153=MIN(IF($M$12:$M$501>=$O$1+14,$M$12:$M$501)),$B$41,IF(M153=MIN(IF($M$12:$M$501>=$O$1+28,$M$12:$M$501)),$B$42,""))) ->  | BQ153: =IF(G153<>G152,IF(BP153>=2,IF(MAX(IF($G$12:$G$503=G153,$BO$12:$BO$503))<$B$30,BP153,1),BP153),"") ->  | BR153: =IF(G153<>G152,IF(BP153>=2,IF(MAX(IF($G$12:$G$503=G153,$BO$12:$BO$503))<$B$31,BP153,1),BP153),"") ->  | BT153: =IF(MAX(IF($G$12:G153=G153,$BO$12:BO153))<$B$30,COUNTIFS($BO$12:BO153,">"&$B$56,$G$12:G153,G153),0) -> 0 | CY153: =IF(G153<>"",MAX(IF($I$11:I152<>$B$14,$M$11:M152)),"") ->  | CZ153: =IF(CX153<>"",IF(CX153=0,0,IF(G153<>G152,0,IFERROR(INDEX($CZ$11:CZ152, MATCH(MAX($CY$11:CY152), $M$11:M152, 0))+1,1))),"") ->  | DB153: =IF(DA153<>"",IF(DA153=0,0,IF(G153<>G152,0,IFERROR(INDEX($DB$11:DB152, MATCH(MAX($CY$11:CY152), $M$11:M152, 0))+1,1))),"") ->  | DK153: =IF(G152<>G153,MAX(IF($G$12:$G$503=G153,$DI$12:$DI$503)),"") -> 
L154: 2024-08-28 | Q154: 2024-08-28 | X154: =IF(M154=MIN(IF($M$12:$M$501>=$O$1,$M$12:$M$501)),$B$40,IF(M154=MIN(IF($M$12:$M$501>=$O$1+7,$M$12:$M$501)),$B$41,IF(M154=MIN(IF($M$12:$M$501>=$O$1+14,$M$12:$M$501)),$B$42,IF(M154=MIN(IF($M$12:$M$501>=$O$1+21,$M$12:$M$501)),$B$43,IF(M154=MIN(IF($M$12:$M$501>=$O$1+28,$M$12:$M$501)),$B$44,""))))) ->  | Y154: =IF(M154=MIN(IF($M$12:$M$501>=$O$1,$M$12:$M$501)),$B$40,IF(M154=MIN(IF($M$12:$M$501>=$O$1+14,$M$12:$M$501)),$B$41,IF(M154=MIN(IF($M$12:$M$501>=$O$1+28,$M$12:$M$501)),$B$42,""))) ->  | BQ154: =IF(G154<>G153,IF(BP154>=2,IF(MAX(IF($G$12:$G$503=G154,$BO$12:$BO$503))<$B$30,BP154,1),BP154),"") ->  | BR154: =IF(G154<>G153,IF(BP154>=2,IF(MAX(IF($G$12:$G$503=G154,$BO$12:$BO$503))<$B$31,BP154,1),BP154),"") ->  | BT154: =IF(MAX(IF($G$12:G154=G154,$BO$12:BO154))<$B$30,COUNTIFS($BO$12:BO154,">"&$B$56,$G$12:G154,G154),0) -> 0 | CY154: =IF(G154<>"",MAX(IF($I$11:I153<>$B$14,$M$11:M153)),"") ->  | CZ154: =IF(CX154<>"",IF(CX154=0,0,IF(G154<>G153,0,IFERROR(INDEX($CZ$11:CZ153, MATCH(MAX($CY$11:CY153), $M$11:M153, 0))+1,1))),"") ->  | DB154: =IF(DA154<>"",IF(DA154=0,0,IF(G154<>G153,0,IFERROR(INDEX($DB$11:DB153, MATCH(MAX($CY$11:CY153), $M$11:M153, 0))+1,1))),"") ->  | DK154: =IF(G153<>G154,MAX(IF($G$12:$G$503=G154,$DI$12:$DI$503)),"") -> 
L155: 2024-08-28 | Q155: 2024-08-28 | X155: =IF(M155=MIN(IF($M$12:$M$501>=$O$1,$M$12:$M$501)),$B$40,IF(M155=MIN(IF($M$12:$M$501>=$O$1+7,$M$12:$M$501)),$B$41,IF(M155=MIN(IF($M$12:$M$501>=$O$1+14,$M$12:$M$501)),$B$42,IF(M155=MIN(IF($M$12:$M$501>=$O$1+21,$M$12:$M$501)),$B$43,IF(M155=MIN(IF($M$12:$M$501>=$O$1+28,$M$12:$M$501)),$B$44,""))))) ->  | Y155: =IF(M155=MIN(IF($M$12:$M$501>=$O$1,$M$12:$M$501)),$B$40,IF(M155=MIN(IF($M$12:$M$501>=$O$1+14,$M$12:$M$501)),$B$41,IF(M155=MIN(IF($M$12:$M$501>=$O$1+28,$M$12:$M$501)),$B$42,""))) ->  | BQ155: =IF(G155<>G154,IF(BP155>=2,IF(MAX(IF($G$12:$G$503=G155,$BO$12:$BO$503))<$B$30,BP155,1),BP155),"") ->  | BR155: =IF(G155<>G154,IF(BP155>=2,IF(MAX(IF($G$12:$G$503=G155,$BO$12:$BO$503))<$B$31,BP155,1),BP155),"") ->  | BT155: =IF(MAX(IF($G$12:G155=G155,$BO$12:BO155))<$B$30,COUNTIFS($BO$12:BO155,">"&$B$56,$G$12:G155,G155),0) -> 0 | CY155: =IF(G155<>"",MAX(IF($I$11:I154<>$B$14,$M$11:M154)),"") ->  | CZ155: =IF(CX155<>"",IF(CX155=0,0,IF(G155<>G154,0,IFERROR(INDEX($CZ$11:CZ154, MATCH(MAX($CY$11:CY154), $M$11:M154, 0))+1,1))),"") ->  | DB155: =IF(DA155<>"",IF(DA155=0,0,IF(G155<>G154,0,IFERROR(INDEX($DB$11:DB154, MATCH(MAX($CY$11:CY154), $M$11:M154, 0))+1,1))),"") ->  | DK155: =IF(G154<>G155,MAX(IF($G$12:$G$503=G155,$DI$12:$DI$503)),"") -> 
L156: 2024-08-28 | Q156: 2024-08-28 | X156: =IF(M156=MIN(IF($M$12:$M$501>=$O$1,$M$12:$M$501)),$B$40,IF(M156=MIN(IF($M$12:$M$501>=$O$1+7,$M$12:$M$501)),$B$41,IF(M156=MIN(IF($M$12:$M$501>=$O$1+14,$M$12:$M$501)),$B$42,IF(M156=MIN(IF($M$12:$M$501>=$O$1+21,$M$12:$M$501)),$B$43,IF(M156=MIN(IF($M$12:$M$501>=$O$1+28,$M$12:$M$501)),$B$44,""))))) ->  | Y156: =IF(M156=MIN(IF($M$12:$M$501>=$O$1,$M$12:$M$501)),$B$40,IF(M156=MIN(IF($M$12:$M$501>=$O$1+14,$M$12:$M$501)),$B$41,IF(M156=MIN(IF($M$12:$M$501>=$O$1+28,$M$12:$M$501)),$B$42,""))) ->  | BQ156: =IF(G156<>G155,IF(BP156>=2,IF(MAX(IF($G$12:$G$503=G156,$BO$12:$BO$503))<$B$30,BP156,1),BP156),"") ->  | BR156: =IF(G156<>G155,IF(BP156>=2,IF(MAX(IF($G$12:$G$503=G156,$BO$12:$BO$503))<$B$31,BP156,1),BP156),"") ->  | BT156: =IF(MAX(IF($G$12:G156=G156,$BO$12:BO156))<$B$30,COUNTIFS($BO$12:BO156,">"&$B$56,$G$12:G156,G156),0) -> 0 | CY156: =IF(G156<>"",MAX(IF($I$11:I155<>$B$14,$M$11:M155)),"") ->  | CZ156: =IF(CX156<>"",IF(CX156=0,0,IF(G156<>G155,0,IFERROR(INDEX($CZ$11:CZ155, MATCH(MAX($CY$11:CY155), $M$11:M155, 0))+1,1))),"") ->  | DB156: =IF(DA156<>"",IF(DA156=0,0,IF(G156<>G155,0,IFERROR(INDEX($DB$11:DB155, MATCH(MAX($CY$11:CY155), $M$11:M155, 0))+1,1))),"") ->  | DK156: =IF(G155<>G156,MAX(IF($G$12:$G$503=G156,$DI$12:$DI$503)),"") -> 
L157: 2024-08-28 | Q157: 2024-08-28 | X157: =IF(M157=MIN(IF($M$12:$M$501>=$O$1,$M$12:$M$501)),$B$40,IF(M157=MIN(IF($M$12:$M$501>=$O$1+7,$M$12:$M$501)),$B$41,IF(M157=MIN(IF($M$12:$M$501>=$O$1+14,$M$12:$M$501)),$B$42,IF(M157=MIN(IF($M$12:$M$501>=$O$1+21,$M$12:$M$501)),$B$43,IF(M157=MIN(IF($M$12:$M$501>=$O$1+28,$M$12:$M$501)),$B$44,""))))) ->  | Y157: =IF(M157=MIN(IF($M$12:$M$501>=$O$1,$M$12:$M$501)),$B$40,IF(M157=MIN(IF($M$12:$M$501>=$O$1+14,$M$12:$M$501)),$B$41,IF(M157=MIN(IF($M$12:$M$501>=$O$1+28,$M$12:$M$501)),$B$42,""))) ->  | BQ157: =IF(G157<>G156,IF(BP157>=2,IF(MAX(IF($G$12:$G$503=G157,$BO$12:$BO$503))<$B$30,BP157,1),BP157),"") ->  | BR157: =IF(G157<>G156,IF(BP157>=2,IF(MAX(IF($G$12:$G$503=G157,$BO$12:$BO$503))<$B$31,BP157,1),BP157),"") ->  | BT157: =IF(MAX(IF($G$12:G157=G157,$BO$12:BO157))<$B$30,COUNTIFS($BO$12:BO157,">"&$B$56,$G$12:G157,G157),0) -> 0 | CY157: =IF(G157<>"",MAX(IF($I$11:I156<>$B$14,$M$11:M156)),"") ->  | CZ157: =IF(CX157<>"",IF(CX157=0,0,IF(G157<>G156,0,IFERROR(INDEX($CZ$11:CZ156, MATCH(MAX($CY$11:CY156), $M$11:M156, 0))+1,1))),"") ->  | DB157: =IF(DA157<>"",IF(DA157=0,0,IF(G157<>G156,0,IFERROR(INDEX($DB$11:DB156, MATCH(MAX($CY$11:CY156), $M$11:M156, 0))+1,1))),"") ->  | DK157: =IF(G156<>G157,MAX(IF($G$12:$G$503=G157,$DI$12:$DI$503)),"") -> 
L158: 2024-08-28 | Q158: 2024-08-28 | X158: =IF(M158=MIN(IF($M$12:$M$501>=$O$1,$M$12:$M$501)),$B$40,IF(M158=MIN(IF($M$12:$M$501>=$O$1+7,$M$12:$M$501)),$B$41,IF(M158=MIN(IF($M$12:$M$501>=$O$1+14,$M$12:$M$501)),$B$42,IF(M158=MIN(IF($M$12:$M$501>=$O$1+21,$M$12:$M$501)),$B$43,IF(M158=MIN(IF($M$12:$M$501>=$O$1+28,$M$12:$M$501)),$B$44,""))))) ->  | Y158: =IF(M158=MIN(IF($M$12:$M$501>=$O$1,$M$12:$M$501)),$B$40,IF(M158=MIN(IF($M$12:$M$501>=$O$1+14,$M$12:$M$501)),$B$41,IF(M158=MIN(IF($M$12:$M$501>=$O$1+28,$M$12:$M$501)),$B$42,""))) ->  | BQ158: =IF(G158<>G157,IF(BP158>=2,IF(MAX(IF($G$12:$G$503=G158,$BO$12:$BO$503))<$B$30,BP158,1),BP158),"") ->  | BR158: =IF(G158<>G157,IF(BP158>=2,IF(MAX(IF($G$12:$G$503=G158,$BO$12:$BO$503))<$B$31,BP158,1),BP158),"") ->  | BT158: =IF(MAX(IF($G$12:G158=G158,$BO$12:BO158))<$B$30,COUNTIFS($BO$12:BO158,">"&$B$56,$G$12:G158,G158),0) -> 0 | CY158: =IF(G158<>"",MAX(IF($I$11:I157<>$B$14,$M$11:M157)),"") ->  | CZ158: =IF(CX158<>"",IF(CX158=0,0,IF(G158<>G157,0,IFERROR(INDEX($CZ$11:CZ157, MATCH(MAX($CY$11:CY157), $M$11:M157, 0))+1,1))),"") ->  | DB158: =IF(DA158<>"",IF(DA158=0,0,IF(G158<>G157,0,IFERROR(INDEX($DB$11:DB157, MATCH(MAX($CY$11:CY157), $M$11:M157, 0))+1,1))),"") ->  | DK158: =IF(G157<>G158,MAX(IF($G$12:$G$503=G158,$DI$12:$DI$503)),"") -> 
L159: 2024-08-28 | Q159: 2024-08-28 | X159: =IF(M159=MIN(IF($M$12:$M$501>=$O$1,$M$12:$M$501)),$B$40,IF(M159=MIN(IF($M$12:$M$501>=$O$1+7,$M$12:$M$501)),$B$41,IF(M159=MIN(IF($M$12:$M$501>=$O$1+14,$M$12:$M$501)),$B$42,IF(M159=MIN(IF($M$12:$M$501>=$O$1+21,$M$12:$M$501)),$B$43,IF(M159=MIN(IF($M$12:$M$501>=$O$1+28,$M$12:$M$501)),$B$44,""))))) ->  | Y159: =IF(M159=MIN(IF($M$12:$M$501>=$O$1,$M$12:$M$501)),$B$40,IF(M159=MIN(IF($M$12:$M$501>=$O$1+14,$M$12:$M$501)),$B$41,IF(M159=MIN(IF($M$12:$M$501>=$O$1+28,$M$12:$M$501)),$B$42,""))) ->  | AF159: =IF(AE159<>"",IF(AE159<>0,AE159/1440,""),"") ->  | BQ159: =IF(G159<>G158,IF(BP159>=2,IF(MAX(IF($G$12:$G$503=G159,$BO$12:$BO$503))<$B$30,BP159,1),BP159),"") ->  | BR159: =IF(G159<>G158,IF(BP159>=2,IF(MAX(IF($G$12:$G$503=G159,$BO$12:$BO$503))<$B$31,BP159,1),BP159),"") ->  | BT159: =IF(MAX(IF($G$12:G159=G159,$BO$12:BO159))<$B$30,COUNTIFS($BO$12:BO159,">"&$B$56,$G$12:G159,G159),0) -> 0 | CY159: =IF(G159<>"",MAX(IF($I$11:I158<>$B$14,$M$11:M158)),"") ->  | CZ159: =IF(CX159<>"",IF(CX159=0,0,IF(G159<>G158,0,IFERROR(INDEX($CZ$11:CZ158, MATCH(MAX($CY$11:CY158), $M$11:M158, 0))+1,1))),"") ->  | DB159: =IF(DA159<>"",IF(DA159=0,0,IF(G159<>G158,0,IFERROR(INDEX($DB$11:DB158, MATCH(MAX($CY$11:CY158), $M$11:M158, 0))+1,1))),"") ->  | DK159: =IF(G158<>G159,MAX(IF($G$12:$G$503=G159,$DI$12:$DI$503)),"") -> 
L160: 2024-08-28 | Q160: 2024-08-28 | X160: =IF(M160=MIN(IF($M$12:$M$501>=$O$1,$M$12:$M$501)),$B$40,IF(M160=MIN(IF($M$12:$M$501>=$O$1+7,$M$12:$M$501)),$B$41,IF(M160=MIN(IF($M$12:$M$501>=$O$1+14,$M$12:$M$501)),$B$42,IF(M160=MIN(IF($M$12:$M$501>=$O$1+21,$M$12:$M$501)),$B$43,IF(M160=MIN(IF($M$12:$M$501>=$O$1+28,$M$12:$M$501)),$B$44,""))))) ->  | Y160: =IF(M160=MIN(IF($M$12:$M$501>=$O$1,$M$12:$M$501)),$B$40,IF(M160=MIN(IF($M$12:$M$501>=$O$1+14,$M$12:$M$501)),$B$41,IF(M160=MIN(IF($M$12:$M$501>=$O$1+28,$M$12:$M$501)),$B$42,""))) ->  | BQ160: =IF(G160<>G159,IF(BP160>=2,IF(MAX(IF($G$12:$G$503=G160,$BO$12:$BO$503))<$B$30,BP160,1),BP160),"") ->  | BR160: =IF(G160<>G159,IF(BP160>=2,IF(MAX(IF($G$12:$G$503=G160,$BO$12:$BO$503))<$B$31,BP160,1),BP160),"") ->  | BT160: =IF(MAX(IF($G$12:G160=G160,$BO$12:BO160))<$B$30,COUNTIFS($BO$12:BO160,">"&$B$56,$G$12:G160,G160),0) -> 0 | CY160: =IF(G160<>"",MAX(IF($I$11:I159<>$B$14,$M$11:M159)),"") ->  | CZ160: =IF(CX160<>"",IF(CX160=0,0,IF(G160<>G159,0,IFERROR(INDEX($CZ$11:CZ159, MATCH(MAX($CY$11:CY159), $M$11:M159, 0))+1,1))),"") ->  | DB160: =IF(DA160<>"",IF(DA160=0,0,IF(G160<>G159,0,IFERROR(INDEX($DB$11:DB159, MATCH(MAX($CY$11:CY159), $M$11:M159, 0))+1,1))),"") ->  | DK160: =IF(G159<>G160,MAX(IF($G$12:$G$503=G160,$DI$12:$DI$503)),"") -> 
L161: 2024-08-28 | Q161: 2024-08-28 | X161: =IF(M161=MIN(IF($M$12:$M$501>=$O$1,$M$12:$M$501)),$B$40,IF(M161=MIN(IF($M$12:$M$501>=$O$1+7,$M$12:$M$501)),$B$41,IF(M161=MIN(IF($M$12:$M$501>=$O$1+14,$M$12:$M$501)),$B$42,IF(M161=MIN(IF($M$12:$M$501>=$O$1+21,$M$12:$M$501)),$B$43,IF(M161=MIN(IF($M$12:$M$501>=$O$1+28,$M$12:$M$501)),$B$44,""))))) ->  | Y161: =IF(M161=MIN(IF($M$12:$M$501>=$O$1,$M$12:$M$501)),$B$40,IF(M161=MIN(IF($M$12:$M$501>=$O$1+14,$M$12:$M$501)),$B$41,IF(M161=MIN(IF($M$12:$M$501>=$O$1+28,$M$12:$M$501)),$B$42,""))) ->  | BQ161: =IF(G161<>G160,IF(BP161>=2,IF(MAX(IF($G$12:$G$503=G161,$BO$12:$BO$503))<$B$30,BP161,1),BP161),"") ->  | BR161: =IF(G161<>G160,IF(BP161>=2,IF(MAX(IF($G$12:$G$503=G161,$BO$12:$BO$503))<$B$31,BP161,1),BP161),"") ->  | BT161: =IF(MAX(IF($G$12:G161=G161,$BO$12:BO161))<$B$30,COUNTIFS($BO$12:BO161,">"&$B$56,$G$12:G161,G161),0) -> 0 | CY161: =IF(G161<>"",MAX(IF($I$11:I160<>$B$14,$M$11:M160)),"") ->  | CZ161: =IF(CX161<>"",IF(CX161=0,0,IF(G161<>G160,0,IFERROR(INDEX($CZ$11:CZ160, MATCH(MAX($CY$11:CY160), $M$11:M160, 0))+1,1))),"") ->  | DB161: =IF(DA161<>"",IF(DA161=0,0,IF(G161<>G160,0,IFERROR(INDEX($DB$11:DB160, MATCH(MAX($CY$11:CY160), $M$11:M160, 0))+1,1))),"") ->  | DK161: =IF(G160<>G161,MAX(IF($G$12:$G$503=G161,$DI$12:$DI$503)),"") -> 
L162: 2024-08-28 | Q162: 2024-08-28 | X162: =IF(M162=MIN(IF($M$12:$M$501>=$O$1,$M$12:$M$501)),$B$40,IF(M162=MIN(IF($M$12:$M$501>=$O$1+7,$M$12:$M$501)),$B$41,IF(M162=MIN(IF($M$12:$M$501>=$O$1+14,$M$12:$M$501)),$B$42,IF(M162=MIN(IF($M$12:$M$501>=$O$1+21,$M$12:$M$501)),$B$43,IF(M162=MIN(IF($M$12:$M$501>=$O$1+28,$M$12:$M$501)),$B$44,""))))) ->  | Y162: =IF(M162=MIN(IF($M$12:$M$501>=$O$1,$M$12:$M$501)),$B$40,IF(M162=MIN(IF($M$12:$M$501>=$O$1+14,$M$12:$M$501)),$B$41,IF(M162=MIN(IF($M$12:$M$501>=$O$1+28,$M$12:$M$501)),$B$42,""))) ->  | BQ162: =IF(G162<>G161,IF(BP162>=2,IF(MAX(IF($G$12:$G$503=G162,$BO$12:$BO$503))<$B$30,BP162,1),BP162),"") ->  | BR162: =IF(G162<>G161,IF(BP162>=2,IF(MAX(IF($G$12:$G$503=G162,$BO$12:$BO$503))<$B$31,BP162,1),BP162),"") ->  | BT162: =IF(MAX(IF($G$12:G162=G162,$BO$12:BO162))<$B$30,COUNTIFS($BO$12:BO162,">"&$B$56,$G$12:G162,G162),0) -> 0 | CW162: =IF(CV162<>"",CV162/1440,"") ->  | CY162: =IF(G162<>"",MAX(IF($I$11:I161<>$B$14,$M$11:M161)),"") ->  | CZ162: =IF(CX162<>"",IF(CX162=0,0,IF(G162<>G161,0,IFERROR(INDEX($CZ$11:CZ161, MATCH(MAX($CY$11:CY161), $M$11:M161, 0))+1,1))),"") ->  | DB162: =IF(DA162<>"",IF(DA162=0,0,IF(G162<>G161,0,IFERROR(INDEX($DB$11:DB161, MATCH(MAX($CY$11:CY161), $M$11:M161, 0))+1,1))),"") ->  | DK162: =IF(G161<>G162,MAX(IF($G$12:$G$503=G162,$DI$12:$DI$503)),"") -> 
L163: 2024-08-28 | Q163: 2024-08-28 | X163: =IF(M163=MIN(IF($M$12:$M$501>=$O$1,$M$12:$M$501)),$B$40,IF(M163=MIN(IF($M$12:$M$501>=$O$1+7,$M$12:$M$501)),$B$41,IF(M163=MIN(IF($M$12:$M$501>=$O$1+14,$M$12:$M$501)),$B$42,IF(M163=MIN(IF($M$12:$M$501>=$O$1+21,$M$12:$M$501)),$B$43,IF(M163=MIN(IF($M$12:$M$501>=$O$1+28,$M$12:$M$501)),$B$44,""))))) ->  | Y163: =IF(M163=MIN(IF($M$12:$M$501>=$O$1,$M$12:$M$501)),$B$40,IF(M163=MIN(IF($M$12:$M$501>=$O$1+14,$M$12:$M$501)),$B$41,IF(M163=MIN(IF($M$12:$M$501>=$O$1+28,$M$12:$M$501)),$B$42,""))) ->  | BQ163: =IF(G163<>G162,IF(BP163>=2,IF(MAX(IF($G$12:$G$503=G163,$BO$12:$BO$503))<$B$30,BP163,1),BP163),"") ->  | BR163: =IF(G163<>G162,IF(BP163>=2,IF(MAX(IF($G$12:$G$503=G163,$BO$12:$BO$503))<$B$31,BP163,1),BP163),"") ->  | BT163: =IF(MAX(IF($G$12:G163=G163,$BO$12:BO163))<$B$30,COUNTIFS($BO$12:BO163,">"&$B$56,$G$12:G163,G163),0) -> 0 | CY163: =IF(G163<>"",MAX(IF($I$11:I162<>$B$14,$M$11:M162)),"") ->  | CZ163: =IF(CX163<>"",IF(CX163=0,0,IF(G163<>G162,0,IFERROR(INDEX($CZ$11:CZ162, MATCH(MAX($CY$11:CY162), $M$11:M162, 0))+1,1))),"") ->  | DB163: =IF(DA163<>"",IF(DA163=0,0,IF(G163<>G162,0,IFERROR(INDEX($DB$11:DB162, MATCH(MAX($CY$11:CY162), $M$11:M162, 0))+1,1))),"") ->  | DK163: =IF(G162<>G163,MAX(IF($G$12:$G$503=G163,$DI$12:$DI$503)),"") -> 
L164: 2024-08-28 | Q164: 2024-08-28 | X164: =IF(M164=MIN(IF($M$12:$M$501>=$O$1,$M$12:$M$501)),$B$40,IF(M164=MIN(IF($M$12:$M$501>=$O$1+7,$M$12:$M$501)),$B$41,IF(M164=MIN(IF($M$12:$M$501>=$O$1+14,$M$12:$M$501)),$B$42,IF(M164=MIN(IF($M$12:$M$501>=$O$1+21,$M$12:$M$501)),$B$43,IF(M164=MIN(IF($M$12:$M$501>=$O$1+28,$M$12:$M$501)),$B$44,""))))) ->  | Y164: =IF(M164=MIN(IF($M$12:$M$501>=$O$1,$M$12:$M$501)),$B$40,IF(M164=MIN(IF($M$12:$M$501>=$O$1+14,$M$12:$M$501)),$B$41,IF(M164=MIN(IF($M$12:$M$501>=$O$1+28,$M$12:$M$501)),$B$42,""))) ->  | BQ164: =IF(G164<>G163,IF(BP164>=2,IF(MAX(IF($G$12:$G$503=G164,$BO$12:$BO$503))<$B$30,BP164,1),BP164),"") ->  | BR164: =IF(G164<>G163,IF(BP164>=2,IF(MAX(IF($G$12:$G$503=G164,$BO$12:$BO$503))<$B$31,BP164,1),BP164),"") ->  | BT164: =IF(MAX(IF($G$12:G164=G164,$BO$12:BO164))<$B$30,COUNTIFS($BO$12:BO164,">"&$B$56,$G$12:G164,G164),0) -> 0 | CY164: =IF(G164<>"",MAX(IF($I$11:I163<>$B$14,$M$11:M163)),"") ->  | CZ164: =IF(CX164<>"",IF(CX164=0,0,IF(G164<>G163,0,IFERROR(INDEX($CZ$11:CZ163, MATCH(MAX($CY$11:CY163), $M$11:M163, 0))+1,1))),"") ->  | DB164: =IF(DA164<>"",IF(DA164=0,0,IF(G164<>G163,0,IFERROR(INDEX($DB$11:DB163, MATCH(MAX($CY$11:CY163), $M$11:M163, 0))+1,1))),"") ->  | DK164: =IF(G163<>G164,MAX(IF($G$12:$G$503=G164,$DI$12:$DI$503)),"") -> 
L165: 2024-08-28 | Q165: 2024-08-28 | X165: =IF(M165=MIN(IF($M$12:$M$501>=$O$1,$M$12:$M$501)),$B$40,IF(M165=MIN(IF($M$12:$M$501>=$O$1+7,$M$12:$M$501)),$B$41,IF(M165=MIN(IF($M$12:$M$501>=$O$1+14,$M$12:$M$501)),$B$42,IF(M165=MIN(IF($M$12:$M$501>=$O$1+21,$M$12:$M$501)),$B$43,IF(M165=MIN(IF($M$12:$M$501>=$O$1+28,$M$12:$M$501)),$B$44,""))))) ->  | Y165: =IF(M165=MIN(IF($M$12:$M$501>=$O$1,$M$12:$M$501)),$B$40,IF(M165=MIN(IF($M$12:$M$501>=$O$1+14,$M$12:$M$501)),$B$41,IF(M165=MIN(IF($M$12:$M$501>=$O$1+28,$M$12:$M$501)),$B$42,""))) ->  | BQ165: =IF(G165<>G164,IF(BP165>=2,IF(MAX(IF($G$12:$G$503=G165,$BO$12:$BO$503))<$B$30,BP165,1),BP165),"") ->  | BR165: =IF(G165<>G164,IF(BP165>=2,IF(MAX(IF($G$12:$G$503=G165,$BO$12:$BO$503))<$B$31,BP165,1),BP165),"") ->  | BT165: =IF(MAX(IF($G$12:G165=G165,$BO$12:BO165))<$B$30,COUNTIFS($BO$12:BO165,">"&$B$56,$G$12:G165,G165),0) -> 0 | CY165: =IF(G165<>"",MAX(IF($I$11:I164<>$B$14,$M$11:M164)),"") ->  | CZ165: =IF(CX165<>"",IF(CX165=0,0,IF(G165<>G164,0,IFERROR(INDEX($CZ$11:CZ164, MATCH(MAX($CY$11:CY164), $M$11:M164, 0))+1,1))),"") ->  | DB165: =IF(DA165<>"",IF(DA165=0,0,IF(G165<>G164,0,IFERROR(INDEX($DB$11:DB164, MATCH(MAX($CY$11:CY164), $M$11:M164, 0))+1,1))),"") ->  | DK165: =IF(G164<>G165,MAX(IF($G$12:$G$503=G165,$DI$12:$DI$503)),"") -> 
L166: 2024-08-28 | Q166: 2024-08-28 | X166: =IF(M166=MIN(IF($M$12:$M$501>=$O$1,$M$12:$M$501)),$B$40,IF(M166=MIN(IF($M$12:$M$501>=$O$1+7,$M$12:$M$501)),$B$41,IF(M166=MIN(IF($M$12:$M$501>=$O$1+14,$M$12:$M$501)),$B$42,IF(M166=MIN(IF($M$12:$M$501>=$O$1+21,$M$12:$M$501)),$B$43,IF(M166=MIN(IF($M$12:$M$501>=$O$1+28,$M$12:$M$501)),$B$44,""))))) ->  | Y166: =IF(M166=MIN(IF($M$12:$M$501>=$O$1,$M$12:$M$501)),$B$40,IF(M166=MIN(IF($M$12:$M$501>=$O$1+14,$M$12:$M$501)),$B$41,IF(M166=MIN(IF($M$12:$M$501>=$O$1+28,$M$12:$M$501)),$B$42,""))) ->  | BQ166: =IF(G166<>G165,IF(BP166>=2,IF(MAX(IF($G$12:$G$503=G166,$BO$12:$BO$503))<$B$30,BP166,1),BP166),"") ->  | BR166: =IF(G166<>G165,IF(BP166>=2,IF(MAX(IF($G$12:$G$503=G166,$BO$12:$BO$503))<$B$31,BP166,1),BP166),"") ->  | BT166: =IF(MAX(IF($G$12:G166=G166,$BO$12:BO166))<$B$30,COUNTIFS($BO$12:BO166,">"&$B$56,$G$12:G166,G166),0) -> 0 | CY166: =IF(G166<>"",MAX(IF($I$11:I165<>$B$14,$M$11:M165)),"") ->  | CZ166: =IF(CX166<>"",IF(CX166=0,0,IF(G166<>G165,0,IFERROR(INDEX($CZ$11:CZ165, MATCH(MAX($CY$11:CY165), $M$11:M165, 0))+1,1))),"") ->  | DB166: =IF(DA166<>"",IF(DA166=0,0,IF(G166<>G165,0,IFERROR(INDEX($DB$11:DB165, MATCH(MAX($CY$11:CY165), $M$11:M165, 0))+1,1))),"") ->  | DK166: =IF(G165<>G166,MAX(IF($G$12:$G$503=G166,$DI$12:$DI$503)),"") -> 
L167: 2024-08-28 | Q167: 2024-08-28 | X167: =IF(M167=MIN(IF($M$12:$M$501>=$O$1,$M$12:$M$501)),$B$40,IF(M167=MIN(IF($M$12:$M$501>=$O$1+7,$M$12:$M$501)),$B$41,IF(M167=MIN(IF($M$12:$M$501>=$O$1+14,$M$12:$M$501)),$B$42,IF(M167=MIN(IF($M$12:$M$501>=$O$1+21,$M$12:$M$501)),$B$43,IF(M167=MIN(IF($M$12:$M$501>=$O$1+28,$M$12:$M$501)),$B$44,""))))) ->  | Y167: =IF(M167=MIN(IF($M$12:$M$501>=$O$1,$M$12:$M$501)),$B$40,IF(M167=MIN(IF($M$12:$M$501>=$O$1+14,$M$12:$M$501)),$B$41,IF(M167=MIN(IF($M$12:$M$501>=$O$1+28,$M$12:$M$501)),$B$42,""))) ->  | BQ167: =IF(G167<>G166,IF(BP167>=2,IF(MAX(IF($G$12:$G$503=G167,$BO$12:$BO$503))<$B$30,BP167,1),BP167),"") ->  | BR167: =IF(G167<>G166,IF(BP167>=2,IF(MAX(IF($G$12:$G$503=G167,$BO$12:$BO$503))<$B$31,BP167,1),BP167),"") ->  | BT167: =IF(MAX(IF($G$12:G167=G167,$BO$12:BO167))<$B$30,COUNTIFS($BO$12:BO167,">"&$B$56,$G$12:G167,G167),0) -> 0 | CY167: =IF(G167<>"",MAX(IF($I$11:I166<>$B$14,$M$11:M166)),"") ->  | CZ167: =IF(CX167<>"",IF(CX167=0,0,IF(G167<>G166,0,IFERROR(INDEX($CZ$11:CZ166, MATCH(MAX($CY$11:CY166), $M$11:M166, 0))+1,1))),"") ->  | DB167: =IF(DA167<>"",IF(DA167=0,0,IF(G167<>G166,0,IFERROR(INDEX($DB$11:DB166, MATCH(MAX($CY$11:CY166), $M$11:M166, 0))+1,1))),"") ->  | DK167: =IF(G166<>G167,MAX(IF($G$12:$G$503=G167,$DI$12:$DI$503)),"") -> 
L168: 2024-08-28 | Q168: 2024-08-28 | X168: =IF(M168=MIN(IF($M$12:$M$501>=$O$1,$M$12:$M$501)),$B$40,IF(M168=MIN(IF($M$12:$M$501>=$O$1+7,$M$12:$M$501)),$B$41,IF(M168=MIN(IF($M$12:$M$501>=$O$1+14,$M$12:$M$501)),$B$42,IF(M168=MIN(IF($M$12:$M$501>=$O$1+21,$M$12:$M$501)),$B$43,IF(M168=MIN(IF($M$12:$M$501>=$O$1+28,$M$12:$M$501)),$B$44,""))))) ->  | Y168: =IF(M168=MIN(IF($M$12:$M$501>=$O$1,$M$12:$M$501)),$B$40,IF(M168=MIN(IF($M$12:$M$501>=$O$1+14,$M$12:$M$501)),$B$41,IF(M168=MIN(IF($M$12:$M$501>=$O$1+28,$M$12:$M$501)),$B$42,""))) ->  | BQ168: =IF(G168<>G167,IF(BP168>=2,IF(MAX(IF($G$12:$G$503=G168,$BO$12:$BO$503))<$B$30,BP168,1),BP168),"") ->  | BR168: =IF(G168<>G167,IF(BP168>=2,IF(MAX(IF($G$12:$G$503=G168,$BO$12:$BO$503))<$B$31,BP168,1),BP168),"") ->  | BT168: =IF(MAX(IF($G$12:G168=G168,$BO$12:BO168))<$B$30,COUNTIFS($BO$12:BO168,">"&$B$56,$G$12:G168,G168),0) -> 0 | CY168: =IF(G168<>"",MAX(IF($I$11:I167<>$B$14,$M$11:M167)),"") ->  | CZ168: =IF(CX168<>"",IF(CX168=0,0,IF(G168<>G167,0,IFERROR(INDEX($CZ$11:CZ167, MATCH(MAX($CY$11:CY167), $M$11:M167, 0))+1,1))),"") ->  | DB168: =IF(DA168<>"",IF(DA168=0,0,IF(G168<>G167,0,IFERROR(INDEX($DB$11:DB167, MATCH(MAX($CY$11:CY167), $M$11:M167, 0))+1,1))),"") ->  | DK168: =IF(G167<>G168,MAX(IF($G$12:$G$503=G168,$DI$12:$DI$503)),"") -> 
L169: 2024-08-28 | Q169: 2024-08-28 | U169: =IF(M169<>"",DATE(YEAR(M169),MONTH(M169),DAY(M169)),"") ->  | X169: =IF(M169=MIN(IF($M$12:$M$501>=$O$1,$M$12:$M$501)),$B$40,IF(M169=MIN(IF($M$12:$M$501>=$O$1+7,$M$12:$M$501)),$B$41,IF(M169=MIN(IF($M$12:$M$501>=$O$1+14,$M$12:$M$501)),$B$42,IF(M169=MIN(IF($M$12:$M$501>=$O$1+21,$M$12:$M$501)),$B$43,IF(M169=MIN(IF($M$12:$M$501>=$O$1+28,$M$12:$M$501)),$B$44,""))))) ->  | Y169: =IF(M169=MIN(IF($M$12:$M$501>=$O$1,$M$12:$M$501)),$B$40,IF(M169=MIN(IF($M$12:$M$501>=$O$1+14,$M$12:$M$501)),$B$41,IF(M169=MIN(IF($M$12:$M$501>=$O$1+28,$M$12:$M$501)),$B$42,""))) ->  | BQ169: =IF(G169<>G168,IF(BP169>=2,IF(MAX(IF($G$12:$G$503=G169,$BO$12:$BO$503))<$B$30,BP169,1),BP169),"") ->  | BR169: =IF(G169<>G168,IF(BP169>=2,IF(MAX(IF($G$12:$G$503=G169,$BO$12:$BO$503))<$B$31,BP169,1),BP169),"") ->  | BT169: =IF(MAX(IF($G$12:G169=G169,$BO$12:BO169))<$B$30,COUNTIFS($BO$12:BO169,">"&$B$56,$G$12:G169,G169),0) -> 0 | CY169: =IF(G169<>"",MAX(IF($I$11:I168<>$B$14,$M$11:M168)),"") ->  | CZ169: =IF(CX169<>"",IF(CX169=0,0,IF(G169<>G168,0,IFERROR(INDEX($CZ$11:CZ168, MATCH(MAX($CY$11:CY168), $M$11:M168, 0))+1,1))),"") ->  | DB169: =IF(DA169<>"",IF(DA169=0,0,IF(G169<>G168,0,IFERROR(INDEX($DB$11:DB168, MATCH(MAX($CY$11:CY168), $M$11:M168, 0))+1,1))),"") ->  | DK169: =IF(G168<>G169,MAX(IF($G$12:$G$503=G169,$DI$12:$DI$503)),"") -> 
L170: 2024-08-28 | Q170: 2024-08-28 | U170: =IF(M170<>"",DATE(YEAR(M170),MONTH(M170),DAY(M170)),"") ->  | X170: =IF(M170=MIN(IF($M$12:$M$501>=$O$1,$M$12:$M$501)),$B$40,IF(M170=MIN(IF($M$12:$M$501>=$O$1+7,$M$12:$M$501)),$B$41,IF(M170=MIN(IF($M$12:$M$501>=$O$1+14,$M$12:$M$501)),$B$42,IF(M170=MIN(IF($M$12:$M$501>=$O$1+21,$M$12:$M$501)),$B$43,IF(M170=MIN(IF($M$12:$M$501>=$O$1+28,$M$12:$M$501)),$B$44,""))))) ->  | Y170: =IF(M170=MIN(IF($M$12:$M$501>=$O$1,$M$12:$M$501)),$B$40,IF(M170=MIN(IF($M$12:$M$501>=$O$1+14,$M$12:$M$501)),$B$41,IF(M170=MIN(IF($M$12:$M$501>=$O$1+28,$M$12:$M$501)),$B$42,""))) ->  | BQ170: =IF(G170<>G169,IF(BP170>=2,IF(MAX(IF($G$12:$G$503=G170,$BO$12:$BO$503))<$B$30,BP170,1),BP170),"") ->  | BR170: =IF(G170<>G169,IF(BP170>=2,IF(MAX(IF($G$12:$G$503=G170,$BO$12:$BO$503))<$B$31,BP170,1),BP170),"") ->  | BT170: =IF(MAX(IF($G$12:G170=G170,$BO$12:BO170))<$B$30,COUNTIFS($BO$12:BO170,">"&$B$56,$G$12:G170,G170),0) -> 0 | CY170: =IF(G170<>"",MAX(IF($I$11:I169<>$B$14,$M$11:M169)),"") ->  | CZ170: =IF(CX170<>"",IF(CX170=0,0,IF(G170<>G169,0,IFERROR(INDEX($CZ$11:CZ169, MATCH(MAX($CY$11:CY169), $M$11:M169, 0))+1,1))),"") ->  | DB170: =IF(DA170<>"",IF(DA170=0,0,IF(G170<>G169,0,IFERROR(INDEX($DB$11:DB169, MATCH(MAX($CY$11:CY169), $M$11:M169, 0))+1,1))),"") ->  | DK170: =IF(G169<>G170,MAX(IF($G$12:$G$503=G170,$DI$12:$DI$503)),"") -> 
L171: 2024-08-28 | Q171: 2024-08-28 | X171: =IF(M171=MIN(IF($M$12:$M$501>=$O$1,$M$12:$M$501)),$B$40,IF(M171=MIN(IF($M$12:$M$501>=$O$1+7,$M$12:$M$501)),$B$41,IF(M171=MIN(IF($M$12:$M$501>=$O$1+14,$M$12:$M$501)),$B$42,IF(M171=MIN(IF($M$12:$M$501>=$O$1+21,$M$12:$M$501)),$B$43,IF(M171=MIN(IF($M$12:$M$501>=$O$1+28,$M$12:$M$501)),$B$44,""))))) ->  | Y171: =IF(M171=MIN(IF($M$12:$M$501>=$O$1,$M$12:$M$501)),$B$40,IF(M171=MIN(IF($M$12:$M$501>=$O$1+14,$M$12:$M$501)),$B$41,IF(M171=MIN(IF($M$12:$M$501>=$O$1+28,$M$12:$M$501)),$B$42,""))) ->  | BQ171: =IF(G171<>G170,IF(BP171>=2,IF(MAX(IF($G$12:$G$503=G171,$BO$12:$BO$503))<$B$30,BP171,1),BP171),"") ->  | BR171: =IF(G171<>G170,IF(BP171>=2,IF(MAX(IF($G$12:$G$503=G171,$BO$12:$BO$503))<$B$31,BP171,1),BP171),"") ->  | BT171: =IF(MAX(IF($G$12:G171=G171,$BO$12:BO171))<$B$30,COUNTIFS($BO$12:BO171,">"&$B$56,$G$12:G171,G171),0) -> 0 | CY171: =IF(G171<>"",MAX(IF($I$11:I170<>$B$14,$M$11:M170)),"") ->  | CZ171: =IF(CX171<>"",IF(CX171=0,0,IF(G171<>G170,0,IFERROR(INDEX($CZ$11:CZ170, MATCH(MAX($CY$11:CY170), $M$11:M170, 0))+1,1))),"") ->  | DB171: =IF(DA171<>"",IF(DA171=0,0,IF(G171<>G170,0,IFERROR(INDEX($DB$11:DB170, MATCH(MAX($CY$11:CY170), $M$11:M170, 0))+1,1))),"") ->  | DK171: =IF(G170<>G171,MAX(IF($G$12:$G$503=G171,$DI$12:$DI$503)),"") -> 
L172: 2024-08-28 | Q172: 2024-08-28 | X172: =IF(M172=MIN(IF($M$12:$M$501>=$O$1,$M$12:$M$501)),$B$40,IF(M172=MIN(IF($M$12:$M$501>=$O$1+7,$M$12:$M$501)),$B$41,IF(M172=MIN(IF($M$12:$M$501>=$O$1+14,$M$12:$M$501)),$B$42,IF(M172=MIN(IF($M$12:$M$501>=$O$1+21,$M$12:$M$501)),$B$43,IF(M172=MIN(IF($M$12:$M$501>=$O$1+28,$M$12:$M$501)),$B$44,""))))) ->  | Y172: =IF(M172=MIN(IF($M$12:$M$501>=$O$1,$M$12:$M$501)),$B$40,IF(M172=MIN(IF($M$12:$M$501>=$O$1+14,$M$12:$M$501)),$B$41,IF(M172=MIN(IF($M$12:$M$501>=$O$1+28,$M$12:$M$501)),$B$42,""))) ->  | BQ172: =IF(G172<>G171,IF(BP172>=2,IF(MAX(IF($G$12:$G$503=G172,$BO$12:$BO$503))<$B$30,BP172,1),BP172),"") ->  | BR172: =IF(G172<>G171,IF(BP172>=2,IF(MAX(IF($G$12:$G$503=G172,$BO$12:$BO$503))<$B$31,BP172,1),BP172),"") ->  | BT172: =IF(MAX(IF($G$12:G172=G172,$BO$12:BO172))<$B$30,COUNTIFS($BO$12:BO172,">"&$B$56,$G$12:G172,G172),0) -> 0 | CY172: =IF(G172<>"",MAX(IF($I$11:I171<>$B$14,$M$11:M171)),"") ->  | CZ172: =IF(CX172<>"",IF(CX172=0,0,IF(G172<>G171,0,IFERROR(INDEX($CZ$11:CZ171, MATCH(MAX($CY$11:CY171), $M$11:M171, 0))+1,1))),"") ->  | DB172: =IF(DA172<>"",IF(DA172=0,0,IF(G172<>G171,0,IFERROR(INDEX($DB$11:DB171, MATCH(MAX($CY$11:CY171), $M$11:M171, 0))+1,1))),"") ->  | DK172: =IF(G171<>G172,MAX(IF($G$12:$G$503=G172,$DI$12:$DI$503)),"") -> 
L173: 2024-08-28 | Q173: 2024-08-28 | X173: =IF(M173=MIN(IF($M$12:$M$501>=$O$1,$M$12:$M$501)),$B$40,IF(M173=MIN(IF($M$12:$M$501>=$O$1+7,$M$12:$M$501)),$B$41,IF(M173=MIN(IF($M$12:$M$501>=$O$1+14,$M$12:$M$501)),$B$42,IF(M173=MIN(IF($M$12:$M$501>=$O$1+21,$M$12:$M$501)),$B$43,IF(M173=MIN(IF($M$12:$M$501>=$O$1+28,$M$12:$M$501)),$B$44,""))))) ->  | Y173: =IF(M173=MIN(IF($M$12:$M$501>=$O$1,$M$12:$M$501)),$B$40,IF(M173=MIN(IF($M$12:$M$501>=$O$1+14,$M$12:$M$501)),$B$41,IF(M173=MIN(IF($M$12:$M$501>=$O$1+28,$M$12:$M$501)),$B$42,""))) ->  | BQ173: =IF(G173<>G172,IF(BP173>=2,IF(MAX(IF($G$12:$G$503=G173,$BO$12:$BO$503))<$B$30,BP173,1),BP173),"") ->  | BR173: =IF(G173<>G172,IF(BP173>=2,IF(MAX(IF($G$12:$G$503=G173,$BO$12:$BO$503))<$B$31,BP173,1),BP173),"") ->  | BT173: =IF(MAX(IF($G$12:G173=G173,$BO$12:BO173))<$B$30,COUNTIFS($BO$12:BO173,">"&$B$56,$G$12:G173,G173),0) -> 0 | CY173: =IF(G173<>"",MAX(IF($I$11:I172<>$B$14,$M$11:M172)),"") ->  | CZ173: =IF(CX173<>"",IF(CX173=0,0,IF(G173<>G172,0,IFERROR(INDEX($CZ$11:CZ172, MATCH(MAX($CY$11:CY172), $M$11:M172, 0))+1,1))),"") ->  | DB173: =IF(DA173<>"",IF(DA173=0,0,IF(G173<>G172,0,IFERROR(INDEX($DB$11:DB172, MATCH(MAX($CY$11:CY172), $M$11:M172, 0))+1,1))),"") ->  | DK173: =IF(G172<>G173,MAX(IF($G$12:$G$503=G173,$DI$12:$DI$503)),"") -> 
L174: 2024-08-28 | Q174: 2024-08-28 | X174: =IF(M174=MIN(IF($M$12:$M$501>=$O$1,$M$12:$M$501)),$B$40,IF(M174=MIN(IF($M$12:$M$501>=$O$1+7,$M$12:$M$501)),$B$41,IF(M174=MIN(IF($M$12:$M$501>=$O$1+14,$M$12:$M$501)),$B$42,IF(M174=MIN(IF($M$12:$M$501>=$O$1+21,$M$12:$M$501)),$B$43,IF(M174=MIN(IF($M$12:$M$501>=$O$1+28,$M$12:$M$501)),$B$44,""))))) ->  | Y174: =IF(M174=MIN(IF($M$12:$M$501>=$O$1,$M$12:$M$501)),$B$40,IF(M174=MIN(IF($M$12:$M$501>=$O$1+14,$M$12:$M$501)),$B$41,IF(M174=MIN(IF($M$12:$M$501>=$O$1+28,$M$12:$M$501)),$B$42,""))) ->  | BQ174: =IF(G174<>G173,IF(BP174>=2,IF(MAX(IF($G$12:$G$503=G174,$BO$12:$BO$503))<$B$30,BP174,1),BP174),"") ->  | BR174: =IF(G174<>G173,IF(BP174>=2,IF(MAX(IF($G$12:$G$503=G174,$BO$12:$BO$503))<$B$31,BP174,1),BP174),"") ->  | BT174: =IF(MAX(IF($G$12:G174=G174,$BO$12:BO174))<$B$30,COUNTIFS($BO$12:BO174,">"&$B$56,$G$12:G174,G174),0) -> 0 | CY174: =IF(G174<>"",MAX(IF($I$11:I173<>$B$14,$M$11:M173)),"") ->  | CZ174: =IF(CX174<>"",IF(CX174=0,0,IF(G174<>G173,0,IFERROR(INDEX($CZ$11:CZ173, MATCH(MAX($CY$11:CY173), $M$11:M173, 0))+1,1))),"") ->  | DB174: =IF(DA174<>"",IF(DA174=0,0,IF(G174<>G173,0,IFERROR(INDEX($DB$11:DB173, MATCH(MAX($CY$11:CY173), $M$11:M173, 0))+1,1))),"") ->  | DK174: =IF(G173<>G174,MAX(IF($G$12:$G$503=G174,$DI$12:$DI$503)),"") -> 
L175: 2024-08-28 | Q175: 2024-08-28 | X175: =IF(M175=MIN(IF($M$12:$M$501>=$O$1,$M$12:$M$501)),$B$40,IF(M175=MIN(IF($M$12:$M$501>=$O$1+7,$M$12:$M$501)),$B$41,IF(M175=MIN(IF($M$12:$M$501>=$O$1+14,$M$12:$M$501)),$B$42,IF(M175=MIN(IF($M$12:$M$501>=$O$1+21,$M$12:$M$501)),$B$43,IF(M175=MIN(IF($M$12:$M$501>=$O$1+28,$M$12:$M$501)),$B$44,""))))) ->  | Y175: =IF(M175=MIN(IF($M$12:$M$501>=$O$1,$M$12:$M$501)),$B$40,IF(M175=MIN(IF($M$12:$M$501>=$O$1+14,$M$12:$M$501)),$B$41,IF(M175=MIN(IF($M$12:$M$501>=$O$1+28,$M$12:$M$501)),$B$42,""))) ->  | BQ175: =IF(G175<>G174,IF(BP175>=2,IF(MAX(IF($G$12:$G$503=G175,$BO$12:$BO$503))<$B$30,BP175,1),BP175),"") ->  | BR175: =IF(G175<>G174,IF(BP175>=2,IF(MAX(IF($G$12:$G$503=G175,$BO$12:$BO$503))<$B$31,BP175,1),BP175),"") ->  | BT175: =IF(MAX(IF($G$12:G175=G175,$BO$12:BO175))<$B$30,COUNTIFS($BO$12:BO175,">"&$B$56,$G$12:G175,G175),0) -> 0 | CY175: =IF(G175<>"",MAX(IF($I$11:I174<>$B$14,$M$11:M174)),"") ->  | CZ175: =IF(CX175<>"",IF(CX175=0,0,IF(G175<>G174,0,IFERROR(INDEX($CZ$11:CZ174, MATCH(MAX($CY$11:CY174), $M$11:M174, 0))+1,1))),"") ->  | DB175: =IF(DA175<>"",IF(DA175=0,0,IF(G175<>G174,0,IFERROR(INDEX($DB$11:DB174, MATCH(MAX($CY$11:CY174), $M$11:M174, 0))+1,1))),"") ->  | DK175: =IF(G174<>G175,MAX(IF($G$12:$G$503=G175,$DI$12:$DI$503)),"") -> 
L176: 2024-08-28 | Q176: 2024-08-28 | X176: =IF(M176=MIN(IF($M$12:$M$501>=$O$1,$M$12:$M$501)),$B$40,IF(M176=MIN(IF($M$12:$M$501>=$O$1+7,$M$12:$M$501)),$B$41,IF(M176=MIN(IF($M$12:$M$501>=$O$1+14,$M$12:$M$501)),$B$42,IF(M176=MIN(IF($M$12:$M$501>=$O$1+21,$M$12:$M$501)),$B$43,IF(M176=MIN(IF($M$12:$M$501>=$O$1+28,$M$12:$M$501)),$B$44,""))))) ->  | Y176: =IF(M176=MIN(IF($M$12:$M$501>=$O$1,$M$12:$M$501)),$B$40,IF(M176=MIN(IF($M$12:$M$501>=$O$1+14,$M$12:$M$501)),$B$41,IF(M176=MIN(IF($M$12:$M$501>=$O$1+28,$M$12:$M$501)),$B$42,""))) ->  | BQ176: =IF(G176<>G175,IF(BP176>=2,IF(MAX(IF($G$12:$G$503=G176,$BO$12:$BO$503))<$B$30,BP176,1),BP176),"") ->  | BR176: =IF(G176<>G175,IF(BP176>=2,IF(MAX(IF($G$12:$G$503=G176,$BO$12:$BO$503))<$B$31,BP176,1),BP176),"") ->  | BT176: =IF(MAX(IF($G$12:G176=G176,$BO$12:BO176))<$B$30,COUNTIFS($BO$12:BO176,">"&$B$56,$G$12:G176,G176),0) -> 0 | CY176: =IF(G176<>"",MAX(IF($I$11:I175<>$B$14,$M$11:M175)),"") ->  | CZ176: =IF(CX176<>"",IF(CX176=0,0,IF(G176<>G175,0,IFERROR(INDEX($CZ$11:CZ175, MATCH(MAX($CY$11:CY175), $M$11:M175, 0))+1,1))),"") ->  | DB176: =IF(DA176<>"",IF(DA176=0,0,IF(G176<>G175,0,IFERROR(INDEX($DB$11:DB175, MATCH(MAX($CY$11:CY175), $M$11:M175, 0))+1,1))),"") ->  | DK176: =IF(G175<>G176,MAX(IF($G$12:$G$503=G176,$DI$12:$DI$503)),"") -> 
L177: 2024-08-28 | Q177: 2024-08-28 | X177: =IF(M177=MIN(IF($M$12:$M$501>=$O$1,$M$12:$M$501)),$B$40,IF(M177=MIN(IF($M$12:$M$501>=$O$1+7,$M$12:$M$501)),$B$41,IF(M177=MIN(IF($M$12:$M$501>=$O$1+14,$M$12:$M$501)),$B$42,IF(M177=MIN(IF($M$12:$M$501>=$O$1+21,$M$12:$M$501)),$B$43,IF(M177=MIN(IF($M$12:$M$501>=$O$1+28,$M$12:$M$501)),$B$44,""))))) ->  | Y177: =IF(M177=MIN(IF($M$12:$M$501>=$O$1,$M$12:$M$501)),$B$40,IF(M177=MIN(IF($M$12:$M$501>=$O$1+14,$M$12:$M$501)),$B$41,IF(M177=MIN(IF($M$12:$M$501>=$O$1+28,$M$12:$M$501)),$B$42,""))) ->  | BQ177: =IF(G177<>G176,IF(BP177>=2,IF(MAX(IF($G$12:$G$503=G177,$BO$12:$BO$503))<$B$30,BP177,1),BP177),"") ->  | BR177: =IF(G177<>G176,IF(BP177>=2,IF(MAX(IF($G$12:$G$503=G177,$BO$12:$BO$503))<$B$31,BP177,1),BP177),"") ->  | BT177: =IF(MAX(IF($G$12:G177=G177,$BO$12:BO177))<$B$30,COUNTIFS($BO$12:BO177,">"&$B$56,$G$12:G177,G177),0) -> 0 | CY177: =IF(G177<>"",MAX(IF($I$11:I176<>$B$14,$M$11:M176)),"") ->  | CZ177: =IF(CX177<>"",IF(CX177=0,0,IF(G177<>G176,0,IFERROR(INDEX($CZ$11:CZ176, MATCH(MAX($CY$11:CY176), $M$11:M176, 0))+1,1))),"") ->  | DB177: =IF(DA177<>"",IF(DA177=0,0,IF(G177<>G176,0,IFERROR(INDEX($DB$11:DB176, MATCH(MAX($CY$11:CY176), $M$11:M176, 0))+1,1))),"") ->  | DK177: =IF(G176<>G177,MAX(IF($G$12:$G$503=G177,$DI$12:$DI$503)),"") -> 
L178: 2024-08-28 | Q178: 2024-08-28 | X178: =IF(M178=MIN(IF($M$12:$M$501>=$O$1,$M$12:$M$501)),$B$40,IF(M178=MIN(IF($M$12:$M$501>=$O$1+7,$M$12:$M$501)),$B$41,IF(M178=MIN(IF($M$12:$M$501>=$O$1+14,$M$12:$M$501)),$B$42,IF(M178=MIN(IF($M$12:$M$501>=$O$1+21,$M$12:$M$501)),$B$43,IF(M178=MIN(IF($M$12:$M$501>=$O$1+28,$M$12:$M$501)),$B$44,""))))) ->  | Y178: =IF(M178=MIN(IF($M$12:$M$501>=$O$1,$M$12:$M$501)),$B$40,IF(M178=MIN(IF($M$12:$M$501>=$O$1+14,$M$12:$M$501)),$B$41,IF(M178=MIN(IF($M$12:$M$501>=$O$1+28,$M$12:$M$501)),$B$42,""))) ->  | BQ178: =IF(G178<>G177,IF(BP178>=2,IF(MAX(IF($G$12:$G$503=G178,$BO$12:$BO$503))<$B$30,BP178,1),BP178),"") ->  | BR178: =IF(G178<>G177,IF(BP178>=2,IF(MAX(IF($G$12:$G$503=G178,$BO$12:$BO$503))<$B$31,BP178,1),BP178),"") ->  | BT178: =IF(MAX(IF($G$12:G178=G178,$BO$12:BO178))<$B$30,COUNTIFS($BO$12:BO178,">"&$B$56,$G$12:G178,G178),0) -> 0 | CY178: =IF(G178<>"",MAX(IF($I$11:I177<>$B$14,$M$11:M177)),"") ->  | CZ178: =IF(CX178<>"",IF(CX178=0,0,IF(G178<>G177,0,IFERROR(INDEX($CZ$11:CZ177, MATCH(MAX($CY$11:CY177), $M$11:M177, 0))+1,1))),"") ->  | DB178: =IF(DA178<>"",IF(DA178=0,0,IF(G178<>G177,0,IFERROR(INDEX($DB$11:DB177, MATCH(MAX($CY$11:CY177), $M$11:M177, 0))+1,1))),"") ->  | DK178: =IF(G177<>G178,MAX(IF($G$12:$G$503=G178,$DI$12:$DI$503)),"") -> 
L179: 2024-08-28 | Q179: 2024-08-28 | X179: =IF(M179=MIN(IF($M$12:$M$501>=$O$1,$M$12:$M$501)),$B$40,IF(M179=MIN(IF($M$12:$M$501>=$O$1+7,$M$12:$M$501)),$B$41,IF(M179=MIN(IF($M$12:$M$501>=$O$1+14,$M$12:$M$501)),$B$42,IF(M179=MIN(IF($M$12:$M$501>=$O$1+21,$M$12:$M$501)),$B$43,IF(M179=MIN(IF($M$12:$M$501>=$O$1+28,$M$12:$M$501)),$B$44,""))))) ->  | Y179: =IF(M179=MIN(IF($M$12:$M$501>=$O$1,$M$12:$M$501)),$B$40,IF(M179=MIN(IF($M$12:$M$501>=$O$1+14,$M$12:$M$501)),$B$41,IF(M179=MIN(IF($M$12:$M$501>=$O$1+28,$M$12:$M$501)),$B$42,""))) ->  | BQ179: =IF(G179<>G178,IF(BP179>=2,IF(MAX(IF($G$12:$G$503=G179,$BO$12:$BO$503))<$B$30,BP179,1),BP179),"") ->  | BR179: =IF(G179<>G178,IF(BP179>=2,IF(MAX(IF($G$12:$G$503=G179,$BO$12:$BO$503))<$B$31,BP179,1),BP179),"") ->  | BT179: =IF(MAX(IF($G$12:G179=G179,$BO$12:BO179))<$B$30,COUNTIFS($BO$12:BO179,">"&$B$56,$G$12:G179,G179),0) -> 0 | CY179: =IF(G179<>"",MAX(IF($I$11:I178<>$B$14,$M$11:M178)),"") ->  | CZ179: =IF(CX179<>"",IF(CX179=0,0,IF(G179<>G178,0,IFERROR(INDEX($CZ$11:CZ178, MATCH(MAX($CY$11:CY178), $M$11:M178, 0))+1,1))),"") ->  | DB179: =IF(DA179<>"",IF(DA179=0,0,IF(G179<>G178,0,IFERROR(INDEX($DB$11:DB178, MATCH(MAX($CY$11:CY178), $M$11:M178, 0))+1,1))),"") ->  | DK179: =IF(G178<>G179,MAX(IF($G$12:$G$503=G179,$DI$12:$DI$503)),"") -> 
L180: 2024-08-28 | Q180: 2024-08-28 | X180: =IF(M180=MIN(IF($M$12:$M$501>=$O$1,$M$12:$M$501)),$B$40,IF(M180=MIN(IF($M$12:$M$501>=$O$1+7,$M$12:$M$501)),$B$41,IF(M180=MIN(IF($M$12:$M$501>=$O$1+14,$M$12:$M$501)),$B$42,IF(M180=MIN(IF($M$12:$M$501>=$O$1+21,$M$12:$M$501)),$B$43,IF(M180=MIN(IF($M$12:$M$501>=$O$1+28,$M$12:$M$501)),$B$44,""))))) ->  | Y180: =IF(M180=MIN(IF($M$12:$M$501>=$O$1,$M$12:$M$501)),$B$40,IF(M180=MIN(IF($M$12:$M$501>=$O$1+14,$M$12:$M$501)),$B$41,IF(M180=MIN(IF($M$12:$M$501>=$O$1+28,$M$12:$M$501)),$B$42,""))) ->  | BQ180: =IF(G180<>G179,IF(BP180>=2,IF(MAX(IF($G$12:$G$503=G180,$BO$12:$BO$503))<$B$30,BP180,1),BP180),"") ->  | BR180: =IF(G180<>G179,IF(BP180>=2,IF(MAX(IF($G$12:$G$503=G180,$BO$12:$BO$503))<$B$31,BP180,1),BP180),"") ->  | BT180: =IF(MAX(IF($G$12:G180=G180,$BO$12:BO180))<$B$30,COUNTIFS($BO$12:BO180,">"&$B$56,$G$12:G180,G180),0) -> 0 | CY180: =IF(G180<>"",MAX(IF($I$11:I179<>$B$14,$M$11:M179)),"") ->  | CZ180: =IF(CX180<>"",IF(CX180=0,0,IF(G180<>G179,0,IFERROR(INDEX($CZ$11:CZ179, MATCH(MAX($CY$11:CY179), $M$11:M179, 0))+1,1))),"") ->  | DB180: =IF(DA180<>"",IF(DA180=0,0,IF(G180<>G179,0,IFERROR(INDEX($DB$11:DB179, MATCH(MAX($CY$11:CY179), $M$11:M179, 0))+1,1))),"") ->  | DK180: =IF(G179<>G180,MAX(IF($G$12:$G$503=G180,$DI$12:$DI$503)),"") -> 
L181: 2024-08-28 | Q181: 2024-08-28 | T181: =IF(S181<>"",S181/1440,"") ->  | X181: =IF(M181=MIN(IF($M$12:$M$501>=$O$1,$M$12:$M$501)),$B$40,IF(M181=MIN(IF($M$12:$M$501>=$O$1+7,$M$12:$M$501)),$B$41,IF(M181=MIN(IF($M$12:$M$501>=$O$1+14,$M$12:$M$501)),$B$42,IF(M181=MIN(IF($M$12:$M$501>=$O$1+21,$M$12:$M$501)),$B$43,IF(M181=MIN(IF($M$12:$M$501>=$O$1+28,$M$12:$M$501)),$B$44,""))))) ->  | Y181: =IF(M181=MIN(IF($M$12:$M$501>=$O$1,$M$12:$M$501)),$B$40,IF(M181=MIN(IF($M$12:$M$501>=$O$1+14,$M$12:$M$501)),$B$41,IF(M181=MIN(IF($M$12:$M$501>=$O$1+28,$M$12:$M$501)),$B$42,""))) ->  | BQ181: =IF(G181<>G180,IF(BP181>=2,IF(MAX(IF($G$12:$G$503=G181,$BO$12:$BO$503))<$B$30,BP181,1),BP181),"") ->  | BR181: =IF(G181<>G180,IF(BP181>=2,IF(MAX(IF($G$12:$G$503=G181,$BO$12:$BO$503))<$B$31,BP181,1),BP181),"") ->  | BT181: =IF(MAX(IF($G$12:G181=G181,$BO$12:BO181))<$B$30,COUNTIFS($BO$12:BO181,">"&$B$56,$G$12:G181,G181),0) -> 0 | CY181: =IF(G181<>"",MAX(IF($I$11:I180<>$B$14,$M$11:M180)),"") ->  | CZ181: =IF(CX181<>"",IF(CX181=0,0,IF(G181<>G180,0,IFERROR(INDEX($CZ$11:CZ180, MATCH(MAX($CY$11:CY180), $M$11:M180, 0))+1,1))),"") ->  | DB181: =IF(DA181<>"",IF(DA181=0,0,IF(G181<>G180,0,IFERROR(INDEX($DB$11:DB180, MATCH(MAX($CY$11:CY180), $M$11:M180, 0))+1,1))),"") ->  | DK181: =IF(G180<>G181,MAX(IF($G$12:$G$503=G181,$DI$12:$DI$503)),"") -> 
L182: 2024-08-28 | Q182: 2024-08-28 | X182: =IF(M182=MIN(IF($M$12:$M$501>=$O$1,$M$12:$M$501)),$B$40,IF(M182=MIN(IF($M$12:$M$501>=$O$1+7,$M$12:$M$501)),$B$41,IF(M182=MIN(IF($M$12:$M$501>=$O$1+14,$M$12:$M$501)),$B$42,IF(M182=MIN(IF($M$12:$M$501>=$O$1+21,$M$12:$M$501)),$B$43,IF(M182=MIN(IF($M$12:$M$501>=$O$1+28,$M$12:$M$501)),$B$44,""))))) ->  | Y182: =IF(M182=MIN(IF($M$12:$M$501>=$O$1,$M$12:$M$501)),$B$40,IF(M182=MIN(IF($M$12:$M$501>=$O$1+14,$M$12:$M$501)),$B$41,IF(M182=MIN(IF($M$12:$M$501>=$O$1+28,$M$12:$M$501)),$B$42,""))) ->  | BQ182: =IF(G182<>G181,IF(BP182>=2,IF(MAX(IF($G$12:$G$503=G182,$BO$12:$BO$503))<$B$30,BP182,1),BP182),"") ->  | BR182: =IF(G182<>G181,IF(BP182>=2,IF(MAX(IF($G$12:$G$503=G182,$BO$12:$BO$503))<$B$31,BP182,1),BP182),"") ->  | BT182: =IF(MAX(IF($G$12:G182=G182,$BO$12:BO182))<$B$30,COUNTIFS($BO$12:BO182,">"&$B$56,$G$12:G182,G182),0) -> 0 | CY182: =IF(G182<>"",MAX(IF($I$11:I181<>$B$14,$M$11:M181)),"") ->  | CZ182: =IF(CX182<>"",IF(CX182=0,0,IF(G182<>G181,0,IFERROR(INDEX($CZ$11:CZ181, MATCH(MAX($CY$11:CY181), $M$11:M181, 0))+1,1))),"") ->  | DB182: =IF(DA182<>"",IF(DA182=0,0,IF(G182<>G181,0,IFERROR(INDEX($DB$11:DB181, MATCH(MAX($CY$11:CY181), $M$11:M181, 0))+1,1))),"") ->  | DK182: =IF(G181<>G182,MAX(IF($G$12:$G$503=G182,$DI$12:$DI$503)),"") -> 
L183: 2024-08-28 | Q183: 2024-08-28 | X183: =IF(M183=MIN(IF($M$12:$M$501>=$O$1,$M$12:$M$501)),$B$40,IF(M183=MIN(IF($M$12:$M$501>=$O$1+7,$M$12:$M$501)),$B$41,IF(M183=MIN(IF($M$12:$M$501>=$O$1+14,$M$12:$M$501)),$B$42,IF(M183=MIN(IF($M$12:$M$501>=$O$1+21,$M$12:$M$501)),$B$43,IF(M183=MIN(IF($M$12:$M$501>=$O$1+28,$M$12:$M$501)),$B$44,""))))) ->  | Y183: =IF(M183=MIN(IF($M$12:$M$501>=$O$1,$M$12:$M$501)),$B$40,IF(M183=MIN(IF($M$12:$M$501>=$O$1+14,$M$12:$M$501)),$B$41,IF(M183=MIN(IF($M$12:$M$501>=$O$1+28,$M$12:$M$501)),$B$42,""))) ->  | BQ183: =IF(G183<>G182,IF(BP183>=2,IF(MAX(IF($G$12:$G$503=G183,$BO$12:$BO$503))<$B$30,BP183,1),BP183),"") ->  | BR183: =IF(G183<>G182,IF(BP183>=2,IF(MAX(IF($G$12:$G$503=G183,$BO$12:$BO$503))<$B$31,BP183,1),BP183),"") ->  | BT183: =IF(MAX(IF($G$12:G183=G183,$BO$12:BO183))<$B$30,COUNTIFS($BO$12:BO183,">"&$B$56,$G$12:G183,G183),0) -> 0 | CY183: =IF(G183<>"",MAX(IF($I$11:I182<>$B$14,$M$11:M182)),"") ->  | CZ183: =IF(CX183<>"",IF(CX183=0,0,IF(G183<>G182,0,IFERROR(INDEX($CZ$11:CZ182, MATCH(MAX($CY$11:CY182), $M$11:M182, 0))+1,1))),"") ->  | DB183: =IF(DA183<>"",IF(DA183=0,0,IF(G183<>G182,0,IFERROR(INDEX($DB$11:DB182, MATCH(MAX($CY$11:CY182), $M$11:M182, 0))+1,1))),"") ->  | DK183: =IF(G182<>G183,MAX(IF($G$12:$G$503=G183,$DI$12:$DI$503)),"") -> 
L184: 2024-08-28 | Q184: 2024-08-28 | X184: =IF(M184=MIN(IF($M$12:$M$501>=$O$1,$M$12:$M$501)),$B$40,IF(M184=MIN(IF($M$12:$M$501>=$O$1+7,$M$12:$M$501)),$B$41,IF(M184=MIN(IF($M$12:$M$501>=$O$1+14,$M$12:$M$501)),$B$42,IF(M184=MIN(IF($M$12:$M$501>=$O$1+21,$M$12:$M$501)),$B$43,IF(M184=MIN(IF($M$12:$M$501>=$O$1+28,$M$12:$M$501)),$B$44,""))))) ->  | Y184: =IF(M184=MIN(IF($M$12:$M$501>=$O$1,$M$12:$M$501)),$B$40,IF(M184=MIN(IF($M$12:$M$501>=$O$1+14,$M$12:$M$501)),$B$41,IF(M184=MIN(IF($M$12:$M$501>=$O$1+28,$M$12:$M$501)),$B$42,""))) ->  | BQ184: =IF(G184<>G183,IF(BP184>=2,IF(MAX(IF($G$12:$G$503=G184,$BO$12:$BO$503))<$B$30,BP184,1),BP184),"") ->  | BR184: =IF(G184<>G183,IF(BP184>=2,IF(MAX(IF($G$12:$G$503=G184,$BO$12:$BO$503))<$B$31,BP184,1),BP184),"") ->  | BT184: =IF(MAX(IF($G$12:G184=G184,$BO$12:BO184))<$B$30,COUNTIFS($BO$12:BO184,">"&$B$56,$G$12:G184,G184),0) -> 0 | CY184: =IF(G184<>"",MAX(IF($I$11:I183<>$B$14,$M$11:M183)),"") ->  | CZ184: =IF(CX184<>"",IF(CX184=0,0,IF(G184<>G183,0,IFERROR(INDEX($CZ$11:CZ183, MATCH(MAX($CY$11:CY183), $M$11:M183, 0))+1,1))),"") ->  | DB184: =IF(DA184<>"",IF(DA184=0,0,IF(G184<>G183,0,IFERROR(INDEX($DB$11:DB183, MATCH(MAX($CY$11:CY183), $M$11:M183, 0))+1,1))),"") ->  | DK184: =IF(G183<>G184,MAX(IF($G$12:$G$503=G184,$DI$12:$DI$503)),"") -> 
J185: =IF(OR(I185=$B$17, I185=$B$18),IF(S185<$B$52,1,""),"") ->  | K185: =IFERROR(VLOOKUP(I185,$B$14:$C$18,2,FALSE),"") ->  | L185: 2024-08-28 | Q185: 2024-08-28 | X185: =IF(M185=MIN(IF($M$12:$M$501>=$O$1,$M$12:$M$501)),$B$40,IF(M185=MIN(IF($M$12:$M$501>=$O$1+7,$M$12:$M$501)),$B$41,IF(M185=MIN(IF($M$12:$M$501>=$O$1+14,$M$12:$M$501)),$B$42,IF(M185=MIN(IF($M$12:$M$501>=$O$1+21,$M$12:$M$501)),$B$43,IF(M185=MIN(IF($M$12:$M$501>=$O$1+28,$M$12:$M$501)),$B$44,""))))) ->  | Y185: =IF(M185=MIN(IF($M$12:$M$501>=$O$1,$M$12:$M$501)),$B$40,IF(M185=MIN(IF($M$12:$M$501>=$O$1+14,$M$12:$M$501)),$B$41,IF(M185=MIN(IF($M$12:$M$501>=$O$1+28,$M$12:$M$501)),$B$42,""))) ->  | BQ185: =IF(G185<>G184,IF(BP185>=2,IF(MAX(IF($G$12:$G$503=G185,$BO$12:$BO$503))<$B$30,BP185,1),BP185),"") ->  | BR185: =IF(G185<>G184,IF(BP185>=2,IF(MAX(IF($G$12:$G$503=G185,$BO$12:$BO$503))<$B$31,BP185,1),BP185),"") ->  | BT185: =IF(MAX(IF($G$12:G185=G185,$BO$12:BO185))<$B$30,COUNTIFS($BO$12:BO185,">"&$B$56,$G$12:G185,G185),0) -> 0 | CY185: =IF(G185<>"",MAX(IF($I$11:I184<>$B$14,$M$11:M184)),"") ->  | CZ185: =IF(CX185<>"",IF(CX185=0,0,IF(G185<>G184,0,IFERROR(INDEX($CZ$11:CZ184, MATCH(MAX($CY$11:CY184), $M$11:M184, 0))+1,1))),"") ->  | DB185: =IF(DA185<>"",IF(DA185=0,0,IF(G185<>G184,0,IFERROR(INDEX($DB$11:DB184, MATCH(MAX($CY$11:CY184), $M$11:M184, 0))+1,1))),"") ->  | DK185: =IF(G184<>G185,MAX(IF($G$12:$G$503=G185,$DI$12:$DI$503)),"") -> 
L186: 2024-08-28 | Q186: 2024-08-28 | X186: =IF(M186=MIN(IF($M$12:$M$501>=$O$1,$M$12:$M$501)),$B$40,IF(M186=MIN(IF($M$12:$M$501>=$O$1+7,$M$12:$M$501)),$B$41,IF(M186=MIN(IF($M$12:$M$501>=$O$1+14,$M$12:$M$501)),$B$42,IF(M186=MIN(IF($M$12:$M$501>=$O$1+21,$M$12:$M$501)),$B$43,IF(M186=MIN(IF($M$12:$M$501>=$O$1+28,$M$12:$M$501)),$B$44,""))))) ->  | Y186: =IF(M186=MIN(IF($M$12:$M$501>=$O$1,$M$12:$M$501)),$B$40,IF(M186=MIN(IF($M$12:$M$501>=$O$1+14,$M$12:$M$501)),$B$41,IF(M186=MIN(IF($M$12:$M$501>=$O$1+28,$M$12:$M$501)),$B$42,""))) ->  | BQ186: =IF(G186<>G185,IF(BP186>=2,IF(MAX(IF($G$12:$G$503=G186,$BO$12:$BO$503))<$B$30,BP186,1),BP186),"") ->  | BR186: =IF(G186<>G185,IF(BP186>=2,IF(MAX(IF($G$12:$G$503=G186,$BO$12:$BO$503))<$B$31,BP186,1),BP186),"") ->  | BT186: =IF(MAX(IF($G$12:G186=G186,$BO$12:BO186))<$B$30,COUNTIFS($BO$12:BO186,">"&$B$56,$G$12:G186,G186),0) -> 0 | CY186: =IF(G186<>"",MAX(IF($I$11:I185<>$B$14,$M$11:M185)),"") ->  | CZ186: =IF(CX186<>"",IF(CX186=0,0,IF(G186<>G185,0,IFERROR(INDEX($CZ$11:CZ185, MATCH(MAX($CY$11:CY185), $M$11:M185, 0))+1,1))),"") ->  | DB186: =IF(DA186<>"",IF(DA186=0,0,IF(G186<>G185,0,IFERROR(INDEX($DB$11:DB185, MATCH(MAX($CY$11:CY185), $M$11:M185, 0))+1,1))),"") ->  | DK186: =IF(G185<>G186,MAX(IF($G$12:$G$503=G186,$DI$12:$DI$503)),"") -> 
L187: 2024-08-28 | Q187: 2024-08-28 | X187: =IF(M187=MIN(IF($M$12:$M$501>=$O$1,$M$12:$M$501)),$B$40,IF(M187=MIN(IF($M$12:$M$501>=$O$1+7,$M$12:$M$501)),$B$41,IF(M187=MIN(IF($M$12:$M$501>=$O$1+14,$M$12:$M$501)),$B$42,IF(M187=MIN(IF($M$12:$M$501>=$O$1+21,$M$12:$M$501)),$B$43,IF(M187=MIN(IF($M$12:$M$501>=$O$1+28,$M$12:$M$501)),$B$44,""))))) ->  | Y187: =IF(M187=MIN(IF($M$12:$M$501>=$O$1,$M$12:$M$501)),$B$40,IF(M187=MIN(IF($M$12:$M$501>=$O$1+14,$M$12:$M$501)),$B$41,IF(M187=MIN(IF($M$12:$M$501>=$O$1+28,$M$12:$M$501)),$B$42,""))) ->  | BQ187: =IF(G187<>G186,IF(BP187>=2,IF(MAX(IF($G$12:$G$503=G187,$BO$12:$BO$503))<$B$30,BP187,1),BP187),"") ->  | BR187: =IF(G187<>G186,IF(BP187>=2,IF(MAX(IF($G$12:$G$503=G187,$BO$12:$BO$503))<$B$31,BP187,1),BP187),"") ->  | BT187: =IF(MAX(IF($G$12:G187=G187,$BO$12:BO187))<$B$30,COUNTIFS($BO$12:BO187,">"&$B$56,$G$12:G187,G187),0) -> 0 | CY187: =IF(G187<>"",MAX(IF($I$11:I186<>$B$14,$M$11:M186)),"") ->  | CZ187: =IF(CX187<>"",IF(CX187=0,0,IF(G187<>G186,0,IFERROR(INDEX($CZ$11:CZ186, MATCH(MAX($CY$11:CY186), $M$11:M186, 0))+1,1))),"") ->  | DB187: =IF(DA187<>"",IF(DA187=0,0,IF(G187<>G186,0,IFERROR(INDEX($DB$11:DB186, MATCH(MAX($CY$11:CY186), $M$11:M186, 0))+1,1))),"") ->  | DK187: =IF(G186<>G187,MAX(IF($G$12:$G$503=G187,$DI$12:$DI$503)),"") -> 
L188: 2024-08-28 | Q188: 2024-08-28 | X188: =IF(M188=MIN(IF($M$12:$M$501>=$O$1,$M$12:$M$501)),$B$40,IF(M188=MIN(IF($M$12:$M$501>=$O$1+7,$M$12:$M$501)),$B$41,IF(M188=MIN(IF($M$12:$M$501>=$O$1+14,$M$12:$M$501)),$B$42,IF(M188=MIN(IF($M$12:$M$501>=$O$1+21,$M$12:$M$501)),$B$43,IF(M188=MIN(IF($M$12:$M$501>=$O$1+28,$M$12:$M$501)),$B$44,""))))) ->  | Y188: =IF(M188=MIN(IF($M$12:$M$501>=$O$1,$M$12:$M$501)),$B$40,IF(M188=MIN(IF($M$12:$M$501>=$O$1+14,$M$12:$M$501)),$B$41,IF(M188=MIN(IF($M$12:$M$501>=$O$1+28,$M$12:$M$501)),$B$42,""))) ->  | BQ188: =IF(G188<>G187,IF(BP188>=2,IF(MAX(IF($G$12:$G$503=G188,$BO$12:$BO$503))<$B$30,BP188,1),BP188),"") ->  | BR188: =IF(G188<>G187,IF(BP188>=2,IF(MAX(IF($G$12:$G$503=G188,$BO$12:$BO$503))<$B$31,BP188,1),BP188),"") ->  | BT188: =IF(MAX(IF($G$12:G188=G188,$BO$12:BO188))<$B$30,COUNTIFS($BO$12:BO188,">"&$B$56,$G$12:G188,G188),0) -> 0 | CY188: =IF(G188<>"",MAX(IF($I$11:I187<>$B$14,$M$11:M187)),"") ->  | CZ188: =IF(CX188<>"",IF(CX188=0,0,IF(G188<>G187,0,IFERROR(INDEX($CZ$11:CZ187, MATCH(MAX($CY$11:CY187), $M$11:M187, 0))+1,1))),"") ->  | DB188: =IF(DA188<>"",IF(DA188=0,0,IF(G188<>G187,0,IFERROR(INDEX($DB$11:DB187, MATCH(MAX($CY$11:CY187), $M$11:M187, 0))+1,1))),"") ->  | DK188: =IF(G187<>G188,MAX(IF($G$12:$G$503=G188,$DI$12:$DI$503)),"") -> 
L189: 2024-08-28 | Q189: 2024-08-28 | X189: =IF(M189=MIN(IF($M$12:$M$501>=$O$1,$M$12:$M$501)),$B$40,IF(M189=MIN(IF($M$12:$M$501>=$O$1+7,$M$12:$M$501)),$B$41,IF(M189=MIN(IF($M$12:$M$501>=$O$1+14,$M$12:$M$501)),$B$42,IF(M189=MIN(IF($M$12:$M$501>=$O$1+21,$M$12:$M$501)),$B$43,IF(M189=MIN(IF($M$12:$M$501>=$O$1+28,$M$12:$M$501)),$B$44,""))))) ->  | Y189: =IF(M189=MIN(IF($M$12:$M$501>=$O$1,$M$12:$M$501)),$B$40,IF(M189=MIN(IF($M$12:$M$501>=$O$1+14,$M$12:$M$501)),$B$41,IF(M189=MIN(IF($M$12:$M$501>=$O$1+28,$M$12:$M$501)),$B$42,""))) ->  | BQ189: =IF(G189<>G188,IF(BP189>=2,IF(MAX(IF($G$12:$G$503=G189,$BO$12:$BO$503))<$B$30,BP189,1),BP189),"") ->  | BR189: =IF(G189<>G188,IF(BP189>=2,IF(MAX(IF($G$12:$G$503=G189,$BO$12:$BO$503))<$B$31,BP189,1),BP189),"") ->  | BT189: =IF(MAX(IF($G$12:G189=G189,$BO$12:BO189))<$B$30,COUNTIFS($BO$12:BO189,">"&$B$56,$G$12:G189,G189),0) -> 0 | CY189: =IF(G189<>"",MAX(IF($I$11:I188<>$B$14,$M$11:M188)),"") ->  | CZ189: =IF(CX189<>"",IF(CX189=0,0,IF(G189<>G188,0,IFERROR(INDEX($CZ$11:CZ188, MATCH(MAX($CY$11:CY188), $M$11:M188, 0))+1,1))),"") ->  | DB189: =IF(DA189<>"",IF(DA189=0,0,IF(G189<>G188,0,IFERROR(INDEX($DB$11:DB188, MATCH(MAX($CY$11:CY188), $M$11:M188, 0))+1,1))),"") ->  | DK189: =IF(G188<>G189,MAX(IF($G$12:$G$503=G189,$DI$12:$DI$503)),"") -> 
L190: 2024-08-28 | Q190: 2024-08-28 | X190: =IF(M190=MIN(IF($M$12:$M$501>=$O$1,$M$12:$M$501)),$B$40,IF(M190=MIN(IF($M$12:$M$501>=$O$1+7,$M$12:$M$501)),$B$41,IF(M190=MIN(IF($M$12:$M$501>=$O$1+14,$M$12:$M$501)),$B$42,IF(M190=MIN(IF($M$12:$M$501>=$O$1+21,$M$12:$M$501)),$B$43,IF(M190=MIN(IF($M$12:$M$501>=$O$1+28,$M$12:$M$501)),$B$44,""))))) ->  | Y190: =IF(M190=MIN(IF($M$12:$M$501>=$O$1,$M$12:$M$501)),$B$40,IF(M190=MIN(IF($M$12:$M$501>=$O$1+14,$M$12:$M$501)),$B$41,IF(M190=MIN(IF($M$12:$M$501>=$O$1+28,$M$12:$M$501)),$B$42,""))) ->  | BQ190: =IF(G190<>G189,IF(BP190>=2,IF(MAX(IF($G$12:$G$503=G190,$BO$12:$BO$503))<$B$30,BP190,1),BP190),"") ->  | BR190: =IF(G190<>G189,IF(BP190>=2,IF(MAX(IF($G$12:$G$503=G190,$BO$12:$BO$503))<$B$31,BP190,1),BP190),"") ->  | BT190: =IF(MAX(IF($G$12:G190=G190,$BO$12:BO190))<$B$30,COUNTIFS($BO$12:BO190,">"&$B$56,$G$12:G190,G190),0) -> 0 | CY190: =IF(G190<>"",MAX(IF($I$11:I189<>$B$14,$M$11:M189)),"") ->  | CZ190: =IF(CX190<>"",IF(CX190=0,0,IF(G190<>G189,0,IFERROR(INDEX($CZ$11:CZ189, MATCH(MAX($CY$11:CY189), $M$11:M189, 0))+1,1))),"") ->  | DB190: =IF(DA190<>"",IF(DA190=0,0,IF(G190<>G189,0,IFERROR(INDEX($DB$11:DB189, MATCH(MAX($CY$11:CY189), $M$11:M189, 0))+1,1))),"") ->  | DK190: =IF(G189<>G190,MAX(IF($G$12:$G$503=G190,$DI$12:$DI$503)),"") -> 
L191: 2024-08-28 | Q191: 2024-08-28 | X191: =IF(M191=MIN(IF($M$12:$M$501>=$O$1,$M$12:$M$501)),$B$40,IF(M191=MIN(IF($M$12:$M$501>=$O$1+7,$M$12:$M$501)),$B$41,IF(M191=MIN(IF($M$12:$M$501>=$O$1+14,$M$12:$M$501)),$B$42,IF(M191=MIN(IF($M$12:$M$501>=$O$1+21,$M$12:$M$501)),$B$43,IF(M191=MIN(IF($M$12:$M$501>=$O$1+28,$M$12:$M$501)),$B$44,""))))) ->  | Y191: =IF(M191=MIN(IF($M$12:$M$501>=$O$1,$M$12:$M$501)),$B$40,IF(M191=MIN(IF($M$12:$M$501>=$O$1+14,$M$12:$M$501)),$B$41,IF(M191=MIN(IF($M$12:$M$501>=$O$1+28,$M$12:$M$501)),$B$42,""))) ->  | BQ191: =IF(G191<>G190,IF(BP191>=2,IF(MAX(IF($G$12:$G$503=G191,$BO$12:$BO$503))<$B$30,BP191,1),BP191),"") ->  | BR191: =IF(G191<>G190,IF(BP191>=2,IF(MAX(IF($G$12:$G$503=G191,$BO$12:$BO$503))<$B$31,BP191,1),BP191),"") ->  | BT191: =IF(MAX(IF($G$12:G191=G191,$BO$12:BO191))<$B$30,COUNTIFS($BO$12:BO191,">"&$B$56,$G$12:G191,G191),0) -> 0 | CY191: =IF(G191<>"",MAX(IF($I$11:I190<>$B$14,$M$11:M190)),"") ->  | CZ191: =IF(CX191<>"",IF(CX191=0,0,IF(G191<>G190,0,IFERROR(INDEX($CZ$11:CZ190, MATCH(MAX($CY$11:CY190), $M$11:M190, 0))+1,1))),"") ->  | DB191: =IF(DA191<>"",IF(DA191=0,0,IF(G191<>G190,0,IFERROR(INDEX($DB$11:DB190, MATCH(MAX($CY$11:CY190), $M$11:M190, 0))+1,1))),"") ->  | DK191: =IF(G190<>G191,MAX(IF($G$12:$G$503=G191,$DI$12:$DI$503)),"") -> 
L192: 2024-08-28 | Q192: 2024-08-28 | X192: =IF(M192=MIN(IF($M$12:$M$501>=$O$1,$M$12:$M$501)),$B$40,IF(M192=MIN(IF($M$12:$M$501>=$O$1+7,$M$12:$M$501)),$B$41,IF(M192=MIN(IF($M$12:$M$501>=$O$1+14,$M$12:$M$501)),$B$42,IF(M192=MIN(IF($M$12:$M$501>=$O$1+21,$M$12:$M$501)),$B$43,IF(M192=MIN(IF($M$12:$M$501>=$O$1+28,$M$12:$M$501)),$B$44,""))))) ->  | Y192: =IF(M192=MIN(IF($M$12:$M$501>=$O$1,$M$12:$M$501)),$B$40,IF(M192=MIN(IF($M$12:$M$501>=$O$1+14,$M$12:$M$501)),$B$41,IF(M192=MIN(IF($M$12:$M$501>=$O$1+28,$M$12:$M$501)),$B$42,""))) ->  | BQ192: =IF(G192<>G191,IF(BP192>=2,IF(MAX(IF($G$12:$G$503=G192,$BO$12:$BO$503))<$B$30,BP192,1),BP192),"") ->  | BR192: =IF(G192<>G191,IF(BP192>=2,IF(MAX(IF($G$12:$G$503=G192,$BO$12:$BO$503))<$B$31,BP192,1),BP192),"") ->  | BT192: =IF(MAX(IF($G$12:G192=G192,$BO$12:BO192))<$B$30,COUNTIFS($BO$12:BO192,">"&$B$56,$G$12:G192,G192),0) -> 0 | CY192: =IF(G192<>"",MAX(IF($I$11:I191<>$B$14,$M$11:M191)),"") ->  | CZ192: =IF(CX192<>"",IF(CX192=0,0,IF(G192<>G191,0,IFERROR(INDEX($CZ$11:CZ191, MATCH(MAX($CY$11:CY191), $M$11:M191, 0))+1,1))),"") ->  | DB192: =IF(DA192<>"",IF(DA192=0,0,IF(G192<>G191,0,IFERROR(INDEX($DB$11:DB191, MATCH(MAX($CY$11:CY191), $M$11:M191, 0))+1,1))),"") ->  | DK192: =IF(G191<>G192,MAX(IF($G$12:$G$503=G192,$DI$12:$DI$503)),"") -> 
L193: 2024-08-28 | Q193: 2024-08-28 | X193: =IF(M193=MIN(IF($M$12:$M$501>=$O$1,$M$12:$M$501)),$B$40,IF(M193=MIN(IF($M$12:$M$501>=$O$1+7,$M$12:$M$501)),$B$41,IF(M193=MIN(IF($M$12:$M$501>=$O$1+14,$M$12:$M$501)),$B$42,IF(M193=MIN(IF($M$12:$M$501>=$O$1+21,$M$12:$M$501)),$B$43,IF(M193=MIN(IF($M$12:$M$501>=$O$1+28,$M$12:$M$501)),$B$44,""))))) ->  | Y193: =IF(M193=MIN(IF($M$12:$M$501>=$O$1,$M$12:$M$501)),$B$40,IF(M193=MIN(IF($M$12:$M$501>=$O$1+14,$M$12:$M$501)),$B$41,IF(M193=MIN(IF($M$12:$M$501>=$O$1+28,$M$12:$M$501)),$B$42,""))) ->  | BQ193: =IF(G193<>G192,IF(BP193>=2,IF(MAX(IF($G$12:$G$503=G193,$BO$12:$BO$503))<$B$30,BP193,1),BP193),"") ->  | BR193: =IF(G193<>G192,IF(BP193>=2,IF(MAX(IF($G$12:$G$503=G193,$BO$12:$BO$503))<$B$31,BP193,1),BP193),"") ->  | BT193: =IF(MAX(IF($G$12:G193=G193,$BO$12:BO193))<$B$30,COUNTIFS($BO$12:BO193,">"&$B$56,$G$12:G193,G193),0) -> 0 | CY193: =IF(G193<>"",MAX(IF($I$11:I192<>$B$14,$M$11:M192)),"") ->  | CZ193: =IF(CX193<>"",IF(CX193=0,0,IF(G193<>G192,0,IFERROR(INDEX($CZ$11:CZ192, MATCH(MAX($CY$11:CY192), $M$11:M192, 0))+1,1))),"") ->  | DB193: =IF(DA193<>"",IF(DA193=0,0,IF(G193<>G192,0,IFERROR(INDEX($DB$11:DB192, MATCH(MAX($CY$11:CY192), $M$11:M192, 0))+1,1))),"") ->  | DK193: =IF(G192<>G193,MAX(IF($G$12:$G$503=G193,$DI$12:$DI$503)),"") -> 
L194: 2024-08-28 | Q194: 2024-08-28 | X194: =IF(M194=MIN(IF($M$12:$M$501>=$O$1,$M$12:$M$501)),$B$40,IF(M194=MIN(IF($M$12:$M$501>=$O$1+7,$M$12:$M$501)),$B$41,IF(M194=MIN(IF($M$12:$M$501>=$O$1+14,$M$12:$M$501)),$B$42,IF(M194=MIN(IF($M$12:$M$501>=$O$1+21,$M$12:$M$501)),$B$43,IF(M194=MIN(IF($M$12:$M$501>=$O$1+28,$M$12:$M$501)),$B$44,""))))) ->  | Y194: =IF(M194=MIN(IF($M$12:$M$501>=$O$1,$M$12:$M$501)),$B$40,IF(M194=MIN(IF($M$12:$M$501>=$O$1+14,$M$12:$M$501)),$B$41,IF(M194=MIN(IF($M$12:$M$501>=$O$1+28,$M$12:$M$501)),$B$42,""))) ->  | BQ194: =IF(G194<>G193,IF(BP194>=2,IF(MAX(IF($G$12:$G$503=G194,$BO$12:$BO$503))<$B$30,BP194,1),BP194),"") ->  | BR194: =IF(G194<>G193,IF(BP194>=2,IF(MAX(IF($G$12:$G$503=G194,$BO$12:$BO$503))<$B$31,BP194,1),BP194),"") ->  | BT194: =IF(MAX(IF($G$12:G194=G194,$BO$12:BO194))<$B$30,COUNTIFS($BO$12:BO194,">"&$B$56,$G$12:G194,G194),0) -> 0 | CY194: =IF(G194<>"",MAX(IF($I$11:I193<>$B$14,$M$11:M193)),"") ->  | CZ194: =IF(CX194<>"",IF(CX194=0,0,IF(G194<>G193,0,IFERROR(INDEX($CZ$11:CZ193, MATCH(MAX($CY$11:CY193), $M$11:M193, 0))+1,1))),"") ->  | DB194: =IF(DA194<>"",IF(DA194=0,0,IF(G194<>G193,0,IFERROR(INDEX($DB$11:DB193, MATCH(MAX($CY$11:CY193), $M$11:M193, 0))+1,1))),"") ->  | DK194: =IF(G193<>G194,MAX(IF($G$12:$G$503=G194,$DI$12:$DI$503)),"") -> 
L195: 2024-08-28 | Q195: 2024-08-28 | X195: =IF(M195=MIN(IF($M$12:$M$501>=$O$1,$M$12:$M$501)),$B$40,IF(M195=MIN(IF($M$12:$M$501>=$O$1+7,$M$12:$M$501)),$B$41,IF(M195=MIN(IF($M$12:$M$501>=$O$1+14,$M$12:$M$501)),$B$42,IF(M195=MIN(IF($M$12:$M$501>=$O$1+21,$M$12:$M$501)),$B$43,IF(M195=MIN(IF($M$12:$M$501>=$O$1+28,$M$12:$M$501)),$B$44,""))))) ->  | Y195: =IF(M195=MIN(IF($M$12:$M$501>=$O$1,$M$12:$M$501)),$B$40,IF(M195=MIN(IF($M$12:$M$501>=$O$1+14,$M$12:$M$501)),$B$41,IF(M195=MIN(IF($M$12:$M$501>=$O$1+28,$M$12:$M$501)),$B$42,""))) ->  | BQ195: =IF(G195<>G194,IF(BP195>=2,IF(MAX(IF($G$12:$G$503=G195,$BO$12:$BO$503))<$B$30,BP195,1),BP195),"") ->  | BR195: =IF(G195<>G194,IF(BP195>=2,IF(MAX(IF($G$12:$G$503=G195,$BO$12:$BO$503))<$B$31,BP195,1),BP195),"") ->  | BT195: =IF(MAX(IF($G$12:G195=G195,$BO$12:BO195))<$B$30,COUNTIFS($BO$12:BO195,">"&$B$56,$G$12:G195,G195),0) -> 0 | CY195: =IF(G195<>"",MAX(IF($I$11:I194<>$B$14,$M$11:M194)),"") ->  | CZ195: =IF(CX195<>"",IF(CX195=0,0,IF(G195<>G194,0,IFERROR(INDEX($CZ$11:CZ194, MATCH(MAX($CY$11:CY194), $M$11:M194, 0))+1,1))),"") ->  | DB195: =IF(DA195<>"",IF(DA195=0,0,IF(G195<>G194,0,IFERROR(INDEX($DB$11:DB194, MATCH(MAX($CY$11:CY194), $M$11:M194, 0))+1,1))),"") ->  | DK195: =IF(G194<>G195,MAX(IF($G$12:$G$503=G195,$DI$12:$DI$503)),"") -> 
L196: 2024-08-28 | Q196: 2024-08-28 | X196: =IF(M196=MIN(IF($M$12:$M$501>=$O$1,$M$12:$M$501)),$B$40,IF(M196=MIN(IF($M$12:$M$501>=$O$1+7,$M$12:$M$501)),$B$41,IF(M196=MIN(IF($M$12:$M$501>=$O$1+14,$M$12:$M$501)),$B$42,IF(M196=MIN(IF($M$12:$M$501>=$O$1+21,$M$12:$M$501)),$B$43,IF(M196=MIN(IF($M$12:$M$501>=$O$1+28,$M$12:$M$501)),$B$44,""))))) ->  | Y196: =IF(M196=MIN(IF($M$12:$M$501>=$O$1,$M$12:$M$501)),$B$40,IF(M196=MIN(IF($M$12:$M$501>=$O$1+14,$M$12:$M$501)),$B$41,IF(M196=MIN(IF($M$12:$M$501>=$O$1+28,$M$12:$M$501)),$B$42,""))) ->  | BQ196: =IF(G196<>G195,IF(BP196>=2,IF(MAX(IF($G$12:$G$503=G196,$BO$12:$BO$503))<$B$30,BP196,1),BP196),"") ->  | BR196: =IF(G196<>G195,IF(BP196>=2,IF(MAX(IF($G$12:$G$503=G196,$BO$12:$BO$503))<$B$31,BP196,1),BP196),"") ->  | BT196: =IF(MAX(IF($G$12:G196=G196,$BO$12:BO196))<$B$30,COUNTIFS($BO$12:BO196,">"&$B$56,$G$12:G196,G196),0) -> 0 | CY196: =IF(G196<>"",MAX(IF($I$11:I195<>$B$14,$M$11:M195)),"") ->  | CZ196: =IF(CX196<>"",IF(CX196=0,0,IF(G196<>G195,0,IFERROR(INDEX($CZ$11:CZ195, MATCH(MAX($CY$11:CY195), $M$11:M195, 0))+1,1))),"") ->  | DB196: =IF(DA196<>"",IF(DA196=0,0,IF(G196<>G195,0,IFERROR(INDEX($DB$11:DB195, MATCH(MAX($CY$11:CY195), $M$11:M195, 0))+1,1))),"") ->  | DK196: =IF(G195<>G196,MAX(IF($G$12:$G$503=G196,$DI$12:$DI$503)),"") -> 
L197: 2024-08-28 | Q197: 2024-08-28 | X197: =IF(M197=MIN(IF($M$12:$M$501>=$O$1,$M$12:$M$501)),$B$40,IF(M197=MIN(IF($M$12:$M$501>=$O$1+7,$M$12:$M$501)),$B$41,IF(M197=MIN(IF($M$12:$M$501>=$O$1+14,$M$12:$M$501)),$B$42,IF(M197=MIN(IF($M$12:$M$501>=$O$1+21,$M$12:$M$501)),$B$43,IF(M197=MIN(IF($M$12:$M$501>=$O$1+28,$M$12:$M$501)),$B$44,""))))) ->  | Y197: =IF(M197=MIN(IF($M$12:$M$501>=$O$1,$M$12:$M$501)),$B$40,IF(M197=MIN(IF($M$12:$M$501>=$O$1+14,$M$12:$M$501)),$B$41,IF(M197=MIN(IF($M$12:$M$501>=$O$1+28,$M$12:$M$501)),$B$42,""))) ->  | BQ197: =IF(G197<>G196,IF(BP197>=2,IF(MAX(IF($G$12:$G$503=G197,$BO$12:$BO$503))<$B$30,BP197,1),BP197),"") ->  | BR197: =IF(G197<>G196,IF(BP197>=2,IF(MAX(IF($G$12:$G$503=G197,$BO$12:$BO$503))<$B$31,BP197,1),BP197),"") ->  | BT197: =IF(MAX(IF($G$12:G197=G197,$BO$12:BO197))<$B$30,COUNTIFS($BO$12:BO197,">"&$B$56,$G$12:G197,G197),0) -> 0 | CY197: =IF(G197<>"",MAX(IF($I$11:I196<>$B$14,$M$11:M196)),"") ->  | CZ197: =IF(CX197<>"",IF(CX197=0,0,IF(G197<>G196,0,IFERROR(INDEX($CZ$11:CZ196, MATCH(MAX($CY$11:CY196), $M$11:M196, 0))+1,1))),"") ->  | DB197: =IF(DA197<>"",IF(DA197=0,0,IF(G197<>G196,0,IFERROR(INDEX($DB$11:DB196, MATCH(MAX($CY$11:CY196), $M$11:M196, 0))+1,1))),"") ->  | DK197: =IF(G196<>G197,MAX(IF($G$12:$G$503=G197,$DI$12:$DI$503)),"") -> 
L198: =IF(O198<>"",O198,L197) -> 2024-08-28 | M198: =IF(I198>=1,Q197,"") ->  | Q198: 2024-08-28 | X198: =IF(M198=MIN(IF($M$12:$M$501>=$O$1,$M$12:$M$501)),$B$40,IF(M198=MIN(IF($M$12:$M$501>=$O$1+7,$M$12:$M$501)),$B$41,IF(M198=MIN(IF($M$12:$M$501>=$O$1+14,$M$12:$M$501)),$B$42,IF(M198=MIN(IF($M$12:$M$501>=$O$1+21,$M$12:$M$501)),$B$43,IF(M198=MIN(IF($M$12:$M$501>=$O$1+28,$M$12:$M$501)),$B$44,""))))) ->  | Y198: =IF(M198=MIN(IF($M$12:$M$501>=$O$1,$M$12:$M$501)),$B$40,IF(M198=MIN(IF($M$12:$M$501>=$O$1+14,$M$12:$M$501)),$B$41,IF(M198=MIN(IF($M$12:$M$501>=$O$1+28,$M$12:$M$501)),$B$42,""))) ->  | BQ198: =IF(G198<>G197,IF(BP198>=2,IF(MAX(IF($G$12:$G$503=G198,$BO$12:$BO$503))<$B$30,BP198,1),BP198),"") ->  | BR198: =IF(G198<>G197,IF(BP198>=2,IF(MAX(IF($G$12:$G$503=G198,$BO$12:$BO$503))<$B$31,BP198,1),BP198),"") ->  | BT198: =IF(MAX(IF($G$12:G198=G198,$BO$12:BO198))<$B$30,COUNTIFS($BO$12:BO198,">"&$B$56,$G$12:G198,G198),0) -> 0 | CY198: =IF(G198<>"",MAX(IF($I$11:I197<>$B$14,$M$11:M197)),"") ->  | CZ198: =IF(CX198<>"",IF(CX198=0,0,IF(G198<>G197,0,IFERROR(INDEX($CZ$11:CZ197, MATCH(MAX($CY$11:CY197), $M$11:M197, 0))+1,1))),"") ->  | DB198: =IF(DA198<>"",IF(DA198=0,0,IF(G198<>G197,0,IFERROR(INDEX($DB$11:DB197, MATCH(MAX($CY$11:CY197), $M$11:M197, 0))+1,1))),"") ->  | DK198: =IF(G197<>G198,MAX(IF($G$12:$G$503=G198,$DI$12:$DI$503)),"") -> 
L199: 2024-08-28 | Q199: 2024-08-28 | X199: =IF(M199=MIN(IF($M$12:$M$501>=$O$1,$M$12:$M$501)),$B$40,IF(M199=MIN(IF($M$12:$M$501>=$O$1+7,$M$12:$M$501)),$B$41,IF(M199=MIN(IF($M$12:$M$501>=$O$1+14,$M$12:$M$501)),$B$42,IF(M199=MIN(IF($M$12:$M$501>=$O$1+21,$M$12:$M$501)),$B$43,IF(M199=MIN(IF($M$12:$M$501>=$O$1+28,$M$12:$M$501)),$B$44,""))))) ->  | Y199: =IF(M199=MIN(IF($M$12:$M$501>=$O$1,$M$12:$M$501)),$B$40,IF(M199=MIN(IF($M$12:$M$501>=$O$1+14,$M$12:$M$501)),$B$41,IF(M199=MIN(IF($M$12:$M$501>=$O$1+28,$M$12:$M$501)),$B$42,""))) ->  | BQ199: =IF(G199<>G198,IF(BP199>=2,IF(MAX(IF($G$12:$G$503=G199,$BO$12:$BO$503))<$B$30,BP199,1),BP199),"") ->  | BR199: =IF(G199<>G198,IF(BP199>=2,IF(MAX(IF($G$12:$G$503=G199,$BO$12:$BO$503))<$B$31,BP199,1),BP199),"") ->  | BT199: =IF(MAX(IF($G$12:G199=G199,$BO$12:BO199))<$B$30,COUNTIFS($BO$12:BO199,">"&$B$56,$G$12:G199,G199),0) -> 0 | CY199: =IF(G199<>"",MAX(IF($I$11:I198<>$B$14,$M$11:M198)),"") ->  | CZ199: =IF(CX199<>"",IF(CX199=0,0,IF(G199<>G198,0,IFERROR(INDEX($CZ$11:CZ198, MATCH(MAX($CY$11:CY198), $M$11:M198, 0))+1,1))),"") ->  | DB199: =IF(DA199<>"",IF(DA199=0,0,IF(G199<>G198,0,IFERROR(INDEX($DB$11:DB198, MATCH(MAX($CY$11:CY198), $M$11:M198, 0))+1,1))),"") ->  | DK199: =IF(G198<>G199,MAX(IF($G$12:$G$503=G199,$DI$12:$DI$503)),"") -> 
L200: 2024-08-28 | Q200: 2024-08-28 | X200: =IF(M200=MIN(IF($M$12:$M$501>=$O$1,$M$12:$M$501)),$B$40,IF(M200=MIN(IF($M$12:$M$501>=$O$1+7,$M$12:$M$501)),$B$41,IF(M200=MIN(IF($M$12:$M$501>=$O$1+14,$M$12:$M$501)),$B$42,IF(M200=MIN(IF($M$12:$M$501>=$O$1+21,$M$12:$M$501)),$B$43,IF(M200=MIN(IF($M$12:$M$501>=$O$1+28,$M$12:$M$501)),$B$44,""))))) ->  | Y200: =IF(M200=MIN(IF($M$12:$M$501>=$O$1,$M$12:$M$501)),$B$40,IF(M200=MIN(IF($M$12:$M$501>=$O$1+14,$M$12:$M$501)),$B$41,IF(M200=MIN(IF($M$12:$M$501>=$O$1+28,$M$12:$M$501)),$B$42,""))) ->  | BQ200: =IF(G200<>G199,IF(BP200>=2,IF(MAX(IF($G$12:$G$503=G200,$BO$12:$BO$503))<$B$30,BP200,1),BP200),"") ->  | BR200: =IF(G200<>G199,IF(BP200>=2,IF(MAX(IF($G$12:$G$503=G200,$BO$12:$BO$503))<$B$31,BP200,1),BP200),"") ->  | BT200: =IF(MAX(IF($G$12:G200=G200,$BO$12:BO200))<$B$30,COUNTIFS($BO$12:BO200,">"&$B$56,$G$12:G200,G200),0) -> 0 | CY200: =IF(G200<>"",MAX(IF($I$11:I199<>$B$14,$M$11:M199)),"") ->  | CZ200: =IF(CX200<>"",IF(CX200=0,0,IF(G200<>G199,0,IFERROR(INDEX($CZ$11:CZ199, MATCH(MAX($CY$11:CY199), $M$11:M199, 0))+1,1))),"") ->  | DB200: =IF(DA200<>"",IF(DA200=0,0,IF(G200<>G199,0,IFERROR(INDEX($DB$11:DB199, MATCH(MAX($CY$11:CY199), $M$11:M199, 0))+1,1))),"") ->  | DK200: =IF(G199<>G200,MAX(IF($G$12:$G$503=G200,$DI$12:$DI$503)),"") -> 
... 312 more rows

Sheet ①入力シート
F1: （福井労働局参考資料） | K1: 運転者名 | M1: 集計期間 | N1: ↓長距離運行全くなし0 | P1: ～ | BA1: 歴日数 | BJ1: =IF(O1<>"",Q1-O1+1,0) -> 0 | BL1: 日間
F2: 運行解析ツール | M2: 車両番号 | N2: =SUM($N$4:$N$7) -> 0 | BJ2: =BJ1/7*(40*60) -> 0 | BL2: (分)
F3: ①入力シート | K3: 宿泊を伴う長距離貨物運送（※） | L3: 週 | M3: 該当 | N3: あり:1,なし:0 | O3: （※）宿泊を伴う長距離貨物運送 ・・・１週における運行が全て長距離貨物運送（一の運行の走行距離が450km以上）であり、かつ、一の運行における休息期間が住所地以外の場所におけるもの | BJ3: =BJ2/1440 -> 0 | BL3: 計算期間１か月間の総歴日数／ 7 × 40
I4: 1週目 | K4: =IF(O1<>"",TEXT(O1, "MM/DD")&"～"&TEXT(O1+6, "MM/DD"),"") ->  | L4: 1 | N4: =IF(M4="あり",1,0) -> 0
G5: 入力セル | I5: 2週目 | K5: =IF(O1<>"",TEXT(O1+7, "MM/DD")&"～"&TEXT(O1+13, "MM/DD"),"") ->  | L5: 2 | N5: =IF(M5="あり",1,0) -> 0
G6: 計算セル | I6: 3週目 | K6: =IF(O1<>"",TEXT(O1+14, "MM/DD")&"～"&TEXT(O1+20, "MM/DD"),"") ->  | L6: 3 | N6: =IF(M6="あり",1,0) -> 0
I7: 4週目 | K7: =IF(O1<>"",TEXT(O1+21, "MM/DD")&"～"&TEXT(O1+27, "MM/DD"),"") ->  | L7: 4 | N7: =IF(M7="あり",1,0) -> 0
F8: ① | G8: ② | I8: ③ | M8: ④ | O8: ⑤ | AB8: a | AD8: b | AF8: c | BA8: d | BJ8: e | BK8: 1⑤ | BL8: f | BP8: 4① | CB8: g | CJ8: h | CP8: i | CR8: j | CX8: 1⑥ | CY8: k | DF8: l | DL8: m | DP8: n
F9: 運転 日報 | G9: 運行 番号 | H9: 運行番号数値 | I9: 種別 | J9: 休息3時間未満チェック | K9: 1：労働時間（運転） 2：労働時間（運転以外） 3：休憩 4：休息（自宅） 5：休息（出先） | L9: 年月 | M9: 開始 | N9: 開始時刻 分表示 | O9: 終了 | R9: 終了時刻 分表示 | S9: 経過時間 （終了時間―開始時間） | T9: 経過時間 （終了時間―開始時間） | U9: 月日 | V9: 運行番号を日付に | W9: 次の運行番号が変わった開始時間 | X9: 1週間の表示の行 | Y9: 2週間の表示の行 | Z9: 長距離運行のありなし | AA9: 労働時間 （運転時間） | AB9: 労働時間 （運転時間） | AC9: 労働時間 （運転以外） | AD9: 労働時間 （運転以外） | AE9: 休憩時間 | AF9: 休憩時間 | AG9: 種別が「運転」以外(連続運転時間で使用) | AH9: 24時間終了 | AI9: 分に変換 | AJ9: 24時間後の行の開始時間 | AK9: 分に変換 | AL9: 24時間後の行の種別 | AM9: 24時間後がまたいでいる時の足りない時間計算 | AN9: 開始～24時間後までの拘束時間 (時間またいでいるものは除く) | AO9: 48時間終了 | AP9: 分に変換 | AQ9: 48時間後の行の開始時間 | AR9: 分 | AS9: 48時間後の行の種別 | AT9: 48時間後がまたいでいる時の足りない時間計算 | AU9: 2週間の終了 | AV9: 分変換 | AW9: 2週間後の行の開始時間 | AX9: 分変換 | AY9: 2週間後の種別 | AZ9: 拘束時間(勤務開始から24時間) （1か月・1日） | BA9: 拘束時間 （始業から24時間） | BB9: 拘束時間(勤務ごと) （1か月・1日） | BC9: 拘束時間(勤務ごと) （1か月・1日） | BD9: 拘束時間が14時間超え回数 | BE9: 拘束時間が15時間超え回数※ | BF9: 拘束時間、15時間超え16時間以下回数 | BG9: (一週での)拘束時間が15時間越え、16時間以下の回数 | BH9: 長距離運行が「あり」のとき、拘束時間が16時間を超チェック | BI9: 休息期間 （自宅） | BJ9: 休息期間 （自宅） | BK9: 休息期間 （出先） | BL9: 休息期間 （出先） | BM9: 休息期間 （自宅）・（出先） | BN9: 休息期間 （自宅）・（出先） | BO9: 分割休息無しの時の 休息時間 | BP9: 分割休息時の 休息時間 | BQ9: 何分割休息か | BR9: 何分割か(9時間以上の場合、分割回数1) | BS9: 何分割か(長距離運行のありの場合、8時間以上の場合、分割回数1) | BT9: (分割回数まとめ)長距離運行ありなしで判断 | BU9: 分割休息が何回目か | BV9: 分割休息無し(9時間以上の分割休息含む) | BW9: 分割休息有り（合計)(4分割目以降無効) | BX9: 分割休息時間の合計(4分割目以降無効)時刻形式 ・分割休息による勤務回数 | BY9: 2分割合計休息時間 | BZ9: 3分割合計休息時間 | CA9: 休息期間 （一勤務ごと） | CB9: 休息期間 （一勤務ごと） | CC9: 休日の判定 | CD9: 8時間以上9時間未満 | CE9: (一週での)休息時間が８時間以上、９時間未満の回数 | CF9: 長距離運行が「あり」のとき、休息期間が8時間未満チェック | CG9: 開始～24時間後までの運転時間 | CH9: 24時間後がまたいでいる時の計算 | CI9: 運転時間 （始業から24時間） | CJ9: 運転時間 （始業から24時間） | CK9: 運転時間（1日） ※一勤務 | CL9: 運転時間（1日） ※一勤務 | CM9: 開始～48時間後までの運転時間 | CN9: 48時間後がまたいでいる時の計算 | CO9: 運転時間 （始業から48時間） | CP9: 運転時間 （始業から48時間） | CQ9: 運転時間 （2日平均） | CR9: 運転時間 （2日平均） | CS9: 次の運行番号の2日平均表示(9時間超え2日連続チェック) | CT9: 運転時間2日平均、9時間超え2日連続かチェック | CU9: 開始～2週間後までの運転時間 | CV9: 2週間後がまたいでいる時の計算 | CW9: 運転時間（起算日(0:00)から2週間(0:00)） | CX9: 運転時間 （2週平均） | CY9: 運転時間 （2週平均） | CZ9: 上の行で運転時間以外の一番大きい開始時間 | DA9: 休憩と休息が10分未満の時1,10分以上の時0 | DB9: 休憩,休息10分未満のとき、何回目の10分未満か(10分未満の時、カウントリセット) | DC9: 休憩時間表示(30分たった時リセット(10分未満3連続以上 、8分以下含まない)) | DD9: 休憩時間合計 | DE9: 連続運転時間(休憩時間が30分以上続いたらリセット) | DF9: 連続運転時間 ※休憩30分以上でリセット | DG9: 中断が10分未満の時1,10分以上の時0 | DH9: 中断が10分未満のとき、何回目の休憩,休息10分未満か(10分未満の時、カウントリセット) | DI9: 中断時間表示(30分たった時リセット(10分未満3連続以上 、8分以下含まない)) | DJ9: 中断時間合計 | DK9: 連続運転時間(中断時間が30分以上続いたらリセット) | DL9: 連続運転時間 ※中断30分以上でリセット | DM9: 連続運転時間（最長）(30分経ったらリセットの方) | DN9: 時刻形式 | DO9: 労働時間 （1か月・一勤務） | DP9: 労働時間 （1か月・一勤務）
F10: =COUNTA(F12:F512) -> 0 | O10: 年月 | P10: 時刻 | AZ10: =SUMIFS(AZ12:AZ503,$U$12:$U$503,">="&$O$1,$U$12:$U$503,"<="&$Q$1) -> 0 | BA10: =IF(BB10<>"",BB10/1440,"") -> 0 | BB10: =SUMIFS(BB12:BB503,$U$12:$U$503,">="&$O$1,$U$12:$U$503,"<="&$Q$1) -> 0 | BX10: =COUNTIFS($BT$12:$BT$509,">=2") -> 0 | CI10: =SUMIFS(CI12:CI503,$U$12:$U$503,">="&$O$1,$U$12:$U$503,"<="&$Q$1) -> 0 | CJ10: =CI10/1440 -> 0 | DO10: =SUMIFS(DO12:DO503,$U$12:$U$503,">="&$O$1,$U$12:$U$503,"<="&$Q$1) -> 0 | DP10: =IF(DO10<>"",DO10/1440,"") -> 0 | DQ10: ←月の合計
CA11: (1.3.2)休息時間が9時間を下回るときに黄色背景 | CD11: (1.3.2)宿泊で休息時間8時間未満が1週間に2回を超えたときに黄色背景 | CE11: (1.3.2)宿泊で休息時間8時間未満が1週間に2回を超えたときに黄色背景 | CX11: (2.2)２週平均１週の運転時間が、44時間を超えたときに黄色背景
B12: 10 | C12: 種別条件 | H12: =IF(G12<>"",VALUE(G12),"") ->  | J12: =IF(OR(I12=$B$17, I12=$B$18),IF(S12<$B$52,1,""),"") ->  | K12: =IFERROR(VLOOKUP(I12,$B$14:$C$18,2,FALSE),"") ->  | L12: =IF(O12<>"",O12,L10) -> 00:00:00 | N12: =HOUR(M12)*60+MINUTE(M12) -> 0 | Q12: =L12+P12 -> 00:00:00 | R12: =_xlfn.DAYS(Q12,M12)*1440+HOUR(Q12)*60+MINUTE(Q12) -> 0 | S12: =IF(G12<>"",R12-N12,"") ->  | T12: =IF(S12<>"",S12/1440,"") ->  | U12: =IF(M12<>"",DATE(YEAR(M12),MONTH(M12),DAY(M12)),"") ->  | V12: =IF(G12<>G11,IF(G12<>"",IF(AND(YEAR($O$1)<>YEAR($Q$1),LEFT(G12, 2)="01"),DATE(YEAR($Q$1),LEFT(G12, 2), RIGHT(G12, 2)),DATE(YEAR($O$1),LEFT(G12, 2), RIGHT(G12, 2))),""),"") ->  | W12: =IF(G11<>G12,_xlfn.MINIFS($M$12:$M$500,$M$12:$M$500,">"&M12,$H$12:$H$500,"<>"&H12),"") ->  | X12: =IF(M12=MIN(IF($M$12:$M$501>=$O$1,$M$12:$M$501)),$B$40,IF(M12=MIN(IF($M$12:$M$501>=$O$1+7,$M$12:$M$501)),$B$41,IF(M12=MIN(IF($M$12:$M$501>=$O$1+14,$M$12:$M$501)),$B$42,IF(M12=MIN(IF($M$12:$M$501>=$O$1+21,$M$12:$M$501)),$B$43,IF(M12=MIN(IF($M$12:$M$501>=$O$1+28,$M$12:$M$501)),$B$44,""))))) -> 1 | Y12: =IF(M12=MIN(IF($M$12:$M$501>=$O$1,$M$12:$M$501)),$B$40,IF(M12=MIN(IF($M$12:$M$501>=$O$1+14,$M$12:$M$501)),$B$41,IF(M12=MIN(IF($M$12:$M$501>=$O$1+28,$M$12:$M$501)),$B$42,""))) -> 1 | Z12: =IF(G12<>"",IF(X12<>"",IFERROR(INDEX(N$4:N$7, MATCH(X12, L$4:L$7, 0)),0), Z11), "") ->  | AA12: =IF(G12<>"",IF(I12=$B$14,S12,""),"") ->  | AB12: =IF(AA12<>"",IF(AA12<>0,AA12/1440,""),"") ->  | AC12: =IF(I12=$B$15,S12,"") ->  | AD12: =IF(AC12<>"",AC12/1440,"") ->  | AF12: =IF(AE12<>"",IF(AE12<>0,AE12/1440,""),"") ->  | AG12: =IF(I12<>$B$14,S12,0) ->  | AH12: =IF(G11<>G12,M12+1,"") ->  | AI12: =IF(G12<>G11,IF(AJ12<>0,_xlfn.DAYS(AH12,AJ12)*1440+HOUR(AH12)*60+MINUTE(AH12),0),"") ->  | AJ12: =IF(G12<>G11,SUMIFS($M$12:$M$511,$M$12:$M$511,"<="&AH12,$Q$12:$Q$511,">"&AH12),"") ->  | AK12: =IF(G12<>G11,HOUR(AJ12)*60+MINUTE(AJ12),"") ->  | AL12: =IF(G12<>G11,SUMIFS($I$12:$I$511,$M$12:$M$511,"<"&AH12,$Q$12:$Q$511,">="&AH12),"") ->  | AM12: =IF(G12<>G11,IF(AND(AL12<>0,AL12<=$B$16),IF(AI12-AK12>=0,AI12-AK12,0),0),"") ->  | AN12: =IF(G12<>G11,SUMIFS($S$12:$S$510,$M$12:$M$510,">="&M12,$Q$12:$Q$510,"<="&AH12,$I$12:$I$510,"<="&$B$16),"") ->  | AO12: =IF(G11<>G12,M12+2,"") ->  | AP12: =IF(G12<>G11,IF(AQ12<>0,_xlfn.DAYS(AO12,AQ12)*1440+HOUR(AO12)*60+MINUTE(AO12),0),"") ->  | AQ12: =IF(G12<>G11,SUMIFS($M$12:$M$511,$M$12:$M$511,"<="&AO12,$Q$12:$Q$511,">"&AO12),"") ->  | AR12: =IF(G12<>G11,HOUR(AQ12)*60+MINUTE(AQ12),"") ->  | AS12: =IF(G12<>G11,SUMIFS($I$12:$I$511,$M$12:$M$511,"<"&AO12,$Q$12:$Q$511,">="&AO12),"") ->  | AT12: =IF(G12<>G11,IF(AND(AL12<>0,AL12<=$B$16),IF(AP12-AR12>=0,AP12-AR12,0),0),"") ->  | AU12: =IF(Y12=$B$40,$O$1+14,IF(Y12=$B$41,$O$1+28,"")) -> 1900-01-14 | AV12: =IF(Y12<>"",_xlfn.DAYS(AU12,AW12)*1440+HOUR(AU12)*60+MINUTE(AU12),"") -> 20160 | AW12: =IF(Y12<>"",SUMIFS($M$12:$M$511,$M$12:$M$511,"<="&AU12,$Q$12:$Q$511,">"&AU12),"") -> 00:00:00 | AX12: =IF(Y12<>"",HOUR(AW12)*60+MINUTE(AW12),"") -> 0 | AY12: =IF(Y12<>"",SUMIFS($I$12:$I$511,$M$12:$M$511,"<"&AU12,$Q$12:$Q$511,">="&AU12),"") -> 0 | AZ12: =IF(G12<>G11,AN12+AM12,"") ->  | BA12: =IF(AZ12<>"",AZ12/1440,"") ->  | BB12: =IF(G11<>G12,SUMIFS($S$12:$S$512,$I$12:$I$512,"<="&$B$16,$G$12:$G$512,G12),"") ->  | BC12: =IF(BB12<>"",BB12/1440,"") ->  | BD12: =IF(X12<>"",COUNTIFS($BB$12:$BB$512,">"&$B$26,$U$12:$U$512,">="&U12,$U$12:$U$512,"<"&U12+$B$69),"") -> 0 | BE12: =IF(X12<>"",COUNTIFS($BB$12:$BB$512,">"&$B$27,$U$12:$U$512,">="&U12,$U$12:$U$512,"<"&U12+$B$69),"") -> 0 | BF12: =IF(G11<>G12,IF(AND(AZ12>$B$27,AZ12<=$B$28),1,0),"") ->  | BG12: =IF(X12<>"",IF(Z12=1,COUNTIFS($BF$12:$BF$500,">=1",$U$12:$U$500,">="&U12,$U$12:$U$500,"<"&U12+$B$69),""),"") ->  | BH12: =IF(G12<>G11,IF(Z12=1,IF(AZ12>$B$28,1,0),0),"") ->  | BI12: =IF(I12=$B$17,S12,"") ->  | BJ12: =IF(BI12<>"",BI12/1440,"") ->  | BK12: =IF(I12=$B$18,S12,"") ->  | BL12: =IF(BK12<>"",BK12/1440,"") ->  | BM12: =IF(OR(I12=$B$18,I12=$B$17),S12,"") ->  | BN12: =IF(BM12<>"",BM12/1440,"") ->  | BO12: =IF(SUM(COUNTIFS($I$12:$I$509,$B$18,$G$12:$G$509,G12), COUNTIFS($I$12:$I$509,$B$17,$G$12:$G$509,G12))>$B$55,"",IF(OR(I12=$B$18, I12=$B$17), S12, "")) ->  | BP12: =IF(SUM(COUNTIFS($I$12:$I$509,$B$18,$G$12:$G$509,G12), COUNTIFS($I$12:$I$509,$B$17,$G$12:$G$509,G12))>$B$55,IF(OR(I12=$B$18, I12=$B$17), S12, ""),"") ->  | BQ12: =IF(G12<>G11,IF(SUMIFS($BO$12:$BO$503,$G$12:$G$503,G12)>$B$56,1,COUNTIFS($BP$12:$BP$503,">"&$B$56,$G$12:$G$503,G12)),"") ->  | BR12: =IF(G12<>G11,IF(BQ12>=2,IF(MAX(IF($G$12:$G$503=G12,$BP$12:$BP$503))<$B$30,BQ12,1),BQ12),"") ->  | BS12: =IF(G12<>G11,IF(BQ12>=2,IF(MAX(IF($G$12:$G$503=G12,$BP$12:$BP$503))<$B$31,BQ12,1),BQ12),"") ->  | BT12: =IF(Z12=1,BS12,IF(Z12=0,BR12,"")) ->  | BU12: =IF(MAX(IF($G$12:G12=G12,$BP$12:BP12))<$B$30,COUNTIFS($BP$12:BP12,">"&$B$56,$G$12:G12,G12),0) -> 0 | BV12: =IF(G11<>G12,IF(BT12=$B$55,SUMIFS($S$12:$S$503,$G$12:$G$503,G12,$I$12:$I$503,$B$17)+SUMIFS($S$12:$S$503,$G$12:$G$503,G12,$I$12:$I$503,$B$18),""),"") ->  | BW12: =IF(G11<>G12,IF(SUMIFS($BT$12:$BT$503,$G$12:$G$503,G12)>=$B$58,SUMIFS($BP$12:$BP$503,$G$12:$G$503,G12,$BU$12:$BU$503,">=1",$BU$12:$BU$503,"<=3"),""),"") ->  | BX12: =IF(BW12<>"",BW12/1440,"") ->  | BY12: =IF(G11<>G12,IF(BT12=2,BX12,0),"") ->  | BZ12: =IF(G11<>G12,IF(BT12=3,BX12,0),"") ->  | CA12: =IF(G11<>G12,IF(BT12=1,BV12,IF(BT12=0,0,BW12)),"") ->  | CB12: =IF(CA12<>"",CA12/1440,"") ->  | CC12: =IF(G12<>G11,IF(G12<>"",IF(CA12>=1980,1,0),""),"") ->  | CD12: =IF(G11<>G12,IF(AND(CA12>=$B$31,CA12<$B$30),1,0),"") ->  | CE12: =IF(X12<>"",COUNTIFS($CD$12:$CD$499,">=1",$U$12:$U$499,">="&U12,$U$12:$U$499,"<"&U12+$B$69),"") -> 0 | CF12: =IF(G12<>G11,IF(Z12=1,IF(CA12<$B$31,1,0),0),"") ->  | CG12: =IF(G12<>G11,SUMIFS($AA$12:$AA$510,$M$12:$M$510,">="&M12,$Q$12:$Q$510,"<="&AH12),"") ->  | CH12: =IF(G12<>G11,IF(AL12=$B$14,IF(AI12-AK12>=0,AI12-AK12,0),0),"") ->  | CI12: =IF(G12<>G11,CG12+CH12,"") ->  | CJ12: =IF(CI12<>"",CI12/1440,"") ->  | CK12: =IF(G12<>G11,SUMIFS($AA$12:$AA$503,$G$12:$G$503,G12),"") ->  | CL12: =IF(CK12<>"",CK12/1440,"") ->  | CM12: =IF(G12<>G11,SUMIFS($AA$12:$AA$510,$M$12:$M$510,">="&M12,$Q$12:$Q$510,"<="&AO12),"") ->  | CN12: =IF(G12<>G11,IF(AS12=$B$14,IF(AP12-AR12>=0,AP12-AR12,0),0),"") ->  | CO12: =IF(G12<>G11,CM12+CN12,"") ->  | CP12: =IF(CO12<>"",CO12/1440,"") ->  | CQ12: =IF(G12<>G11,CO12/2,"") ->  | CR12: =IF(CQ12<>"",CQ12/1440,"") ->  | CS12: =IF(G11<>G12,SUMIFS($CQ$12:$CQ$500,$M$12:$M$500,W12),"") ->  | CT12: =IF(G11<>G12,IF(AND(CQ12>$B$30,CS12>$B$30),1,0),"") ->  | CU12: =IF(Y12=$B$40,SUMIFS($AA$12:$AA$501,$M$12:$M$501,">="&$O$1,$Q$12:$Q$501,"<="&AU12),IF(Y12=$B$41,SUMIFS($AA$12:$AA$501,$M$12:$M$501,">="&$O$1+14,$Q$12:$Q$501,"<="&AU12),"")) -> 0 | CV12: =IF(Y12<>"",IF(AY12=$B$14,IF(AV12-AX12>=0,AV12-AX12,0),0),"") -> 0 | CW12: =IF(Y12<>"",CU12+CV12,"") -> 0 | CX12: =IF(Y12<>"",CW12/2,"") -> 0 | CY12: =IF(CX12<>"",CX12/1440,"") -> 0 | CZ12: =IF(G12<>"",MAX(IF($I$11:I11<>$B$14,$M$11:M11)),"") ->  | DA12: =IF(G12<>"",IF(I12>=$B$16,IF(S12<$B$50,1,0),""),"") ->  | DB12: =IF(DA12<>"",IF(DA12=0,0,IF(G12<>G11,0,IFERROR(INDEX($DB$11:DB11, MATCH(MAX($CZ$11:CZ11), $M$11:M11, 0))+1,1))),"") ->  | DC12: =IF(G12<>"",IF(I12>=$B$16,IF(S12>=9,IF(DB12>=3,0,S12),0),0),"") ->  | DD12: =IF(G12<>"",IF(G12=G11,IF(DD11>=$B$49,DC12,DD11+DC12),DC12),"") ->  | DE12: =IF(G12<>"",IF(G12=G11,IF(DD11>=$B$49,AA12,DE11+AA12),AA12),"") ->  | DF12: =IF(DE12=0,"",IF(DE12<>"",DE12/1440,"")) ->  | DG12: =IF(G12<>"",IF(I12<>$B$14,IF(S12<$B$50,1,0),""),"") ->  | DH12: =IF(DG12<>"",IF(DG12=0,0,IF(G12<>G11,0,IFERROR(INDEX($DH$11:DH11, MATCH(MAX($CZ$11:CZ11), $M$11:M11, 0))+1,1))),"") ->  | DI12: =IF(G12<>"",IF(I12<>$B$14,IF(S12>=9,IF(DH12>=3,0,S12),0),0),"") ->  | DJ12: =IF(G12<>"",IF(G12=G11,IF(DJ11>=$B$49,DI12,DJ11+DI12),DI12),"") ->  | DK12: =IF(G12<>"",IF(G12=G11,IF(DJ11>=$B$49,AA12,DK11+AA12),AA12),"") ->  | DL12: =IF(DK12<>"",DK12/1440,"") ->  | DM12: =IF(G11<>G12,MAX(IF($G$12:$G$503=G12,$DK$12:$DK$503)),"") ->  | DN12: =IF(DM12<>"",DM12/1440,"") ->  | DO12: =IF(G12<>G11,SUMIFS($S$12:$S$503,$G$12:$G$503,G12,$I$12:$I$503,$B$14) + SUMIFS($S$12:$S$503,$G$12:$G$503,G12,$I$12:$I$503,$B$15),"") ->  | DP12: =IF(DO12<>"",DO12/1440,"") ->  | DQ12: （色表示について）
J13: =IF(OR(I13=$B$17, I13=$B$18),IF(S13<$B$52,1,""),"") ->  | L13: =IF(O13<>"",O13,L12) -> 00:00:00 | M13: =IF(I13>=1,Q12,"") ->  | Q13: =L13+P13 -> 00:00:00 | X13: =IF(M13=MIN(IF($M$12:$M$501>=$O$1,$M$12:$M$501)),$B$40,IF(M13=MIN(IF($M$12:$M$501>=$O$1+7,$M$12:$M$501)),$B$41,IF(M13=MIN(IF($M$12:$M$501>=$O$1+14,$M$12:$M$501)),$B$42,IF(M13=MIN(IF($M$12:$M$501>=$O$1+21,$M$12:$M$501)),$B$43,IF(M13=MIN(IF($M$12:$M$501>=$O$1+28,$M$12:$M$501)),$B$44,""))))) ->  | Y13: =IF(M13=MIN(IF($M$12:$M$501>=$O$1,$M$12:$M$501)),$B$40,IF(M13=MIN(IF($M$12:$M$501>=$O$1+14,$M$12:$M$501)),$B$41,IF(M13=MIN(IF($M$12:$M$501>=$O$1+28,$M$12:$M$501)),$B$42,""))) ->  | AA13: =IF(G13<>"",IF(I13=$B$14,S13,0),"") ->  | AB13: =IF(AA13<>"",IF(AA13<>0,AA13/1440,""),"") ->  | AE13: =IF(G13<>"",IF(I13=$B$16,S13,0),"") ->  | AF13: =IF(AE13<>"",IF(AE13<>0,AE13/1440,""),"") ->  | BA13: =IF(AZ13<>"",AZ13/1440,"") ->  | BC13: =IF(BB13<>"",BB13/1440,"") ->  | BJ13: =IF(BI13<>"",BI13/1440,"") ->  | BL13: =IF(BK13<>"",BK13/1440,"") ->  | BN13: =IF(BM13<>"",BM13/1440,"") ->  | BQ13: =IF(G13<>G12,IF(SUMIFS($BO$12:$BO$503,$G$12:$G$503,G13)>0,1,COUNTIFS($BP$12:$BP$503,">"&$B$56,$G$12:$G$503,G13)),"") ->  | BR13: =IF(G13<>G12,IF(BQ13>=2,IF(MAX(IF($G$12:$G$503=G13,$BP$12:$BP$503))<$B$30,BQ13,1),BQ13),"") ->  | BS13: =IF(G13<>G12,IF(BQ13>=2,IF(MAX(IF($G$12:$G$503=G13,$BP$12:$BP$503))<$B$31,BQ13,1),BQ13),"") ->  | BU13: =IF(MAX(IF($G$12:G13=G13,$BP$12:BP13))<$B$30,COUNTIFS($BP$12:BP13,">"&$B$56,$G$12:G13,G13),0) -> 0 | BV13: =IF(G12<>G13,IF(BR13=$B$55,SUMIFS($S$12:$S$503,$G$12:$G$503,G13,$I$12:$I$503,$B$17)+SUMIFS($S$12:$S$503,$G$12:$G$503,G13,$I$12:$I$503,$B$18),""),"") ->  | BX13: =IF(BW13<>"",BW13/1440,"") ->  | CJ13: =IF(CI13<>"",CI13/1440,"") ->  | CL13: =IF(CK13<>"",CK13/1440,"") ->  | CP13: =IF(CO13<>"",CO13/1440,"") ->  | CR13: =IF(CQ13<>"",CQ13/1440,"") ->  | CW13: =IF(Y13<>"",CU13+CV13,"") ->  | CZ13: =IF(G13<>"",MAX(IF($I$11:I12<>$B$14,$M$11:M12)),"") ->  | DB13: =IF(DA13<>"",IF(DA13=0,0,IF(G13<>G12,0,IFERROR(INDEX($DB$11:DB12, MATCH(MAX($CZ$11:CZ12), $M$11:M12, 0))+1,1))),"") ->  | DF13: =IF(DE13=0,"",IF(DE13<>"",DE13/1440,"")) ->  | DH13: =IF(DG13<>"",IF(DG13=0,0,IF(G13<>G12,0,IFERROR(INDEX($DH$11:DH12, MATCH(MAX($CZ$11:CZ12), $M$11:M12, 0))+1,1))),"") ->  | DM13: =IF(G12<>G13,MAX(IF($G$12:$G$503=G13,$DK$12:$DK$503)),"") ->  | DN13: =IF(DM13<>"",DM13/1440,"") ->  | DP13: =IF(DO13<>"",DO13/1440,"") ->  | DQ13: ③種別 | DR13: ・「4：休息（自宅）」「5：休息（出先）」が、３時間未満のとき赤表示
B14: 1 | C14: 労働時間（運転） | L14: =IF(O14<>"",O14,L13) -> 00:00:00 | Q14: 00:00:00 | X14: =IF(M14=MIN(IF($M$12:$M$501>=$O$1,$M$12:$M$501)),$B$40,IF(M14=MIN(IF($M$12:$M$501>=$O$1+7,$M$12:$M$501)),$B$41,IF(M14=MIN(IF($M$12:$M$501>=$O$1+14,$M$12:$M$501)),$B$42,IF(M14=MIN(IF($M$12:$M$501>=$O$1+21,$M$12:$M$501)),$B$43,IF(M14=MIN(IF($M$12:$M$501>=$O$1+28,$M$12:$M$501)),$B$44,""))))) ->  | Y14: =IF(M14=MIN(IF($M$12:$M$501>=$O$1,$M$12:$M$501)),$B$40,IF(M14=MIN(IF($M$12:$M$501>=$O$1+14,$M$12:$M$501)),$B$41,IF(M14=MIN(IF($M$12:$M$501>=$O$1+28,$M$12:$M$501)),$B$42,""))) ->  | AB14: =IF(AA14<>"",IF(AA14<>0,AA14/1440,""),"") ->  | BL14: =IF(BK14<>"",BK14/1440,"") ->  | BR14: =IF(G14<>G13,IF(BQ14>=2,IF(MAX(IF($G$12:$G$503=G14,$BP$12:$BP$503))<$B$30,BQ14,1),BQ14),"") ->  | BS14: =IF(G14<>G13,IF(BQ14>=2,IF(MAX(IF($G$12:$G$503=G14,$BP$12:$BP$503))<$B$31,BQ14,1),BQ14),"") ->  | BU14: =IF(MAX(IF($G$12:G14=G14,$BP$12:BP14))<$B$30,COUNTIFS($BP$12:BP14,">"&$B$56,$G$12:G14,G14),0) -> 0 | CZ14: =IF(G14<>"",MAX(IF($I$11:I13<>$B$14,$M$11:M13)),"") ->  | DB14: =IF(DA14<>"",IF(DA14=0,0,IF(G14<>G13,0,IFERROR(INDEX($DB$11:DB13, MATCH(MAX($CZ$11:CZ13), $M$11:M13, 0))+1,1))),"") ->  | DF14: =IF(DE14=0,"",IF(DE14<>"",DE14/1440,"")) ->  | DH14: =IF(DG14<>"",IF(DG14=0,0,IF(G14<>G13,0,IFERROR(INDEX($DH$11:DH13, MATCH(MAX($CZ$11:CZ13), $M$11:M13, 0))+1,1))),"") ->  | DM14: =IF(G13<>G14,MAX(IF($G$12:$G$503=G14,$DK$12:$DK$503)),"") ->  | DR14: （※）休息は、１回当たり継続３時間以上の取得が必要です。
